Workbook

Sheet AMI Tax Asset Base
A1: United Energy | B1: Check | C1: =IF(SUM(C59)<0.001,"Ok","Error") -> Ok | D1: 2009 | E1: 2010 | F1: 2011 | G1: 2012 | H1: 2013 | I1: 2014 | J1: 2015 | K1: 2016 | L1: 2017 | M1: 2018 | N1: 2019 | O1: 2020 | P1: 2021 | Q1: 2022 | R1: 2023 | S1: 2024 | T1: 2025 | U1: 2026 | V1: 2027 | W1: 2028 | X1: 2029 | Y1: 2030 | Z1: 2031 | AA1: 2032
C2: =C59 -> 6.275513442e-11
A3: TAX DEPRECIATION
A5: Tax Asset Class | D5: Tax Depreciation Declining Balance
A6: Meters and transformers (Group 1) (Unit cost < $1,000) | D6: 0.375
A7: Meters and transformers (Group 2) (Unit cost => $1,000) | D7: 0.06
A8: IT | D8: 0.4
A9: Communications | D9: 0.2142857143
A10: Other | D10: 0.1764705882
A13: REGULATED TAX ASSET VALUE | D13: =D$1 -> 2009 | E13: =E$1 -> 2010 | F13: 2011 | G13: 2012 | H13: 2013 | I13: 2014 | J13: 2015 | K13: 2016 | L13: 2017 | M13: 2018 | N13: 2019 | O13: 2020 | P13: 2021 | Q13: 2022 | R13: 2023 | S13: 2024 | T13: 2025 | U13: 2026 | V13: 2027 | W13: 2028 | X13: 2029 | Y13: 2030 | Z13: 2031 | AA13: 2032
A14: ($000 Nominal)
A15: Capex
A16: Meters and transformers (Group 1) (Unit cost < $1,000) | D16: 10281.90639 | E16: 24243.243 | F16: 48357.31924 | G16: 51851.5026 | H16: 55756.40179 | I16: 24549.682 | J16: 2349.069351 | K16: 2963.516309 | L16: 1066.058143 | M16: 629.7023257 | N16: 657.3655583 | O16: 674.5550326
A17: Meters and transformers (Group 2) (Unit cost => $1,000) | D17: 0 | E17: 0 | F17: 0 | G17: 0 | H17: 0 | I17: 0 | J17: 0 | K17: 0 | L17: 0 | M17: 0 | N17: 0 | O17: 0
A18: IT | D18: 63237.88408 | E18: 34423.246 | F18: 8382.03572 | G18: 7974.07495 | H18: 1748.57127 | I18: 4041.916 | J18: 4286.62144 | K18: 7404.09835 | L18: 4941.94115 | M18: 478.96405 | N18: 820.3977 | O18: 2847.99075
A19: Communications | D19: 0 | E19: 0 | F19: 2276.04569 | G19: 418.83868 | H19: 1055.3722 | I19: 1078.313 | J19: 234 | K19: 144.052 | L19: 72.026 | M19: 0 | N19: 0 | O19: 0
A20: Other | D20: 100.95888 | E20: 367.167 | F20: 10550.23079 | G20: 2706.93779 | H20: 2425.52955 | I20: 0 | J20: 0 | K20: 0 | L20: 0 | M20: 0 | N20: 0 | O20: 0
D21: =SUM(D16:D20) -> 73620.74935 | E21: =SUM(E16:E20) -> 59033.656 | F21: 69565.63144 | G21: 62951.35402 | H21: 60985.87481 | I21: 29669.911 | J21: 6869.690791 | K21: 10511.66666 | L21: 6080.025293 | M21: 1108.666376 | N21: 1477.763258 | O21: 3522.545783
A22: ($000 MOD)
A23: Meters and transformers (Group 1) (Unit cost < $1,000)
A24: Opening asset value | D24: 8544.204598 | E24: =D27 -> 13694.17682 | F24: 28256.49545 | G24: 56950.63154 | H24: 77723.49057 | I24: 93879.25806 | J24: 78621.15291 | K24: 51046.83942 | L24: 34312.13164 | M24: 22311.25452 | N24: 14456.16721 | O24: 9569.214023 | P24: 6528.834729 | Q24: 4080.521705 | R24: 2550.326066 | S24: 1593.953791 | T24: 996.2211195 | U24: 622.6381997 | V24: 389.1488748 | W24: 243.2180467 | X24: =W27 -> 152.0112792 | Y24: =X27 -> 95.00704951 | Z24: =Y27 -> 59.37940594 | AA24: =Z27 -> 37.11212872
A25: Depreciation | D25: =$D$6*(D24+D26*0.5) -> 5131.934172 | E25: =$D$6*(E24+E26*0.5) -> 9680.924368 | F25: 19663.18315 | G25: =$D$6*(G24+G26*0.5) -> 31078.64356 | H25: 39600.6343 | I25: 39807.78715 | J25: =$D$6*(J24+J26*0.5) -> 29923.38285 | K25: 19698.22409 | L25: =$D$6*(L24+L26*0.5) -> 13066.93527 | M25: 8484.789629 | N25: =$D$6*(N24+N26*0.5) -> 5544.318747 | O25: 3714.934327 | P25: 2448.313023 | Q25: 1530.19564 | R25: 956.3722747 | S25: 597.7326717 | T25: 373.5829198 | U25: 233.4893249 | V25: 145.930828 | W25: 91.20676753 | X25: =$D$6*(X24+X26*0.5) -> 57.00422971 | Y25: =$D$6*(Y24+Y26*0.5) -> 35.62764357 | Z25: =$D$6*(Z24+Z26*0.5) -> 22.26727723 | AA25: =$D$6*(AA24+AA26*0.5) -> 13.91704827
A26: Gross capex | D26: =D16 -> 10281.90639 | E26: 24243.243 | F26: 48357.31924 | G26: 51851.5026 | H26: 55756.40179 | I26: 24549.682 | J26: 2349.069351 | K26: 2963.516309 | L26: 1066.058143 | M26: 629.7023257 | N26: 657.3655583 | O26: 674.5550326 | P26: 0 | Q26: 0 | R26: 0 | S26: 0 | T26: 0 | U26: 0 | V26: 0 | W26: 0 | X26: =X16 -> 0 | Y26: =Y16 -> 0 | Z26: =Z16 -> 0 | AA26: =AA16 -> 0
A27: Closing asset value | D27: =D24-D25+D26 -> 13694.17682 | E27: 28256.49545 | F27: 56950.63154 | G27: 77723.49057 | H27: 93879.25806 | I27: 78621.15291 | J27: 51046.83942 | K27: 34312.13164 | L27: 22311.25452 | M27: 14456.16721 | N27: 9569.214023 | O27: 6528.834729 | P27: 4080.521705 | Q27: 2550.326066 | R27: 1593.953791 | S27: 996.2211195 | T27: 622.6381997 | U27: 389.1488748 | V27: 243.2180467 | W27: 152.0112792 | X27: =X24-X25+X26 -> 95.00704951 | Y27: =Y24-Y25+Y26 -> 59.37940594 | Z27: =Z24-Z25+Z26 -> 37.11212872 | AA27: =AA24-AA25+AA26 -> 23.19508045
A29: Meters and transformers (Group 2) (Unit cost => $1,000)
A30: =A$24 -> Opening asset value | D30: 0 | E30: =D33 -> 0 | F30: 0 | G30: 0 | H30: 0 | I30: 0 | J30: 0 | K30: 0 | L30: 0 | M30: 0 | N30: 0 | O30: 0 | P30: 0 | Q30: 0 | R30: 0 | S30: 0 | T30: 0 | U30: 0 | V30: 0 | W30: 0 | X30: =W33 -> 0 | Y30: =X33 -> 0 | Z30: =Y33 -> 0 | AA30: =Z33 -> 0
A31: =A$25 -> Depreciation | D31: =$D$7*(D30+D32*0.5) -> 0 | E31: 0 | F31: 0 | G31: 0 | H31: 0 | I31: 0 | J31: 0 | K31: 0 | L31: 0 | M31: 0 | N31: 0 | O31: 0 | P31: 0 | Q31: 0 | R31: 0 | S31: 0 | T31: 0 | U31: 0 | V31: 0 | W31: 0 | X31: =$D$7*(X30+X32*0.5) -> 0 | Y31: =$D$7*(Y30+Y32*0.5) -> 0 | Z31: =$D$7*(Z30+Z32*0.5) -> 0 | AA31: =$D$7*(AA30+AA32*0.5) -> 0
A32: =A$26 -> Gross capex | D32: =D17 -> 0 | E32: 0 | F32: 0 | G32: 0 | H32: 0 | I32: 0 | J32: 0 | K32: 0 | L32: 0 | M32: 0 | N32: 0 | O32: 0 | P32: 0 | Q32: 0 | R32: 0 | S32: 0 | T32: 0 | U32: 0 | V32: 0 | W32: 0 | X32: =X17 -> 0 | Y32: =Y17 -> 0 | Z32: =Z17 -> 0 | AA32: =AA17 -> 0
A33: =A$27 -> Closing asset value | D33: =D30-D31+D32 -> 0 | E33: 0 | F33: 0 | G33: 0 | H33: 0 | I33: 0 | J33: 0 | K33: 0 | L33: 0 | M33: 0 | N33: 0 | O33: 0 | P33: 0 | Q33: 0 | R33: 0 | S33: 0 | T33: 0 | U33: 0 | V33: 0 | W33: 0 | X33: =X30-X31+X32 -> 0 | Y33: =Y30-Y31+Y32 -> 0 | Z33: =Z30-Z31+Z32 -> 0 | AA33: =AA30-AA31+AA32 -> 0
A35: IT
A36: =A$24 -> Opening asset value | D36: 10296.286 | E36: =D39 -> 56768.07886 | F36: 61599.44412 | G36: 43665.29505 | H36: 32578.43699 | I36: 20945.91921 | J36: 15801.08433 | K36: 12909.94775 | L36: 13669.24733 | M36: 12155.10132 | N36: 7676.23203 | O36: 5262.057378 | P36: 5435.627027 | Q36: 3261.376216 | R36: 1956.82573 | S36: 1174.095438 | T36: 704.4572627 | U36: 422.6743576 | V36: 253.6046146 | W36: 152.1627687 | X36: =W39 -> 91.29766124 | Y36: =X39 -> 54.77859675 | Z36: =Y39 -> 32.86715805 | AA36: =Z39 -> 19.72029483
A37: =A$25 -> Depreciation | D37: =$D$8*(D36+D38*0.5) -> 16766.09122 | E37: 29591.88075 | F37: 26316.18479 | G37: 19060.93301 | H37: 13381.08905 | I37: 9186.750884 | J37: 7177.758018 | K37: 6644.798769 | L37: 6456.087161 | M37: 4957.833337 | N37: 3234.572352 | O37: 2674.421101 | P37: 2174.250811 | Q37: 1304.550486 | R37: 782.7302919 | S37: 469.6381751 | T37: 281.7829051 | U37: 169.069743 | V37: 101.4418458 | W37: 60.8651075 | X37: =$D$8*(X36+X38*0.5) -> 36.5190645 | Y37: =$D$8*(Y36+Y38*0.5) -> 21.9114387 | Z37: =$D$8*(Z36+Z38*0.5) -> 13.14686322 | AA37: =$D$8*(AA36+AA38*0.5) -> 7.888117931
A38: =A$26 -> Gross capex | D38: =D18 -> 63237.88408 | E38: 34423.246 | F38: 8382.03572 | G38: 7974.07495 | H38: 1748.57127 | I38: 4041.916 | J38: 4286.62144 | K38: 7404.09835 | L38: 4941.94115 | M38: 478.96405 | N38: 820.3977 | O38: 2847.99075 | P38: 0 | Q38: 0 | R38: 0 | S38: 0 | T38: 0 | U38: 0 | V38: 0 | W38: 0 | X38: =X18 -> 0 | Y38: =Y18 -> 0 | Z38: =Z18 -> 0 | AA38: =AA18 -> 0
A39: =A$27 -> Closing asset value | D39: =D36-D37+D38 -> 56768.07886 | E39: 61599.44412 | F39: 43665.29505 | G39: 32578.43699 | H39: 20945.91921 | I39: 15801.08433 | J39: 12909.94775 | K39: 13669.24733 | L39: 12155.10132 | M39: 7676.23203 | N39: 5262.057378 | O39: 5435.627027 | P39: 3261.376216 | Q39: 1956.82573 | R39: 1174.095438 | S39: 704.4572627 | T39: 422.6743576 | U39: 253.6046146 | V39: 152.1627687 | W39: 91.29766124 | X39: =X36-X37+X38 -> 54.77859675 | Y39: =Y36-Y37+Y38 -> 32.86715805 | Z39: =Z36-Z37+Z38 -> 19.72029483 | AA39: =AA36-AA37+AA38 -> 11.8321769
A41: Communications
A42: =A$24 -> Opening asset value | D42: 0 | E42: =D45 -> 0 | F42: 0 | G42: 2032.183652 | H42: 1970.678834 | I42: 2490.687119 | J42: 2919.747915 | K42: 2503.016219 | L42: 2095.273458 | M42: 1710.595217 | N42: 1344.039099 | O42: 1056.030721 | P42: 829.7384233 | Q42: 651.9373326 | R42: 512.2364756 | S42: 402.4715166 | T42: 316.2276202 | U42: 248.4645587 | V42: 195.2221533 | W42: 153.3888347 | X42: =W45 -> 120.5197987 | Y42: =X45 -> 94.69412755 | Z42: =Y45 -> 74.40252879 | AA42: =Z45 -> 58.45912976
A43: =A$25 -> Depreciation | D43: =$D$9*(D42+D44*0.5) -> 0 | E43: 0 | F43: 243.8620382 | G43: 480.3434982 | H43: 535.3639143 | I43: 649.2522041 | J43: 650.7316961 | K43: 551.7947612 | L43: 456.704241 | M43: 366.5561179 | N43: 288.0083783 | O43: 226.2922973 | P43: 177.8010907 | Q43: 139.700857 | R43: 109.7649591 | S43: 86.24389641 | T43: 67.76306146 | U43: 53.24240543 | V43: 41.83331856 | W43: 32.86903601 | X43: =$D$9*(X42+X44*0.5) -> 25.82567115 | Y43: =$D$9*(Y42+Y44*0.5) -> 20.29159876 | Z43: =$D$9*(Z42+Z44*0.5) -> 15.94339903 | AA43: =$D$9*(AA42+AA44*0.5) -> 12.52695638
A44: =A$26 -> Gross capex | D44: =D19 -> 0 | E44: 0 | F44: 2276.04569 | G44: 418.83868 | H44: 1055.3722 | I44: 1078.313 | J44: 234 | K44: 144.052 | L44: 72.026 | M44: 0 | N44: 0 | O44: 0 | P44: 0 | Q44: 0 | R44: 0 | S44: 0 | T44: 0 | U44: 0 | V44: 0 | W44: 0 | X44: =X19 -> 0 | Y44: =Y19 -> 0 | Z44: =Z19 -> 0 | AA44: =AA19 -> 0
A45: =A$27 -> Closing asset value | D45: =D42-D43+D44 -> 0 | E45: 0 | F45: 2032.183652 | G45: 1970.678834 | H45: 2490.687119 | I45: 2919.747915 | J45: 2503.016219 | K45: 2095.273458 | L45: 1710.595217 | M45: 1344.039099 | N45: 1056.030721 | O45: 829.7384233 | P45: 651.9373326 | Q45: 512.2364756 | R45: 402.4715166 | S45: 316.2276202 | T45: 248.4645587 | U45: 195.2221533 | V45: 153.3888347 | W45: 120.5197987 | X45: =X42-X43+X44 -> 94.69412755 | Y45: =Y42-Y43+Y44 -> 74.40252879 | Z45: =Z42-Z43+Z44 -> 58.45912976 | AA45: =AA42-AA43+AA44 -> 45.93217338
A47: Other
A48: =A$24 -> Opening asset value | D48: 23462.658 | E48: =D51 -> 19414.23968 | F48: 16322.9673 | G48: 23061.77173 | H48: 21460.13765 | I48: 19884.56677 | J48: 16375.52557 | K48: 13485.72694 | L48: 11105.89278 | M48: 9146.029346 | N48: 7532.024167 | O48: 6202.843432 | P48: 5108.224003 | Q48: 4206.772708 | R48: 3464.401054 | S48: 2853.036162 | T48: 2349.559192 | U48: 1934.931099 | V48: 1593.47267 | W48: 1312.271611 | X48: =W51 -> 1080.694268 | Y48: =X51 -> 889.9835145 | Z48: =Y51 -> 732.9276002 | AA48: =Z51 -> 603.5874354
A49: =A$25 -> Depreciation | D49: =$D$10*(D48+D50*0.5) -> 4149.377195 | E49: 3458.439386 | F49: 3811.426358 | G49: 4308.571875 | H49: 4001.100427 | I49: 3509.041195 | J49: 2889.798631 | K49: 2379.834167 | L49: 1959.863431 | M49: 1614.005179 | N49: 1329.180735 | O49: 1094.619429 | P49: 901.4512946 | Q49: 742.3716544 | R49: 611.3648918 | S49: 503.4769697 | T49: 414.6280927 | U49: 341.4584293 | V49: 281.2010594 | W49: 231.5773431 | X49: =$D$10*(X48+X50*0.5) -> 190.7107531 | Y49: =$D$10*(Y48+Y50*0.5) -> 157.0559143 | Z49: =$D$10*(Z48+Z50*0.5) -> 129.3401647 | AA49: =$D$10*(AA48+AA50*0.5) -> 106.5154298
A50: =A$26 -> Gross capex | D50: =D20 -> 100.95888 | E50: 367.167 | F50: 10550.23079 | G50: 2706.93779 | H50: 2425.52955 | I50: 0 | J50: =J20 -> 0 | K50: 0 | L50: 0 | M50: 0 | N50: 0 | O50: 0 | P50: 0 | Q50: 0 | R50: 0 | S50: 0 | T50: 0 | U50: 0 | V50: 0 | W50: 0 | X50: =X20 -> 0 | Y50: =Y20 -> 0 | Z50: =Z20 -> 0 | AA50: =AA20 -> 0
A51: =A$27 -> Closing asset value | D51: =D48-D49+D50 -> 19414.23968 | E51: 16322.9673 | F51: 23061.77173 | G51: 21460.13765 | H51: 19884.56677 | I51: 16375.52557 | J51: 13485.72694 | K51: 11105.89278 | L51: 9146.029346 | M51: 7532.024167 | N51: 6202.843432 | O51: 5108.224003 | P51: 4206.772708 | Q51: 3464.401054 | R51: 2853.036162 | S51: 2349.559192 | T51: 1934.931099 | U51: 1593.47267 | V51: 1312.271611 | W51: 1080.694268 | X51: =X48-X49+X50 -> 889.9835145 | Y51: =Y48-Y49+Y50 -> 732.9276002 | Z51: =Z48-Z49+Z50 -> 603.5874354 | AA51: =AA48-AA49+AA50 -> 497.0720057
A54: Total | D54: =D$13 -> 2009 | E54: 2010 | F54: 2011 | G54: 2012 | H54: 2013 | I54: 2014 | J54: 2015 | K54: 2016 | L54: 2017 | M54: 2018 | N54: 2019 | O54: 2020 | P54: 2021 | Q54: 2022 | R54: 2023 | S54: 2024 | T54: 2025 | U54: 2026 | V54: 2027 | W54: 2028 | X54: 2029 | Y54: 2030 | Z54: 2031 | AA54: 2032
A55: =A$24 -> Opening asset value | D55: =SUM(D24,D30,D36,D42,D48) -> 42303.1486 | E55: =SUM(E24,E30,E36,E42,E48) -> 89876.49536 | F55: 106178.9069 | G55: 125709.882 | H55: 133732.744 | I55: 137200.4312 | J55: 113717.5107 | K55: 79945.53033 | L55: 61182.5452 | M55: 45322.98039 | N55: 31008.46251 | O55: 22090.14555 | P55: 17902.42418 | Q55: 12200.60796 | R55: 8483.789325 | S55: 6023.556907 | T55: 4366.465194 | U55: 3228.708215 | V55: 2431.448313 | W55: 1861.041261 | X55: 1444.523007 | Y55: 1134.463288 | Z55: 899.576693 | AA55: 718.8789887
A56: =A$25 -> Depreciation | D56: =SUM(D25,D31,D37,D43,D49) -> 26047.40258 | E56: 42731.2445 | F56: 50034.65634 | G56: 54928.49195 | H56: 57518.18769 | I56: 53152.83143 | J56: 40641.67119 | K56: 29274.65179 | L56: 21939.5901 | M56: 15423.18426 | N56: 10396.08021 | O56: 7710.267155 | P56: 5701.816219 | Q56: 3716.818637 | R56: 2460.232417 | S56: 1657.091713 | T56: 1137.756979 | U56: 797.2599027 | V56: 570.4070519 | W56: 416.5182541 | X56: 310.0597185 | Y56: 234.8865953 | Z56: 180.6977042 | AA56: 140.8475524
A57: =A$26 -> Gross capex | D57: =SUM(D26,D32,D38,D44,D50) -> 73620.74935 | E57: 59033.656 | F57: 69565.63144 | G57: 62951.35402 | H57: 60985.87481 | I57: 29669.911 | J57: =SUM(J26,J32,J38,J44,J50) -> 6869.690791 | K57: 10511.66666 | L57: 6080.025293 | M57: 1108.666376 | N57: 1477.763258 | O57: 3522.545783 | P57: 0 | Q57: 0 | R57: 0 | S57: 0 | T57: 0 | U57: 0 | V57: 0 | W57: 0 | X57: 0 | Y57: 0 | Z57: 0 | AA57: 0
A58: =A$27 -> Closing asset value | D58: =SUM(D27,D33,D39,D45,D51) -> 89876.49536 | E58: 106178.9069 | F58: 125709.882 | G58: 133732.744 | H58: 137200.4312 | I58: 113717.5107 | J58: 79945.53033 | K58: 61182.5452 | L58: 45322.98039 | M58: 31008.46251 | N58: 22090.14555 | O58: 17902.42418 | P58: 12200.60796 | Q58: 8483.789325 | R58: 6023.556907 | S58: 4366.465194 | T58: 3228.708215 | U58: 2431.448313 | V58: 1861.041261 | W58: 1444.523007 | X58: 1134.463288 | Y58: 899.576693 | Z58: 718.8789887 | AA58: 578.0314364
A59: Check | C59: =SUM(D59:AA59) -> 6.275513442e-11 | D59: =ABS(D55-D56+D57-D58) -> 1.455191523e-11 | E59: =ABS(E55-E56+E57-E58) -> 1.455191523e-11 | F59: 0 | G59: 0 | H59: 0 | I59: 0 | J59: 1.455191523e-11 | K59: 0 | L59: 7.275957614e-12 | M59: 3.637978807e-12 | N59: 3.637978807e-12 | O59: 3.637978807e-12 | P59: 0 | Q59: 0 | R59: 0 | S59: 0 | T59: 0 | U59: 4.547473509e-13 | V59: 2.273736754e-13 | W59: 0 | X59: =ABS(X55-X56+X57-X58) -> 2.273736754e-13 | Y59: =ABS(Y55-Y56+Y57-Y58) -> 0 | Z59: =ABS(Z55-Z56+Z57-Z58) -> 0 | AA59: =ABS(AA55-AA56+AA57-AA58) -> 0

Sheet AMI RAB
A1: United Energy | B1: Check | C1: =IF(SUM(C14,C77,C85,C129,C174)<0.001,"Ok","Error") -> Error | D1: 2009 | E1: 2010 | F1: 2011 | G1: 2012 | H1: 2013 | I1: 2014 | J1: 2015 | K1: 2016 | L1: 2017 | M1: 2018 | N1: 2019 | O1: 2020 | P1: 2021 | Q1: 2022 | R1: 2023 | S1: 2024 | T1: 2025 | U1: 2026 | V1: 2027 | W1: 2028 | X1: 2029 | Y1: 2030 | Z1: 2031 | AA1: 2032
C2: =SUM(C14,C77,C85,C129,C174) -> 17848.16393 | AP2: Depreciation | AQ2: 1 | AR2: =IF(AQ2=AS2,AT2,AT3) -> AMI charges model Dep | AS2: 1 | AT2: AMI charges model Dep | AU2: Ami Charges model Inflation
A3: Regulatory Asset Base | AP3: Inflation | AQ3: 1 | AR3: =IF(AQ3=1,AU2,AU3) -> Ami Charges model Inflation | AS3: 2 | AT3: AMI RFM | AU3: AMI RFM inflation
A4: ($000 Real 2008) | D4: =D$1 -> 2009 | E4: =E$1 -> 2010 | F4: 2011 | G4: 2012 | H4: 2013 | I4: 2014 | J4: 2015 | K4: 2016 | L4: 2017 | M4: 2018 | N4: 2019 | O4: 2020 | P4: 2021 | Q4: 2022 | R4: 2023 | S4: 2024 | T4: 2025 | U4: 2026 | V4: 2027 | W4: 2028 | X4: 2029 | Y4: 2030 | Z4: 2031 | AA4: 2032
A5: Opening RAB | D5: =D82+D126 -> 49377.92654 | E5: =D10 -> 106079.9307 | F5: =E10 -> 139796.3359 | G5: =F10 -> 174492.3928 | H5: 194698.8561 | I5: 207381.8897 | J5: 198006.1164 | K5: 170610.1456 | L5: 152180.3327 | M5: 136692.5546 | N5: 120983.7418 | O5: 107618.6884 | P5: 96749.85883 | Q5: 83933.32961 | R5: 71694.82637 | S5: 59724.07948 | T5: 47956.93605 | U5: 37041.05349 | V5: 28071.58213 | W5: 21866.28199 | X5: =W10 -> 18737.18211 | Y5: =X10 -> 17913.09376 | Z5: =Y10 -> 17848.16393 | AA5: =Z10 -> 17848.16393
A6: Gross capital expenditure | D6: =SUM(D21,D31,D41,D51,D61,D71) -> 70127.63271 | E6: 55532.25292 | F6: 63664.796 | G6: 55652.64631 | H6: 52855.814 | I6: 25170.63603 | J6: 5696.483545 | K6: 8503.884883 | L6: 4798.741024 | M6: 853.68753 | N6: 1110.143347 | O6: 2581.707147
A7: Customer contributions | D7: 0 | E7: 0 | F7: 0 | G7: 0 | H7: 0 | I7: 0 | J7: 0 | K7: 0 | L7: 0 | M7: 0 | N7: 0 | O7: 0
A8: Disposals - proceeds from sale of assets | D8: 0 | E8: 0 | F8: 0 | G8: 0 | H8: 0 | I8: 0 | J8: 0 | K8: 0 | L8: 0 | M8: 0 | N8: 0 | O8: 0
A9: Regulatory depreciation | D9: =SUM(D83,D127,D172) -> 13425.62852 | E9: =SUM(E83,E127,E172) -> 21815.84775 | F9: 28968.73911 | G9: 35446.18296 | H9: 40172.78042 | I9: 34546.40937 | J9: 33092.45433 | K9: 26933.69779 | L9: 20286.51913 | M9: 16562.50035 | N9: 14475.19675 | O9: 13450.53667 | P9: 12816.52922 | Q9: 12238.50324 | R9: 11970.7469 | S9: 11767.14343 | T9: 10915.88256 | U9: 8969.471365 | V9: 6205.300139 | W9: 3129.099879 | X9: =SUM(X83,X127,X172) -> 824.0883506 | Y9: =SUM(Y83,Y127,Y172) -> 64.92982635 | Z9: =SUM(Z83,Z127,Z172) -> 0 | AA9: =SUM(AA83,AA127,AA172) -> 0
A10: Closing RAB | D10: =D5+D6-SUM(D7:D9) -> 106079.9307 | E10: =E5+E6-SUM(E7:E9) -> 139796.3359 | F10: =F5+F6-SUM(F7:F9) -> 174492.3928 | G10: =G5+G6-SUM(G7:G9) -> 194698.8561 | H10: 207381.8897 | I10: 198006.1164 | J10: 170610.1456 | K10: 152180.3327 | L10: 136692.5546 | M10: 120983.7418 | N10: 107618.6884 | O10: 96749.85883 | P10: 83933.32961 | Q10: 71694.82637 | R10: 59724.07948 | S10: 47956.93605 | T10: 37041.05349 | U10: 28071.58213 | V10: 21866.28199 | W10: 18737.18211 | X10: =X5+X6-SUM(X7:X9) -> 17913.09376 | Y10: =Y5+Y6-SUM(Y7:Y9) -> 17848.16393 | Z10: =Z5+Z6-SUM(Z7:Z9) -> 17848.16393 | AA10: =AA5+AA6-SUM(AA7:AA9) -> 17848.16393
A12: Average RAB | D12: =AVERAGE(D5,D10) -> 77728.92863 | E12: =AVERAGE(E5,E10) -> 122938.1333 | F12: =AVERAGE(F5,F10) -> 157144.3643 | G12: =AVERAGE(G5,G10) -> 184595.6244 | H12: 201040.3729 | I12: 202694.003 | J12: 184308.131 | K12: 161395.2391 | L12: 144436.4436 | M12: 128838.1482 | N12: 114301.2151 | O12: 102184.2736 | P12: 90341.59422 | Q12: 77814.07799 | R12: 65709.45293 | S12: 53840.50777 | T12: 42498.99477 | U12: 32556.31781 | V12: 24968.93206 | W12: 20301.73205 | X12: =AVERAGE(X5,X10) -> 18325.13793 | Y12: =AVERAGE(Y5,Y10) -> 17880.62884 | Z12: =AVERAGE(Z5,Z10) -> 17848.16393 | AA12: =AVERAGE(AA5,AA10) -> 17848.16393
A14: Check | C14: =SUM(D14:AA14) -> 0 | D14: =IF(ABS(D10-D84-D128-D173)<0.001,0,ABS(D10-D84-D128-D173)) -> 0 | E14: 0 | F14: 0 | G14: 0 | H14: 0 | I14: 0 | J14: 0 | K14: =IF(ABS(K10-K84-K128-K173)<0.001,0,ABS(K10-K84-K128-K173)) -> 0 | L14: 0 | M14: 0 | N14: 0 | O14: 0 | P14: 0 | Q14: 0 | R14: 0 | S14: 0 | T14: 0 | U14: 0 | V14: 0 | W14: 0 | X14: =IF(ABS(X10-X84-X128-X173)<0.001,0,ABS(X10-X84-X128-X173)) -> 0 | Y14: =IF(ABS(Y10-Y84-Y128-Y173)<0.001,0,ABS(Y10-Y84-Y128-Y173)) -> 0 | Z14: =IF(ABS(Z10-Z84-Z128-Z173)<0.001,0,ABS(Z10-Z84-Z128-Z173)) -> 0 | AA14: =IF(ABS(AA10-AA84-AA128-AA173)<0.001,0,ABS(AA10-AA84-AA128-AA173)) -> 0
AD15: 2010 | AE15: 2011 | AF15: 2012 | AG15: 2013 | AH15: 2014 | AI15: 2015 | AJ15: 2016 | AK15: 2017 | AL15: 2018 | AM15: 2019 | AN15: 2020
AC16: 2008 to Nominal | AD16: 1.063051702 | AE16: 1.092686003 | AF16: 1.131147541 | AG16: 1.153815738 | AH16: 1.178750852 | AI16: 1.205952795 | AJ16: 1.237004576 | AK16: 1.268855902 | AL16: 1.301527359 | AM16: 1.335040066 | AN16: 1.369415684 | AR16: Nominal | AS16: 2010 | AT16: 2011 | AU16: 2012 | AV16: 2013 | AW16: 2014 | AX16: 2015
AC17: 2008 to real 10 | AD17: 1.063051702 | AE17: 1.063051702 | AF17: 1.063051702 | AG17: 1.063051702 | AH17: 1.063051702 | AI17: 1.063051702 | AJ17: 1.063051702 | AK17: 1.063051702 | AL17: 1.063051702 | AM17: 1.063051702 | AN17: 1.063051702 | AP17: 12.67342555 | AR17: Accumulation meters
A18: Accumulation meters | AR18: Sunk Dep | AS18: =(E$92+SUM(E$191:E$192))*AD$16 -> 3754.507626 | AT18: 4386.09604 | AU18: 4540.482571 | AV18: 4631.473841 | AW18: 1.072067654e-12 | AX18: 0
A19: =$A$4 -> ($000 Real 2008) | D19: =D$4 -> 2009 | E19: =E$4 -> 2010 | F19: 2011 | G19: 2012 | H19: 2013 | I19: 2014 | J19: 2015 | K19: 2016 | L19: 2017 | M19: 2018 | N19: 2019 | O19: 2020 | P19: 2021 | Q19: 2022 | R19: 2023 | S19: 2024 | T19: 2025 | U19: 2026 | V19: 2027 | W19: 2028 | X19: 2029 | Y19: 2030 | Z19: 2031 | AA19: 2032 | AD19: 2010 | AE19: 2011 | AF19: 2012 | AG19: 2013 | AH19: 2014 | AI19: 2015 | AJ19: 2016 | AK19: 2017 | AL19: 2018 | AM19: 2019 | AN19: 2020 | AR19: Capex Dep | AS19: =E$193*AD$16 -> 0 | AT19: =F$193*AE$16 -> 803.168494 | AU19: =SUM(G$193:G$194)*AF$16 -> 1939.511897 | AV19: =SUM(H$193:H$195)*AG$16 -> 2260.556777 | AW19: =SUM(I$193:I$196)*AH$16 -> 0 | AX19: =SUM(J$193:J$197)*AI$16 -> 0
A20: Opening RAB | D20: =B92 -> 11152.45198 | E20: =D25 -> 12198.36349 | F20: =E25 -> 12042.14943 | G20: 10968.26172 | H20: 5973.250662 | I20: 0 | J20: -9.094947018e-13 | K20: -9.094947018e-13 | L20: -9.094947018e-13 | M20: -9.094947018e-13 | N20: -9.094947018e-13 | O20: -9.094947018e-13 | P20: -9.094947018e-13 | Q20: -9.094947018e-13 | R20: -9.094947018e-13 | S20: -9.094947018e-13 | T20: -9.094947018e-13 | U20: -9.094947018e-13 | V20: -9.094947018e-13 | W20: -9.094947018e-13 | X20: =W25 -> -9.094947018e-13 | Y20: =X25 -> -9.094947018e-13 | Z20: =Y25 -> -9.094947018e-13 | AA20: =Z25 -> -9.094947018e-13 | AD20: =E20*AD$16 -> 12967.49107 | AE20: 13158.28812 | AF20: 12406.72228 | AG20: 6892.030619 | AH20: 0 | AI20: -1.096807677e-12 | AJ20: -1.125049108e-12 | AK20: -1.15401772e-12 | AL20: -1.183732237e-12 | AM20: -1.214211867e-12 | AN20: -1.245476309e-12 | AR20: Manually read interval meters
A21: Gross capital expenditure | D21: 3685.95214 | E21: 3375.606278 | F21: 3675.20263 | G21: 733.6797013 | H21: 0 | I21: 0 | J21: 0 | K21: 0 | L21: 0 | M21: 0 | N21: 0 | O21: 0 | AD21: 3588.444 | AE21: 4015.84247 | AF21: 829.89999 | AG21: 0 | AH21: 0 | AI21: 0 | AJ21: 0 | AK21: 0 | AL21: 0 | AM21: 0 | AN21: 0 | AR21: Sunk Dep | AS21: =(E78+SUM(E$208:E$209))*AD$16 -> 0 | AT21: 0 | AU21: 0 | AV21: 0 | AW21: 0 | AX21: 0
A22: Customer contributions | D22: 0 | E22: 0 | F22: 0 | G22: 0 | H22: 0 | I22: 0 | J22: 0 | K22: 0 | L22: 0 | M22: 0 | N22: 0 | O22: 0 | AD22: 0 | AE22: 0 | AF22: 0 | AG22: 0 | AH22: 0 | AI22: 0 | AJ22: 0 | AK22: 0 | AL22: 0 | AM22: 0 | AN22: 0 | AR22: Capex Dep | AS22: =E$210*AD$16 -> 0 | AT22: =F$210*AE$16 -> 353.51478 | AU22: =SUM(G$210:G$211)*AF$16 -> 1163.084011 | AV22: =SUM(H$210:H$212)*AG$16 -> 1626.200478 | AW22: =SUM(I$210:I$213)*AH$16 -> 0 | AX22: =SUM(J$210:J$214)*AI$16 -> 0
A23: Disposals - proceeds from sale of assets | D23: 0 | E23: 0 | F23: 0 | G23: 0 | H23: 0 | I23: 0 | J23: 0 | K23: 0 | L23: 0 | M23: 0 | N23: 0 | O23: 0 | AD23: 0 | AE23: 0 | AF23: 0 | AG23: 0 | AH23: 0 | AI23: 0 | AJ23: 0 | AK23: 0 | AL23: 0 | AM23: 0 | AN23: 0 | AR23: Remotely read interval meters & transformers
A24: Regulatory depreciation | D24: =D92+D203 -> 2640.040635 | E24: 3531.820341 | F24: 4749.090335 | G24: 5728.690761 | H24: 5973.250662 | I24: 9.094947018e-13 | J24: 0 | K24: =K92+K203 -> 0 | L24: 0 | M24: 0 | N24: 0 | O24: 0 | P24: =P92+P203 -> 0 | Q24: 0 | R24: 0 | S24: 0 | T24: 0 | U24: 0 | V24: 0 | W24: 0 | X24: 0 | Y24: 0 | Z24: 0 | AA24: 0 | AD24: 3754.507626 | AE24: 5189.264534 | AF24: 6479.994468 | AG24: 6892.030619 | AH24: 1.072067654e-12 | AI24: 0 | AJ24: 0 | AK24: 0 | AL24: 0 | AM24: 0 | AN24: 0 | AR24: Sunk Dep | AS24: =(E$136+SUM(E$225:E$226))*AD$16 -> 1121.375326 | AT24: 1860.321666 | AU24: 1925.803271 | AV24: 1964.396369 | AW24: 2006.848943 | AX24: 2053.160841
A25: Closing RAB | D25: =D20+D21-SUM(D22:D24) -> 12198.36349 | E25: =E20+E21-SUM(E22:E24) -> 12042.14943 | F25: 10968.26172 | G25: 5973.250662 | H25: 0 | I25: -9.094947018e-13 | J25: -9.094947018e-13 | K25: -9.094947018e-13 | L25: -9.094947018e-13 | M25: -9.094947018e-13 | N25: -9.094947018e-13 | O25: -9.094947018e-13 | P25: -9.094947018e-13 | Q25: -9.094947018e-13 | R25: -9.094947018e-13 | S25: -9.094947018e-13 | T25: -9.094947018e-13 | U25: -9.094947018e-13 | V25: -9.094947018e-13 | W25: -9.094947018e-13 | X25: =X20+X21-SUM(X22:X24) -> -9.094947018e-13 | Y25: =Y20+Y21-SUM(Y22:Y24) -> -9.094947018e-13 | Z25: =Z20+Z21-SUM(Z22:Z24) -> -9.094947018e-13 | AA25: =AA20+AA21-SUM(AA22:AA24) -> -9.094947018e-13 | AD25: 12801.42745 | AE25: 11984.86606 | AF25: 6756.627798 | AG25: 0 | AH25: -1.072067654e-12 | AI25: -1.096807677e-12 | AJ25: -1.125049108e-12 | AK25: -1.15401772e-12 | AL25: -1.183732237e-12 | AM25: -1.214211867e-12 | AN25: -1.245476309e-12 | AR25: Capex Dep | AS25: =E$227*AD$16 -> 0 | AT25: =F$227*AE$16 -> 1419.130096 | AU25: =SUM(G$227:G$228)*AF$16 -> 4595.76765 | AV25: =SUM(H$227:H$229)*AG$16 -> 8237.235106 | AW25: =SUM(I$227:I$230)*AH$16 -> 11132.28431 | AX25: =SUM(J$227:J$231)*AI$16 -> 12304.69253
AR26: IT
AR27: Sunk Dep | AS27: =((E$108+E$144)+SUM(E$242:E$243))*AD$16 -> 13436.93601 | AT27: 16275.11509 | AU27: 16781.99653 | AV27: 17118.30775 | AW27: 17488.25153 | AX27: 16924.06136
A28: Manually read interval meters | AR28: Capex Dep | AS28: =E$244*AD$16 -> 0 | AT28: =F$244*AE$16 -> 598.7168371 | AU28: =SUM(G$244:G$245)*AF$16 -> 1809.159016 | AV28: =SUM(H$244:H$246)*AG$16 -> 2551.303602 | AW28: =SUM(I$244:I$247)*AH$16 -> 3022.7452 | AX28: =SUM(J$244:J$248)*AI$16 -> 3694.058841
A29: =$A$4 -> ($000 Real 2008) | D29: =D$4 -> 2009 | E29: =E$4 -> 2010 | F29: 2011 | G29: 2012 | H29: 2013 | I29: 2014 | J29: 2015 | K29: 2016 | L29: 2017 | M29: 2018 | N29: 2019 | O29: 2020 | P29: 2021 | Q29: 2022 | R29: 2023 | S29: 2024 | T29: 2025 | U29: 2026 | V29: 2027 | W29: 2028 | X29: 2029 | Y29: 2030 | Z29: 2031 | AA29: 2032 | AD29: 2010 | AE29: 2011 | AF29: 2012 | AG29: 2013 | AH29: 2014 | AI29: 2015 | AJ29: 2016 | AK29: 2017 | AL29: 2018 | AM29: 2019 | AN29: 2020 | AR29: Communications
A30: Opening RAB | D30: =B100 -> 2867.45217 | E30: =D35 -> 2293.961736 | F30: =E35 -> 1720.471302 | G30: 2441.093831 | H30: 1982.901335 | I30: 0 | J30: 0 | K30: 0 | L30: 0 | M30: 0 | N30: 0 | O30: 0 | P30: 0 | Q30: 0 | R30: 0 | S30: 0 | T30: 0 | U30: 0 | V30: 0 | W30: 0 | X30: =W35 -> 0 | Y30: =X35 -> 0 | Z30: =Y35 -> 0 | AA30: =Z35 -> 0 | AD30: =E30*AD$16 -> 2438.599929 | AE30: 1879.93491 | AF30: 2761.237284 | AG30: 2287.902766 | AH30: 0 | AI30: 0 | AJ30: 0 | AK30: 0 | AL30: 0 | AM30: 0 | AN30: 0 | AR30: Sunk Dep | AS30: =(E$152+SUM(E$259:E$260))*AD$16 -> 0 | AT30: 0 | AU30: 0 | AV30: 0 | AW30: 0 | AX30: 0
A31: Gross capital expenditure | D31: 0 | E31: 0 | F31: 1617.641203 | G31: 1143.531629 | H31: 0 | I31: 0 | J31: 0 | K31: 0 | L31: 0 | M31: 0 | N31: 0 | O31: 0 | AD31: 0 | AE31: 1767.5739 | AF31: 1293.50299 | AG31: 0 | AH31: 0 | AI31: 0 | AJ31: 0 | AK31: 0 | AL31: 0 | AM31: 0 | AN31: 0 | AR31: Capex Dep | AS31: =E$261*AD$16 -> 0 | AT31: =F$261*AE$16 -> 162.5746921 | AU31: =SUM(G$261:G$262)*AF$16 -> 366.511391 | AV31: =SUM(H$261:H$263)*AG$16 -> 479.7565881 | AW31: =SUM(I$261:I$264)*AH$16 -> 644.1598002 | AX31: =SUM(J$261:J$265)*AI$16 -> 754.5391007
A32: Customer contributions | D32: 0 | E32: 0 | F32: 0 | G32: 0 | H32: 0 | I32: 0 | J32: 0 | K32: 0 | L32: 0 | M32: 0 | N32: 0 | O32: 0 | AD32: 0 | AE32: 0 | AF32: 0 | AG32: 0 | AH32: 0 | AI32: 0 | AJ32: 0 | AK32: 0 | AL32: 0 | AM32: 0 | AN32: 0
A33: Disposals - proceeds from sale of assets | D33: 0 | E33: 0 | F33: 0 | G33: 0 | H33: 0 | I33: 0 | J33: 0 | K33: 0 | L33: 0 | M33: 0 | N33: 0 | O33: 0 | AD33: 0 | AE33: 0 | AF33: 0 | AG33: 0 | AH33: 0 | AI33: 0 | AJ33: 0 | AK33: 0 | AL33: 0 | AM33: 0 | AN33: 0 | AR33: Other
A34: Regulatory depreciation | D34: =D100+D220 -> 573.4904341 | E34: 573.4904341 | F34: 897.0186748 | G34: 1601.724125 | H34: 1982.901335 | I34: 0 | J34: 0 | K34: =K100+K220 -> 0 | L34: 0 | M34: 0 | N34: 0 | O34: 0 | P34: =P100+P220 -> 0 | Q34: 0 | R34: 0 | S34: 0 | T34: 0 | U34: 0 | V34: 0 | W34: 0 | X34: 0 | Y34: 0 | Z34: 0 | AA34: 0 | AD34: 609.6499823 | AE34: 980.1597499 | AF34: 1811.786305 | AG34: 2287.902766 | AH34: 0 | AI34: 0 | AJ34: 0 | AK34: 0 | AL34: 0 | AM34: 0 | AN34: 0 | AR34: Sunk Dep | AS34: =((E$116+E$160)+SUM(E$276:E$277))*AD$16 -> 4268.905153 | AT34: 4414.86516 | AU34: 4570.264337 | AV34: 4661.852435 | AW34: 4044.459896 | AX34: 1739.576243
A35: Closing RAB | D35: =D30+D31-SUM(D32:D34) -> 2293.961736 | E35: 1720.471302 | F35: 2441.093831 | G35: 1982.901335 | H35: 0 | I35: 0 | J35: 0 | K35: 0 | L35: 0 | M35: 0 | N35: 0 | O35: 0 | P35: 0 | Q35: 0 | R35: 0 | S35: 0 | T35: 0 | U35: 0 | V35: 0 | W35: 0 | X35: =X30+X31-SUM(X32:X34) -> 0 | Y35: =Y30+Y31-SUM(Y32:Y34) -> 0 | Z35: =Z30+Z31-SUM(Z32:Z34) -> 0 | AA35: =AA30+AA31-SUM(AA32:AA34) -> 0 | AD35: 1828.949947 | AE35: 2667.34906 | AF35: 2242.953969 | AG35: 0 | AH35: 0 | AI35: 0 | AJ35: 0 | AK35: 0 | AL35: 0 | AM35: 0 | AN35: 0 | AR35: Capex Dep | AS35: =E$278*AD$16 -> 0 | AT35: =F$278*AE$16 -> 753.5879136 | AU35: =SUM(G$278:G$279)*AF$16 -> 1753.579724 | AV35: =SUM(H$278:H$280)*AG$16 -> 2159.201046 | AW35: =SUM(I$278:I$281)*AH$16 -> 2382.859793 | AX35: =SUM(J$278:J$282)*AI$16 -> 2437.848865
A38: Remotely read interval meters & transformers | AR38: Real 10 | AS38: 2010 | AT38: 2011 | AU38: 2012 | AV38: 2013 | AW38: 2014 | AX38: 2015
A39: =$A$4 -> ($000 Real 2008) | D39: =D$4 -> 2009 | E39: =E$4 -> 2010 | F39: 2011 | G39: 2012 | H39: 2013 | I39: 2014 | J39: 2015 | K39: 2016 | L39: 2017 | M39: 2018 | N39: 2019 | O39: 2020 | P39: 2021 | Q39: 2022 | R39: 2023 | S39: 2024 | T39: 2025 | U39: 2026 | V39: 2027 | W39: 2028 | X39: 2029 | Y39: 2030 | Z39: 2031 | AA39: 2032 | AD39: 2010 | AE39: 2011 | AF39: 2012 | AG39: 2013 | AH39: 2014 | AI39: 2015 | AJ39: 2016 | AK39: 2017 | AL39: 2018 | AM39: 2019 | AN39: 2020 | AR39: Accumulation meters
A40: Opening RAB | D40: =B136 -> 0 | E40: =D45 -> 5904.500569 | F40: =E45 -> 24279.35819 | G40: 60240.69659 | H40: 98437.77269 | I40: 137919.6106 | J40: 147599.813 | K40: 137641.8907 | L40: 128068.6134 | M40: 116939.2672 | N40: 105453.3992 | O40: 93976.48652 | P40: 82500.12739 | Q40: 70529.3805 | R40: 58558.6336 | S40: 46587.8867 | T40: 34820.74328 | U40: 23904.86072 | V40: 14935.38935 | W40: 8730.089212 | X40: =W45 -> 5600.989332 | Y40: =X45 -> 4776.900982 | Z40: =Y45 -> 4711.971155 | AA40: =Z45 -> 4711.971155 | AD40: =E40*AD$16 -> 6276.789382 | AE40: 26529.71484 | AF40: 68141.11582 | AG40: 113579.0513 | AH40: 162572.8585 | AI40: 177998.407 | AJ40: 170263.6486 | AK40: 162500.616 | AL40: 152199.6556 | AM40: 140784.5131 | AN40: 128692.8745 | AR40: Sunk Dep | AS40: =(E$92+SUM(E$191:E$192))*AD$17 -> 3754.507626 | AT40: 4267.142483 | AU40: 4267.142483 | AV40: 4267.142483 | AW40: 9.66839891e-13 | AX40: 0
A41: Gross capital expenditure | D41: 6108.104037 | E41: 19429.72195 | F41: 38962.61394 | G41: 43962.52285 | H41: 48323.48493 | I41: 20826.86094 | J41: 1947.894791 | K41: 2397.469627 | L41: 841.4006029 | M41: 484.8789815 | N41: 493.834176 | O41: 494.3877684 | AD41: 20654.799 | AE41: 42573.90287 | AF41: 49728.09962 | AG41: 55756.39741 | AH41: 24549.68007 | AI41: 2349.069166 | AJ41: 2965.680898 | AK41: 1067.61612 | AL41: 631.0832603 | AM41: 659.288411 | AN41: 677.0223638 | AR41: Capex Dep | AS41: =E$193*AD$17 -> 0 | AT41: =F$193*AE$17 -> 781.3860824 | AU41: =SUM(G$193:G$194)*AF$17 -> 1822.751983 | AV41: =SUM(H$193:H$195)*AG$17 -> 2082.731802 | AW41: =SUM(I$193:I$196)*AH$17 -> 0 | AX41: =SUM(J$193:J$197)*AI$17 -> 0
A42: Customer contributions | D42: 0 | E42: 0 | F42: 0 | G42: 0 | H42: 0 | I42: 0 | J42: 0 | K42: 0 | L42: 0 | M42: 0 | N42: 0 | O42: 0 | AD42: 0 | AE42: 0 | AF42: 0 | AG42: 0 | AH42: 0 | AI42: 0 | AJ42: 0 | AK42: 0 | AL42: 0 | AM42: 0 | AN42: 0 | AR42: Manually read interval meters
A43: Disposals - proceeds from sale of assets | D43: 0 | E43: 0 | F43: 0 | G43: 0 | H43: 0 | I43: 0 | J43: 0 | K43: 0 | L43: 0 | M43: 0 | N43: 0 | O43: 0 | AD43: 0 | AE43: 0 | AF43: 0 | AG43: 0 | AH43: 0 | AI43: 0 | AJ43: 0 | AK43: 0 | AL43: 0 | AM43: 0 | AN43: 0 | AR43: Sunk Dep | AS43: =(E$100+SUM(E$208:E$209))*AD$17 -> 609.6499823 | AT43: =(F$100+SUM(F$208:F$209))*AE$17 -> 609.6499823 | AU43: =(G100+SUM(G$208:G$209))*AF$17 -> 609.6499823 | AV43: =(H100+SUM(H$208:H$209))*AG$17 -> 609.6499823 | AW43: =(I100+SUM(I$208:I$209))*AH$17 -> 0 | AX43: =(J100+SUM(J$208:J$209))*AI$17 -> 0
A44: Regulatory depreciation | D44: =D136+D237 -> 203.6034679 | E44: 1054.864334 | F44: 3001.275531 | G44: 5765.446757 | H44: 8841.647016 | I44: 11146.65854 | J44: 11905.81707 | K44: =K136+K237 -> 11970.7469 | L44: 11970.7469 | M44: 11970.7469 | N44: 11970.7469 | O44: 11970.7469 | P44: =P136+P237 -> 11970.7469 | Q44: 11970.7469 | R44: 11970.7469 | S44: 11767.14343 | T44: 10915.88256 | U44: 8969.471365 | V44: 6205.300139 | W44: 3129.099879 | X44: 824.0883506 | Y44: 64.92982635 | Z44: 0 | AA44: 0 | AD44: 1121.375326 | AE44: 3279.451762 | AF44: 6521.570922 | AG44: 10201.63147 | AH44: 13139.13326 | AI44: 14357.85337 | AJ44: 14807.86868 | AK44: 15189.15284 | AL44: 15580.25459 | AM44: 15981.42673 | AN44: 16392.92854 | AR44: Capex Dep | AS44: =E$210*AD$17 -> 0 | AT44: =F$210*AE$17 -> 343.927247 | AU44: =SUM(G$210:G$211)*AF$17 -> 1093.065576 | AV44: =SUM(H$210:H$212)*AG$17 -> 1498.276657 | AW44: =SUM(I$210:I$213)*AH$17 -> 0 | AX44: =SUM(J$210:J$214)*AI$17 -> 0
A45: Closing RAB | D45: =D40+D41-SUM(D42:D44) -> 5904.500569 | E45: 24279.35819 | F45: 60240.69659 | G45: 98437.77269 | H45: 137919.6106 | I45: 147599.813 | J45: 137641.8907 | K45: 128068.6134 | L45: 116939.2672 | M45: 105453.3992 | N45: 93976.48652 | O45: 82500.12739 | P45: 70529.3805 | Q45: 58558.6336 | R45: 46587.8867 | S45: 34820.74328 | T45: 23904.86072 | U45: 14935.38935 | V45: 8730.089212 | W45: 5600.989332 | X45: =X40+X41-SUM(X42:X44) -> 4776.900982 | Y45: =Y40+Y41-SUM(Y42:Y44) -> 4711.971155 | Z45: =Z40+Z41-SUM(Z42:Z44) -> 4711.971155 | AA45: =AA40+AA41-SUM(AA42:AA44) -> 4711.971155 | AD45: 25810.21306 | AE45: 65824.16595 | AF45: 111347.6445 | AG45: 159133.8172 | AH45: 173983.4053 | AI45: 165989.6228 | AJ45: 158421.4608 | AK45: 148379.0792 | AL45: 137250.4842 | AM45: 125462.3748 | AN45: 112976.9684 | AR45: Remotely read interval meters & transformers
AR46: Sunk Dep | AS46: =(E$136+SUM(E$225:E$226))*AD$17 -> 1121.375326 | AT46: 1809.868626 | AU46: 1809.868626 | AV46: 1809.868626 | AW46: 1809.868626 | AX46: 1809.868626
AR47: Capex Dep | AS47: =E$227*AD$17 -> 0 | AT47: =F$227*AE$17 -> 1380.642436 | AU47: =SUM(G$227:G$228)*AF$17 -> 4319.099364 | AV47: =SUM(H$227:H$229)*AG$17 -> 7589.259286 | AW47: =SUM(I$227:I$230)*AH$17 -> 10039.60572 | AX47: =SUM(J$227:J$231)*AI$17 -> 10846.63048
A48: IT | AR48: IT
A49: =$A$4 -> ($000 Real 2008) | D49: =D$4 -> 2009 | E49: =E$4 -> 2010 | F49: 2011 | G49: 2012 | H49: 2013 | I49: 2014 | J49: 2015 | K49: 2016 | L49: 2017 | M49: 2018 | N49: 2019 | O49: 2020 | P49: 2021 | Q49: 2022 | R49: 2023 | S49: 2024 | T49: 2025 | U49: 2026 | V49: 2027 | W49: 2028 | X49: 2029 | Y49: 2030 | Z49: 2031 | AA49: 2032 | AD49: 2010 | AE49: 2011 | AF49: 2012 | AG49: 2013 | AH49: 2014 | AI49: 2015 | AJ49: 2016 | AK49: 2017 | AL49: 2018 | AM49: 2019 | AN49: 2020 | AR49: Sunk Dep | AS49: =((E$108+E$144)+SUM(E$242:E$243))*AD$17 -> 13436.93601 | AT49: 15833.7242 | AU49: 15771.70912 | AV49: 15771.70912 | AW49: 15771.70912 | AX49: 14918.62063
A50: Opening RAB | D50: =B108+B144 -> 10724.05578 | E50: =D55 -> 64937.13775 | F50: =E55 -> 84678.70813 | G50: 76907.22008 | H50: 67521.10535 | I50: 51989.12773 | J50: 38017.48901 | K50: 24475.08571 | L50: 18219.2746 | M50: 16489.71729 | N50: 14089.37366 | O50: 12988.00083 | P50: 13969.42483 | Q50: 13216.70448 | R50: 12962.80796 | S50: 12962.80796 | T50: 12962.80796 | U50: 12962.80796 | V50: 12962.80796 | W50: 12962.80796 | X50: =W55 -> 12962.80796 | Y50: =X55 -> 12962.80796 | Z50: =Y55 -> 12962.80796 | AA50: =Z55 -> 12962.80796 | AD50: =E50*AD$16 -> 69031.53484 | AE50: 92527.23908 | AF50: 86993.41288 | AG50: 77906.91398 | AH50: 61282.2286 | AI50: 45847.29711 | AJ50: 30275.79302 | AK50: 23117.6341 | AL50: 21461.8182 | AM50: 18809.87835 | AN50: 17785.97203 | AR50: Capex Dep | AS50: =E$244*AD$17 -> 0 | AT50: =F$244*AE$17 -> 582.4792772 | AU50: =SUM(G$244:G$245)*AF$17 -> 1700.246433 | AV50: =SUM(H$244:H$246)*AG$17 -> 2350.607249 | AW50: =SUM(I$244:I$247)*AH$17 -> 2726.050569 | AX50: =SUM(J$244:J$248)*AI$17 -> 3256.326083
A51: Gross capital expenditure | D51: 60237.4079 | E51: 32381.53509 | F51: 7671.037883 | G51: 7049.544521 | H51: 1515.468264 | I51: 3428.982194 | J51: 3554.551324 | K51: 5989.877921 | L51: 3900.492941 | M51: 368.8085485 | N51: 616.3091708 | O51: 2087.319378 | AD51: 34423.246 | AE51: 8382.03572 | AF51: 7974.07495 | AG51: 1748.571133 | AH51: 4041.915682 | AI51: 4286.621103 | AJ51: 7409.506396 | AK51: 4949.163486 | AL51: 480.0144162 | AM51: 822.7974362 | AN51: 2858.407894 | AR51: Communications
A52: Customer contributions | D52: 0 | E52: 0 | F52: 0 | G52: 0 | H52: 0 | I52: 0 | J52: 0 | K52: 0 | L52: 0 | M52: 0 | N52: 0 | O52: 0 | AD52: 0 | AE52: 0 | AF52: 0 | AG52: 0 | AH52: 0 | AI52: 0 | AJ52: 0 | AK52: 0 | AL52: 0 | AM52: 0 | AN52: 0 | AR52: Sunk Dep | AS52: =(E$152+SUM(E$259:E$260))*AD$17 -> 0 | AT52: 0 | AU52: 0 | AV52: 0 | AW52: 0 | AX52: 0
A53: Disposals - proceeds from sale of assets | D53: 0 | E53: 0 | F53: 0 | G53: 0 | H53: 0 | I53: 0 | J53: 0 | K53: 0 | L53: 0 | M53: 0 | N53: 0 | O53: 0 | AD53: 0 | AE53: 0 | AF53: 0 | AG53: 0 | AH53: 0 | AI53: 0 | AJ53: 0 | AK53: 0 | AL53: 0 | AM53: 0 | AN53: 0 | AR53: Capex Dep | AS53: =E$261*AD$17 -> 0 | AT53: =F$261*AE$17 -> 158.1655689 | AU53: =SUM(G$261:G$262)*AF$17 -> 344.4471601 | AV53: =SUM(H$261:H$263)*AG$17 -> 442.0169019 | AW53: =SUM(I$261:I$264)*AH$17 -> 580.9329182 | AX53: =SUM(J$261:J$265)*AI$17 -> 665.1289164
A54: Regulatory depreciation | D54: =D108+D144+D254 -> 6024.325928 | E54: 12639.96471 | F54: 15442.52593 | G54: 16435.65926 | H54: 17047.44588 | I54: 17400.62092 | J54: 17096.95462 | K54: =K108+K144+K254 -> 12245.68903 | L54: 5630.050247 | M54: 2769.152178 | N54: 1717.682006 | O54: 1105.895379 | P54: =P108+P144+P254 -> 752.7203459 | Q54: 253.8965232 | R54: 0 | S54: 0 | T54: 0 | U54: 0 | V54: 0 | W54: 0 | X54: 0 | Y54: 0 | Z54: 0 | AA54: 0 | AD54: 13436.93601 | AE54: 16873.83193 | AF54: 18591.15555 | AG54: 19669.61135 | AH54: 20510.99673 | AI54: 20618.1202 | AJ54: 15147.97337 | AK54: 7143.722482 | AL54: 3604.127321 | AM54: 2293.174299 | AN54: 1514.430476
A55: Closing RAB | D55: =D50+D51-SUM(D52:D54) -> 64937.13775 | E55: 84678.70813 | F55: 76907.22008 | G55: 67521.10535 | H55: 51989.12773 | I55: 38017.48901 | J55: 24475.08571 | K55: 18219.2746 | L55: 16489.71729 | M55: 14089.37366 | N55: 12988.00083 | O55: 13969.42483 | P55: 13216.70448 | Q55: 12962.80796 | R55: 12962.80796 | S55: 12962.80796 | T55: 12962.80796 | U55: 12962.80796 | V55: 12962.80796 | W55: 12962.80796 | X55: =X50+X51-SUM(X52:X54) -> 12962.80796 | Y55: =Y50+Y51-SUM(Y52:Y54) -> 12962.80796 | Z55: =Z50+Z51-SUM(Z52:Z54) -> 12962.80796 | AA55: =AA50+AA51-SUM(AA52:AA54) -> 12962.80796 | AD55: 90017.84483 | AE55: 84035.44287 | AF55: 76376.33228 | AG55: 59985.87376 | AH55: 44813.14755 | AI55: 29515.79801 | AJ55: 22537.32605 | AK55: 20923.0751 | AL55: 18337.7053 | AM55: 17339.50149 | AN55: 19129.94945 | AR55: Other
AR56: Sunk Dep | AS56: =((E$116+E$160)+SUM(E$276:E$277))*AD$17 -> 4268.905153 | AT56: 4295.131367 | AU56: 4295.131367 | AV56: 4295.131367 | AW56: 3647.479848 | AX56: 1533.442681
AR57: Capex Dep | AS57: =E$278*AD$17 -> 0 | AT57: =F$278*AE$17 -> 733.1501571 | AU57: =SUM(G$278:G$279)*AF$17 -> 1648.013052 | AV57: =SUM(H$278:H$280)*AG$17 -> 1989.349142 | AW57: =SUM(I$278:I$281)*AH$17 -> 2148.972495 | AX57: =SUM(J$278:J$282)*AI$17 -> 2148.972495
A58: Communications
A59: =$A$4 -> ($000 Real 2008) | D59: =D$4 -> 2009 | E59: =E$4 -> 2010 | F59: 2011 | G59: 2012 | H59: 2013 | I59: 2014 | J59: 2015 | K59: 2016 | L59: 2017 | M59: 2018 | N59: 2019 | O59: 2020 | P59: 2021 | Q59: 2022 | R59: 2023 | S59: 2024 | T59: 2025 | U59: 2026 | V59: 2027 | W59: 2028 | X59: 2029 | Y59: 2030 | Z59: 2031 | AA59: 2032 | AD59: 2010 | AE59: 2011 | AF59: 2012 | AG59: 2013 | AH59: 2014 | AI59: 2015 | AJ59: 2016 | AK59: 2017 | AL59: 2018 | AM59: 2019 | AN59: 2020 | AT59: =SUM(AT40:AT57)/1000+'Actual RAB roll forward'!H43 -> 0 | AU59: =SUM(AU40:AU57)/1000+'Actual RAB roll forward'!I43 -> 0 | AV59: =SUM(AV40:AV57)/1000+'Actual RAB roll forward'!J43 -> 0 | AW59: =SUM(AW40:AW57)/1000+'Actual RAB roll forward'!K43 -> 0 | AX59: =SUM(AX40:AX57)/1000+'Actual RAB roll forward'!L43 -> 0
A60: Opening RAB | D60: =B152 -> 0 | E60: =D65 -> 0 | F60: =E65 -> 0 | G60: 1934.197924 | H60: 1980.458281 | I60: 2479.338224 | J60: 2847.654492 | K60: 2416.01312 | L60: 1893.011836 | M60: 1310.320698 | N60: 819.5665341 | O60: 504.0452315 | P60: 280.3066161 | Q60: 187.2446328 | R60: 173.3848164 | S60: 173.3848164 | T60: 173.3848164 | U60: 173.3848164 | V60: 173.3848164 | W60: 173.3848164 | X60: =W65 -> 173.3848164 | Y60: =X65 -> 173.3848164 | Z60: =Y65 -> 173.3848164 | AA60: =Z65 -> 173.3848164 | AD60: =E60*AD$16 -> 0 | AE60: 0 | AF60: 2187.863226 | AG60: 2285.083933 | AH60: 2922.522043 | AI60: 3434.136893 | AJ60: 2988.619284 | AK60: 2401.95924 | AL60: 1705.418237 | AM60: 1094.15416 | AN60: 690.2474453
A61: Gross capital expenditure | D61: 0 | E61: 0 | F61: 2082.98238 | G61: 370.2776736 | H61: 914.6799464 | I61: 914.7929043 | J61: 194.0374305 | K61: 116.5373356 | L61: 56.84748078 | M61: 0 | N61: 0 | O61: 0 | AD61: 0 | AE61: 2276.04569 | AF61: 418.83868 | AG61: 1055.372117 | AH61: 1078.312915 | AI61: 233.9999816 | AJ61: 144.1572174 | AK61: 72.13126147 | AL61: 0 | AM61: 0 | AN61: 0
A62: Customer contributions | D62: 0 | E62: 0 | F62: 0 | G62: 0 | H62: 0 | I62: 0 | J62: 0 | K62: 0 | L62: 0 | M62: 0 | N62: 0 | O62: 0 | AD62: 0 | AE62: 0 | AF62: 0 | AG62: 0 | AH62: 0 | AI62: 0 | AJ62: 0 | AK62: 0 | AL62: 0 | AM62: 0 | AN62: 0 | AR62: Real 08 | AS62: 2010 | AT62: 2011 | AU62: 2012 | AV62: 2013 | AW62: 2014 | AX62: 2015
A63: Disposals - proceeds from sale of assets | D63: 0 | E63: 0 | F63: 0 | G63: 0 | H63: 0 | I63: 0 | J63: 0 | K63: 0 | L63: 0 | M63: 0 | N63: 0 | O63: 0 | AD63: 0 | AE63: 0 | AF63: 0 | AG63: 0 | AH63: 0 | AI63: 0 | AJ63: 0 | AK63: 0 | AL63: 0 | AM63: 0 | AN63: 0 | AR63: Accumulation meters
A64: Regulatory depreciation | D64: =D152+D271 -> 0 | E64: 0 | F64: 148.7844557 | G64: 324.0173167 | H64: 415.8000038 | I64: 546.476636 | J64: 625.6788028 | K64: =K152+K271 -> 639.5386192 | L64: 639.5386192 | M64: 490.7541635 | N64: 315.5213026 | O64: 223.7386154 | P64: =P152+P271 -> 93.06198324 | Q64: 13.85981647 | R64: 0 | S64: 0 | T64: 0 | U64: 0 | V64: 0 | W64: 0 | X64: 0 | Y64: 0 | Z64: 0 | AA64: 0 | AD64: 0 | AE64: 162.5746921 | AF64: 366.511391 | AG64: 479.7565881 | AH64: 644.1598002 | AI64: 754.5391007 | AJ64: 791.1121984 | AK64: 811.4823513 | AL64: 638.7299705 | AM64: 421.2335807 | AN64: 306.391169 | AR64: Sunk Dep | AS64: =(E$92+SUM(E$191:E$192)) -> 3531.820341 | AT64: 4014.049809 | AU64: 4014.049809 | AV64: 4014.049809 | AW64: 9.094947018e-13 | AX64: 0
A65: Closing RAB | D65: =D60+D61-SUM(D62:D64) -> 0 | E65: 0 | F65: 1934.197924 | G65: 1980.458281 | H65: 2479.338224 | I65: 2847.654492 | J65: 2416.01312 | K65: 1893.011836 | L65: 1310.320698 | M65: 819.5665341 | N65: 504.0452315 | O65: 280.3066161 | P65: 187.2446328 | Q65: 173.3848164 | R65: 173.3848164 | S65: 173.3848164 | T65: 173.3848164 | U65: 173.3848164 | V65: 173.3848164 | W65: 173.3848164 | X65: =X60+X61-SUM(X62:X64) -> 173.3848164 | Y65: =Y60+Y61-SUM(Y62:Y64) -> 173.3848164 | Z65: =Z60+Z61-SUM(Z62:Z64) -> 173.3848164 | AA65: =AA60+AA61-SUM(AA62:AA64) -> 173.3848164 | AD65: 0 | AE65: 2113.470998 | AF65: 2240.190515 | AG65: 2860.699462 | AH65: 3356.675158 | AI65: 2913.597774 | AJ65: 2341.664303 | AK65: 1662.60815 | AL65: 1066.688267 | AM65: 672.9205793 | AN65: 383.8562763 | AR65: Capex Dep | AS65: =E$193 -> 0 | AT65: =F$193 -> 735.040526 | AU65: =SUM(G$193:G$194) -> 1714.640952 | AV65: =SUM(H$193:H$195) -> 1959.200853 | AW65: =SUM(I$193:I$196) -> 0 | AX65: =SUM(J$193:J$197) -> 0
AR66: Manually read interval meters
AR67: Sunk Dep | AS67: =(E$100+SUM(E$208:E$209))*1 -> 573.4904341 | AT67: 573.4904341 | AU67: 573.4904341 | AV67: 573.4904341 | AW67: 0 | AX67: 0
A68: Other | AR68: Capex Dep | AS68: =E$210*1 -> 0 | AT68: =F$210*1 -> 323.5282407 | AU68: =SUM(G$210:G$211)*1 -> 1028.233691 | AV68: =SUM(H$210:H$212)*1 -> 1409.410901 | AW68: =SUM(I$210:I$213)*1 -> 0 | AX68: =SUM(J$210:J$214)*1 -> 0
A69: =$A$4 -> ($000 Real 2008) | D69: =D$4 -> 2009 | E69: =E$4 -> 2010 | F69: 2011 | G69: 2012 | H69: 2013 | I69: 2014 | J69: 2015 | K69: 2016 | L69: 2017 | M69: 2018 | N69: 2019 | O69: 2020 | P69: 2021 | Q69: 2022 | R69: 2023 | S69: 2024 | T69: 2025 | U69: 2026 | V69: 2027 | W69: 2028 | X69: 2029 | Y69: 2030 | Z69: 2031 | AA69: 2032 | AD69: 2010 | AE69: 2011 | AF69: 2012 | AG69: 2013 | AH69: 2014 | AI69: 2015 | AJ69: 2016 | AK69: 2017 | AL69: 2018 | AM69: 2019 | AN69: 2020 | AR69: Remotely read interval meters & transformers
A70: Opening RAB | D70: =B116+B160 -> 24633.9666 | E70: =D75 -> 20745.96718 | F70: =E75 -> 17075.64885 | G70: 22000.92263 | H70: 18803.36781 | I70: 14993.81315 | J70: 9541.159873 | K70: 6077.156036 | L70: 3999.432797 | M70: 1953.249432 | N70: 621.4023221 | O70: 150.1557757 | P70: -8.526512829e-13 | Q70: -8.526512829e-13 | R70: -8.526512829e-13 | S70: -8.526512829e-13 | T70: -8.526512829e-13 | U70: -8.526512829e-13 | V70: -8.526512829e-13 | W70: -8.526512829e-13 | X70: =W75 -> -8.526512829e-13 | Y70: =X75 -> -8.526512829e-13 | Z70: =Y75 -> -8.526512829e-13 | AA70: =Z75 -> -8.526512829e-13 | AD70: =E70*AD$16 -> 22054.03573 | AE70: 18658.32248 | AF70: 24886.28953 | AG70: 21695.6217 | AH70: 17673.97002 | AI70: 11506.18841 | AJ70: 7517.469824 | AK70: 5074.703907 | AL70: 2542.207576 | AM70: 829.5969973 | AN70: 205.6256742 | AR70: Sunk Dep | AS70: =(E$136+SUM(E$225:E$226))*1 -> 1054.864334 | AT70: 1702.521733 | AU70: 1702.521733 | AV70: 1702.521733 | AW70: 1702.521733 | AX70: 1702.521733
A71: Gross capital expenditure | D71: 96.16863885 | E71: 345.3895979 | F71: 9655.317965 | G71: 2393.08993 | H71: 2102.18086 | I71: 0 | J71: 0 | K71: 0 | L71: 0 | M71: 0 | N71: 0 | O71: 0 | AD71: 367.167 | AE71: 10550.23079 | AF71: 2706.93779 | AG71: 2425.529359 | AH71: 0 | AI71: 0 | AJ71: 0 | AK71: 0 | AL71: 0 | AM71: 0 | AN71: 0 | AR71: Capex Dep | AS71: =E$227*1 -> 0 | AT71: =F$227*1 -> 1298.753798 | AU71: =SUM(G$227:G$228)*1 -> 4062.925024 | AV71: =SUM(H$227:H$229)*1 -> 7139.125283 | AW71: =SUM(I$227:I$230)*1 -> 9444.136812 | AX71: =SUM(J$227:J$231)*1 -> 10203.29534
A72: Customer contributions | D72: 0 | E72: 0 | F72: 0 | G72: 0 | H72: 0 | I72: 0 | J72: 0 | K72: 0 | L72: 0 | M72: 0 | N72: 0 | O72: 0 | AD72: 0 | AE72: 0 | AF72: 0 | AG72: 0 | AH72: 0 | AI72: 0 | AJ72: 0 | AK72: 0 | AL72: 0 | AM72: 0 | AN72: 0 | AR72: IT
A73: Disposals - proceeds from sale of assets | D73: 0 | E73: 0 | F73: 0 | G73: 0 | H73: 0 | I73: 0 | J73: 0 | K73: 0 | L73: 0 | M73: 0 | N73: 0 | O73: 0 | AD73: 0 | AE73: 0 | AF73: 0 | AG73: 0 | AH73: 0 | AI73: 0 | AJ73: 0 | AK73: 0 | AL73: 0 | AM73: 0 | AN73: 0 | AR73: Sunk Dep | AS73: =((E$108+E$144)+SUM(E$242:E$243))*1 -> 12639.96471 | AT73: 14894.59466 | AU73: 14836.25781 | AV73: 14836.25781 | AW73: 14836.25781 | AX73: 14033.76769
A74: Regulatory depreciation | D74: =D116+D160+D288 -> 3984.168057 | E74: 4015.707931 | F74: 4730.044186 | G74: 5590.64475 | H74: 5911.735521 | I74: 5452.653272 | J74: 3464.003837 | K74: =K116+K160+K288 -> 2077.723239 | L74: 2046.183365 | M74: 1331.84711 | N74: 471.2465464 | O74: 150.1557757 | P74: =P116+P160+P288 -> 0 | Q74: 0 | R74: 0 | S74: 0 | T74: 0 | U74: 0 | V74: 0 | W74: 0 | X74: 0 | Y74: 0 | Z74: 0 | AA74: 0 | AD74: 4268.905153 | AE74: 5168.453073 | AF74: 6323.844061 | AG74: 6821.053481 | AH74: 6427.319689 | AI74: 4177.425108 | AJ74: 2570.153154 | AK74: 2596.311838 | AL74: 1733.435452 | AM74: 629.1330205 | AN74: 205.6256742 | AR74: Capex Dep | AS74: =E$244*1 -> 0 | AT74: =F$244*1 -> 547.9312774 | AU74: =SUM(G$244:G$245)*1 -> 1599.401449 | AV74: =SUM(H$244:H$246)*1 -> 2211.188077 | AW74: =SUM(I$244:I$247)*1 -> 2564.363109 | AX74: =SUM(J$244:J$248)*1 -> 3063.186932
A75: Closing RAB | D75: =D70+D71-SUM(D72:D74) -> 20745.96718 | E75: 17075.64885 | F75: 22000.92263 | G75: 18803.36781 | H75: 14993.81315 | I75: 9541.159873 | J75: 6077.156036 | K75: 3999.432797 | L75: 1953.249432 | M75: 621.4023221 | N75: 150.1557757 | O75: -8.526512829e-13 | P75: -8.526512829e-13 | Q75: -8.526512829e-13 | R75: -8.526512829e-13 | S75: -8.526512829e-13 | T75: -8.526512829e-13 | U75: -8.526512829e-13 | V75: -8.526512829e-13 | W75: -8.526512829e-13 | X75: =X70+X71-SUM(X72:X74) -> -8.526512829e-13 | Y75: =Y70+Y71-SUM(Y72:Y74) -> -8.526512829e-13 | Z75: =Z70+Z71-SUM(Z72:Z74) -> -8.526512829e-13 | AA75: =AA70+AA71-SUM(AA72:AA74) -> -8.526512829e-13 | AD75: 18152.29758 | AE75: 24040.1002 | AF75: 21269.38326 | AG75: 17300.09757 | AH75: 11246.65033 | AI75: 7328.763305 | AJ75: 4947.316671 | AK75: 2478.392069 | AL75: 808.7721233 | AM75: 200.4639767 | AN75: -1.16763404e-12 | AR75: Communications
AR76: Sunk Dep | AS76: =(E$152+SUM(E$259:E$260))*1 -> 0 | AT76: 0 | AU76: 0 | AV76: 0 | AW76: 0 | AX76: 0
A77: Check | C77: =SUM(D77:AA77) -> 0 | D77: =IF(ABS(D10-D25-D35-D45-D55-D65-D75)<0.001,0,ABS(D10-D25-D35-D45-D55-D65-D75)) -> 0 | E77: =IF(ABS(E10-E25-E35-E45-E55-E65-E75)<0.001,0,ABS(E10-E25-E35-E45-E55-E65-E75)) -> 0 | F77: 0 | G77: 0 | H77: 0 | I77: 0 | J77: 0 | K77: =IF(ABS(K10-K25-K35-K45-K55-K65-K75)<0.001,0,ABS(K10-K25-K35-K45-K55-K65-K75)) -> 0 | L77: 0 | M77: 0 | N77: 0 | O77: 0 | P77: 0 | Q77: 0 | R77: 0 | S77: 0 | T77: 0 | U77: 0 | V77: 0 | W77: 0 | X77: =IF(ABS(X10-X25-X35-X45-X55-X65-X75)<0.001,0,ABS(X10-X25-X35-X45-X55-X65-X75)) -> 0 | Y77: =IF(ABS(Y10-Y25-Y35-Y45-Y55-Y65-Y75)<0.001,0,ABS(Y10-Y25-Y35-Y45-Y55-Y65-Y75)) -> 0 | Z77: =IF(ABS(Z10-Z25-Z35-Z45-Z55-Z65-Z75)<0.001,0,ABS(Z10-Z25-Z35-Z45-Z55-Z65-Z75)) -> 0 | AA77: =IF(ABS(AA10-AA25-AA35-AA45-AA55-AA65-AA75)<0.001,0,ABS(AA10-AA25-AA35-AA45-AA55-AA65-AA75)) -> 0 | AR77: Capex Dep | AS77: =E$261*1 -> 0 | AT77: =F$261*1 -> 148.7844557 | AU77: =SUM(G$261:G$262)*1 -> 324.0173167 | AV77: =SUM(H$261:H$263)*1 -> 415.8000038 | AW77: =SUM(I$261:I$264)*1 -> 546.476636 | AX77: =SUM(J$261:J$265)*1 -> 625.6788028
A79: Regulatory Depreciation on Opening Assets at 1 January 2009 - IMRO Capex 2006-08 | AR79: Other
A80: =$A$4 -> ($000 Real 2008) | AR80: Sunk Dep | AS80: =((E$116+E$160)+SUM(E$276:E$277))*1 -> 4015.707931 | AT80: 4040.378617 | AU80: 4040.378617 | AV80: 4040.378617 | AW80: 3431.140592 | AX80: 1442.491158
A81: RAB at 1 January 2009 | D81: =D$4 -> 2009 | E81: =E$4 -> 2010 | F81: 2011 | G81: 2012 | H81: 2013 | I81: 2014 | J81: 2015 | K81: 2016 | L81: 2017 | M81: 2018 | N81: 2019 | O81: 2020 | P81: 2021 | Q81: 2022 | R81: 2023 | S81: 2024 | T81: 2025 | U81: 2026 | V81: 2027 | W81: 2028 | X81: 2029 | Y81: 2030 | Z81: 2031 | AA81: 2032 | AD81: 2010 | AE81: 2011 | AF81: 2012 | AG81: 2013 | AH81: 2014 | AI81: 2015 | AJ81: 2016 | AK81: 2017 | AL81: 2018 | AM81: 2019 | AN81: 2020 | AR81: Capex Dep | AS81: =E$278*1 -> 0 | AT81: =F$278*1 -> 689.6655689 | AU81: =SUM(G$278:G$279)*1 -> 1550.266133 | AV81: =SUM(H$278:H$280)*1 -> 1871.356904 | AW81: =SUM(I$278:I$281)*1 -> 2021.512679 | AX81: =SUM(J$278:J$282)*1 -> 2021.512679
A82: Opening asset base | D82: =B119 -> 14311.5884 | E82: =D84 -> 11390.93387 | F82: =E84 -> 8470.279342 | G82: 5607.961662 | H82: 2803.980831 | I82: 0 | J82: -4.547473509e-13 | K82: -4.547473509e-13 | L82: -4.547473509e-13 | M82: -4.547473509e-13 | N82: -4.547473509e-13 | O82: -4.547473509e-13 | P82: -4.547473509e-13 | Q82: -4.547473509e-13 | R82: -4.547473509e-13 | S82: -4.547473509e-13 | T82: -4.547473509e-13 | U82: -4.547473509e-13 | V82: -4.547473509e-13 | W82: -4.547473509e-13 | X82: =W84 -> -4.547473509e-13 | Y82: =X84 -> -4.547473509e-13 | Z82: =Y84 -> -4.547473509e-13 | AA82: =Z84 -> -4.547473509e-13 | AD82: =E82*AD$16 -> 12109.15164 | AE82: 9255.355675 | AF82: 6343.432044 | AG82: 3235.277211 | AH82: 0 | AI82: -5.484038386e-13 | AJ82: -5.625245539e-13 | AK82: -5.770088599e-13 | AL82: -5.918661187e-13 | AM82: -6.071059335e-13 | AN82: -6.227381544e-13
A83: Regulatory depreciation | D83: =D119 -> 2920.654529 | E83: =E119 -> 2920.654529 | F83: 2862.31768 | G83: 2803.980831 | H83: 2803.980831 | I83: 4.547473509e-13 | J83: 0 | K83: 0 | L83: 0 | M83: 0 | N83: 0 | O83: 0 | P83: 0 | Q83: 0 | R83: 0 | S83: 0 | T83: 0 | U83: 0 | V83: 0 | W83: 0 | X83: =X119 -> 0 | Y83: =Y119 -> 0 | Z83: =Z119 -> 0 | AA83: =AA119 -> 0 | AD83: 3104.806769 | AE83: 3127.614464 | AF83: 3171.716022 | AG83: 3235.277211 | AH83: 5.360338272e-13 | AI83: 0 | AJ83: 0 | AK83: 0 | AL83: 0 | AM83: 0 | AN83: 0
A84: Closing asset base | D84: =D82-D83 -> 11390.93387 | E84: =E82-E83 -> 8470.279342 | F84: 5607.961662 | G84: 2803.980831 | H84: 0 | I84: -4.547473509e-13 | J84: -4.547473509e-13 | K84: -4.547473509e-13 | L84: -4.547473509e-13 | M84: -4.547473509e-13 | N84: -4.547473509e-13 | O84: -4.547473509e-13 | P84: -4.547473509e-13 | Q84: -4.547473509e-13 | R84: -4.547473509e-13 | S84: -4.547473509e-13 | T84: -4.547473509e-13 | U84: -4.547473509e-13 | V84: -4.547473509e-13 | W84: -4.547473509e-13 | X84: =X82-X83 -> -4.547473509e-13 | Y84: =Y82-Y83 -> -4.547473509e-13 | Z84: =Z82-Z83 -> -4.547473509e-13 | AA84: =AA82-AA83 -> -4.547473509e-13 | AD84: 9004.344874 | AE84: 6127.741211 | AF84: 3171.716022 | AG84: 0 | AH84: -5.360338272e-13 | AI84: -5.484038386e-13 | AJ84: -5.625245539e-13 | AK84: -5.770088599e-13 | AL84: -5.918661187e-13 | AM84: -6.071059335e-13 | AN84: -6.227381544e-13
A85: Check | C85: =SUM(D85:E85) -> 0 | D85: =IF(ABS(D82-SUM(D83:AA83))<0.001,0,ABS(D82-SUM(D83:AA83))) -> 0 | E85: 0
A87: Accumulation meters | B87: RAB WDV | C87: Remaining | D87: =D$4 -> 2009 | E87: =E$4 -> 2010 | F87: 2011 | G87: 2012 | H87: 2013 | I87: 2014 | J87: 2015 | K87: 2016 | L87: 2017 | M87: 2018 | N87: 2019 | O87: 2020 | P87: 2021 | Q87: 2022 | R87: 2023 | S87: 2024 | T87: 2025 | U87: 2026 | V87: 2027 | W87: 2028 | X87: 2029 | Y87: 2030 | Z87: 2031 | AA87: 2032 | AD87: 2010 | AE87: 2011 | AF87: 2012 | AG87: 2013 | AH87: 2014 | AI87: 2015 | AJ87: 2016 | AK87: 2017 | AL87: 2018 | AM87: 2019 | AN87: 2020
A88: =$A$4 -> ($000 Real 2008) | B88: 1/01/2009 | C88: Life (years) | AD88: =E88*AD$16 -> 0 | AE88: 0 | AF88: 0 | AG88: 0 | AH88: 0 | AI88: 0 | AJ88: 0 | AK88: 0 | AL88: 0 | AM88: 0 | AN88: 0
A89: 2006 | B89: 2871.316422 | C89: 5 | D89: =IF(C89<1,B89,B89/C89) -> 574.2632844 | E89: =IF((SUM($D89:D89)+$B89/$C89)>$B89,$B89-SUM($D89:D89),$B89/$C89) -> 574.2632844 | F89: =IF((SUM($D89:E89)+$B89/$C89)>$B89,$B89-SUM($D89:E89),$B89/$C89) -> 574.2632844 | G89: =IF((SUM($D89:F89)+$B89/$C89)>$B89,$B89-SUM($D89:F89),$B89/$C89) -> 574.2632844 | H89: =IF((SUM($D89:G89)+$B89/$C89)>$B89,$B89-SUM($D89:G89),$B89/$C89) -> 574.2632844 | I89: =IF((SUM($D89:H89)+$B89/$C89)>$B89,$B89-SUM($D89:H89),$B89/$C89) -> 0 | J89: =IF((SUM($D89:I89)+$B89/$C89)>$B89,$B89-SUM($D89:I89),$B89/$C89) -> 0 | K89: =IF((SUM($D89:J89)+$B89/$C89)>$B89,$B89-SUM($D89:J89),$B89/$C89) -> 0 | L89: =IF((SUM($D89:K89)+$B89/$C89)>$B89,$B89-SUM($D89:K89),$B89/$C89) -> 0 | M89: =IF((SUM($D89:L89)+$B89/$C89)>$B89,$B89-SUM($D89:L89),$B89/$C89) -> 0 | N89: =IF((SUM($D89:M89)+$B89/$C89)>$B89,$B89-SUM($D89:M89),$B89/$C89) -> 0 | O89: =IF((SUM($D89:N89)+$B89/$C89)>$B89,$B89-SUM($D89:N89),$B89/$C89) -> 0 | P89: =IF((SUM($D89:O89)+$B89/$C89)>$B89,$B89-SUM($D89:O89),$B89/$C89) -> 0 | Q89: =IF((SUM($D89:P89)+$B89/$C89)>$B89,$B89-SUM($D89:P89),$B89/$C89) -> 0 | R89: =IF((SUM($D89:Q89)+$B89/$C89)>$B89,$B89-SUM($D89:Q89),$B89/$C89) -> 0 | S89: =IF((SUM($D89:R89)+$B89/$C89)>$B89,$B89-SUM($D89:R89),$B89/$C89) -> 0 | T89: =IF((SUM($D89:S89)+$B89/$C89)>$B89,$B89-SUM($D89:S89),$B89/$C89) -> 0 | U89: =IF((SUM($D89:T89)+$B89/$C89)>$B89,$B89-SUM($D89:T89),$B89/$C89) -> 0 | V89: =IF((SUM($D89:U89)+$B89/$C89)>$B89,$B89-SUM($D89:U89),$B89/$C89) -> 0 | W89: =IF((SUM($D89:V89)+$B89/$C89)>$B89,$B89-SUM($D89:V89),$B89/$C89) -> 0 | X89: =IF((SUM($D89:W89)+$B89/$C89)>$B89,$B89-SUM($D89:W89),$B89/$C89) -> 0 | Y89: =IF((SUM($D89:X89)+$B89/$C89)>$B89,$B89-SUM($D89:X89),$B89/$C89) -> 0 | Z89: =IF((SUM($D89:Y89)+$B89/$C89)>$B89,$B89-SUM($D89:Y89),$B89/$C89) -> 0 | AA89: =IF((SUM($D89:Z89)+$B89/$C89)>$B89,$B89-SUM($D89:Z89),$B89/$C89) -> 0 | AD89: 610.4715621 | AE89: 627.4894526 | AF89: 649.576502 | AG89: 662.5940151 | AH89: 0 | AI89: 0 | AJ89: 0 | AK89: 0 | AL89: 0 | AM89: 0 | AN89: 0
A90: 2007 | B90: 4323.963648 | C90: 5 | D90: =IF(C90<1,B90,B90/C90) -> 864.7927296 | E90: =IF((SUM($D90:D90)+$B90/$C90)>$B90,$B90-SUM($D90:D90),$B90/$C90) -> 864.7927296 | F90: =IF((SUM($D90:E90)+$B90/$C90)>$B90,$B90-SUM($D90:E90),$B90/$C90) -> 864.7927296 | G90: =IF((SUM($D90:F90)+$B90/$C90)>$B90,$B90-SUM($D90:F90),$B90/$C90) -> 864.7927296 | H90: =IF((SUM($D90:G90)+$B90/$C90)>$B90,$B90-SUM($D90:G90),$B90/$C90) -> 864.7927296 | I90: =IF((SUM($D90:H90)+$B90/$C90)>$B90,$B90-SUM($D90:H90),$B90/$C90) -> 0 | J90: =IF((SUM($D90:I90)+$B90/$C90)>$B90,$B90-SUM($D90:I90),$B90/$C90) -> 0 | K90: =IF((SUM($D90:J90)+$B90/$C90)>$B90,$B90-SUM($D90:J90),$B90/$C90) -> 0 | L90: =IF((SUM($D90:K90)+$B90/$C90)>$B90,$B90-SUM($D90:K90),$B90/$C90) -> 0 | M90: =IF((SUM($D90:L90)+$B90/$C90)>$B90,$B90-SUM($D90:L90),$B90/$C90) -> 0 | N90: =IF((SUM($D90:M90)+$B90/$C90)>$B90,$B90-SUM($D90:M90),$B90/$C90) -> 0 | O90: =IF((SUM($D90:N90)+$B90/$C90)>$B90,$B90-SUM($D90:N90),$B90/$C90) -> 0 | P90: =IF((SUM($D90:O90)+$B90/$C90)>$B90,$B90-SUM($D90:O90),$B90/$C90) -> 0 | Q90: =IF((SUM($D90:P90)+$B90/$C90)>$B90,$B90-SUM($D90:P90),$B90/$C90) -> 0 | R90: =IF((SUM($D90:Q90)+$B90/$C90)>$B90,$B90-SUM($D90:Q90),$B90/$C90) -> 0 | S90: =IF((SUM($D90:R90)+$B90/$C90)>$B90,$B90-SUM($D90:R90),$B90/$C90) -> 0 | T90: =IF((SUM($D90:S90)+$B90/$C90)>$B90,$B90-SUM($D90:S90),$B90/$C90) -> 0 | U90: =IF((SUM($D90:T90)+$B90/$C90)>$B90,$B90-SUM($D90:T90),$B90/$C90) -> 0 | V90: =IF((SUM($D90:U90)+$B90/$C90)>$B90,$B90-SUM($D90:U90),$B90/$C90) -> 0 | W90: =IF((SUM($D90:V90)+$B90/$C90)>$B90,$B90-SUM($D90:V90),$B90/$C90) -> 0 | X90: =IF((SUM($D90:W90)+$B90/$C90)>$B90,$B90-SUM($D90:W90),$B90/$C90) -> 0 | Y90: =IF((SUM($D90:X90)+$B90/$C90)>$B90,$B90-SUM($D90:X90),$B90/$C90) -> 0 | Z90: =IF((SUM($D90:Y90)+$B90/$C90)>$B90,$B90-SUM($D90:Y90),$B90/$C90) -> 0 | AA90: =IF((SUM($D90:Z90)+$B90/$C90)>$B90,$B90-SUM($D90:Z90),$B90/$C90) -> 0 | AD90: 919.3193834 | AE90: 944.9469107 | AF90: 978.2081696 | AG90: 997.8114613 | AH90: 0 | AI90: 0 | AJ90: 0 | AK90: 0 | AL90: 0 | AM90: 0 | AN90: 0
A91: 2008 | B91: 3957.171915 | C91: 5 | D91: =IF(C91<1,B91,B91/C91) -> 791.4343829 | E91: =IF((SUM($D91:D91)+$B91/$C91)>$B91,$B91-SUM($D91:D91),$B91/$C91) -> 791.4343829 | F91: =IF((SUM($D91:E91)+$B91/$C91)>$B91,$B91-SUM($D91:E91),$B91/$C91) -> 791.4343829 | G91: =IF((SUM($D91:F91)+$B91/$C91)>$B91,$B91-SUM($D91:F91),$B91/$C91) -> 791.4343829 | H91: =IF((SUM($D91:G91)+$B91/$C91)>$B91,$B91-SUM($D91:G91),$B91/$C91) -> 791.4343829 | I91: =IF((SUM($D91:H91)+$B91/$C91)>$B91,$B91-SUM($D91:H91),$B91/$C91) -> 4.547473509e-13 | J91: =IF((SUM($D91:I91)+$B91/$C91)>$B91,$B91-SUM($D91:I91),$B91/$C91) -> 0 | K91: =IF((SUM($D91:J91)+$B91/$C91)>$B91,$B91-SUM($D91:J91),$B91/$C91) -> 0 | L91: =IF((SUM($D91:K91)+$B91/$C91)>$B91,$B91-SUM($D91:K91),$B91/$C91) -> 0 | M91: =IF((SUM($D91:L91)+$B91/$C91)>$B91,$B91-SUM($D91:L91),$B91/$C91) -> 0 | N91: =IF((SUM($D91:M91)+$B91/$C91)>$B91,$B91-SUM($D91:M91),$B91/$C91) -> 0 | O91: =IF((SUM($D91:N91)+$B91/$C91)>$B91,$B91-SUM($D91:N91),$B91/$C91) -> 0 | P91: =IF((SUM($D91:O91)+$B91/$C91)>$B91,$B91-SUM($D91:O91),$B91/$C91) -> 0 | Q91: =IF((SUM($D91:P91)+$B91/$C91)>$B91,$B91-SUM($D91:P91),$B91/$C91) -> 0 | R91: =IF((SUM($D91:Q91)+$B91/$C91)>$B91,$B91-SUM($D91:Q91),$B91/$C91) -> 0 | S91: =IF((SUM($D91:R91)+$B91/$C91)>$B91,$B91-SUM($D91:R91),$B91/$C91) -> 0 | T91: =IF((SUM($D91:S91)+$B91/$C91)>$B91,$B91-SUM($D91:S91),$B91/$C91) -> 0 | U91: =IF((SUM($D91:T91)+$B91/$C91)>$B91,$B91-SUM($D91:T91),$B91/$C91) -> 0 | V91: =IF((SUM($D91:U91)+$B91/$C91)>$B91,$B91-SUM($D91:U91),$B91/$C91) -> 0 | W91: =IF((SUM($D91:V91)+$B91/$C91)>$B91,$B91-SUM($D91:V91),$B91/$C91) -> 0 | X91: =IF((SUM($D91:W91)+$B91/$C91)>$B91,$B91-SUM($D91:W91),$B91/$C91) -> 0 | Y91: =IF((SUM($D91:X91)+$B91/$C91)>$B91,$B91-SUM($D91:X91),$B91/$C91) -> 0 | Z91: =IF((SUM($D91:Y91)+$B91/$C91)>$B91,$B91-SUM($D91:Y91),$B91/$C91) -> 0 | AA91: =IF((SUM($D91:Z91)+$B91/$C91)>$B91,$B91-SUM($D91:Z91),$B91/$C91) -> 0 | AD91: 841.3356681 | AE91: 864.7892722 | AF91: 895.2290561 | AG91: 913.1694464 | AH91: 5.360338272e-13 | AI91: 0 | AJ91: 0 | AK91: 0 | AL91: 0 | AM91: 0 | AN91: 0
B92: =SUM(B89:B91) -> 11152.45198 | D92: =SUM(D89:D91) -> 2230.490397 | E92: =SUM(E89:E91) -> 2230.490397 | F92: 2230.490397 | G92: 2230.490397 | H92: 2230.490397 | I92: 4.547473509e-13 | J92: 0 | K92: 0 | L92: 0 | M92: 0 | N92: 0 | O92: 0 | P92: 0 | Q92: 0 | R92: 0 | S92: 0 | T92: 0 | U92: 0 | V92: 0 | W92: 0 | X92: =SUM(X89:X91) -> 0 | Y92: =SUM(Y89:Y91) -> 0 | Z92: =SUM(Z89:Z91) -> 0 | AA92: =SUM(AA89:AA91) -> 0 | AD92: 2371.126614 | AE92: 2437.225635 | AF92: 2523.013728 | AG92: 2573.574923 | AH92: 5.360338272e-13 | AI92: 0 | AJ92: 0 | AK92: 0 | AL92: 0 | AM92: 0 | AN92: 0
A95: Manually read interval meters | B95: RAB WDV | C95: Remaining | D95: =D$4 -> 2009 | E95: =E$4 -> 2010 | F95: 2011 | G95: 2012 | H95: 2013 | I95: 2014 | J95: 2015 | K95: 2016 | L95: 2017 | M95: 2018 | N95: 2019 | O95: 2020 | P95: 2021 | Q95: 2022 | R95: 2023 | S95: 2024 | T95: 2025 | U95: 2026 | V95: 2027 | W95: 2028 | X95: 2029 | Y95: 2030 | Z95: 2031 | AA95: 2032 | AD95: 2010 | AE95: 2011 | AF95: 2012 | AG95: 2013 | AH95: 2014 | AI95: 2015 | AJ95: 2016 | AK95: 2017 | AL95: 2018 | AM95: 2019 | AN95: 2020
A96: =$A$4 -> ($000 Real 2008) | B96: 1/01/2009 | C96: Life (years)
A97: 2006 | B97: 1740.576769 | C97: 5 | D97: =IF(C97<1,B97,B97/C97) -> 348.1153538 | E97: =IF((SUM($D97:D97)+$B97/$C97)>$B97,$B97-SUM($D97:D97),$B97/$C97) -> 348.1153538 | F97: =IF((SUM($D97:E97)+$B97/$C97)>$B97,$B97-SUM($D97:E97),$B97/$C97) -> 348.1153538 | G97: =IF((SUM($D97:F97)+$B97/$C97)>$B97,$B97-SUM($D97:F97),$B97/$C97) -> 348.1153538 | H97: =IF((SUM($D97:G97)+$B97/$C97)>$B97,$B97-SUM($D97:G97),$B97/$C97) -> 348.1153538 | I97: =IF((SUM($D97:H97)+$B97/$C97)>$B97,$B97-SUM($D97:H97),$B97/$C97) -> 0 | J97: =IF((SUM($D97:I97)+$B97/$C97)>$B97,$B97-SUM($D97:I97),$B97/$C97) -> 0 | K97: =IF((SUM($D97:J97)+$B97/$C97)>$B97,$B97-SUM($D97:J97),$B97/$C97) -> 0 | L97: =IF((SUM($D97:K97)+$B97/$C97)>$B97,$B97-SUM($D97:K97),$B97/$C97) -> 0 | M97: =IF((SUM($D97:L97)+$B97/$C97)>$B97,$B97-SUM($D97:L97),$B97/$C97) -> 0 | N97: =IF((SUM($D97:M97)+$B97/$C97)>$B97,$B97-SUM($D97:M97),$B97/$C97) -> 0 | O97: =IF((SUM($D97:N97)+$B97/$C97)>$B97,$B97-SUM($D97:N97),$B97/$C97) -> 0 | P97: =IF((SUM($D97:O97)+$B97/$C97)>$B97,$B97-SUM($D97:O97),$B97/$C97) -> 0 | Q97: =IF((SUM($D97:P97)+$B97/$C97)>$B97,$B97-SUM($D97:P97),$B97/$C97) -> 0 | R97: =IF((SUM($D97:Q97)+$B97/$C97)>$B97,$B97-SUM($D97:Q97),$B97/$C97) -> 0 | S97: =IF((SUM($D97:R97)+$B97/$C97)>$B97,$B97-SUM($D97:R97),$B97/$C97) -> 0 | T97: =IF((SUM($D97:S97)+$B97/$C97)>$B97,$B97-SUM($D97:S97),$B97/$C97) -> 0 | U97: =IF((SUM($D97:T97)+$B97/$C97)>$B97,$B97-SUM($D97:T97),$B97/$C97) -> 0 | V97: =IF((SUM($D97:U97)+$B97/$C97)>$B97,$B97-SUM($D97:U97),$B97/$C97) -> 0 | W97: =IF((SUM($D97:V97)+$B97/$C97)>$B97,$B97-SUM($D97:V97),$B97/$C97) -> 0 | X97: =IF((SUM($D97:W97)+$B97/$C97)>$B97,$B97-SUM($D97:W97),$B97/$C97) -> 0 | Y97: =IF((SUM($D97:X97)+$B97/$C97)>$B97,$B97-SUM($D97:X97),$B97/$C97) -> 0 | Z97: =IF((SUM($D97:Y97)+$B97/$C97)>$B97,$B97-SUM($D97:Y97),$B97/$C97) -> 0 | AA97: =IF((SUM($D97:Z97)+$B97/$C97)>$B97,$B97-SUM($D97:Z97),$B97/$C97) -> 0 | AD97: =E97*AD$16 -> 370.0646195 | AE97: 380.3807744 | AF97: 393.7698264 | AG97: 401.6609738 | AH97: 0 | AI97: 0 | AJ97: 0 | AK97: 0 | AL97: 0 | AM97: 0 | AN97: 0
A98: 2007 | B98: 682.2754014 | C98: 5 | D98: =IF(C98<1,B98,B98/C98) -> 136.4550803 | E98: =IF((SUM($D98:D98)+$B98/$C98)>$B98,$B98-SUM($D98:D98),$B98/$C98) -> 136.4550803 | F98: =IF((SUM($D98:E98)+$B98/$C98)>$B98,$B98-SUM($D98:E98),$B98/$C98) -> 136.4550803 | G98: =IF((SUM($D98:F98)+$B98/$C98)>$B98,$B98-SUM($D98:F98),$B98/$C98) -> 136.4550803 | H98: =IF((SUM($D98:G98)+$B98/$C98)>$B98,$B98-SUM($D98:G98),$B98/$C98) -> 136.4550803 | I98: =IF((SUM($D98:H98)+$B98/$C98)>$B98,$B98-SUM($D98:H98),$B98/$C98) -> 0 | J98: =IF((SUM($D98:I98)+$B98/$C98)>$B98,$B98-SUM($D98:I98),$B98/$C98) -> 0 | K98: =IF((SUM($D98:J98)+$B98/$C98)>$B98,$B98-SUM($D98:J98),$B98/$C98) -> 0 | L98: =IF((SUM($D98:K98)+$B98/$C98)>$B98,$B98-SUM($D98:K98),$B98/$C98) -> 0 | M98: =IF((SUM($D98:L98)+$B98/$C98)>$B98,$B98-SUM($D98:L98),$B98/$C98) -> 0 | N98: =IF((SUM($D98:M98)+$B98/$C98)>$B98,$B98-SUM($D98:M98),$B98/$C98) -> 0 | O98: =IF((SUM($D98:N98)+$B98/$C98)>$B98,$B98-SUM($D98:N98),$B98/$C98) -> 0 | P98: =IF((SUM($D98:O98)+$B98/$C98)>$B98,$B98-SUM($D98:O98),$B98/$C98) -> 0 | Q98: =IF((SUM($D98:P98)+$B98/$C98)>$B98,$B98-SUM($D98:P98),$B98/$C98) -> 0 | R98: =IF((SUM($D98:Q98)+$B98/$C98)>$B98,$B98-SUM($D98:Q98),$B98/$C98) -> 0 | S98: =IF((SUM($D98:R98)+$B98/$C98)>$B98,$B98-SUM($D98:R98),$B98/$C98) -> 0 | T98: =IF((SUM($D98:S98)+$B98/$C98)>$B98,$B98-SUM($D98:S98),$B98/$C98) -> 0 | U98: =IF((SUM($D98:T98)+$B98/$C98)>$B98,$B98-SUM($D98:T98),$B98/$C98) -> 0 | V98: =IF((SUM($D98:U98)+$B98/$C98)>$B98,$B98-SUM($D98:U98),$B98/$C98) -> 0 | W98: =IF((SUM($D98:V98)+$B98/$C98)>$B98,$B98-SUM($D98:V98),$B98/$C98) -> 0 | X98: =IF((SUM($D98:W98)+$B98/$C98)>$B98,$B98-SUM($D98:W98),$B98/$C98) -> 0 | Y98: =IF((SUM($D98:X98)+$B98/$C98)>$B98,$B98-SUM($D98:X98),$B98/$C98) -> 0 | Z98: =IF((SUM($D98:Y98)+$B98/$C98)>$B98,$B98-SUM($D98:Y98),$B98/$C98) -> 0 | AA98: =IF((SUM($D98:Z98)+$B98/$C98)>$B98,$B98-SUM($D98:Z98),$B98/$C98) -> 0 | AD98: 145.0588054 | AE98: 149.1025562 | AF98: 154.3508285 | AG98: 157.4440191 | AH98: 0 | AI98: 0 | AJ98: 0 | AK98: 0 | AL98: 0 | AM98: 0 | AN98: 0
A99: 2008 | B99: 444.6 | C99: 5 | D99: =IF(C99<1,B99,B99/C99) -> 88.92 | E99: =IF((SUM($D99:D99)+$B99/$C99)>$B99,$B99-SUM($D99:D99),$B99/$C99) -> 88.92 | F99: =IF((SUM($D99:E99)+$B99/$C99)>$B99,$B99-SUM($D99:E99),$B99/$C99) -> 88.92 | G99: =IF((SUM($D99:F99)+$B99/$C99)>$B99,$B99-SUM($D99:F99),$B99/$C99) -> 88.92 | H99: =IF((SUM($D99:G99)+$B99/$C99)>$B99,$B99-SUM($D99:G99),$B99/$C99) -> 88.92 | I99: =IF((SUM($D99:H99)+$B99/$C99)>$B99,$B99-SUM($D99:H99),$B99/$C99) -> 0 | J99: =IF((SUM($D99:I99)+$B99/$C99)>$B99,$B99-SUM($D99:I99),$B99/$C99) -> 0 | K99: =IF((SUM($D99:J99)+$B99/$C99)>$B99,$B99-SUM($D99:J99),$B99/$C99) -> 0 | L99: =IF((SUM($D99:K99)+$B99/$C99)>$B99,$B99-SUM($D99:K99),$B99/$C99) -> 0 | M99: =IF((SUM($D99:L99)+$B99/$C99)>$B99,$B99-SUM($D99:L99),$B99/$C99) -> 0 | N99: =IF((SUM($D99:M99)+$B99/$C99)>$B99,$B99-SUM($D99:M99),$B99/$C99) -> 0 | O99: =IF((SUM($D99:N99)+$B99/$C99)>$B99,$B99-SUM($D99:N99),$B99/$C99) -> 0 | P99: =IF((SUM($D99:O99)+$B99/$C99)>$B99,$B99-SUM($D99:O99),$B99/$C99) -> 0 | Q99: =IF((SUM($D99:P99)+$B99/$C99)>$B99,$B99-SUM($D99:P99),$B99/$C99) -> 0 | R99: =IF((SUM($D99:Q99)+$B99/$C99)>$B99,$B99-SUM($D99:Q99),$B99/$C99) -> 0 | S99: =IF((SUM($D99:R99)+$B99/$C99)>$B99,$B99-SUM($D99:R99),$B99/$C99) -> 0 | T99: =IF((SUM($D99:S99)+$B99/$C99)>$B99,$B99-SUM($D99:S99),$B99/$C99) -> 0 | U99: =IF((SUM($D99:T99)+$B99/$C99)>$B99,$B99-SUM($D99:T99),$B99/$C99) -> 0 | V99: =IF((SUM($D99:U99)+$B99/$C99)>$B99,$B99-SUM($D99:U99),$B99/$C99) -> 0 | W99: =IF((SUM($D99:V99)+$B99/$C99)>$B99,$B99-SUM($D99:V99),$B99/$C99) -> 0 | X99: =IF((SUM($D99:W99)+$B99/$C99)>$B99,$B99-SUM($D99:W99),$B99/$C99) -> 0 | Y99: =IF((SUM($D99:X99)+$B99/$C99)>$B99,$B99-SUM($D99:X99),$B99/$C99) -> 0 | Z99: =IF((SUM($D99:Y99)+$B99/$C99)>$B99,$B99-SUM($D99:Y99),$B99/$C99) -> 0 | AA99: =IF((SUM($D99:Z99)+$B99/$C99)>$B99,$B99-SUM($D99:Z99),$B99/$C99) -> 0 | AD99: 94.52655738 | AE99: 97.16163934 | AF99: 100.5816393 | AG99: 102.5972954 | AH99: 0 | AI99: 0 | AJ99: 0 | AK99: 0 | AL99: 0 | AM99: 0 | AN99: 0
B100: =SUM(B97:B99) -> 2867.45217 | D100: =SUM(D97:D99) -> 573.4904341 | E100: =SUM(E97:E99) -> 573.4904341 | F100: 573.4904341 | G100: 573.4904341 | H100: 573.4904341 | I100: 0 | J100: 0 | K100: 0 | L100: 0 | M100: 0 | N100: 0 | O100: 0 | P100: 0 | Q100: 0 | R100: 0 | S100: 0 | T100: 0 | U100: 0 | V100: 0 | W100: 0 | X100: =SUM(X97:X99) -> 0 | Y100: =SUM(Y97:Y99) -> 0 | Z100: =SUM(Z97:Z99) -> 0 | AA100: =SUM(AA97:AA99) -> 0 | AD100: 609.6499823 | AE100: 626.6449699 | AF100: 648.7022943 | AG100: 661.7022883 | AH100: 0 | AI100: 0 | AJ100: 0 | AK100: 0 | AL100: 0 | AM100: 0 | AN100: 0
A103: IT | B103: RAB WDV | C103: Remaining | D103: =D$4 -> 2009 | E103: =E$4 -> 2010 | F103: 2011 | G103: 2012 | H103: 2013 | I103: 2014 | J103: 2015 | K103: 2016 | L103: 2017 | M103: 2018 | N103: 2019 | O103: 2020 | P103: 2021 | Q103: 2022 | R103: 2023 | S103: 2024 | T103: 2025 | U103: 2026 | V103: 2027 | W103: 2028 | X103: 2029 | Y103: 2030 | Z103: 2031 | AA103: 2032 | AD103: 2010 | AE103: 2011 | AF103: 2012 | AG103: 2013 | AH103: 2014 | AI103: 2015 | AJ103: 2016 | AK103: 2017 | AL103: 2018 | AM103: 2019 | AN103: 2020
A104: =$A$4 -> ($000 Real 2008) | B104: 1/01/2009 | C104: Life (years)
A105: 2006 | B105: 291.6842457 | C105: 2.5 | D105: =IF(C105<1,B105,B105/C105) -> 116.6736983 | E105: =IF((SUM($D105:D105)+$B105/$C105)>$B105,$B105-SUM($D105:D105),$B105/$C105) -> 116.6736983 | F105: =IF((SUM($D105:E105)+$B105/$C105)>$B105,$B105-SUM($D105:E105),$B105/$C105) -> 58.33684913 | G105: =IF((SUM($D105:F105)+$B105/$C105)>$B105,$B105-SUM($D105:F105),$B105/$C105) -> 0 | H105: =IF((SUM($D105:G105)+$B105/$C105)>$B105,$B105-SUM($D105:G105),$B105/$C105) -> 0 | I105: =IF((SUM($D105:H105)+$B105/$C105)>$B105,$B105-SUM($D105:H105),$B105/$C105) -> 0 | J105: =IF((SUM($D105:I105)+$B105/$C105)>$B105,$B105-SUM($D105:I105),$B105/$C105) -> 0 | K105: =IF((SUM($D105:J105)+$B105/$C105)>$B105,$B105-SUM($D105:J105),$B105/$C105) -> 0 | L105: =IF((SUM($D105:K105)+$B105/$C105)>$B105,$B105-SUM($D105:K105),$B105/$C105) -> 0 | M105: =IF((SUM($D105:L105)+$B105/$C105)>$B105,$B105-SUM($D105:L105),$B105/$C105) -> 0 | N105: =IF((SUM($D105:M105)+$B105/$C105)>$B105,$B105-SUM($D105:M105),$B105/$C105) -> 0 | O105: =IF((SUM($D105:N105)+$B105/$C105)>$B105,$B105-SUM($D105:N105),$B105/$C105) -> 0 | P105: =IF((SUM($D105:O105)+$B105/$C105)>$B105,$B105-SUM($D105:O105),$B105/$C105) -> 0 | Q105: =IF((SUM($D105:P105)+$B105/$C105)>$B105,$B105-SUM($D105:P105),$B105/$C105) -> 0 | R105: =IF((SUM($D105:Q105)+$B105/$C105)>$B105,$B105-SUM($D105:Q105),$B105/$C105) -> 0 | S105: =IF((SUM($D105:R105)+$B105/$C105)>$B105,$B105-SUM($D105:R105),$B105/$C105) -> 0 | T105: =IF((SUM($D105:S105)+$B105/$C105)>$B105,$B105-SUM($D105:S105),$B105/$C105) -> 0 | U105: =IF((SUM($D105:T105)+$B105/$C105)>$B105,$B105-SUM($D105:T105),$B105/$C105) -> 0 | V105: =IF((SUM($D105:U105)+$B105/$C105)>$B105,$B105-SUM($D105:U105),$B105/$C105) -> 0 | W105: =IF((SUM($D105:V105)+$B105/$C105)>$B105,$B105-SUM($D105:V105),$B105/$C105) -> 0 | X105: =IF((SUM($D105:W105)+$B105/$C105)>$B105,$B105-SUM($D105:W105),$B105/$C105) -> 0 | Y105: =IF((SUM($D105:X105)+$B105/$C105)>$B105,$B105-SUM($D105:X105),$B105/$C105) -> 0 | Z105: =IF((SUM($D105:Y105)+$B105/$C105)>$B105,$B105-SUM($D105:Y105),$B105/$C105) -> 0 | AA105: =IF((SUM($D105:Z105)+$B105/$C105)>$B105,$B105-SUM($D105:Z105),$B105/$C105) -> 0 | AD105: =E105*AD$16 -> 124.0301736 | AE105: 63.74385848 | AF105: 0 | AG105: 0 | AH105: 0 | AI105: 0 | AJ105: 0 | AK105: 0 | AL105: 0 | AM105: 0 | AN105: 0
A106: 2007 | B106: 0 | C106: 3.5 | D106: =IF(C106<1,B106,B106/C106) -> 0 | E106: =IF((SUM($D106:D106)+$B106/$C106)>$B106,$B106-SUM($D106:D106),$B106/$C106) -> 0 | F106: =IF((SUM($D106:E106)+$B106/$C106)>$B106,$B106-SUM($D106:E106),$B106/$C106) -> 0 | G106: =IF((SUM($D106:F106)+$B106/$C106)>$B106,$B106-SUM($D106:F106),$B106/$C106) -> 0 | H106: =IF((SUM($D106:G106)+$B106/$C106)>$B106,$B106-SUM($D106:G106),$B106/$C106) -> 0 | I106: =IF((SUM($D106:H106)+$B106/$C106)>$B106,$B106-SUM($D106:H106),$B106/$C106) -> 0 | J106: =IF((SUM($D106:I106)+$B106/$C106)>$B106,$B106-SUM($D106:I106),$B106/$C106) -> 0 | K106: =IF((SUM($D106:J106)+$B106/$C106)>$B106,$B106-SUM($D106:J106),$B106/$C106) -> 0 | L106: =IF((SUM($D106:K106)+$B106/$C106)>$B106,$B106-SUM($D106:K106),$B106/$C106) -> 0 | M106: =IF((SUM($D106:L106)+$B106/$C106)>$B106,$B106-SUM($D106:L106),$B106/$C106) -> 0 | N106: =IF((SUM($D106:M106)+$B106/$C106)>$B106,$B106-SUM($D106:M106),$B106/$C106) -> 0 | O106: =IF((SUM($D106:N106)+$B106/$C106)>$B106,$B106-SUM($D106:N106),$B106/$C106) -> 0 | P106: =IF((SUM($D106:O106)+$B106/$C106)>$B106,$B106-SUM($D106:O106),$B106/$C106) -> 0 | Q106: =IF((SUM($D106:P106)+$B106/$C106)>$B106,$B106-SUM($D106:P106),$B106/$C106) -> 0 | R106: =IF((SUM($D106:Q106)+$B106/$C106)>$B106,$B106-SUM($D106:Q106),$B106/$C106) -> 0 | S106: =IF((SUM($D106:R106)+$B106/$C106)>$B106,$B106-SUM($D106:R106),$B106/$C106) -> 0 | T106: =IF((SUM($D106:S106)+$B106/$C106)>$B106,$B106-SUM($D106:S106),$B106/$C106) -> 0 | U106: =IF((SUM($D106:T106)+$B106/$C106)>$B106,$B106-SUM($D106:T106),$B106/$C106) -> 0 | V106: =IF((SUM($D106:U106)+$B106/$C106)>$B106,$B106-SUM($D106:U106),$B106/$C106) -> 0 | W106: =IF((SUM($D106:V106)+$B106/$C106)>$B106,$B106-SUM($D106:V106),$B106/$C106) -> 0 | X106: =IF((SUM($D106:W106)+$B106/$C106)>$B106,$B106-SUM($D106:W106),$B106/$C106) -> 0 | Y106: =IF((SUM($D106:X106)+$B106/$C106)>$B106,$B106-SUM($D106:X106),$B106/$C106) -> 0 | Z106: =IF((SUM($D106:Y106)+$B106/$C106)>$B106,$B106-SUM($D106:Y106),$B106/$C106) -> 0 | AA106: =IF((SUM($D106:Z106)+$B106/$C106)>$B106,$B106-SUM($D106:Z106),$B106/$C106) -> 0 | AD106: 0 | AE106: 0 | AF106: 0 | AG106: 0 | AH106: 0 | AI106: 0 | AJ106: 0 | AK106: 0 | AL106: 0 | AM106: 0 | AN106: 0
A107: 2008 | B107: 0 | C107: 4.5 | D107: =IF(C107<1,B107,B107/C107) -> 0 | E107: =IF((SUM($D107:D107)+$B107/$C107)>$B107,$B107-SUM($D107:D107),$B107/$C107) -> 0 | F107: =IF((SUM($D107:E107)+$B107/$C107)>$B107,$B107-SUM($D107:E107),$B107/$C107) -> 0 | G107: =IF((SUM($D107:F107)+$B107/$C107)>$B107,$B107-SUM($D107:F107),$B107/$C107) -> 0 | H107: =IF((SUM($D107:G107)+$B107/$C107)>$B107,$B107-SUM($D107:G107),$B107/$C107) -> 0 | I107: =IF((SUM($D107:H107)+$B107/$C107)>$B107,$B107-SUM($D107:H107),$B107/$C107) -> 0 | J107: =IF((SUM($D107:I107)+$B107/$C107)>$B107,$B107-SUM($D107:I107),$B107/$C107) -> 0 | K107: =IF((SUM($D107:J107)+$B107/$C107)>$B107,$B107-SUM($D107:J107),$B107/$C107) -> 0 | L107: =IF((SUM($D107:K107)+$B107/$C107)>$B107,$B107-SUM($D107:K107),$B107/$C107) -> 0 | M107: =IF((SUM($D107:L107)+$B107/$C107)>$B107,$B107-SUM($D107:L107),$B107/$C107) -> 0 | N107: =IF((SUM($D107:M107)+$B107/$C107)>$B107,$B107-SUM($D107:M107),$B107/$C107) -> 0 | O107: =IF((SUM($D107:N107)+$B107/$C107)>$B107,$B107-SUM($D107:N107),$B107/$C107) -> 0 | P107: =IF((SUM($D107:O107)+$B107/$C107)>$B107,$B107-SUM($D107:O107),$B107/$C107) -> 0 | Q107: =IF((SUM($D107:P107)+$B107/$C107)>$B107,$B107-SUM($D107:P107),$B107/$C107) -> 0 | R107: =IF((SUM($D107:Q107)+$B107/$C107)>$B107,$B107-SUM($D107:Q107),$B107/$C107) -> 0 | S107: =IF((SUM($D107:R107)+$B107/$C107)>$B107,$B107-SUM($D107:R107),$B107/$C107) -> 0 | T107: =IF((SUM($D107:S107)+$B107/$C107)>$B107,$B107-SUM($D107:S107),$B107/$C107) -> 0 | U107: =IF((SUM($D107:T107)+$B107/$C107)>$B107,$B107-SUM($D107:T107),$B107/$C107) -> 0 | V107: =IF((SUM($D107:U107)+$B107/$C107)>$B107,$B107-SUM($D107:U107),$B107/$C107) -> 0 | W107: =IF((SUM($D107:V107)+$B107/$C107)>$B107,$B107-SUM($D107:V107),$B107/$C107) -> 0 | X107: =IF((SUM($D107:W107)+$B107/$C107)>$B107,$B107-SUM($D107:W107),$B107/$C107) -> 0 | Y107: =IF((SUM($D107:X107)+$B107/$C107)>$B107,$B107-SUM($D107:X107),$B107/$C107) -> 0 | Z107: =IF((SUM($D107:Y107)+$B107/$C107)>$B107,$B107-SUM($D107:Y107),$B107/$C107) -> 0 | AA107: =IF((SUM($D107:Z107)+$B107/$C107)>$B107,$B107-SUM($D107:Z107),$B107/$C107) -> 0 | AD107: 0 | AE107: 0 | AF107: 0 | AG107: 0 | AH107: 0 | AI107: 0 | AJ107: 0 | AK107: 0 | AL107: 0 | AM107: 0 | AN107: 0
B108: =SUM(B105:B107) -> 291.6842457 | D108: =SUM(D105:D107) -> 116.6736983 | E108: =SUM(E105:E107) -> 116.6736983 | F108: 58.33684913 | G108: 0 | H108: 0 | I108: 0 | J108: 0 | K108: 0 | L108: 0 | M108: 0 | N108: 0 | O108: 0 | P108: 0 | Q108: 0 | R108: 0 | S108: 0 | T108: 0 | U108: 0 | V108: 0 | W108: 0 | X108: =SUM(X105:X107) -> 0 | Y108: =SUM(Y105:Y107) -> 0 | Z108: =SUM(Z105:Z107) -> 0 | AA108: =SUM(AA105:AA107) -> 0 | AD108: 124.0301736 | AE108: 63.74385848 | AF108: 0 | AG108: 0 | AH108: 0 | AI108: 0 | AJ108: 0 | AK108: 0 | AL108: 0 | AM108: 0 | AN108: 0
A111: Other | B111: RAB WDV | C111: Remaining | D111: =D$4 -> 2009 | E111: =E$4 -> 2010 | F111: 2011 | G111: 2012 | H111: 2013 | I111: 2014 | J111: 2015 | K111: 2016 | L111: 2017 | M111: 2018 | N111: 2019 | O111: 2020 | P111: 2021 | Q111: 2022 | R111: 2023 | S111: 2024 | T111: 2025 | U111: 2026 | V111: 2027 | W111: 2028 | X111: 2029 | Y111: 2030 | Z111: 2031 | AA111: 2032 | AD111: 2010 | AE111: 2011 | AF111: 2012 | AG111: 2013 | AH111: 2014 | AI111: 2015 | AJ111: 2016 | AK111: 2017 | AL111: 2018 | AM111: 2019 | AN111: 2020
A112: =$A$4 -> ($000 Real 2008) | B112: 1/01/2009 | C112: Life (years)
A113: 2006 | B113: 0 | C113: 2.5 | D113: =IF(C113<1,B113,B113/C113) -> 0 | E113: =IF((SUM($D113:D113)+$B113/$C113)>$B113,$B113-SUM($D113:D113),$B113/$C113) -> 0 | F113: =IF((SUM($D113:E113)+$B113/$C113)>$B113,$B113-SUM($D113:E113),$B113/$C113) -> 0 | G113: =IF((SUM($D113:F113)+$B113/$C113)>$B113,$B113-SUM($D113:F113),$B113/$C113) -> 0 | H113: =IF((SUM($D113:G113)+$B113/$C113)>$B113,$B113-SUM($D113:G113),$B113/$C113) -> 0 | I113: =IF((SUM($D113:H113)+$B113/$C113)>$B113,$B113-SUM($D113:H113),$B113/$C113) -> 0 | J113: =IF((SUM($D113:I113)+$B113/$C113)>$B113,$B113-SUM($D113:I113),$B113/$C113) -> 0 | K113: =IF((SUM($D113:J113)+$B113/$C113)>$B113,$B113-SUM($D113:J113),$B113/$C113) -> 0 | L113: =IF((SUM($D113:K113)+$B113/$C113)>$B113,$B113-SUM($D113:K113),$B113/$C113) -> 0 | M113: =IF((SUM($D113:L113)+$B113/$C113)>$B113,$B113-SUM($D113:L113),$B113/$C113) -> 0 | N113: =IF((SUM($D113:M113)+$B113/$C113)>$B113,$B113-SUM($D113:M113),$B113/$C113) -> 0 | O113: =IF((SUM($D113:N113)+$B113/$C113)>$B113,$B113-SUM($D113:N113),$B113/$C113) -> 0 | P113: =IF((SUM($D113:O113)+$B113/$C113)>$B113,$B113-SUM($D113:O113),$B113/$C113) -> 0 | Q113: =IF((SUM($D113:P113)+$B113/$C113)>$B113,$B113-SUM($D113:P113),$B113/$C113) -> 0 | R113: =IF((SUM($D113:Q113)+$B113/$C113)>$B113,$B113-SUM($D113:Q113),$B113/$C113) -> 0 | S113: =IF((SUM($D113:R113)+$B113/$C113)>$B113,$B113-SUM($D113:R113),$B113/$C113) -> 0 | T113: =IF((SUM($D113:S113)+$B113/$C113)>$B113,$B113-SUM($D113:S113),$B113/$C113) -> 0 | U113: =IF((SUM($D113:T113)+$B113/$C113)>$B113,$B113-SUM($D113:T113),$B113/$C113) -> 0 | V113: =IF((SUM($D113:U113)+$B113/$C113)>$B113,$B113-SUM($D113:U113),$B113/$C113) -> 0 | W113: =IF((SUM($D113:V113)+$B113/$C113)>$B113,$B113-SUM($D113:V113),$B113/$C113) -> 0 | X113: =IF((SUM($D113:W113)+$B113/$C113)>$B113,$B113-SUM($D113:W113),$B113/$C113) -> 0 | Y113: =IF((SUM($D113:X113)+$B113/$C113)>$B113,$B113-SUM($D113:X113),$B113/$C113) -> 0 | Z113: =IF((SUM($D113:Y113)+$B113/$C113)>$B113,$B113-SUM($D113:Y113),$B113/$C113) -> 0 | AA113: =IF((SUM($D113:Z113)+$B113/$C113)>$B113,$B113-SUM($D113:Z113),$B113/$C113) -> 0 | AD113: =E113*AD$16 -> 0 | AE113: 0 | AF113: 0 | AG113: 0 | AH113: 0 | AI113: 0 | AJ113: 0 | AK113: 0 | AL113: 0 | AM113: 0 | AN113: 0
A114: 2007 | B114: 0 | C114: 3.5 | D114: =IF(C114<1,B114,B114/C114) -> 0 | E114: =IF((SUM($D114:D114)+$B114/$C114)>$B114,$B114-SUM($D114:D114),$B114/$C114) -> 0 | F114: =IF((SUM($D114:E114)+$B114/$C114)>$B114,$B114-SUM($D114:E114),$B114/$C114) -> 0 | G114: =IF((SUM($D114:F114)+$B114/$C114)>$B114,$B114-SUM($D114:F114),$B114/$C114) -> 0 | H114: =IF((SUM($D114:G114)+$B114/$C114)>$B114,$B114-SUM($D114:G114),$B114/$C114) -> 0 | I114: =IF((SUM($D114:H114)+$B114/$C114)>$B114,$B114-SUM($D114:H114),$B114/$C114) -> 0 | J114: =IF((SUM($D114:I114)+$B114/$C114)>$B114,$B114-SUM($D114:I114),$B114/$C114) -> 0 | K114: =IF((SUM($D114:J114)+$B114/$C114)>$B114,$B114-SUM($D114:J114),$B114/$C114) -> 0 | L114: =IF((SUM($D114:K114)+$B114/$C114)>$B114,$B114-SUM($D114:K114),$B114/$C114) -> 0 | M114: =IF((SUM($D114:L114)+$B114/$C114)>$B114,$B114-SUM($D114:L114),$B114/$C114) -> 0 | N114: =IF((SUM($D114:M114)+$B114/$C114)>$B114,$B114-SUM($D114:M114),$B114/$C114) -> 0 | O114: =IF((SUM($D114:N114)+$B114/$C114)>$B114,$B114-SUM($D114:N114),$B114/$C114) -> 0 | P114: =IF((SUM($D114:O114)+$B114/$C114)>$B114,$B114-SUM($D114:O114),$B114/$C114) -> 0 | Q114: =IF((SUM($D114:P114)+$B114/$C114)>$B114,$B114-SUM($D114:P114),$B114/$C114) -> 0 | R114: =IF((SUM($D114:Q114)+$B114/$C114)>$B114,$B114-SUM($D114:Q114),$B114/$C114) -> 0 | S114: =IF((SUM($D114:R114)+$B114/$C114)>$B114,$B114-SUM($D114:R114),$B114/$C114) -> 0 | T114: =IF((SUM($D114:S114)+$B114/$C114)>$B114,$B114-SUM($D114:S114),$B114/$C114) -> 0 | U114: =IF((SUM($D114:T114)+$B114/$C114)>$B114,$B114-SUM($D114:T114),$B114/$C114) -> 0 | V114: =IF((SUM($D114:U114)+$B114/$C114)>$B114,$B114-SUM($D114:U114),$B114/$C114) -> 0 | W114: =IF((SUM($D114:V114)+$B114/$C114)>$B114,$B114-SUM($D114:V114),$B114/$C114) -> 0 | X114: =IF((SUM($D114:W114)+$B114/$C114)>$B114,$B114-SUM($D114:W114),$B114/$C114) -> 0 | Y114: =IF((SUM($D114:X114)+$B114/$C114)>$B114,$B114-SUM($D114:X114),$B114/$C114) -> 0 | Z114: =IF((SUM($D114:Y114)+$B114/$C114)>$B114,$B114-SUM($D114:Y114),$B114/$C114) -> 0 | AA114: =IF((SUM($D114:Z114)+$B114/$C114)>$B114,$B114-SUM($D114:Z114),$B114/$C114) -> 0 | AD114: 0 | AE114: 0 | AF114: 0 | AG114: 0 | AH114: 0 | AI114: 0 | AJ114: 0 | AK114: 0 | AL114: 0 | AM114: 0 | AN114: 0
A115: 2008 | B115: 0 | C115: 4.5 | D115: =IF(C115<1,B115,B115/C115) -> 0 | E115: =IF((SUM($D115:D115)+$B115/$C115)>$B115,$B115-SUM($D115:D115),$B115/$C115) -> 0 | F115: =IF((SUM($D115:E115)+$B115/$C115)>$B115,$B115-SUM($D115:E115),$B115/$C115) -> 0 | G115: =IF((SUM($D115:F115)+$B115/$C115)>$B115,$B115-SUM($D115:F115),$B115/$C115) -> 0 | H115: =IF((SUM($D115:G115)+$B115/$C115)>$B115,$B115-SUM($D115:G115),$B115/$C115) -> 0 | I115: =IF((SUM($D115:H115)+$B115/$C115)>$B115,$B115-SUM($D115:H115),$B115/$C115) -> 0 | J115: =IF((SUM($D115:I115)+$B115/$C115)>$B115,$B115-SUM($D115:I115),$B115/$C115) -> 0 | K115: =IF((SUM($D115:J115)+$B115/$C115)>$B115,$B115-SUM($D115:J115),$B115/$C115) -> 0 | L115: =IF((SUM($D115:K115)+$B115/$C115)>$B115,$B115-SUM($D115:K115),$B115/$C115) -> 0 | M115: =IF((SUM($D115:L115)+$B115/$C115)>$B115,$B115-SUM($D115:L115),$B115/$C115) -> 0 | N115: =IF((SUM($D115:M115)+$B115/$C115)>$B115,$B115-SUM($D115:M115),$B115/$C115) -> 0 | O115: =IF((SUM($D115:N115)+$B115/$C115)>$B115,$B115-SUM($D115:N115),$B115/$C115) -> 0 | P115: =IF((SUM($D115:O115)+$B115/$C115)>$B115,$B115-SUM($D115:O115),$B115/$C115) -> 0 | Q115: =IF((SUM($D115:P115)+$B115/$C115)>$B115,$B115-SUM($D115:P115),$B115/$C115) -> 0 | R115: =IF((SUM($D115:Q115)+$B115/$C115)>$B115,$B115-SUM($D115:Q115),$B115/$C115) -> 0 | S115: =IF((SUM($D115:R115)+$B115/$C115)>$B115,$B115-SUM($D115:R115),$B115/$C115) -> 0 | T115: =IF((SUM($D115:S115)+$B115/$C115)>$B115,$B115-SUM($D115:S115),$B115/$C115) -> 0 | U115: =IF((SUM($D115:T115)+$B115/$C115)>$B115,$B115-SUM($D115:T115),$B115/$C115) -> 0 | V115: =IF((SUM($D115:U115)+$B115/$C115)>$B115,$B115-SUM($D115:U115),$B115/$C115) -> 0 | W115: =IF((SUM($D115:V115)+$B115/$C115)>$B115,$B115-SUM($D115:V115),$B115/$C115) -> 0 | X115: =IF((SUM($D115:W115)+$B115/$C115)>$B115,$B115-SUM($D115:W115),$B115/$C115) -> 0 | Y115: =IF((SUM($D115:X115)+$B115/$C115)>$B115,$B115-SUM($D115:X115),$B115/$C115) -> 0 | Z115: =IF((SUM($D115:Y115)+$B115/$C115)>$B115,$B115-SUM($D115:Y115),$B115/$C115) -> 0 | AA115: =IF((SUM($D115:Z115)+$B115/$C115)>$B115,$B115-SUM($D115:Z115),$B115/$C115) -> 0 | AD115: 0 | AE115: 0 | AF115: 0 | AG115: 0 | AH115: 0 | AI115: 0 | AJ115: 0 | AK115: 0 | AL115: 0 | AM115: 0 | AN115: 0
B116: =SUM(B113:B115) -> 0 | D116: =SUM(D113:D115) -> 0 | E116: =SUM(E113:E115) -> 0 | F116: 0 | G116: 0 | H116: 0 | I116: 0 | J116: 0 | K116: 0 | L116: 0 | M116: 0 | N116: 0 | O116: 0 | P116: 0 | Q116: 0 | R116: 0 | S116: 0 | T116: 0 | U116: 0 | V116: 0 | W116: 0 | X116: =SUM(X113:X115) -> 0 | Y116: =SUM(Y113:Y115) -> 0 | Z116: =SUM(Z113:Z115) -> 0 | AA116: =SUM(AA113:AA115) -> 0 | AD116: 0 | AE116: 0 | AF116: 0 | AG116: 0 | AH116: 0 | AI116: 0 | AJ116: 0 | AK116: 0 | AL116: 0 | AM116: 0 | AN116: 0
AD117: 0 | AE117: 0 | AF117: 0 | AG117: 0 | AH117: 0 | AI117: 0 | AJ117: 0 | AK117: 0 | AL117: 0 | AM117: 0 | AN117: 0
A119: Total | B119: =SUM(B92,B100,B108,B116) -> 14311.5884 | D119: =SUM(D92,D100,D108,D116) -> 2920.654529 | E119: 2920.654529 | F119: 2862.31768 | G119: 2803.980831 | H119: 2803.980831 | I119: 4.547473509e-13 | J119: 0 | K119: 0 | L119: 0 | M119: 0 | N119: 0 | O119: 0 | P119: 0 | Q119: 0 | R119: 0 | S119: 0 | T119: 0 | U119: 0 | V119: 0 | W119: 0 | X119: =SUM(X92,X100,X108,X116) -> 0 | Y119: =SUM(Y92,Y100,Y108,Y116) -> 0 | Z119: =SUM(Z92,Z100,Z108,Z116) -> 0 | AA119: =SUM(AA92,AA100,AA108,AA116) -> 0 | AD119: =E119*AD$16 -> 3104.806769 | AE119: 3127.614464 | AF119: 3171.716022 | AG119: 3235.277211 | AH119: 5.360338272e-13 | AI119: 0 | AJ119: 0 | AK119: 0 | AL119: 0 | AM119: 0 | AN119: 0
A123: Regulatory Depreciation on Opening Assets at 1 January 2009 - AMI Capex 2006-08
A124: =$A$4 -> ($000 Real 2008)
A125: RAB at 1 January 2009 | D125: =D$4 -> 2009 | E125: =E$4 -> 2010 | F125: 2011 | G125: 2012 | H125: 2013 | I125: 2014 | J125: 2015 | K125: 2016 | L125: 2017 | M125: 2018 | N125: 2019 | O125: 2020 | P125: 2021 | Q125: 2022 | R125: 2023 | S125: 2024 | T125: 2025 | U125: 2026 | V125: 2027 | W125: 2028 | X125: 2029 | Y125: 2030 | Z125: 2031 | AA125: 2032 | AD125: 2010 | AE125: 2011 | AF125: 2012 | AG125: 2013 | AH125: 2014 | AI125: 2015 | AJ125: 2016 | AK125: 2017 | AL125: 2018 | AM125: 2019 | AN125: 2020
A126: Opening asset base | D126: =B163 -> 35066.33814 | E126: =D128 -> 29484.05903 | F126: =E128 -> 23901.77993 | G126: 18319.50082 | H126: 12737.22171 | I126: 7154.942609 | J126: 2181.901528 | K126: 0 | L126: 0 | M126: 0 | N126: 0 | O126: 0 | P126: 0 | Q126: 0 | R126: 0 | S126: 0 | T126: 0 | U126: 0 | V126: 0 | W126: 0 | X126: =W128 -> 0 | Y126: =X128 -> 0 | Z126: =Y128 -> 0 | AA126: =Z128 -> 0 | AD126: =E126*AD$16 -> 31343.07915 | AE126: 26117.14036 | AF126: 20722.0583 | AG126: 14696.40687 | AH126: 8433.894696 | AI126: 2631.270246 | AJ126: 0 | AK126: 0 | AL126: 0 | AM126: 0 | AN126: 0
A127: Regulatory depreciation | D127: =D163 -> 5582.279106 | E127: =E163 -> 5582.279106 | F127: 5582.279106 | G127: 5582.279106 | H127: 5582.279106 | I127: 4973.041081 | J127: 2181.901528 | K127: 0 | L127: 0 | M127: 0 | N127: 0 | O127: 0 | P127: 0 | Q127: 0 | R127: 0 | S127: 0 | T127: 0 | U127: 0 | V127: 0 | W127: 0 | X127: =X163 -> 0 | Y127: =Y163 -> 0 | Z127: =Z163 -> 0 | AA127: =AA163 -> 0 | AD127: 5934.251306 | AE127: 6099.678241 | AF127: 6314.381283 | AG127: 6440.921484 | AH127: 5861.976411 | AI127: 2631.270246 | AJ127: 0 | AK127: 0 | AL127: 0 | AM127: 0 | AN127: 0
A128: Closing asset base | D128: =D126-D127 -> 29484.05903 | E128: =E126-E127 -> 23901.77993 | F128: 18319.50082 | G128: 12737.22171 | H128: 7154.942609 | I128: 2181.901528 | J128: 0 | K128: 0 | L128: 0 | M128: 0 | N128: 0 | O128: 0 | P128: 0 | Q128: 0 | R128: 0 | S128: 0 | T128: 0 | U128: 0 | V128: 0 | W128: 0 | X128: =X126-X127 -> 0 | Y128: =Y126-Y127 -> 0 | Z128: =Z126-Z127 -> 0 | AA128: =AA126-AA127 -> 0 | AD128: 25408.82784 | AE128: 20017.46212 | AF128: 14407.67702 | AG128: 8255.485385 | AH128: 2571.918285 | AI128: 0 | AJ128: 0 | AK128: 0 | AL128: 0 | AM128: 0 | AN128: 0
A129: Check | C129: =SUM(D129:E129) -> 0 | D129: =IF(ABS(D126-SUM(D127:AA127))<0.001,0,ABS(D126-SUM(D127:AA127))) -> 0 | E129: 0
A131: Remotely read interval meters & transformers | B131: RAB WDV | C131: Remaining | D131: =D$4 -> 2009 | E131: =E$4 -> 2010 | F131: 2011 | G131: 2012 | H131: 2013 | I131: 2014 | J131: 2015 | K131: 2016 | L131: 2017 | M131: 2018 | N131: 2019 | O131: 2020 | P131: 2021 | Q131: 2022 | R131: 2023 | S131: 2024 | T131: 2025 | U131: 2026 | V131: 2027 | W131: 2028 | X131: 2029 | Y131: 2030 | Z131: 2031 | AA131: 2032 | AD131: 2010 | AE131: 2011 | AF131: 2012 | AG131: 2013 | AH131: 2014 | AI131: 2015 | AJ131: 2016 | AK131: 2017 | AL131: 2018 | AM131: 2019 | AN131: 2020
A132: =$A$4 -> ($000 Real 2008) | B132: 1/01/2009 | C132: Life (years) | AD132: =E132*AD$16 -> 0 | AE132: 0 | AF132: 0 | AG132: 0 | AH132: 0 | AI132: 0 | AJ132: 0 | AK132: 0 | AL132: 0 | AM132: 0 | AN132: 0
A133: 2006 | B133: 0 | C133: 12.5 | D133: =IF(C133<1,B133,B133/C133) -> 0 | E133: =IF((SUM($D133:D133)+$B133/$C133)>$B133,$B133-SUM($D133:D133),$B133/$C133) -> 0 | F133: =IF((SUM($D133:E133)+$B133/$C133)>$B133,$B133-SUM($D133:E133),$B133/$C133) -> 0 | G133: =IF((SUM($D133:F133)+$B133/$C133)>$B133,$B133-SUM($D133:F133),$B133/$C133) -> 0 | H133: =IF((SUM($D133:G133)+$B133/$C133)>$B133,$B133-SUM($D133:G133),$B133/$C133) -> 0 | I133: =IF((SUM($D133:H133)+$B133/$C133)>$B133,$B133-SUM($D133:H133),$B133/$C133) -> 0 | J133: =IF((SUM($D133:I133)+$B133/$C133)>$B133,$B133-SUM($D133:I133),$B133/$C133) -> 0 | K133: =IF((SUM($D133:J133)+$B133/$C133)>$B133,$B133-SUM($D133:J133),$B133/$C133) -> 0 | L133: =IF((SUM($D133:K133)+$B133/$C133)>$B133,$B133-SUM($D133:K133),$B133/$C133) -> 0 | M133: =IF((SUM($D133:L133)+$B133/$C133)>$B133,$B133-SUM($D133:L133),$B133/$C133) -> 0 | N133: =IF((SUM($D133:M133)+$B133/$C133)>$B133,$B133-SUM($D133:M133),$B133/$C133) -> 0 | O133: =IF((SUM($D133:N133)+$B133/$C133)>$B133,$B133-SUM($D133:N133),$B133/$C133) -> 0 | P133: =IF((SUM($D133:O133)+$B133/$C133)>$B133,$B133-SUM($D133:O133),$B133/$C133) -> 0 | Q133: =IF((SUM($D133:P133)+$B133/$C133)>$B133,$B133-SUM($D133:P133),$B133/$C133) -> 0 | R133: =IF((SUM($D133:Q133)+$B133/$C133)>$B133,$B133-SUM($D133:Q133),$B133/$C133) -> 0 | S133: =IF((SUM($D133:R133)+$B133/$C133)>$B133,$B133-SUM($D133:R133),$B133/$C133) -> 0 | T133: =IF((SUM($D133:S133)+$B133/$C133)>$B133,$B133-SUM($D133:S133),$B133/$C133) -> 0 | U133: =IF((SUM($D133:T133)+$B133/$C133)>$B133,$B133-SUM($D133:T133),$B133/$C133) -> 0 | V133: =IF((SUM($D133:U133)+$B133/$C133)>$B133,$B133-SUM($D133:U133),$B133/$C133) -> 0 | W133: =IF((SUM($D133:V133)+$B133/$C133)>$B133,$B133-SUM($D133:V133),$B133/$C133) -> 0 | X133: =IF((SUM($D133:W133)+$B133/$C133)>$B133,$B133-SUM($D133:W133),$B133/$C133) -> 0 | Y133: =IF((SUM($D133:X133)+$B133/$C133)>$B133,$B133-SUM($D133:X133),$B133/$C133) -> 0 | Z133: =IF((SUM($D133:Y133)+$B133/$C133)>$B133,$B133-SUM($D133:Y133),$B133/$C133) -> 0 | AA133: =IF((SUM($D133:Z133)+$B133/$C133)>$B133,$B133-SUM($D133:Z133),$B133/$C133) -> 0 | AD133: 0 | AE133: 0 | AF133: 0 | AG133: 0 | AH133: 0 | AI133: 0 | AJ133: 0 | AK133: 0 | AL133: 0 | AM133: 0 | AN133: 0
A134: 2007 | B134: 0 | C134: 13.5 | D134: =IF(C134<1,B134,B134/C134) -> 0 | E134: =IF((SUM($D134:D134)+$B134/$C134)>$B134,$B134-SUM($D134:D134),$B134/$C134) -> 0 | F134: =IF((SUM($D134:E134)+$B134/$C134)>$B134,$B134-SUM($D134:E134),$B134/$C134) -> 0 | G134: =IF((SUM($D134:F134)+$B134/$C134)>$B134,$B134-SUM($D134:F134),$B134/$C134) -> 0 | H134: =IF((SUM($D134:G134)+$B134/$C134)>$B134,$B134-SUM($D134:G134),$B134/$C134) -> 0 | I134: =IF((SUM($D134:H134)+$B134/$C134)>$B134,$B134-SUM($D134:H134),$B134/$C134) -> 0 | J134: =IF((SUM($D134:I134)+$B134/$C134)>$B134,$B134-SUM($D134:I134),$B134/$C134) -> 0 | K134: =IF((SUM($D134:J134)+$B134/$C134)>$B134,$B134-SUM($D134:J134),$B134/$C134) -> 0 | L134: =IF((SUM($D134:K134)+$B134/$C134)>$B134,$B134-SUM($D134:K134),$B134/$C134) -> 0 | M134: =IF((SUM($D134:L134)+$B134/$C134)>$B134,$B134-SUM($D134:L134),$B134/$C134) -> 0 | N134: =IF((SUM($D134:M134)+$B134/$C134)>$B134,$B134-SUM($D134:M134),$B134/$C134) -> 0 | O134: =IF((SUM($D134:N134)+$B134/$C134)>$B134,$B134-SUM($D134:N134),$B134/$C134) -> 0 | P134: =IF((SUM($D134:O134)+$B134/$C134)>$B134,$B134-SUM($D134:O134),$B134/$C134) -> 0 | Q134: =IF((SUM($D134:P134)+$B134/$C134)>$B134,$B134-SUM($D134:P134),$B134/$C134) -> 0 | R134: =IF((SUM($D134:Q134)+$B134/$C134)>$B134,$B134-SUM($D134:Q134),$B134/$C134) -> 0 | S134: =IF((SUM($D134:R134)+$B134/$C134)>$B134,$B134-SUM($D134:R134),$B134/$C134) -> 0 | T134: =IF((SUM($D134:S134)+$B134/$C134)>$B134,$B134-SUM($D134:S134),$B134/$C134) -> 0 | U134: =IF((SUM($D134:T134)+$B134/$C134)>$B134,$B134-SUM($D134:T134),$B134/$C134) -> 0 | V134: =IF((SUM($D134:U134)+$B134/$C134)>$B134,$B134-SUM($D134:U134),$B134/$C134) -> 0 | W134: =IF((SUM($D134:V134)+$B134/$C134)>$B134,$B134-SUM($D134:V134),$B134/$C134) -> 0 | X134: =IF((SUM($D134:W134)+$B134/$C134)>$B134,$B134-SUM($D134:W134),$B134/$C134) -> 0 | Y134: =IF((SUM($D134:X134)+$B134/$C134)>$B134,$B134-SUM($D134:X134),$B134/$C134) -> 0 | Z134: =IF((SUM($D134:Y134)+$B134/$C134)>$B134,$B134-SUM($D134:Y134),$B134/$C134) -> 0 | AA134: =IF((SUM($D134:Z134)+$B134/$C134)>$B134,$B134-SUM($D134:Z134),$B134/$C134) -> 0 | AD134: 0 | AE134: 0 | AF134: 0 | AG134: 0 | AH134: 0 | AI134: 0 | AJ134: 0 | AK134: 0 | AL134: 0 | AM134: 0 | AN134: 0
A135: 2008 | B135: 0 | C135: 14.5 | D135: =IF(C135<1,B135,B135/C135) -> 0 | E135: =IF((SUM($D135:D135)+$B135/$C135)>$B135,$B135-SUM($D135:D135),$B135/$C135) -> 0 | F135: =IF((SUM($D135:E135)+$B135/$C135)>$B135,$B135-SUM($D135:E135),$B135/$C135) -> 0 | G135: =IF((SUM($D135:F135)+$B135/$C135)>$B135,$B135-SUM($D135:F135),$B135/$C135) -> 0 | H135: =IF((SUM($D135:G135)+$B135/$C135)>$B135,$B135-SUM($D135:G135),$B135/$C135) -> 0 | I135: =IF((SUM($D135:H135)+$B135/$C135)>$B135,$B135-SUM($D135:H135),$B135/$C135) -> 0 | J135: =IF((SUM($D135:I135)+$B135/$C135)>$B135,$B135-SUM($D135:I135),$B135/$C135) -> 0 | K135: =IF((SUM($D135:J135)+$B135/$C135)>$B135,$B135-SUM($D135:J135),$B135/$C135) -> 0 | L135: =IF((SUM($D135:K135)+$B135/$C135)>$B135,$B135-SUM($D135:K135),$B135/$C135) -> 0 | M135: =IF((SUM($D135:L135)+$B135/$C135)>$B135,$B135-SUM($D135:L135),$B135/$C135) -> 0 | N135: =IF((SUM($D135:M135)+$B135/$C135)>$B135,$B135-SUM($D135:M135),$B135/$C135) -> 0 | O135: =IF((SUM($D135:N135)+$B135/$C135)>$B135,$B135-SUM($D135:N135),$B135/$C135) -> 0 | P135: =IF((SUM($D135:O135)+$B135/$C135)>$B135,$B135-SUM($D135:O135),$B135/$C135) -> 0 | Q135: =IF((SUM($D135:P135)+$B135/$C135)>$B135,$B135-SUM($D135:P135),$B135/$C135) -> 0 | R135: =IF((SUM($D135:Q135)+$B135/$C135)>$B135,$B135-SUM($D135:Q135),$B135/$C135) -> 0 | S135: =IF((SUM($D135:R135)+$B135/$C135)>$B135,$B135-SUM($D135:R135),$B135/$C135) -> 0 | T135: =IF((SUM($D135:S135)+$B135/$C135)>$B135,$B135-SUM($D135:S135),$B135/$C135) -> 0 | U135: =IF((SUM($D135:T135)+$B135/$C135)>$B135,$B135-SUM($D135:T135),$B135/$C135) -> 0 | V135: =IF((SUM($D135:U135)+$B135/$C135)>$B135,$B135-SUM($D135:U135),$B135/$C135) -> 0 | W135: =IF((SUM($D135:V135)+$B135/$C135)>$B135,$B135-SUM($D135:V135),$B135/$C135) -> 0 | X135: =IF((SUM($D135:W135)+$B135/$C135)>$B135,$B135-SUM($D135:W135),$B135/$C135) -> 0 | Y135: =IF((SUM($D135:X135)+$B135/$C135)>$B135,$B135-SUM($D135:X135),$B135/$C135) -> 0 | Z135: =IF((SUM($D135:Y135)+$B135/$C135)>$B135,$B135-SUM($D135:Y135),$B135/$C135) -> 0 | AA135: =IF((SUM($D135:Z135)+$B135/$C135)>$B135,$B135-SUM($D135:Z135),$B135/$C135) -> 0 | AD135: 0 | AE135: 0 | AF135: 0 | AG135: 0 | AH135: 0 | AI135: 0 | AJ135: 0 | AK135: 0 | AL135: 0 | AM135: 0 | AN135: 0
B136: =SUM(B133:B135) -> 0 | D136: =SUM(D133:D135) -> 0 | E136: =SUM(E133:E135) -> 0 | F136: 0 | G136: 0 | H136: 0 | I136: 0 | J136: 0 | K136: 0 | L136: 0 | M136: 0 | N136: 0 | O136: 0 | P136: 0 | Q136: 0 | R136: 0 | S136: 0 | T136: 0 | U136: 0 | V136: 0 | W136: 0 | X136: =SUM(X133:X135) -> 0 | Y136: =SUM(Y133:Y135) -> 0 | Z136: =SUM(Z133:Z135) -> 0 | AA136: =SUM(AA133:AA135) -> 0 | AD136: 0 | AE136: 0 | AF136: 0 | AG136: 0 | AH136: 0 | AI136: 0 | AJ136: 0 | AK136: 0 | AL136: 0 | AM136: 0 | AN136: 0
A139: IT | B139: RAB WDV | C139: Remaining | D139: =D$4 -> 2009 | E139: =E$4 -> 2010 | F139: 2011 | G139: 2012 | H139: 2013 | I139: 2014 | J139: 2015 | K139: 2016 | L139: 2017 | M139: 2018 | N139: 2019 | O139: 2020 | P139: 2021 | Q139: 2022 | R139: 2023 | S139: 2024 | T139: 2025 | U139: 2026 | V139: 2027 | W139: 2028 | X139: 2029 | Y139: 2030 | Z139: 2031 | AA139: 2032 | AD139: 2010 | AE139: 2011 | AF139: 2012 | AG139: 2013 | AH139: 2014 | AI139: 2015 | AJ139: 2016 | AK139: 2017 | AL139: 2018 | AM139: 2019 | AN139: 2020
A140: =$A$4 -> ($000 Real 2008) | B140: 1/01/2009 | C140: Life (years) | AD140: =E140*AD$16 -> 0 | AE140: 0 | AF140: 0 | AG140: 0 | AH140: 0 | AI140: 0 | AJ140: 0 | AK140: 0 | AL140: 0 | AM140: 0 | AN140: 0
A141: 2006 | B141: 0 | C141: 4.5 | D141: =IF(C141<1,B141,B141/C141) -> 0 | E141: =IF((SUM($D141:D141)+$B141/$C141)>$B141,$B141-SUM($D141:D141),$B141/$C141) -> 0 | F141: =IF((SUM($D141:E141)+$B141/$C141)>$B141,$B141-SUM($D141:E141),$B141/$C141) -> 0 | G141: =IF((SUM($D141:F141)+$B141/$C141)>$B141,$B141-SUM($D141:F141),$B141/$C141) -> 0 | H141: =IF((SUM($D141:G141)+$B141/$C141)>$B141,$B141-SUM($D141:G141),$B141/$C141) -> 0 | I141: =IF((SUM($D141:H141)+$B141/$C141)>$B141,$B141-SUM($D141:H141),$B141/$C141) -> 0 | J141: =IF((SUM($D141:I141)+$B141/$C141)>$B141,$B141-SUM($D141:I141),$B141/$C141) -> 0 | K141: =IF((SUM($D141:J141)+$B141/$C141)>$B141,$B141-SUM($D141:J141),$B141/$C141) -> 0 | L141: =IF((SUM($D141:K141)+$B141/$C141)>$B141,$B141-SUM($D141:K141),$B141/$C141) -> 0 | M141: =IF((SUM($D141:L141)+$B141/$C141)>$B141,$B141-SUM($D141:L141),$B141/$C141) -> 0 | N141: =IF((SUM($D141:M141)+$B141/$C141)>$B141,$B141-SUM($D141:M141),$B141/$C141) -> 0 | O141: =IF((SUM($D141:N141)+$B141/$C141)>$B141,$B141-SUM($D141:N141),$B141/$C141) -> 0 | P141: =IF((SUM($D141:O141)+$B141/$C141)>$B141,$B141-SUM($D141:O141),$B141/$C141) -> 0 | Q141: =IF((SUM($D141:P141)+$B141/$C141)>$B141,$B141-SUM($D141:P141),$B141/$C141) -> 0 | R141: =IF((SUM($D141:Q141)+$B141/$C141)>$B141,$B141-SUM($D141:Q141),$B141/$C141) -> 0 | S141: =IF((SUM($D141:R141)+$B141/$C141)>$B141,$B141-SUM($D141:R141),$B141/$C141) -> 0 | T141: =IF((SUM($D141:S141)+$B141/$C141)>$B141,$B141-SUM($D141:S141),$B141/$C141) -> 0 | U141: =IF((SUM($D141:T141)+$B141/$C141)>$B141,$B141-SUM($D141:T141),$B141/$C141) -> 0 | V141: =IF((SUM($D141:U141)+$B141/$C141)>$B141,$B141-SUM($D141:U141),$B141/$C141) -> 0 | W141: =IF((SUM($D141:V141)+$B141/$C141)>$B141,$B141-SUM($D141:V141),$B141/$C141) -> 0 | X141: =IF((SUM($D141:W141)+$B141/$C141)>$B141,$B141-SUM($D141:W141),$B141/$C141) -> 0 | Y141: =IF((SUM($D141:X141)+$B141/$C141)>$B141,$B141-SUM($D141:X141),$B141/$C141) -> 0 | Z141: =IF((SUM($D141:Y141)+$B141/$C141)>$B141,$B141-SUM($D141:Y141),$B141/$C141) -> 0 | AA141: =IF((SUM($D141:Z141)+$B141/$C141)>$B141,$B141-SUM($D141:Z141),$B141/$C141) -> 0 | AD141: 0 | AE141: 0 | AF141: 0 | AG141: 0 | AH141: 0 | AI141: 0 | AJ141: 0 | AK141: 0 | AL141: 0 | AM141: 0 | AN141: 0
A142: 2007 | B142: 0 | C142: 5.5 | D142: =IF(C142<1,B142,B142/C142) -> 0 | E142: =IF((SUM($D142:D142)+$B142/$C142)>$B142,$B142-SUM($D142:D142),$B142/$C142) -> 0 | F142: =IF((SUM($D142:E142)+$B142/$C142)>$B142,$B142-SUM($D142:E142),$B142/$C142) -> 0 | G142: =IF((SUM($D142:F142)+$B142/$C142)>$B142,$B142-SUM($D142:F142),$B142/$C142) -> 0 | H142: =IF((SUM($D142:G142)+$B142/$C142)>$B142,$B142-SUM($D142:G142),$B142/$C142) -> 0 | I142: =IF((SUM($D142:H142)+$B142/$C142)>$B142,$B142-SUM($D142:H142),$B142/$C142) -> 0 | J142: =IF((SUM($D142:I142)+$B142/$C142)>$B142,$B142-SUM($D142:I142),$B142/$C142) -> 0 | K142: =IF((SUM($D142:J142)+$B142/$C142)>$B142,$B142-SUM($D142:J142),$B142/$C142) -> 0 | L142: =IF((SUM($D142:K142)+$B142/$C142)>$B142,$B142-SUM($D142:K142),$B142/$C142) -> 0 | M142: =IF((SUM($D142:L142)+$B142/$C142)>$B142,$B142-SUM($D142:L142),$B142/$C142) -> 0 | N142: =IF((SUM($D142:M142)+$B142/$C142)>$B142,$B142-SUM($D142:M142),$B142/$C142) -> 0 | O142: =IF((SUM($D142:N142)+$B142/$C142)>$B142,$B142-SUM($D142:N142),$B142/$C142) -> 0 | P142: =IF((SUM($D142:O142)+$B142/$C142)>$B142,$B142-SUM($D142:O142),$B142/$C142) -> 0 | Q142: =IF((SUM($D142:P142)+$B142/$C142)>$B142,$B142-SUM($D142:P142),$B142/$C142) -> 0 | R142: =IF((SUM($D142:Q142)+$B142/$C142)>$B142,$B142-SUM($D142:Q142),$B142/$C142) -> 0 | S142: =IF((SUM($D142:R142)+$B142/$C142)>$B142,$B142-SUM($D142:R142),$B142/$C142) -> 0 | T142: =IF((SUM($D142:S142)+$B142/$C142)>$B142,$B142-SUM($D142:S142),$B142/$C142) -> 0 | U142: =IF((SUM($D142:T142)+$B142/$C142)>$B142,$B142-SUM($D142:T142),$B142/$C142) -> 0 | V142: =IF((SUM($D142:U142)+$B142/$C142)>$B142,$B142-SUM($D142:U142),$B142/$C142) -> 0 | W142: =IF((SUM($D142:V142)+$B142/$C142)>$B142,$B142-SUM($D142:V142),$B142/$C142) -> 0 | X142: =IF((SUM($D142:W142)+$B142/$C142)>$B142,$B142-SUM($D142:W142),$B142/$C142) -> 0 | Y142: =IF((SUM($D142:X142)+$B142/$C142)>$B142,$B142-SUM($D142:X142),$B142/$C142) -> 0 | Z142: =IF((SUM($D142:Y142)+$B142/$C142)>$B142,$B142-SUM($D142:Y142),$B142/$C142) -> 0 | AA142: =IF((SUM($D142:Z142)+$B142/$C142)>$B142,$B142-SUM($D142:Z142),$B142/$C142) -> 0 | AD142: 0 | AE142: 0 | AF142: 0 | AG142: 0 | AH142: 0 | AI142: 0 | AJ142: 0 | AK142: 0 | AL142: 0 | AM142: 0 | AN142: 0
A143: 2008 | B143: 10432.37154 | C143: 6.5 | D143: =IF(C143<1,B143,B143/C143) -> 1604.980237 | E143: =IF((SUM($D143:D143)+$B143/$C143)>$B143,$B143-SUM($D143:D143),$B143/$C143) -> 1604.980237 | F143: =IF((SUM($D143:E143)+$B143/$C143)>$B143,$B143-SUM($D143:E143),$B143/$C143) -> 1604.980237 | G143: =IF((SUM($D143:F143)+$B143/$C143)>$B143,$B143-SUM($D143:F143),$B143/$C143) -> 1604.980237 | H143: =IF((SUM($D143:G143)+$B143/$C143)>$B143,$B143-SUM($D143:G143),$B143/$C143) -> 1604.980237 | I143: =IF((SUM($D143:H143)+$B143/$C143)>$B143,$B143-SUM($D143:H143),$B143/$C143) -> 1604.980237 | J143: =IF((SUM($D143:I143)+$B143/$C143)>$B143,$B143-SUM($D143:I143),$B143/$C143) -> 802.4901183 | K143: =IF((SUM($D143:J143)+$B143/$C143)>$B143,$B143-SUM($D143:J143),$B143/$C143) -> 0 | L143: =IF((SUM($D143:K143)+$B143/$C143)>$B143,$B143-SUM($D143:K143),$B143/$C143) -> 0 | M143: =IF((SUM($D143:L143)+$B143/$C143)>$B143,$B143-SUM($D143:L143),$B143/$C143) -> 0 | N143: =IF((SUM($D143:M143)+$B143/$C143)>$B143,$B143-SUM($D143:M143),$B143/$C143) -> 0 | O143: =IF((SUM($D143:N143)+$B143/$C143)>$B143,$B143-SUM($D143:N143),$B143/$C143) -> 0 | P143: =IF((SUM($D143:O143)+$B143/$C143)>$B143,$B143-SUM($D143:O143),$B143/$C143) -> 0 | Q143: =IF((SUM($D143:P143)+$B143/$C143)>$B143,$B143-SUM($D143:P143),$B143/$C143) -> 0 | R143: =IF((SUM($D143:Q143)+$B143/$C143)>$B143,$B143-SUM($D143:Q143),$B143/$C143) -> 0 | S143: =IF((SUM($D143:R143)+$B143/$C143)>$B143,$B143-SUM($D143:R143),$B143/$C143) -> 0 | T143: =IF((SUM($D143:S143)+$B143/$C143)>$B143,$B143-SUM($D143:S143),$B143/$C143) -> 0 | U143: =IF((SUM($D143:T143)+$B143/$C143)>$B143,$B143-SUM($D143:T143),$B143/$C143) -> 0 | V143: =IF((SUM($D143:U143)+$B143/$C143)>$B143,$B143-SUM($D143:U143),$B143/$C143) -> 0 | W143: =IF((SUM($D143:V143)+$B143/$C143)>$B143,$B143-SUM($D143:V143),$B143/$C143) -> 0 | X143: =IF((SUM($D143:W143)+$B143/$C143)>$B143,$B143-SUM($D143:W143),$B143/$C143) -> 0 | Y143: =IF((SUM($D143:X143)+$B143/$C143)>$B143,$B143-SUM($D143:X143),$B143/$C143) -> 0 | Z143: =IF((SUM($D143:Y143)+$B143/$C143)>$B143,$B143-SUM($D143:Y143),$B143/$C143) -> 0 | AA143: =IF((SUM($D143:Z143)+$B143/$C143)>$B143,$B143-SUM($D143:Z143),$B143/$C143) -> 0 | AD143: 1706.176973 | AE143: 1753.739439 | AF143: 1815.469448 | AG143: 1851.851456 | AH143: 1891.871821 | AI143: 967.7652008 | AJ143: 0 | AK143: 0 | AL143: 0 | AM143: 0 | AN143: 0
B144: =SUM(B141:B143) -> 10432.37154 | D144: =SUM(D141:D143) -> 1604.980237 | E144: =SUM(E141:E143) -> 1604.980237 | F144: 1604.980237 | G144: 1604.980237 | H144: 1604.980237 | I144: 1604.980237 | J144: 802.4901183 | K144: 0 | L144: 0 | M144: 0 | N144: 0 | O144: 0 | P144: 0 | Q144: 0 | R144: 0 | S144: 0 | T144: 0 | U144: 0 | V144: 0 | W144: 0 | X144: =SUM(X141:X143) -> 0 | Y144: =SUM(Y141:Y143) -> 0 | Z144: =SUM(Z141:Z143) -> 0 | AA144: =SUM(AA141:AA143) -> 0 | AD144: 1706.176973 | AE144: 1753.739439 | AF144: 1815.469448 | AG144: 1851.851456 | AH144: 1891.871821 | AI144: 967.7652008 | AJ144: 0 | AK144: 0 | AL144: 0 | AM144: 0 | AN144: 0
A147: Communications | B147: RAB WDV | C147: Remaining | D147: =D$4 -> 2009 | E147: =E$4 -> 2010 | F147: 2011 | G147: 2012 | H147: 2013 | I147: 2014 | J147: 2015 | K147: 2016 | L147: 2017 | M147: 2018 | N147: 2019 | O147: 2020 | P147: 2021 | Q147: 2022 | R147: 2023 | S147: 2024 | T147: 2025 | U147: 2026 | V147: 2027 | W147: 2028 | X147: 2029 | Y147: 2030 | Z147: 2031 | AA147: 2032 | AD147: 2010 | AE147: 2011 | AF147: 2012 | AG147: 2013 | AH147: 2014 | AI147: 2015 | AJ147: 2016 | AK147: 2017 | AL147: 2018 | AM147: 2019 | AN147: 2020
A148: =$A$4 -> ($000 Real 2008) | B148: 1/01/2009 | C148: Life (years) | AD148: =E148*AD$16 -> 0 | AE148: 0 | AF148: 0 | AG148: 0 | AH148: 0 | AI148: 0 | AJ148: 0 | AK148: 0 | AL148: 0 | AM148: 0 | AN148: 0
A149: 2006 | B149: 0 | C149: 4.5 | D149: =IF(C149<1,B149,B149/C149) -> 0 | E149: =IF((SUM($D149:D149)+$B149/$C149)>$B149,$B149-SUM($D149:D149),$B149/$C149) -> 0 | F149: =IF((SUM($D149:E149)+$B149/$C149)>$B149,$B149-SUM($D149:E149),$B149/$C149) -> 0 | G149: =IF((SUM($D149:F149)+$B149/$C149)>$B149,$B149-SUM($D149:F149),$B149/$C149) -> 0 | H149: =IF((SUM($D149:G149)+$B149/$C149)>$B149,$B149-SUM($D149:G149),$B149/$C149) -> 0 | I149: =IF((SUM($D149:H149)+$B149/$C149)>$B149,$B149-SUM($D149:H149),$B149/$C149) -> 0 | J149: =IF((SUM($D149:I149)+$B149/$C149)>$B149,$B149-SUM($D149:I149),$B149/$C149) -> 0 | K149: =IF((SUM($D149:J149)+$B149/$C149)>$B149,$B149-SUM($D149:J149),$B149/$C149) -> 0 | L149: =IF((SUM($D149:K149)+$B149/$C149)>$B149,$B149-SUM($D149:K149),$B149/$C149) -> 0 | M149: =IF((SUM($D149:L149)+$B149/$C149)>$B149,$B149-SUM($D149:L149),$B149/$C149) -> 0 | N149: =IF((SUM($D149:M149)+$B149/$C149)>$B149,$B149-SUM($D149:M149),$B149/$C149) -> 0 | O149: =IF((SUM($D149:N149)+$B149/$C149)>$B149,$B149-SUM($D149:N149),$B149/$C149) -> 0 | P149: =IF((SUM($D149:O149)+$B149/$C149)>$B149,$B149-SUM($D149:O149),$B149/$C149) -> 0 | Q149: =IF((SUM($D149:P149)+$B149/$C149)>$B149,$B149-SUM($D149:P149),$B149/$C149) -> 0 | R149: =IF((SUM($D149:Q149)+$B149/$C149)>$B149,$B149-SUM($D149:Q149),$B149/$C149) -> 0 | S149: =IF((SUM($D149:R149)+$B149/$C149)>$B149,$B149-SUM($D149:R149),$B149/$C149) -> 0 | T149: =IF((SUM($D149:S149)+$B149/$C149)>$B149,$B149-SUM($D149:S149),$B149/$C149) -> 0 | U149: =IF((SUM($D149:T149)+$B149/$C149)>$B149,$B149-SUM($D149:T149),$B149/$C149) -> 0 | V149: =IF((SUM($D149:U149)+$B149/$C149)>$B149,$B149-SUM($D149:U149),$B149/$C149) -> 0 | W149: =IF((SUM($D149:V149)+$B149/$C149)>$B149,$B149-SUM($D149:V149),$B149/$C149) -> 0 | X149: =IF((SUM($D149:W149)+$B149/$C149)>$B149,$B149-SUM($D149:W149),$B149/$C149) -> 0 | Y149: =IF((SUM($D149:X149)+$B149/$C149)>$B149,$B149-SUM($D149:X149),$B149/$C149) -> 0 | Z149: =IF((SUM($D149:Y149)+$B149/$C149)>$B149,$B149-SUM($D149:Y149),$B149/$C149) -> 0 | AA149: =IF((SUM($D149:Z149)+$B149/$C149)>$B149,$B149-SUM($D149:Z149),$B149/$C149) -> 0 | AD149: 0 | AE149: 0 | AF149: 0 | AG149: 0 | AH149: 0 | AI149: 0 | AJ149: 0 | AK149: 0 | AL149: 0 | AM149: 0 | AN149: 0
A150: 2007 | B150: 0 | C150: 5.5 | D150: =IF(C150<1,B150,B150/C150) -> 0 | E150: =IF((SUM($D150:D150)+$B150/$C150)>$B150,$B150-SUM($D150:D150),$B150/$C150) -> 0 | F150: =IF((SUM($D150:E150)+$B150/$C150)>$B150,$B150-SUM($D150:E150),$B150/$C150) -> 0 | G150: =IF((SUM($D150:F150)+$B150/$C150)>$B150,$B150-SUM($D150:F150),$B150/$C150) -> 0 | H150: =IF((SUM($D150:G150)+$B150/$C150)>$B150,$B150-SUM($D150:G150),$B150/$C150) -> 0 | I150: =IF((SUM($D150:H150)+$B150/$C150)>$B150,$B150-SUM($D150:H150),$B150/$C150) -> 0 | J150: =IF((SUM($D150:I150)+$B150/$C150)>$B150,$B150-SUM($D150:I150),$B150/$C150) -> 0 | K150: =IF((SUM($D150:J150)+$B150/$C150)>$B150,$B150-SUM($D150:J150),$B150/$C150) -> 0 | L150: =IF((SUM($D150:K150)+$B150/$C150)>$B150,$B150-SUM($D150:K150),$B150/$C150) -> 0 | M150: =IF((SUM($D150:L150)+$B150/$C150)>$B150,$B150-SUM($D150:L150),$B150/$C150) -> 0 | N150: =IF((SUM($D150:M150)+$B150/$C150)>$B150,$B150-SUM($D150:M150),$B150/$C150) -> 0 | O150: =IF((SUM($D150:N150)+$B150/$C150)>$B150,$B150-SUM($D150:N150),$B150/$C150) -> 0 | P150: =IF((SUM($D150:O150)+$B150/$C150)>$B150,$B150-SUM($D150:O150),$B150/$C150) -> 0 | Q150: =IF((SUM($D150:P150)+$B150/$C150)>$B150,$B150-SUM($D150:P150),$B150/$C150) -> 0 | R150: =IF((SUM($D150:Q150)+$B150/$C150)>$B150,$B150-SUM($D150:Q150),$B150/$C150) -> 0 | S150: =IF((SUM($D150:R150)+$B150/$C150)>$B150,$B150-SUM($D150:R150),$B150/$C150) -> 0 | T150: =IF((SUM($D150:S150)+$B150/$C150)>$B150,$B150-SUM($D150:S150),$B150/$C150) -> 0 | U150: =IF((SUM($D150:T150)+$B150/$C150)>$B150,$B150-SUM($D150:T150),$B150/$C150) -> 0 | V150: =IF((SUM($D150:U150)+$B150/$C150)>$B150,$B150-SUM($D150:U150),$B150/$C150) -> 0 | W150: =IF((SUM($D150:V150)+$B150/$C150)>$B150,$B150-SUM($D150:V150),$B150/$C150) -> 0 | X150: =IF((SUM($D150:W150)+$B150/$C150)>$B150,$B150-SUM($D150:W150),$B150/$C150) -> 0 | Y150: =IF((SUM($D150:X150)+$B150/$C150)>$B150,$B150-SUM($D150:X150),$B150/$C150) -> 0 | Z150: =IF((SUM($D150:Y150)+$B150/$C150)>$B150,$B150-SUM($D150:Y150),$B150/$C150) -> 0 | AA150: =IF((SUM($D150:Z150)+$B150/$C150)>$B150,$B150-SUM($D150:Z150),$B150/$C150) -> 0 | AD150: 0 | AE150: 0 | AF150: 0 | AG150: 0 | AH150: 0 | AI150: 0 | AJ150: 0 | AK150: 0 | AL150: 0 | AM150: 0 | AN150: 0
A151: 2008 | B151: 0 | C151: 6.5 | D151: =IF(C151<1,B151,B151/C151) -> 0 | E151: =IF((SUM($D151:D151)+$B151/$C151)>$B151,$B151-SUM($D151:D151),$B151/$C151) -> 0 | F151: =IF((SUM($D151:E151)+$B151/$C151)>$B151,$B151-SUM($D151:E151),$B151/$C151) -> 0 | G151: =IF((SUM($D151:F151)+$B151/$C151)>$B151,$B151-SUM($D151:F151),$B151/$C151) -> 0 | H151: =IF((SUM($D151:G151)+$B151/$C151)>$B151,$B151-SUM($D151:G151),$B151/$C151) -> 0 | I151: =IF((SUM($D151:H151)+$B151/$C151)>$B151,$B151-SUM($D151:H151),$B151/$C151) -> 0 | J151: =IF((SUM($D151:I151)+$B151/$C151)>$B151,$B151-SUM($D151:I151),$B151/$C151) -> 0 | K151: =IF((SUM($D151:J151)+$B151/$C151)>$B151,$B151-SUM($D151:J151),$B151/$C151) -> 0 | L151: =IF((SUM($D151:K151)+$B151/$C151)>$B151,$B151-SUM($D151:K151),$B151/$C151) -> 0 | M151: =IF((SUM($D151:L151)+$B151/$C151)>$B151,$B151-SUM($D151:L151),$B151/$C151) -> 0 | N151: =IF((SUM($D151:M151)+$B151/$C151)>$B151,$B151-SUM($D151:M151),$B151/$C151) -> 0 | O151: =IF((SUM($D151:N151)+$B151/$C151)>$B151,$B151-SUM($D151:N151),$B151/$C151) -> 0 | P151: =IF((SUM($D151:O151)+$B151/$C151)>$B151,$B151-SUM($D151:O151),$B151/$C151) -> 0 | Q151: =IF((SUM($D151:P151)+$B151/$C151)>$B151,$B151-SUM($D151:P151),$B151/$C151) -> 0 | R151: =IF((SUM($D151:Q151)+$B151/$C151)>$B151,$B151-SUM($D151:Q151),$B151/$C151) -> 0 | S151: =IF((SUM($D151:R151)+$B151/$C151)>$B151,$B151-SUM($D151:R151),$B151/$C151) -> 0 | T151: =IF((SUM($D151:S151)+$B151/$C151)>$B151,$B151-SUM($D151:S151),$B151/$C151) -> 0 | U151: =IF((SUM($D151:T151)+$B151/$C151)>$B151,$B151-SUM($D151:T151),$B151/$C151) -> 0 | V151: =IF((SUM($D151:U151)+$B151/$C151)>$B151,$B151-SUM($D151:U151),$B151/$C151) -> 0 | W151: =IF((SUM($D151:V151)+$B151/$C151)>$B151,$B151-SUM($D151:V151),$B151/$C151) -> 0 | X151: =IF((SUM($D151:W151)+$B151/$C151)>$B151,$B151-SUM($D151:W151),$B151/$C151) -> 0 | Y151: =IF((SUM($D151:X151)+$B151/$C151)>$B151,$B151-SUM($D151:X151),$B151/$C151) -> 0 | Z151: =IF((SUM($D151:Y151)+$B151/$C151)>$B151,$B151-SUM($D151:Y151),$B151/$C151) -> 0 | AA151: =IF((SUM($D151:Z151)+$B151/$C151)>$B151,$B151-SUM($D151:Z151),$B151/$C151) -> 0 | AD151: 0 | AE151: 0 | AF151: 0 | AG151: 0 | AH151: 0 | AI151: 0 | AJ151: 0 | AK151: 0 | AL151: 0 | AM151: 0 | AN151: 0
B152: =SUM(B149:B151) -> 0 | D152: =SUM(D149:D151) -> 0 | E152: =SUM(E149:E151) -> 0 | F152: 0 | G152: 0 | H152: 0 | I152: 0 | J152: 0 | K152: 0 | L152: 0 | M152: 0 | N152: 0 | O152: 0 | P152: 0 | Q152: 0 | R152: 0 | S152: 0 | T152: 0 | U152: 0 | V152: 0 | W152: 0 | X152: =SUM(X149:X151) -> 0 | Y152: =SUM(Y149:Y151) -> 0 | Z152: =SUM(Z149:Z151) -> 0 | AA152: =SUM(AA149:AA151) -> 0 | AD152: 0 | AE152: 0 | AF152: 0 | AG152: 0 | AH152: 0 | AI152: 0 | AJ152: 0 | AK152: 0 | AL152: 0 | AM152: 0 | AN152: 0
A155: Other | B155: RAB WDV | C155: Remaining | D155: =D$4 -> 2009 | E155: =E$4 -> 2010 | F155: 2011 | G155: 2012 | H155: 2013 | I155: 2014 | J155: 2015 | K155: 2016 | L155: 2017 | M155: 2018 | N155: 2019 | O155: 2020 | P155: 2021 | Q155: 2022 | R155: 2023 | S155: 2024 | T155: 2025 | U155: 2026 | V155: 2027 | W155: 2028 | X155: 2029 | Y155: 2030 | Z155: 2031 | AA155: 2032 | AD155: 2010 | AE155: 2011 | AF155: 2012 | AG155: 2013 | AH155: 2014 | AI155: 2015 | AJ155: 2016 | AK155: 2017 | AL155: 2018 | AM155: 2019 | AN155: 2020
A156: =$A$4 -> ($000 Real 2008) | B156: 1/01/2009 | C156: Life (years) | AD156: =E156*AD$16 -> 0 | AE156: 0 | AF156: 0 | AG156: 0 | AH156: 0 | AI156: 0 | AJ156: 0 | AK156: 0 | AL156: 0 | AM156: 0 | AN156: 0
A157: 2006 | B157: 0 | C157: 4.5 | D157: =IF(C157<1,B157,B157/C157) -> 0 | E157: =IF((SUM($D157:D157)+$B157/$C157)>$B157,$B157-SUM($D157:D157),$B157/$C157) -> 0 | F157: =IF((SUM($D157:E157)+$B157/$C157)>$B157,$B157-SUM($D157:E157),$B157/$C157) -> 0 | G157: =IF((SUM($D157:F157)+$B157/$C157)>$B157,$B157-SUM($D157:F157),$B157/$C157) -> 0 | H157: =IF((SUM($D157:G157)+$B157/$C157)>$B157,$B157-SUM($D157:G157),$B157/$C157) -> 0 | I157: =IF((SUM($D157:H157)+$B157/$C157)>$B157,$B157-SUM($D157:H157),$B157/$C157) -> 0 | J157: =IF((SUM($D157:I157)+$B157/$C157)>$B157,$B157-SUM($D157:I157),$B157/$C157) -> 0 | K157: =IF((SUM($D157:J157)+$B157/$C157)>$B157,$B157-SUM($D157:J157),$B157/$C157) -> 0 | L157: =IF((SUM($D157:K157)+$B157/$C157)>$B157,$B157-SUM($D157:K157),$B157/$C157) -> 0 | M157: =IF((SUM($D157:L157)+$B157/$C157)>$B157,$B157-SUM($D157:L157),$B157/$C157) -> 0 | N157: =IF((SUM($D157:M157)+$B157/$C157)>$B157,$B157-SUM($D157:M157),$B157/$C157) -> 0 | O157: =IF((SUM($D157:N157)+$B157/$C157)>$B157,$B157-SUM($D157:N157),$B157/$C157) -> 0 | P157: =IF((SUM($D157:O157)+$B157/$C157)>$B157,$B157-SUM($D157:O157),$B157/$C157) -> 0 | Q157: =IF((SUM($D157:P157)+$B157/$C157)>$B157,$B157-SUM($D157:P157),$B157/$C157) -> 0 | R157: =IF((SUM($D157:Q157)+$B157/$C157)>$B157,$B157-SUM($D157:Q157),$B157/$C157) -> 0 | S157: =IF((SUM($D157:R157)+$B157/$C157)>$B157,$B157-SUM($D157:R157),$B157/$C157) -> 0 | T157: =IF((SUM($D157:S157)+$B157/$C157)>$B157,$B157-SUM($D157:S157),$B157/$C157) -> 0 | U157: =IF((SUM($D157:T157)+$B157/$C157)>$B157,$B157-SUM($D157:T157),$B157/$C157) -> 0 | V157: =IF((SUM($D157:U157)+$B157/$C157)>$B157,$B157-SUM($D157:U157),$B157/$C157) -> 0 | W157: =IF((SUM($D157:V157)+$B157/$C157)>$B157,$B157-SUM($D157:V157),$B157/$C157) -> 0 | X157: =IF((SUM($D157:W157)+$B157/$C157)>$B157,$B157-SUM($D157:W157),$B157/$C157) -> 0 | Y157: =IF((SUM($D157:X157)+$B157/$C157)>$B157,$B157-SUM($D157:X157),$B157/$C157) -> 0 | Z157: =IF((SUM($D157:Y157)+$B157/$C157)>$B157,$B157-SUM($D157:Y157),$B157/$C157) -> 0 | AA157: =IF((SUM($D157:Z157)+$B157/$C157)>$B157,$B157-SUM($D157:Z157),$B157/$C157) -> 0 | AD157: 0 | AE157: 0 | AF157: 0 | AG157: 0 | AH157: 0 | AI157: 0 | AJ157: 0 | AK157: 0 | AL157: 0 | AM157: 0 | AN157: 0
A158: 2007 | B158: 6701.61827 | C158: 5.5 | D158: =IF(C158<1,B158,B158/C158) -> 1218.476049 | E158: =IF((SUM($D158:D158)+$B158/$C158)>$B158,$B158-SUM($D158:D158),$B158/$C158) -> 1218.476049 | F158: =IF((SUM($D158:E158)+$B158/$C158)>$B158,$B158-SUM($D158:E158),$B158/$C158) -> 1218.476049 | G158: =IF((SUM($D158:F158)+$B158/$C158)>$B158,$B158-SUM($D158:F158),$B158/$C158) -> 1218.476049 | H158: =IF((SUM($D158:G158)+$B158/$C158)>$B158,$B158-SUM($D158:G158),$B158/$C158) -> 1218.476049 | I158: =IF((SUM($D158:H158)+$B158/$C158)>$B158,$B158-SUM($D158:H158),$B158/$C158) -> 609.2380246 | J158: =IF((SUM($D158:I158)+$B158/$C158)>$B158,$B158-SUM($D158:I158),$B158/$C158) -> 0 | K158: =IF((SUM($D158:J158)+$B158/$C158)>$B158,$B158-SUM($D158:J158),$B158/$C158) -> 0 | L158: =IF((SUM($D158:K158)+$B158/$C158)>$B158,$B158-SUM($D158:K158),$B158/$C158) -> 0 | M158: =IF((SUM($D158:L158)+$B158/$C158)>$B158,$B158-SUM($D158:L158),$B158/$C158) -> 0 | N158: =IF((SUM($D158:M158)+$B158/$C158)>$B158,$B158-SUM($D158:M158),$B158/$C158) -> 0 | O158: =IF((SUM($D158:N158)+$B158/$C158)>$B158,$B158-SUM($D158:N158),$B158/$C158) -> 0 | P158: =IF((SUM($D158:O158)+$B158/$C158)>$B158,$B158-SUM($D158:O158),$B158/$C158) -> 0 | Q158: =IF((SUM($D158:P158)+$B158/$C158)>$B158,$B158-SUM($D158:P158),$B158/$C158) -> 0 | R158: =IF((SUM($D158:Q158)+$B158/$C158)>$B158,$B158-SUM($D158:Q158),$B158/$C158) -> 0 | S158: =IF((SUM($D158:R158)+$B158/$C158)>$B158,$B158-SUM($D158:R158),$B158/$C158) -> 0 | T158: =IF((SUM($D158:S158)+$B158/$C158)>$B158,$B158-SUM($D158:S158),$B158/$C158) -> 0 | U158: =IF((SUM($D158:T158)+$B158/$C158)>$B158,$B158-SUM($D158:T158),$B158/$C158) -> 0 | V158: =IF((SUM($D158:U158)+$B158/$C158)>$B158,$B158-SUM($D158:U158),$B158/$C158) -> 0 | W158: =IF((SUM($D158:V158)+$B158/$C158)>$B158,$B158-SUM($D158:V158),$B158/$C158) -> 0 | X158: =IF((SUM($D158:W158)+$B158/$C158)>$B158,$B158-SUM($D158:W158),$B158/$C158) -> 0 | Y158: =IF((SUM($D158:X158)+$B158/$C158)>$B158,$B158-SUM($D158:X158),$B158/$C158) -> 0 | Z158: =IF((SUM($D158:Y158)+$B158/$C158)>$B158,$B158-SUM($D158:Y158),$B158/$C158) -> 0 | AA158: =IF((SUM($D158:Z158)+$B158/$C158)>$B158,$B158-SUM($D158:Z158),$B158/$C158) -> 0 | AD158: 1295.303038 | AE158: 1331.411723 | AF158: 1378.276187 | AG158: 1405.896842 | AH158: 718.1398405 | AI158: 0 | AJ158: 0 | AK158: 0 | AL158: 0 | AM158: 0 | AN158: 0
A159: 2008 | B159: 17932.34833 | C159: 6.5 | D159: =IF(C159<1,B159,B159/C159) -> 2758.82282 | E159: =IF((SUM($D159:D159)+$B159/$C159)>$B159,$B159-SUM($D159:D159),$B159/$C159) -> 2758.82282 | F159: =IF((SUM($D159:E159)+$B159/$C159)>$B159,$B159-SUM($D159:E159),$B159/$C159) -> 2758.82282 | G159: =IF((SUM($D159:F159)+$B159/$C159)>$B159,$B159-SUM($D159:F159),$B159/$C159) -> 2758.82282 | H159: =IF((SUM($D159:G159)+$B159/$C159)>$B159,$B159-SUM($D159:G159),$B159/$C159) -> 2758.82282 | I159: =IF((SUM($D159:H159)+$B159/$C159)>$B159,$B159-SUM($D159:H159),$B159/$C159) -> 2758.82282 | J159: =IF((SUM($D159:I159)+$B159/$C159)>$B159,$B159-SUM($D159:I159),$B159/$C159) -> 1379.41141 | K159: =IF((SUM($D159:J159)+$B159/$C159)>$B159,$B159-SUM($D159:J159),$B159/$C159) -> 0 | L159: =IF((SUM($D159:K159)+$B159/$C159)>$B159,$B159-SUM($D159:K159),$B159/$C159) -> 0 | M159: =IF((SUM($D159:L159)+$B159/$C159)>$B159,$B159-SUM($D159:L159),$B159/$C159) -> 0 | N159: =IF((SUM($D159:M159)+$B159/$C159)>$B159,$B159-SUM($D159:M159),$B159/$C159) -> 0 | O159: =IF((SUM($D159:N159)+$B159/$C159)>$B159,$B159-SUM($D159:N159),$B159/$C159) -> 0 | P159: =IF((SUM($D159:O159)+$B159/$C159)>$B159,$B159-SUM($D159:O159),$B159/$C159) -> 0 | Q159: =IF((SUM($D159:P159)+$B159/$C159)>$B159,$B159-SUM($D159:P159),$B159/$C159) -> 0 | R159: =IF((SUM($D159:Q159)+$B159/$C159)>$B159,$B159-SUM($D159:Q159),$B159/$C159) -> 0 | S159: =IF((SUM($D159:R159)+$B159/$C159)>$B159,$B159-SUM($D159:R159),$B159/$C159) -> 0 | T159: =IF((SUM($D159:S159)+$B159/$C159)>$B159,$B159-SUM($D159:S159),$B159/$C159) -> 0 | U159: =IF((SUM($D159:T159)+$B159/$C159)>$B159,$B159-SUM($D159:T159),$B159/$C159) -> 0 | V159: =IF((SUM($D159:U159)+$B159/$C159)>$B159,$B159-SUM($D159:U159),$B159/$C159) -> 0 | W159: =IF((SUM($D159:V159)+$B159/$C159)>$B159,$B159-SUM($D159:V159),$B159/$C159) -> 0 | X159: =IF((SUM($D159:W159)+$B159/$C159)>$B159,$B159-SUM($D159:W159),$B159/$C159) -> 0 | Y159: =IF((SUM($D159:X159)+$B159/$C159)>$B159,$B159-SUM($D159:X159),$B159/$C159) -> 0 | Z159: =IF((SUM($D159:Y159)+$B159/$C159)>$B159,$B159-SUM($D159:Y159),$B159/$C159) -> 0 | AA159: =IF((SUM($D159:Z159)+$B159/$C159)>$B159,$B159-SUM($D159:Z159),$B159/$C159) -> 0 | AD159: 2932.771295 | AE159: 3014.527079 | AF159: 3120.635649 | AG159: 3183.173187 | AH159: 3251.964749 | AI159: 1663.505045 | AJ159: 0 | AK159: 0 | AL159: 0 | AM159: 0 | AN159: 0
B160: =SUM(B157:B159) -> 24633.9666 | D160: =SUM(D157:D159) -> 3977.298869 | E160: =SUM(E157:E159) -> 3977.298869 | F160: 3977.298869 | G160: 3977.298869 | H160: 3977.298869 | I160: 3368.060844 | J160: 1379.41141 | K160: 0 | L160: 0 | M160: 0 | N160: 0 | O160: 0 | P160: 0 | Q160: 0 | R160: 0 | S160: 0 | T160: 0 | U160: 0 | V160: 0 | W160: 0 | X160: =SUM(X157:X159) -> 0 | Y160: =SUM(Y157:Y159) -> 0 | Z160: =SUM(Z157:Z159) -> 0 | AA160: =SUM(AA157:AA159) -> 0 | AD160: 4228.074334 | AE160: 4345.938802 | AF160: 4498.911835 | AG160: 4589.070029 | AH160: 3970.104589 | AI160: 1663.505045 | AJ160: 0 | AK160: 0 | AL160: 0 | AM160: 0 | AN160: 0
A163: Total | B163: =SUM(B136,B144,B152,B160) -> 35066.33814 | D163: =SUM(D136,D144,D152,D160) -> 5582.279106 | E163: 5582.279106 | F163: 5582.279106 | G163: 5582.279106 | H163: 5582.279106 | I163: 4973.041081 | J163: 2181.901528 | K163: 0 | L163: 0 | M163: 0 | N163: 0 | O163: 0 | P163: 0 | Q163: 0 | R163: 0 | S163: 0 | T163: 0 | U163: 0 | V163: 0 | W163: 0 | X163: =SUM(X136,X144,X152,X160) -> 0 | Y163: =SUM(Y136,Y144,Y152,Y160) -> 0 | Z163: =SUM(Z136,Z144,Z152,Z160) -> 0 | AA163: =SUM(AA136,AA144,AA152,AA160) -> 0 | AD163: =E163*AD$16 -> 5934.251306 | AE163: 6099.678241 | AF163: 6314.381283 | AG163: 6440.921484 | AH163: 5861.976411 | AI163: 2631.270246 | AJ163: 0 | AK163: 0 | AL163: 0 | AM163: 0 | AN163: 0
A167: Regulatory depreciation on AMI Capex 2009-15
A168: =$A$4 -> ($000 Real 2008)
A169: RAB AMI Capex 2009-11 | D169: =D$4 -> 2009 | E169: =E$4 -> 2010 | F169: 2011 | G169: 2012 | H169: 2013 | I169: 2014 | J169: 2015 | K169: 2016 | L169: 2017 | M169: 2018 | N169: 2019 | O169: 2020 | P169: 2021 | Q169: 2022 | R169: 2023 | S169: 2024 | T169: 2025 | U169: 2026 | V169: 2027 | W169: 2028 | X169: 2029 | Y169: 2030 | Z169: 2031 | AA169: 2032 | AD169: 2010 | AE169: 2011 | AF169: 2012 | AG169: 2013 | AH169: 2014 | AI169: 2015 | AJ169: 2016 | AK169: 2017 | AL169: 2018 | AM169: 2019 | AN169: 2020
A170: Opening asset base | D170: 0 | E170: =D173 -> 65204.93783 | F170: =E173 -> 107424.2766 | G170: 150564.9303 | H170: 179157.6536 | I170: 200226.9471 | J170: 195824.2148 | K170: 170610.1456 | L170: 152180.3327 | M170: 136692.5546 | N170: 120983.7418 | O170: 107618.6884 | P170: 96749.85883 | Q170: 83933.32961 | R170: 71694.82637 | S170: 59724.07948 | T170: 47956.93605 | U170: 37041.05349 | V170: 28071.58213 | W170: 21866.28199 | X170: =W173 -> 18737.18211 | Y170: =X173 -> 17913.09376 | Z170: =Y173 -> 17848.16393 | AA170: =Z173 -> 17848.16393 | AD170: =E170*AD$16 -> 69316.22016 | AE170: 117381.0034 | AF170: 170311.1507 | AG170: 206714.9202 | AH170: 236017.6844 | AI170: 236154.7591 | AJ170: 211045.5307 | AK170: 193094.9132 | AL170: 177909.0996 | AM170: 161518.1426 | AN170: 147374.7197
A171: Net Capex | D171: =D186 -> 70127.63271 | E171: =E186 -> 55532.25292 | F171: 63664.796 | G171: 55652.64631 | H171: 52855.814 | I171: 25170.63603 | J171: 5696.483545 | K171: 8503.884883 | L171: 4798.741024 | M171: 853.68753 | N171: 1110.143347 | O171: 2581.707147 | P171: 0 | Q171: 0 | R171: 0 | S171: 0 | T171: 0 | U171: 0 | V171: 0 | W171: 0 | X171: =X186 -> 0 | Y171: =Y186 -> 0 | Z171: =Z186 -> 0 | AA171: =AA186 -> 0 | AD171: 59033.656 | AE171: 69565.63144 | AF171: 62951.35402 | AG171: 60985.87002 | AH171: 29669.90867 | AI171: 6869.690251 | AJ171: 10519.34451 | AK171: 6088.910868 | AL171: 1111.097676 | AM171: 1482.085847 | AN171: 3535.430258
A172: Regulatory depreciation | D172: =D291 -> 4922.694887 | E172: =E291 -> 13312.91412 | F172: 20524.14233 | G172: 27059.92303 | H172: 31786.52048 | I172: 29573.36829 | J172: 30910.5528 | K172: 26933.69779 | L172: 20286.51913 | M172: 16562.50035 | N172: 14475.19675 | O172: 13450.53667 | P172: 12816.52922 | Q172: 12238.50324 | R172: 11970.7469 | S172: 11767.14343 | T172: 10915.88256 | U172: 8969.471365 | V172: 6205.300139 | W172: 3129.099879 | X172: =X291 -> 824.0883506 | Y172: =Y291 -> 64.92982635 | Z172: =Z291 -> 0 | AA172: =AA291 -> 0 | AD172: 14152.31602 | AE172: 22426.44304 | AF172: 30608.76539 | AG172: 36675.78758 | AH172: 34859.63306 | AI172: 37276.66753 | AJ172: 33317.1074 | AK172: 25740.66952 | AL172: 21556.54734 | AM172: 19324.96763 | AN172: 18419.37586
A173: Closing asset base | D173: =D170+D171-D172 -> 65204.93783 | E173: =E170+E171-E172 -> 107424.2766 | F173: 150564.9303 | G173: 179157.6536 | H173: 200226.9471 | I173: 195824.2148 | J173: 170610.1456 | K173: 152180.3327 | L173: 136692.5546 | M173: 120983.7418 | N173: 107618.6884 | O173: 96749.85883 | P173: 83933.32961 | Q173: 71694.82637 | R173: 59724.07948 | S173: 47956.93605 | T173: 37041.05349 | U173: 28071.58213 | V173: 21866.28199 | W173: 18737.18211 | X173: =X170+X171-X172 -> 17913.09376 | Y173: =Y170+Y171-Y172 -> 17848.16393 | Z173: =Z170+Z171-Z172 -> 17848.16393 | AA173: =AA170+AA171-AA172 -> 17848.16393 | AD173: 114197.5601 | AE173: 164520.1918 | AF173: 202653.7393 | AG173: 231025.0027 | AH173: 230827.9601 | AI173: 205747.7819 | AJ173: 188247.7679 | AK173: 173443.1546 | AL173: 157463.6499 | AM173: 143675.2608 | AN173: 132490.7741
A174: Check | C174: =SUM(D174:K174) -> 17848.16393 | D174: =IF(ABS(SUM(D171:AA171)-SUM(D172:AA172))<0.001,0,ABS(SUM(D171:AA171)-SUM(D172:AA172))) -> 17848.16393 | E174: =IF(ABS(D171-D186)<0.001,0,ABS(D171-D186)) -> 0 | F174: 0 | G174: 0 | H174: 0 | I174: 0 | J174: 0 | K174: 0 | AD174: 0 | AE174: 0 | AF174: 0 | AG174: 0 | AH174: 0 | AI174: 0 | AJ174: 0 | AK174: 0 | AL174: 0 | AM174: 0 | AN174: 0
A179: Net Capex | D179: =D$4 -> 2009 | E179: =E$4 -> 2010 | F179: 2011 | G179: 2012 | H179: 2013 | I179: 2014 | J179: 2015 | K179: 2016 | L179: 2017 | M179: 2018 | N179: 2019 | O179: 2020 | P179: 2021 | Q179: 2022 | R179: 2023 | S179: 2024 | T179: 2025 | U179: 2026 | V179: 2027 | W179: 2028 | X179: 2029 | Y179: 2030 | Z179: 2031 | AA179: 2032 | AD179: 2010 | AE179: 2011 | AF179: 2012 | AG179: 2013 | AH179: 2014 | AI179: 2015 | AJ179: 2016 | AK179: 2017 | AL179: 2018 | AM179: 2019 | AN179: 2020
A180: Accumulation Meters | D180: 3685.95214 | E180: 3375.606278 | F180: 3675.20263 | G180: 733.6797013 | H180: 0 | I180: 0 | J180: 0 | K180: 0 | L180: 0 | M180: 0 | N180: 0 | O180: 0 | AD180: =E180*AD$16 -> 3588.444 | AE180: 4015.84247 | AF180: 829.89999 | AG180: 0 | AH180: 0 | AI180: 0 | AJ180: 0 | AK180: 0 | AL180: 0 | AM180: 0 | AN180: 0
A181: Manually read interval meters | D181: 0 | E181: 0 | F181: 1617.641203 | G181: 1143.531629 | H181: 0 | I181: 0 | J181: 0 | K181: 0 | L181: 0 | M181: 0 | N181: 0 | O181: 0 | AD181: 0 | AE181: 1767.5739 | AF181: 1293.50299 | AG181: 0 | AH181: 0 | AI181: 0 | AJ181: 0 | AK181: 0 | AL181: 0 | AM181: 0 | AN181: 0
A182: Remotely read interval meters & transformers | D182: 6108.104037 | E182: 19429.72195 | F182: 38962.61394 | G182: 43962.52285 | H182: 48323.48493 | I182: 20826.86094 | J182: 1947.894791 | K182: 2397.469627 | L182: 841.4006029 | M182: 484.8789815 | N182: 493.834176 | O182: 494.3877684 | AD182: 20654.799 | AE182: 42573.90287 | AF182: 49728.09962 | AG182: 55756.39741 | AH182: 24549.68007 | AI182: 2349.069166 | AJ182: 2965.680898 | AK182: 1067.61612 | AL182: 631.0832603 | AM182: 659.288411 | AN182: 677.0223638
A183: IT | D183: 60237.4079 | E183: 32381.53509 | F183: 7671.037883 | G183: 7049.544521 | H183: 1515.468264 | I183: 3428.982194 | J183: 3554.551324 | K183: 5989.877921 | L183: 3900.492941 | M183: 368.8085485 | N183: 616.3091708 | O183: 2087.319378 | AD183: 34423.246 | AE183: 8382.03572 | AF183: 7974.07495 | AG183: 1748.571133 | AH183: 4041.915682 | AI183: 4286.621103 | AJ183: 7409.506396 | AK183: 4949.163486 | AL183: 480.0144162 | AM183: 822.7974362 | AN183: 2858.407894
A184: Communications | D184: 0 | E184: 0 | F184: 2082.98238 | G184: 370.2776736 | H184: 914.6799464 | I184: 914.7929043 | J184: 194.0374305 | K184: 116.5373356 | L184: 56.84748078 | M184: 0 | N184: 0 | O184: 0 | AD184: 0 | AE184: 2276.04569 | AF184: 418.83868 | AG184: 1055.372117 | AH184: 1078.312915 | AI184: 233.9999816 | AJ184: 144.1572174 | AK184: 72.13126147 | AL184: 0 | AM184: 0 | AN184: 0
A185: Other | D185: 96.16863885 | E185: 345.3895979 | F185: 9655.317965 | G185: 2393.08993 | H185: 2102.18086 | I185: 0 | J185: 0 | K185: 0 | L185: 0 | M185: 0 | N185: 0 | O185: 0 | AD185: 367.167 | AE185: 10550.23079 | AF185: 2706.93779 | AG185: 2425.529359 | AH185: 0 | AI185: 0 | AJ185: 0 | AK185: 0 | AL185: 0 | AM185: 0 | AN185: 0
D186: =SUM(D180:D185) -> 70127.63271 | E186: 55532.25292 | F186: 63664.796 | G186: 55652.64631 | H186: 52855.814 | I186: 25170.63603 | J186: 5696.483545 | K186: 8503.884883 | L186: 4798.741024 | M186: 853.68753 | N186: 1110.143347 | O186: 2581.707147 | AD186: 59033.656 | AE186: 69565.63144 | AF186: 62951.35402 | AG186: 60985.87002 | AH186: 29669.90867 | AI186: 6869.690251 | AJ186: 10519.34451 | AK186: 6088.910868 | AL186: 1111.097676 | AM186: 1482.085847 | AN186: 3535.430258
A189: Accumulation Meters | B189: Net | C189: Regulatory | D189: =D$4 -> 2009 | E189: =E$4 -> 2010 | F189: 2011 | G189: 2012 | H189: 2013 | I189: 2014 | J189: 2015 | K189: 2016 | L189: 2017 | M189: 2018 | N189: 2019 | O189: 2020 | P189: 2021 | Q189: 2022 | R189: 2023 | S189: 2024 | T189: 2025 | U189: 2026 | V189: 2027 | W189: 2028 | X189: 2029 | Y189: 2030 | Z189: 2031 | AA189: 2032 | AD189: 2010 | AE189: 2011 | AF189: 2012 | AG189: 2013 | AH189: 2014 | AI189: 2015 | AJ189: 2016 | AK189: 2017 | AL189: 2018 | AM189: 2019 | AN189: 2020
A190: =$A$4 -> ($000 Real 2008) | B190: Capex | C190: Life (years) | AD190: =E190*AD$16 -> 0 | AE190: 0 | AF190: 0 | AG190: 0 | AH190: 0 | AI190: 0 | AJ190: 0 | AK190: 0 | AL190: 0 | AM190: 0 | AN190: 0
A191: 2009 | B191: =D$180 -> 3685.95214 | C191: 4.5 | D191: =IF($C191=1,$B191,$B191/2/$C191) -> 409.5502377 | E191: =IF((SUM($D191:D191)+$B191/$C191)>$B191,$B191-SUM($D191:D191),$B191/$C191) -> 819.1004755 | F191: =IF((SUM($D191:E191)+$B191/$C191)>$B191,$B191-SUM($D191:E191),$B191/$C191) -> 819.1004755 | G191: =IF((SUM($D191:F191)+$B191/$C191)>$B191,$B191-SUM($D191:F191),$B191/$C191) -> 819.1004755 | H191: =IF((SUM($D191:G191)+$B191/$C191)>$B191,$B191-SUM($D191:G191),$B191/$C191) -> 819.1004755 | I191: =IF((SUM($D191:H191)+$B191/$C191)>$B191,$B191-SUM($D191:H191),$B191/$C191) -> 4.547473509e-13 | J191: =IF((SUM($D191:I191)+$B191/$C191)>$B191,$B191-SUM($D191:I191),$B191/$C191) -> 0 | K191: =IF((SUM($D191:J191)+$B191/$C191)>$B191,$B191-SUM($D191:J191),$B191/$C191) -> 0 | L191: =IF((SUM($D191:K191)+$B191/$C191)>$B191,$B191-SUM($D191:K191),$B191/$C191) -> 0 | M191: =IF((SUM($D191:L191)+$B191/$C191)>$B191,$B191-SUM($D191:L191),$B191/$C191) -> 0 | N191: =IF((SUM($D191:M191)+$B191/$C191)>$B191,$B191-SUM($D191:M191),$B191/$C191) -> 0 | O191: =IF((SUM($D191:N191)+$B191/$C191)>$B191,$B191-SUM($D191:N191),$B191/$C191) -> 0 | P191: =IF((SUM($D191:O191)+$B191/$C191)>$B191,$B191-SUM($D191:O191),$B191/$C191) -> 0 | Q191: =IF((SUM($D191:P191)+$B191/$C191)>$B191,$B191-SUM($D191:P191),$B191/$C191) -> 0 | R191: =IF((SUM($D191:Q191)+$B191/$C191)>$B191,$B191-SUM($D191:Q191),$B191/$C191) -> 0 | S191: =IF((SUM($D191:R191)+$B191/$C191)>$B191,$B191-SUM($D191:R191),$B191/$C191) -> 0 | T191: =IF((SUM($D191:S191)+$B191/$C191)>$B191,$B191-SUM($D191:S191),$B191/$C191) -> 0 | U191: =IF((SUM($D191:T191)+$B191/$C191)>$B191,$B191-SUM($D191:T191),$B191/$C191) -> 0 | V191: =IF((SUM($D191:U191)+$B191/$C191)>$B191,$B191-SUM($D191:U191),$B191/$C191) -> 0 | W191: =IF((SUM($D191:V191)+$B191/$C191)>$B191,$B191-SUM($D191:V191),$B191/$C191) -> 0 | X191: =IF((SUM($D191:W191)+$B191/$C191)>$B191,$B191-SUM($D191:W191),$B191/$C191) -> 0 | Y191: =IF((SUM($D191:X191)+$B191/$C191)>$B191,$B191-SUM($D191:X191),$B191/$C191) -> 0 | Z191: =IF((SUM($D191:Y191)+$B191/$C191)>$B191,$B191-SUM($D191:Y191),$B191/$C191) -> 0 | AA191: =IF((SUM($D191:Z191)+$B191/$C191)>$B191,$B191-SUM($D191:Z191),$B191/$C191) -> 0 | AD191: 870.7461549 | AE191: 895.0196242 | AF191: 926.5234887 | AG191: 945.0910194 | AH191: 5.360338272e-13 | AI191: 0 | AJ191: 0 | AK191: 0 | AL191: 0 | AM191: 0 | AN191: 0
A192: 2010 | B192: =E$180 -> 3375.606278 | C192: 3.5 | E192: =IF($C192=1,$B192,$B192/2/$C192) -> 482.2294682 | F192: =IF((SUM($D192:E192)+$B192/$C192)>$B192,$B192-SUM($D192:E192),$B192/$C192) -> 964.4589365 | G192: =IF((SUM($D192:F192)+$B192/$C192)>$B192,$B192-SUM($D192:F192),$B192/$C192) -> 964.4589365 | H192: =IF((SUM($D192:G192)+$B192/$C192)>$B192,$B192-SUM($D192:G192),$B192/$C192) -> 964.4589365 | I192: =IF((SUM($D192:H192)+$B192/$C192)>$B192,$B192-SUM($D192:H192),$B192/$C192) -> 0 | J192: =IF((SUM($D192:I192)+$B192/$C192)>$B192,$B192-SUM($D192:I192),$B192/$C192) -> 0 | K192: =IF((SUM($D192:J192)+$B192/$C192)>$B192,$B192-SUM($D192:J192),$B192/$C192) -> 0 | L192: =IF((SUM($D192:K192)+$B192/$C192)>$B192,$B192-SUM($D192:K192),$B192/$C192) -> 0 | M192: =IF((SUM($D192:L192)+$B192/$C192)>$B192,$B192-SUM($D192:L192),$B192/$C192) -> 0 | N192: =IF((SUM($D192:M192)+$B192/$C192)>$B192,$B192-SUM($D192:M192),$B192/$C192) -> 0 | O192: =IF((SUM($D192:N192)+$B192/$C192)>$B192,$B192-SUM($D192:N192),$B192/$C192) -> 0 | P192: =IF((SUM($D192:O192)+$B192/$C192)>$B192,$B192-SUM($D192:O192),$B192/$C192) -> 0 | Q192: =IF((SUM($D192:P192)+$B192/$C192)>$B192,$B192-SUM($D192:P192),$B192/$C192) -> 0 | R192: =IF((SUM($D192:Q192)+$B192/$C192)>$B192,$B192-SUM($D192:Q192),$B192/$C192) -> 0 | S192: =IF((SUM($D192:R192)+$B192/$C192)>$B192,$B192-SUM($D192:R192),$B192/$C192) -> 0 | T192: =IF((SUM($D192:S192)+$B192/$C192)>$B192,$B192-SUM($D192:S192),$B192/$C192) -> 0 | U192: =IF((SUM($D192:T192)+$B192/$C192)>$B192,$B192-SUM($D192:T192),$B192/$C192) -> 0 | V192: =IF((SUM($D192:U192)+$B192/$C192)>$B192,$B192-SUM($D192:U192),$B192/$C192) -> 0 | W192: =IF((SUM($D192:V192)+$B192/$C192)>$B192,$B192-SUM($D192:V192),$B192/$C192) -> 0 | X192: =IF((SUM($D192:W192)+$B192/$C192)>$B192,$B192-SUM($D192:W192),$B192/$C192) -> 0 | Y192: =IF((SUM($D192:X192)+$B192/$C192)>$B192,$B192-SUM($D192:X192),$B192/$C192) -> 0 | Z192: =IF((SUM($D192:Y192)+$B192/$C192)>$B192,$B192-SUM($D192:Y192),$B192/$C192) -> 0 | AA192: =IF((SUM($D192:Z192)+$B192/$C192)>$B192,$B192-SUM($D192:Z192),$B192/$C192) -> 0 | AD192: 512.6348571 | AE192: 1053.85078 | AF192: 1090.945354 | AG192: 1112.807899 | AH192: 0 | AI192: 0 | AJ192: 0 | AK192: 0 | AL192: 0 | AM192: 0 | AN192: 0
A193: 2011 | B193: =F$180 -> 3675.20263 | C193: 2.5 | F193: =IF($C193=1,$B193,$B193/2/$C193) -> 735.040526 | G193: =IF((SUM($D193:F193)+$B193/$C193)>$B193,$B193-SUM($D193:F193),$B193/$C193) -> 1470.081052 | H193: =IF((SUM($D193:G193)+$B193/$C193)>$B193,$B193-SUM($D193:G193),$B193/$C193) -> 1470.081052 | I193: =IF((SUM($D193:H193)+$B193/$C193)>$B193,$B193-SUM($D193:H193),$B193/$C193) -> 0 | J193: =IF((SUM($D193:I193)+$B193/$C193)>$B193,$B193-SUM($D193:I193),$B193/$C193) -> 0 | K193: =IF((SUM($D193:J193)+$B193/$C193)>$B193,$B193-SUM($D193:J193),$B193/$C193) -> 0 | L193: =IF((SUM($D193:K193)+$B193/$C193)>$B193,$B193-SUM($D193:K193),$B193/$C193) -> 0 | M193: =IF((SUM($D193:L193)+$B193/$C193)>$B193,$B193-SUM($D193:L193),$B193/$C193) -> 0 | N193: =IF((SUM($D193:M193)+$B193/$C193)>$B193,$B193-SUM($D193:M193),$B193/$C193) -> 0 | O193: =IF((SUM($D193:N193)+$B193/$C193)>$B193,$B193-SUM($D193:N193),$B193/$C193) -> 0 | P193: =IF((SUM($D193:O193)+$B193/$C193)>$B193,$B193-SUM($D193:O193),$B193/$C193) -> 0 | Q193: =IF((SUM($D193:P193)+$B193/$C193)>$B193,$B193-SUM($D193:P193),$B193/$C193) -> 0 | R193: =IF((SUM($D193:Q193)+$B193/$C193)>$B193,$B193-SUM($D193:Q193),$B193/$C193) -> 0 | S193: =IF((SUM($D193:R193)+$B193/$C193)>$B193,$B193-SUM($D193:R193),$B193/$C193) -> 0 | T193: =IF((SUM($D193:S193)+$B193/$C193)>$B193,$B193-SUM($D193:S193),$B193/$C193) -> 0 | U193: =IF((SUM($D193:T193)+$B193/$C193)>$B193,$B193-SUM($D193:T193),$B193/$C193) -> 0 | V193: =IF((SUM($D193:U193)+$B193/$C193)>$B193,$B193-SUM($D193:U193),$B193/$C193) -> 0 | W193: =IF((SUM($D193:V193)+$B193/$C193)>$B193,$B193-SUM($D193:V193),$B193/$C193) -> 0 | X193: =IF((SUM($D193:W193)+$B193/$C193)>$B193,$B193-SUM($D193:W193),$B193/$C193) -> 0 | Y193: =IF((SUM($D193:X193)+$B193/$C193)>$B193,$B193-SUM($D193:X193),$B193/$C193) -> 0 | Z193: =IF((SUM($D193:Y193)+$B193/$C193)>$B193,$B193-SUM($D193:Y193),$B193/$C193) -> 0 | AA193: =IF((SUM($D193:Z193)+$B193/$C193)>$B193,$B193-SUM($D193:Z193),$B193/$C193) -> 0 | AE193: =F193*AE$16 -> 803.168494 | AF193: 1662.878567 | AG193: 1696.202653 | AH193: 0 | AI193: 0 | AJ193: 0 | AK193: 0 | AL193: 0 | AM193: 0 | AN193: 0
A194: 2012 | B194: =G$180 -> 733.6797013 | C194: 1.5 | G194: =IF($C194=1,$B194,$B194/2/$C194) -> 244.5599004 | H194: =IF((SUM($D194:G194)+$B194/$C194)>$B194,$B194-SUM($D194:G194),$B194/$C194) -> 489.1198009 | I194: =IF((SUM($D194:H194)+$B194/$C194)>$B194,$B194-SUM($D194:H194),$B194/$C194) -> 0 | J194: =IF((SUM($D194:I194)+$B194/$C194)>$B194,$B194-SUM($D194:I194),$B194/$C194) -> 0 | K194: =IF((SUM($D194:J194)+$B194/$C194)>$B194,$B194-SUM($D194:J194),$B194/$C194) -> 0 | L194: =IF((SUM($D194:K194)+$B194/$C194)>$B194,$B194-SUM($D194:K194),$B194/$C194) -> 0 | M194: =IF((SUM($D194:L194)+$B194/$C194)>$B194,$B194-SUM($D194:L194),$B194/$C194) -> 0 | N194: =IF((SUM($D194:M194)+$B194/$C194)>$B194,$B194-SUM($D194:M194),$B194/$C194) -> 0 | O194: =IF((SUM($D194:N194)+$B194/$C194)>$B194,$B194-SUM($D194:N194),$B194/$C194) -> 0 | P194: =IF((SUM($D194:O194)+$B194/$C194)>$B194,$B194-SUM($D194:O194),$B194/$C194) -> 0 | Q194: =IF((SUM($D194:P194)+$B194/$C194)>$B194,$B194-SUM($D194:P194),$B194/$C194) -> 0 | R194: =IF((SUM($D194:Q194)+$B194/$C194)>$B194,$B194-SUM($D194:Q194),$B194/$C194) -> 0 | S194: =IF((SUM($D194:R194)+$B194/$C194)>$B194,$B194-SUM($D194:R194),$B194/$C194) -> 0 | T194: =IF((SUM($D194:S194)+$B194/$C194)>$B194,$B194-SUM($D194:S194),$B194/$C194) -> 0 | U194: =IF((SUM($D194:T194)+$B194/$C194)>$B194,$B194-SUM($D194:T194),$B194/$C194) -> 0 | V194: =IF((SUM($D194:U194)+$B194/$C194)>$B194,$B194-SUM($D194:U194),$B194/$C194) -> 0 | W194: =IF((SUM($D194:V194)+$B194/$C194)>$B194,$B194-SUM($D194:V194),$B194/$C194) -> 0 | X194: =IF((SUM($D194:W194)+$B194/$C194)>$B194,$B194-SUM($D194:W194),$B194/$C194) -> 0 | Y194: =IF((SUM($D194:X194)+$B194/$C194)>$B194,$B194-SUM($D194:X194),$B194/$C194) -> 0 | Z194: =IF((SUM($D194:Y194)+$B194/$C194)>$B194,$B194-SUM($D194:Y194),$B194/$C194) -> 0 | AA194: =IF((SUM($D194:Z194)+$B194/$C194)>$B194,$B194-SUM($D194:Z194),$B194/$C194) -> 0 | AF194: =G194*AF$16 -> 276.63333 | AG194: 564.3541239 | AH194: 0 | AI194: 0 | AJ194: 0 | AK194: 0 | AL194: 0 | AM194: 0 | AN194: 0
A195: 2013 | B195: =H$180 -> 0 | C195: 1 | H195: =IF($C195=1,$B195,$B195/2/$C195) -> 0 | I195: =IF((SUM($D195:H195)+$B195/$C195)>$B195,$B195-SUM($D195:H195),$B195/$C195) -> 0 | J195: =IF((SUM($D195:I195)+$B195/$C195)>$B195,$B195-SUM($D195:I195),$B195/$C195) -> 0 | K195: =IF((SUM($D195:J195)+$B195/$C195)>$B195,$B195-SUM($D195:J195),$B195/$C195) -> 0 | L195: =IF((SUM($D195:K195)+$B195/$C195)>$B195,$B195-SUM($D195:K195),$B195/$C195) -> 0 | M195: =IF((SUM($D195:L195)+$B195/$C195)>$B195,$B195-SUM($D195:L195),$B195/$C195) -> 0 | N195: =IF((SUM($D195:M195)+$B195/$C195)>$B195,$B195-SUM($D195:M195),$B195/$C195) -> 0 | O195: =IF((SUM($D195:N195)+$B195/$C195)>$B195,$B195-SUM($D195:N195),$B195/$C195) -> 0 | P195: =IF((SUM($D195:O195)+$B195/$C195)>$B195,$B195-SUM($D195:O195),$B195/$C195) -> 0 | Q195: =IF((SUM($D195:P195)+$B195/$C195)>$B195,$B195-SUM($D195:P195),$B195/$C195) -> 0 | R195: =IF((SUM($D195:Q195)+$B195/$C195)>$B195,$B195-SUM($D195:Q195),$B195/$C195) -> 0 | S195: =IF((SUM($D195:R195)+$B195/$C195)>$B195,$B195-SUM($D195:R195),$B195/$C195) -> 0 | T195: =IF((SUM($D195:S195)+$B195/$C195)>$B195,$B195-SUM($D195:S195),$B195/$C195) -> 0 | U195: =IF((SUM($D195:T195)+$B195/$C195)>$B195,$B195-SUM($D195:T195),$B195/$C195) -> 0 | V195: =IF((SUM($D195:U195)+$B195/$C195)>$B195,$B195-SUM($D195:U195),$B195/$C195) -> 0 | W195: =IF((SUM($D195:V195)+$B195/$C195)>$B195,$B195-SUM($D195:V195),$B195/$C195) -> 0 | X195: =IF((SUM($D195:W195)+$B195/$C195)>$B195,$B195-SUM($D195:W195),$B195/$C195) -> 0 | Y195: =IF((SUM($D195:X195)+$B195/$C195)>$B195,$B195-SUM($D195:X195),$B195/$C195) -> 0 | Z195: =IF((SUM($D195:Y195)+$B195/$C195)>$B195,$B195-SUM($D195:Y195),$B195/$C195) -> 0 | AA195: =IF((SUM($D195:Z195)+$B195/$C195)>$B195,$B195-SUM($D195:Z195),$B195/$C195) -> 0 | AG195: =H195*AG$16 -> 0 | AH195: 0 | AI195: 0 | AJ195: 0 | AK195: 0 | AL195: 0 | AM195: 0 | AN195: 0
A196: 2014 | B196: =I$180 -> 0 | C196: 1 | I196: =IF($C196=1,$B196,$B196/2/$C196) -> 0 | J196: =IF((SUM($D196:I196)+$B196/$C196)>$B196,$B196-SUM($D196:I196),$B196/$C196) -> 0 | K196: =IF((SUM($D196:J196)+$B196/$C196)>$B196,$B196-SUM($D196:J196),$B196/$C196) -> 0 | L196: =IF((SUM($D196:K196)+$B196/$C196)>$B196,$B196-SUM($D196:K196),$B196/$C196) -> 0 | M196: =IF((SUM($D196:L196)+$B196/$C196)>$B196,$B196-SUM($D196:L196),$B196/$C196) -> 0 | N196: =IF((SUM($D196:M196)+$B196/$C196)>$B196,$B196-SUM($D196:M196),$B196/$C196) -> 0 | O196: =IF((SUM($D196:N196)+$B196/$C196)>$B196,$B196-SUM($D196:N196),$B196/$C196) -> 0 | P196: =IF((SUM($D196:O196)+$B196/$C196)>$B196,$B196-SUM($D196:O196),$B196/$C196) -> 0 | Q196: =IF((SUM($D196:P196)+$B196/$C196)>$B196,$B196-SUM($D196:P196),$B196/$C196) -> 0 | R196: =IF((SUM($D196:Q196)+$B196/$C196)>$B196,$B196-SUM($D196:Q196),$B196/$C196) -> 0 | S196: =IF((SUM($D196:R196)+$B196/$C196)>$B196,$B196-SUM($D196:R196),$B196/$C196) -> 0 | T196: =IF((SUM($D196:S196)+$B196/$C196)>$B196,$B196-SUM($D196:S196),$B196/$C196) -> 0 | U196: =IF((SUM($D196:T196)+$B196/$C196)>$B196,$B196-SUM($D196:T196),$B196/$C196) -> 0 | V196: =IF((SUM($D196:U196)+$B196/$C196)>$B196,$B196-SUM($D196:U196),$B196/$C196) -> 0 | W196: =IF((SUM($D196:V196)+$B196/$C196)>$B196,$B196-SUM($D196:V196),$B196/$C196) -> 0 | X196: =IF((SUM($D196:W196)+$B196/$C196)>$B196,$B196-SUM($D196:W196),$B196/$C196) -> 0 | Y196: =IF((SUM($D196:X196)+$B196/$C196)>$B196,$B196-SUM($D196:X196),$B196/$C196) -> 0 | Z196: =IF((SUM($D196:Y196)+$B196/$C196)>$B196,$B196-SUM($D196:Y196),$B196/$C196) -> 0 | AA196: =IF((SUM($D196:Z196)+$B196/$C196)>$B196,$B196-SUM($D196:Z196),$B196/$C196) -> 0 | AH196: =I196*AH$16 -> 0 | AI196: 0 | AJ196: 0 | AK196: 0 | AL196: 0 | AM196: 0 | AN196: 0
A197: 2015 | B197: =J$180 -> 0 | C197: 1 | J197: =IF($C197=1,$B197,$B197/2/$C197) -> 0 | K197: =IF((SUM($D197:J197)+$B197/$C197)>$B197,$B197-SUM($D197:J197),$B197/$C197) -> 0 | L197: =IF((SUM($D197:K197)+$B197/$C197)>$B197,$B197-SUM($D197:K197),$B197/$C197) -> 0 | M197: =IF((SUM($D197:L197)+$B197/$C197)>$B197,$B197-SUM($D197:L197),$B197/$C197) -> 0 | N197: =IF((SUM($D197:M197)+$B197/$C197)>$B197,$B197-SUM($D197:M197),$B197/$C197) -> 0 | O197: =IF((SUM($D197:N197)+$B197/$C197)>$B197,$B197-SUM($D197:N197),$B197/$C197) -> 0 | P197: =IF((SUM($D197:O197)+$B197/$C197)>$B197,$B197-SUM($D197:O197),$B197/$C197) -> 0 | Q197: =IF((SUM($D197:P197)+$B197/$C197)>$B197,$B197-SUM($D197:P197),$B197/$C197) -> 0 | R197: =IF((SUM($D197:Q197)+$B197/$C197)>$B197,$B197-SUM($D197:Q197),$B197/$C197) -> 0 | S197: =IF((SUM($D197:R197)+$B197/$C197)>$B197,$B197-SUM($D197:R197),$B197/$C197) -> 0 | T197: =IF((SUM($D197:S197)+$B197/$C197)>$B197,$B197-SUM($D197:S197),$B197/$C197) -> 0 | U197: =IF((SUM($D197:T197)+$B197/$C197)>$B197,$B197-SUM($D197:T197),$B197/$C197) -> 0 | V197: =IF((SUM($D197:U197)+$B197/$C197)>$B197,$B197-SUM($D197:U197),$B197/$C197) -> 0 | W197: =IF((SUM($D197:V197)+$B197/$C197)>$B197,$B197-SUM($D197:V197),$B197/$C197) -> 0 | X197: =IF((SUM($D197:W197)+$B197/$C197)>$B197,$B197-SUM($D197:W197),$B197/$C197) -> 0 | Y197: =IF((SUM($D197:X197)+$B197/$C197)>$B197,$B197-SUM($D197:X197),$B197/$C197) -> 0 | Z197: =IF((SUM($D197:Y197)+$B197/$C197)>$B197,$B197-SUM($D197:Y197),$B197/$C197) -> 0 | AA197: =IF((SUM($D197:Z197)+$B197/$C197)>$B197,$B197-SUM($D197:Z197),$B197/$C197) -> 0 | AH197: 0 | AI197: 0 | AJ197: 0 | AK197: 0 | AL197: 0 | AM197: 0 | AN197: 0
A198: =A197+1 -> 2016 | B198: =K$180 -> 0 | C198: =C197 -> 1 | K198: =IF($C198=1,$B198,$B198/2/$C198) -> 0 | L198: =IF((SUM($D198:K198)+$B198/$C198)>$B198,$B198-SUM($D198:K198),$B198/$C198) -> 0 | M198: =IF((SUM($D198:L198)+$B198/$C198)>$B198,$B198-SUM($D198:L198),$B198/$C198) -> 0 | N198: =IF((SUM($D198:M198)+$B198/$C198)>$B198,$B198-SUM($D198:M198),$B198/$C198) -> 0 | O198: =IF((SUM($D198:N198)+$B198/$C198)>$B198,$B198-SUM($D198:N198),$B198/$C198) -> 0 | P198: =IF((SUM($D198:O198)+$B198/$C198)>$B198,$B198-SUM($D198:O198),$B198/$C198) -> 0 | Q198: =IF((SUM($D198:P198)+$B198/$C198)>$B198,$B198-SUM($D198:P198),$B198/$C198) -> 0 | R198: =IF((SUM($D198:Q198)+$B198/$C198)>$B198,$B198-SUM($D198:Q198),$B198/$C198) -> 0 | S198: =IF((SUM($D198:R198)+$B198/$C198)>$B198,$B198-SUM($D198:R198),$B198/$C198) -> 0 | T198: =IF((SUM($D198:S198)+$B198/$C198)>$B198,$B198-SUM($D198:S198),$B198/$C198) -> 0 | U198: =IF((SUM($D198:T198)+$B198/$C198)>$B198,$B198-SUM($D198:T198),$B198/$C198) -> 0 | V198: =IF((SUM($D198:U198)+$B198/$C198)>$B198,$B198-SUM($D198:U198),$B198/$C198) -> 0 | W198: =IF((SUM($D198:V198)+$B198/$C198)>$B198,$B198-SUM($D198:V198),$B198/$C198) -> 0 | X198: =IF((SUM($D198:W198)+$B198/$C198)>$B198,$B198-SUM($D198:W198),$B198/$C198) -> 0 | Y198: =IF((SUM($D198:X198)+$B198/$C198)>$B198,$B198-SUM($D198:X198),$B198/$C198) -> 0 | Z198: =IF((SUM($D198:Y198)+$B198/$C198)>$B198,$B198-SUM($D198:Y198),$B198/$C198) -> 0 | AA198: =IF((SUM($D198:Z198)+$B198/$C198)>$B198,$B198-SUM($D198:Z198),$B198/$C198) -> 0 | AH198: 0 | AI198: 0 | AJ198: 0 | AK198: 0 | AL198: 0 | AM198: 0 | AN198: 0
A199: =A198+1 -> 2017 | B199: =L$180 -> 0 | C199: =C198 -> 1 | L199: =IF($C199=1,$B199,$B199/2/$C199) -> 0 | M199: =IF((SUM($D199:L199)+$B199/$C199)>$B199,$B199-SUM($D199:L199),$B199/$C199) -> 0 | N199: =IF((SUM($D199:M199)+$B199/$C199)>$B199,$B199-SUM($D199:M199),$B199/$C199) -> 0 | O199: =IF((SUM($D199:N199)+$B199/$C199)>$B199,$B199-SUM($D199:N199),$B199/$C199) -> 0 | P199: =IF((SUM($D199:O199)+$B199/$C199)>$B199,$B199-SUM($D199:O199),$B199/$C199) -> 0 | Q199: =IF((SUM($D199:P199)+$B199/$C199)>$B199,$B199-SUM($D199:P199),$B199/$C199) -> 0 | R199: =IF((SUM($D199:Q199)+$B199/$C199)>$B199,$B199-SUM($D199:Q199),$B199/$C199) -> 0 | S199: =IF((SUM($D199:R199)+$B199/$C199)>$B199,$B199-SUM($D199:R199),$B199/$C199) -> 0 | T199: =IF((SUM($D199:S199)+$B199/$C199)>$B199,$B199-SUM($D199:S199),$B199/$C199) -> 0 | U199: =IF((SUM($D199:T199)+$B199/$C199)>$B199,$B199-SUM($D199:T199),$B199/$C199) -> 0 | V199: =IF((SUM($D199:U199)+$B199/$C199)>$B199,$B199-SUM($D199:U199),$B199/$C199) -> 0 | W199: =IF((SUM($D199:V199)+$B199/$C199)>$B199,$B199-SUM($D199:V199),$B199/$C199) -> 0 | X199: =IF((SUM($D199:W199)+$B199/$C199)>$B199,$B199-SUM($D199:W199),$B199/$C199) -> 0 | Y199: =IF((SUM($D199:X199)+$B199/$C199)>$B199,$B199-SUM($D199:X199),$B199/$C199) -> 0 | Z199: =IF((SUM($D199:Y199)+$B199/$C199)>$B199,$B199-SUM($D199:Y199),$B199/$C199) -> 0 | AA199: =IF((SUM($D199:Z199)+$B199/$C199)>$B199,$B199-SUM($D199:Z199),$B199/$C199) -> 0 | AH199: 0 | AI199: 0 | AJ199: 0 | AK199: 0 | AL199: 0 | AM199: 0 | AN199: 0
A200: 2018 | B200: =M$180 -> 0 | C200: 1 | M200: =IF($C200=1,$B200,$B200/2/$C200) -> 0 | N200: =IF((SUM($D200:M200)+$B200/$C200)>$B200,$B200-SUM($D200:M200),$B200/$C200) -> 0 | O200: =IF((SUM($D200:N200)+$B200/$C200)>$B200,$B200-SUM($D200:N200),$B200/$C200) -> 0 | P200: =IF((SUM($D200:O200)+$B200/$C200)>$B200,$B200-SUM($D200:O200),$B200/$C200) -> 0 | Q200: =IF((SUM($D200:P200)+$B200/$C200)>$B200,$B200-SUM($D200:P200),$B200/$C200) -> 0 | R200: =IF((SUM($D200:Q200)+$B200/$C200)>$B200,$B200-SUM($D200:Q200),$B200/$C200) -> 0 | S200: =IF((SUM($D200:R200)+$B200/$C200)>$B200,$B200-SUM($D200:R200),$B200/$C200) -> 0 | T200: =IF((SUM($D200:S200)+$B200/$C200)>$B200,$B200-SUM($D200:S200),$B200/$C200) -> 0 | U200: =IF((SUM($D200:T200)+$B200/$C200)>$B200,$B200-SUM($D200:T200),$B200/$C200) -> 0 | V200: =IF((SUM($D200:U200)+$B200/$C200)>$B200,$B200-SUM($D200:U200),$B200/$C200) -> 0 | W200: =IF((SUM($D200:V200)+$B200/$C200)>$B200,$B200-SUM($D200:V200),$B200/$C200) -> 0 | X200: =IF((SUM($D200:W200)+$B200/$C200)>$B200,$B200-SUM($D200:W200),$B200/$C200) -> 0 | Y200: =IF((SUM($D200:X200)+$B200/$C200)>$B200,$B200-SUM($D200:X200),$B200/$C200) -> 0 | Z200: =IF((SUM($D200:Y200)+$B200/$C200)>$B200,$B200-SUM($D200:Y200),$B200/$C200) -> 0 | AA200: =IF((SUM($D200:Z200)+$B200/$C200)>$B200,$B200-SUM($D200:Z200),$B200/$C200) -> 0 | AH200: 0 | AI200: 0 | AJ200: 0 | AK200: 0 | AL200: 0 | AM200: 0 | AN200: 0
A201: 2019 | B201: =N$180 -> 0 | C201: 1 | N201: =IF($C201=1,$B201,$B201/2/$C201) -> 0 | O201: =IF((SUM($D201:N201)+$B201/$C201)>$B201,$B201-SUM($D201:N201),$B201/$C201) -> 0 | P201: =IF((SUM($D201:O201)+$B201/$C201)>$B201,$B201-SUM($D201:O201),$B201/$C201) -> 0 | Q201: =IF((SUM($D201:P201)+$B201/$C201)>$B201,$B201-SUM($D201:P201),$B201/$C201) -> 0 | R201: =IF((SUM($D201:Q201)+$B201/$C201)>$B201,$B201-SUM($D201:Q201),$B201/$C201) -> 0 | S201: =IF((SUM($D201:R201)+$B201/$C201)>$B201,$B201-SUM($D201:R201),$B201/$C201) -> 0 | T201: =IF((SUM($D201:S201)+$B201/$C201)>$B201,$B201-SUM($D201:S201),$B201/$C201) -> 0 | U201: =IF((SUM($D201:T201)+$B201/$C201)>$B201,$B201-SUM($D201:T201),$B201/$C201) -> 0 | V201: =IF((SUM($D201:U201)+$B201/$C201)>$B201,$B201-SUM($D201:U201),$B201/$C201) -> 0 | W201: =IF((SUM($D201:V201)+$B201/$C201)>$B201,$B201-SUM($D201:V201),$B201/$C201) -> 0 | X201: =IF((SUM($D201:W201)+$B201/$C201)>$B201,$B201-SUM($D201:W201),$B201/$C201) -> 0 | Y201: =IF((SUM($D201:X201)+$B201/$C201)>$B201,$B201-SUM($D201:X201),$B201/$C201) -> 0 | Z201: =IF((SUM($D201:Y201)+$B201/$C201)>$B201,$B201-SUM($D201:Y201),$B201/$C201) -> 0 | AA201: =IF((SUM($D201:Z201)+$B201/$C201)>$B201,$B201-SUM($D201:Z201),$B201/$C201) -> 0 | AH201: 0 | AI201: 0 | AJ201: 0 | AK201: 0 | AL201: 0 | AM201: 0 | AN201: 0
A202: =A201+1 -> 2020 | B202: =O$180 -> 0 | C202: 1 | O202: =IF($C202=1,$B202,$B202/2/$C202) -> 0 | P202: =IF((SUM($D202:O202)+$B202/$C202)>$B202,$B202-SUM($D202:O202),$B202/$C202) -> 0 | Q202: =IF((SUM($D202:P202)+$B202/$C202)>$B202,$B202-SUM($D202:P202),$B202/$C202) -> 0 | R202: =IF((SUM($D202:Q202)+$B202/$C202)>$B202,$B202-SUM($D202:Q202),$B202/$C202) -> 0 | S202: =IF((SUM($D202:R202)+$B202/$C202)>$B202,$B202-SUM($D202:R202),$B202/$C202) -> 0 | T202: =IF((SUM($D202:S202)+$B202/$C202)>$B202,$B202-SUM($D202:S202),$B202/$C202) -> 0 | U202: =IF((SUM($D202:T202)+$B202/$C202)>$B202,$B202-SUM($D202:T202),$B202/$C202) -> 0 | V202: =IF((SUM($D202:U202)+$B202/$C202)>$B202,$B202-SUM($D202:U202),$B202/$C202) -> 0 | W202: =IF((SUM($D202:V202)+$B202/$C202)>$B202,$B202-SUM($D202:V202),$B202/$C202) -> 0 | X202: =IF((SUM($D202:W202)+$B202/$C202)>$B202,$B202-SUM($D202:W202),$B202/$C202) -> 0 | Y202: =IF((SUM($D202:X202)+$B202/$C202)>$B202,$B202-SUM($D202:X202),$B202/$C202) -> 0 | Z202: =IF((SUM($D202:Y202)+$B202/$C202)>$B202,$B202-SUM($D202:Y202),$B202/$C202) -> 0 | AA202: =IF((SUM($D202:Z202)+$B202/$C202)>$B202,$B202-SUM($D202:Z202),$B202/$C202) -> 0 | AH202: 0 | AI202: 0 | AJ202: 0 | AK202: 0 | AL202: 0 | AM202: 0 | AN202: 0
B203: =SUM(B191:B202) -> 11470.44075 | D203: =SUM(D191:D197) -> 409.5502377 | E203: 1301.329944 | F203: 2518.599938 | G203: 3498.200364 | H203: 3742.760265 | I203: 4.547473509e-13 | J203: 0 | K203: =SUM(K191:K198) -> 0 | L203: 0 | M203: 0 | N203: 0 | O203: 0 | P203: 0 | Q203: 0 | R203: 0 | S203: 0 | T203: 0 | U203: 0 | V203: 0 | W203: 0 | X203: 0 | Y203: 0 | Z203: 0 | AA203: 0 | AD203: =E203*AD$16 -> 1383.381012 | AE203: =F203*AE$16 -> 2752.038898 | AF203: =G203*AF$16 -> 3956.98074 | AG203: =H203*AG$16 -> 4318.455696 | AH203: 5.360338272e-13 | AI203: 0 | AJ203: 0 | AK203: 0 | AL203: 0 | AM203: 0 | AN203: 0
A206: Manually read interval meters | B206: Net | C206: Regulatory | D206: =D$4 -> 2009 | E206: =E$4 -> 2010 | F206: 2011 | G206: 2012 | H206: 2013 | I206: 2014 | J206: 2015 | K206: 2016 | L206: 2017 | M206: 2018 | N206: 2019 | O206: 2020 | P206: 2021 | Q206: 2022 | R206: 2023 | S206: 2024 | T206: 2025 | U206: 2026 | V206: 2027 | W206: 2028 | X206: 2029 | Y206: 2030 | Z206: 2031 | AA206: 2032 | AD206: 2010 | AE206: 2011 | AF206: 2012 | AG206: 2013 | AH206: 2014 | AI206: 2015 | AJ206: 2016 | AK206: 2017 | AL206: 2018 | AM206: 2019 | AN206: 2020
A207: =$A$4 -> ($000 Real 2008) | B207: Capex | C207: Life (years) | AD207: =E207*AD$16 -> 0 | AE207: 0 | AF207: 0 | AG207: 0 | AH207: 0 | AI207: 0 | AJ207: 0 | AK207: 0 | AL207: 0 | AM207: 0 | AN207: 0
A208: 2009 | B208: =D$181 -> 0 | C208: 4.5 | D208: =IF($C208=1,$B208,$B208/2/$C208) -> 0 | E208: =IF((SUM($D208:D208)+$B208/$C208)>$B208,$B208-SUM($D208:D208),$B208/$C208) -> 0 | F208: =IF((SUM($D208:E208)+$B208/$C208)>$B208,$B208-SUM($D208:E208),$B208/$C208) -> 0 | G208: =IF((SUM($D208:F208)+$B208/$C208)>$B208,$B208-SUM($D208:F208),$B208/$C208) -> 0 | H208: =IF((SUM($D208:G208)+$B208/$C208)>$B208,$B208-SUM($D208:G208),$B208/$C208) -> 0 | I208: =IF((SUM($D208:H208)+$B208/$C208)>$B208,$B208-SUM($D208:H208),$B208/$C208) -> 0 | J208: =IF((SUM($D208:I208)+$B208/$C208)>$B208,$B208-SUM($D208:I208),$B208/$C208) -> 0 | K208: =IF((SUM($D208:J208)+$B208/$C208)>$B208,$B208-SUM($D208:J208),$B208/$C208) -> 0 | L208: =IF((SUM($D208:K208)+$B208/$C208)>$B208,$B208-SUM($D208:K208),$B208/$C208) -> 0 | M208: =IF((SUM($D208:L208)+$B208/$C208)>$B208,$B208-SUM($D208:L208),$B208/$C208) -> 0 | N208: =IF((SUM($D208:M208)+$B208/$C208)>$B208,$B208-SUM($D208:M208),$B208/$C208) -> 0 | O208: =IF((SUM($D208:N208)+$B208/$C208)>$B208,$B208-SUM($D208:N208),$B208/$C208) -> 0 | P208: =IF((SUM($D208:O208)+$B208/$C208)>$B208,$B208-SUM($D208:O208),$B208/$C208) -> 0 | Q208: =IF((SUM($D208:P208)+$B208/$C208)>$B208,$B208-SUM($D208:P208),$B208/$C208) -> 0 | R208: =IF((SUM($D208:Q208)+$B208/$C208)>$B208,$B208-SUM($D208:Q208),$B208/$C208) -> 0 | S208: =IF((SUM($D208:R208)+$B208/$C208)>$B208,$B208-SUM($D208:R208),$B208/$C208) -> 0 | T208: =IF((SUM($D208:S208)+$B208/$C208)>$B208,$B208-SUM($D208:S208),$B208/$C208) -> 0 | U208: =IF((SUM($D208:T208)+$B208/$C208)>$B208,$B208-SUM($D208:T208),$B208/$C208) -> 0 | V208: =IF((SUM($D208:U208)+$B208/$C208)>$B208,$B208-SUM($D208:U208),$B208/$C208) -> 0 | W208: =IF((SUM($D208:V208)+$B208/$C208)>$B208,$B208-SUM($D208:V208),$B208/$C208) -> 0 | X208: =IF((SUM($D208:W208)+$B208/$C208)>$B208,$B208-SUM($D208:W208),$B208/$C208) -> 0 | Y208: =IF((SUM($D208:X208)+$B208/$C208)>$B208,$B208-SUM($D208:X208),$B208/$C208) -> 0 | Z208: =IF((SUM($D208:Y208)+$B208/$C208)>$B208,$B208-SUM($D208:Y208),$B208/$C208) -> 0 | AA208: =IF((SUM($D208:Z208)+$B208/$C208)>$B208,$B208-SUM($D208:Z208),$B208/$C208) -> 0 | AD208: 0 | AE208: 0 | AF208: 0 | AG208: 0 | AH208: 0 | AI208: 0 | AJ208: 0 | AK208: 0 | AL208: 0 | AM208: 0 | AN208: 0
A209: 2010 | B209: =E$181 -> 0 | C209: 3.5 | E209: =IF($C209=1,$B209,$B209/2/$C209) -> 0 | F209: =IF((SUM($D209:E209)+$B209/$C209)>$B209,$B209-SUM($D209:E209),$B209/$C209) -> 0 | G209: =IF((SUM($D209:F209)+$B209/$C209)>$B209,$B209-SUM($D209:F209),$B209/$C209) -> 0 | H209: =IF((SUM($D209:G209)+$B209/$C209)>$B209,$B209-SUM($D209:G209),$B209/$C209) -> 0 | I209: =IF((SUM($D209:H209)+$B209/$C209)>$B209,$B209-SUM($D209:H209),$B209/$C209) -> 0 | J209: =IF((SUM($D209:I209)+$B209/$C209)>$B209,$B209-SUM($D209:I209),$B209/$C209) -> 0 | K209: =IF((SUM($D209:J209)+$B209/$C209)>$B209,$B209-SUM($D209:J209),$B209/$C209) -> 0 | L209: =IF((SUM($D209:K209)+$B209/$C209)>$B209,$B209-SUM($D209:K209),$B209/$C209) -> 0 | M209: =IF((SUM($D209:L209)+$B209/$C209)>$B209,$B209-SUM($D209:L209),$B209/$C209) -> 0 | N209: =IF((SUM($D209:M209)+$B209/$C209)>$B209,$B209-SUM($D209:M209),$B209/$C209) -> 0 | O209: =IF((SUM($D209:N209)+$B209/$C209)>$B209,$B209-SUM($D209:N209),$B209/$C209) -> 0 | P209: =IF((SUM($D209:O209)+$B209/$C209)>$B209,$B209-SUM($D209:O209),$B209/$C209) -> 0 | Q209: =IF((SUM($D209:P209)+$B209/$C209)>$B209,$B209-SUM($D209:P209),$B209/$C209) -> 0 | R209: =IF((SUM($D209:Q209)+$B209/$C209)>$B209,$B209-SUM($D209:Q209),$B209/$C209) -> 0 | S209: =IF((SUM($D209:R209)+$B209/$C209)>$B209,$B209-SUM($D209:R209),$B209/$C209) -> 0 | T209: =IF((SUM($D209:S209)+$B209/$C209)>$B209,$B209-SUM($D209:S209),$B209/$C209) -> 0 | U209: =IF((SUM($D209:T209)+$B209/$C209)>$B209,$B209-SUM($D209:T209),$B209/$C209) -> 0 | V209: =IF((SUM($D209:U209)+$B209/$C209)>$B209,$B209-SUM($D209:U209),$B209/$C209) -> 0 | W209: =IF((SUM($D209:V209)+$B209/$C209)>$B209,$B209-SUM($D209:V209),$B209/$C209) -> 0 | X209: =IF((SUM($D209:W209)+$B209/$C209)>$B209,$B209-SUM($D209:W209),$B209/$C209) -> 0 | Y209: =IF((SUM($D209:X209)+$B209/$C209)>$B209,$B209-SUM($D209:X209),$B209/$C209) -> 0 | Z209: =IF((SUM($D209:Y209)+$B209/$C209)>$B209,$B209-SUM($D209:Y209),$B209/$C209) -> 0 | AA209: =IF((SUM($D209:Z209)+$B209/$C209)>$B209,$B209-SUM($D209:Z209),$B209/$C209) -> 0 | AD209: 0 | AE209: 0 | AF209: 0 | AG209: 0 | AH209: 0 | AI209: 0 | AJ209: 0 | AK209: 0 | AL209: 0 | AM209: 0 | AN209: 0
A210: 2011 | B210: =F$181 -> 1617.641203 | C210: 2.5 | F210: =IF($C210=1,$B210,$B210/2/$C210) -> 323.5282407 | G210: =IF((SUM($D210:F210)+$B210/$C210)>$B210,$B210-SUM($D210:F210),$B210/$C210) -> 647.0564813 | H210: =IF((SUM($D210:G210)+$B210/$C210)>$B210,$B210-SUM($D210:G210),$B210/$C210) -> 647.0564813 | I210: =IF((SUM($D210:H210)+$B210/$C210)>$B210,$B210-SUM($D210:H210),$B210/$C210) -> 0 | J210: =IF((SUM($D210:I210)+$B210/$C210)>$B210,$B210-SUM($D210:I210),$B210/$C210) -> 0 | K210: =IF((SUM($D210:J210)+$B210/$C210)>$B210,$B210-SUM($D210:J210),$B210/$C210) -> 0 | L210: =IF((SUM($D210:K210)+$B210/$C210)>$B210,$B210-SUM($D210:K210),$B210/$C210) -> 0 | M210: =IF((SUM($D210:L210)+$B210/$C210)>$B210,$B210-SUM($D210:L210),$B210/$C210) -> 0 | N210: =IF((SUM($D210:M210)+$B210/$C210)>$B210,$B210-SUM($D210:M210),$B210/$C210) -> 0 | O210: =IF((SUM($D210:N210)+$B210/$C210)>$B210,$B210-SUM($D210:N210),$B210/$C210) -> 0 | P210: =IF((SUM($D210:O210)+$B210/$C210)>$B210,$B210-SUM($D210:O210),$B210/$C210) -> 0 | Q210: =IF((SUM($D210:P210)+$B210/$C210)>$B210,$B210-SUM($D210:P210),$B210/$C210) -> 0 | R210: =IF((SUM($D210:Q210)+$B210/$C210)>$B210,$B210-SUM($D210:Q210),$B210/$C210) -> 0 | S210: =IF((SUM($D210:R210)+$B210/$C210)>$B210,$B210-SUM($D210:R210),$B210/$C210) -> 0 | T210: =IF((SUM($D210:S210)+$B210/$C210)>$B210,$B210-SUM($D210:S210),$B210/$C210) -> 0 | U210: =IF((SUM($D210:T210)+$B210/$C210)>$B210,$B210-SUM($D210:T210),$B210/$C210) -> 0 | V210: =IF((SUM($D210:U210)+$B210/$C210)>$B210,$B210-SUM($D210:U210),$B210/$C210) -> 0 | W210: =IF((SUM($D210:V210)+$B210/$C210)>$B210,$B210-SUM($D210:V210),$B210/$C210) -> 0 | X210: =IF((SUM($D210:W210)+$B210/$C210)>$B210,$B210-SUM($D210:W210),$B210/$C210) -> 0 | Y210: =IF((SUM($D210:X210)+$B210/$C210)>$B210,$B210-SUM($D210:X210),$B210/$C210) -> 0 | Z210: =IF((SUM($D210:Y210)+$B210/$C210)>$B210,$B210-SUM($D210:Y210),$B210/$C210) -> 0 | AA210: =IF((SUM($D210:Z210)+$B210/$C210)>$B210,$B210-SUM($D210:Z210),$B210/$C210) -> 0 | AE210: =F210*AE$16 -> 353.51478 | AF210: 731.9163477 | AG210: 746.5839514 | AH210: 0 | AI210: 0 | AJ210: 0 | AK210: 0 | AL210: 0 | AM210: 0 | AN210: 0
A211: 2012 | B211: =G$181 -> 1143.531629 | C211: 1.5 | G211: =IF($C211=1,$B211,$B211/2/$C211) -> 381.1772096 | H211: =IF((SUM($D211:G211)+$B211/$C211)>$B211,$B211-SUM($D211:G211),$B211/$C211) -> 762.3544192 | I211: =IF((SUM($D211:H211)+$B211/$C211)>$B211,$B211-SUM($D211:H211),$B211/$C211) -> 0 | J211: =IF((SUM($D211:I211)+$B211/$C211)>$B211,$B211-SUM($D211:I211),$B211/$C211) -> 0 | K211: =IF((SUM($D211:J211)+$B211/$C211)>$B211,$B211-SUM($D211:J211),$B211/$C211) -> 0 | L211: =IF((SUM($D211:K211)+$B211/$C211)>$B211,$B211-SUM($D211:K211),$B211/$C211) -> 0 | M211: =IF((SUM($D211:L211)+$B211/$C211)>$B211,$B211-SUM($D211:L211),$B211/$C211) -> 0 | N211: =IF((SUM($D211:M211)+$B211/$C211)>$B211,$B211-SUM($D211:M211),$B211/$C211) -> 0 | O211: =IF((SUM($D211:N211)+$B211/$C211)>$B211,$B211-SUM($D211:N211),$B211/$C211) -> 0 | P211: =IF((SUM($D211:O211)+$B211/$C211)>$B211,$B211-SUM($D211:O211),$B211/$C211) -> 0 | Q211: =IF((SUM($D211:P211)+$B211/$C211)>$B211,$B211-SUM($D211:P211),$B211/$C211) -> 0 | R211: =IF((SUM($D211:Q211)+$B211/$C211)>$B211,$B211-SUM($D211:Q211),$B211/$C211) -> 0 | S211: =IF((SUM($D211:R211)+$B211/$C211)>$B211,$B211-SUM($D211:R211),$B211/$C211) -> 0 | T211: =IF((SUM($D211:S211)+$B211/$C211)>$B211,$B211-SUM($D211:S211),$B211/$C211) -> 0 | U211: =IF((SUM($D211:T211)+$B211/$C211)>$B211,$B211-SUM($D211:T211),$B211/$C211) -> 0 | V211: =IF((SUM($D211:U211)+$B211/$C211)>$B211,$B211-SUM($D211:U211),$B211/$C211) -> 0 | W211: =IF((SUM($D211:V211)+$B211/$C211)>$B211,$B211-SUM($D211:V211),$B211/$C211) -> 0 | X211: =IF((SUM($D211:W211)+$B211/$C211)>$B211,$B211-SUM($D211:W211),$B211/$C211) -> 0 | Y211: =IF((SUM($D211:X211)+$B211/$C211)>$B211,$B211-SUM($D211:X211),$B211/$C211) -> 0 | Z211: =IF((SUM($D211:Y211)+$B211/$C211)>$B211,$B211-SUM($D211:Y211),$B211/$C211) -> 0 | AA211: =IF((SUM($D211:Z211)+$B211/$C211)>$B211,$B211-SUM($D211:Z211),$B211/$C211) -> 0 | AF211: =G211*AF$16 -> 431.1676633 | AG211: 879.6165266 | AH211: 0 | AI211: 0 | AJ211: 0 | AK211: 0 | AL211: 0 | AM211: 0 | AN211: 0
A212: 2013 | B212: =H$181 -> 0 | C212: 1 | H212: =IF($C212=1,$B212,$B212/2/$C212) -> 0 | I212: =IF((SUM($D212:H212)+$B212/$C212)>$B212,$B212-SUM($D212:H212),$B212/$C212) -> 0 | J212: =IF((SUM($D212:I212)+$B212/$C212)>$B212,$B212-SUM($D212:I212),$B212/$C212) -> 0 | K212: =IF((SUM($D212:J212)+$B212/$C212)>$B212,$B212-SUM($D212:J212),$B212/$C212) -> 0 | L212: =IF((SUM($D212:K212)+$B212/$C212)>$B212,$B212-SUM($D212:K212),$B212/$C212) -> 0 | M212: =IF((SUM($D212:L212)+$B212/$C212)>$B212,$B212-SUM($D212:L212),$B212/$C212) -> 0 | N212: =IF((SUM($D212:M212)+$B212/$C212)>$B212,$B212-SUM($D212:M212),$B212/$C212) -> 0 | O212: =IF((SUM($D212:N212)+$B212/$C212)>$B212,$B212-SUM($D212:N212),$B212/$C212) -> 0 | P212: =IF((SUM($D212:O212)+$B212/$C212)>$B212,$B212-SUM($D212:O212),$B212/$C212) -> 0 | Q212: =IF((SUM($D212:P212)+$B212/$C212)>$B212,$B212-SUM($D212:P212),$B212/$C212) -> 0 | R212: =IF((SUM($D212:Q212)+$B212/$C212)>$B212,$B212-SUM($D212:Q212),$B212/$C212) -> 0 | S212: =IF((SUM($D212:R212)+$B212/$C212)>$B212,$B212-SUM($D212:R212),$B212/$C212) -> 0 | T212: =IF((SUM($D212:S212)+$B212/$C212)>$B212,$B212-SUM($D212:S212),$B212/$C212) -> 0 | U212: =IF((SUM($D212:T212)+$B212/$C212)>$B212,$B212-SUM($D212:T212),$B212/$C212) -> 0 | V212: =IF((SUM($D212:U212)+$B212/$C212)>$B212,$B212-SUM($D212:U212),$B212/$C212) -> 0 | W212: =IF((SUM($D212:V212)+$B212/$C212)>$B212,$B212-SUM($D212:V212),$B212/$C212) -> 0 | X212: =IF((SUM($D212:W212)+$B212/$C212)>$B212,$B212-SUM($D212:W212),$B212/$C212) -> 0 | Y212: =IF((SUM($D212:X212)+$B212/$C212)>$B212,$B212-SUM($D212:X212),$B212/$C212) -> 0 | Z212: =IF((SUM($D212:Y212)+$B212/$C212)>$B212,$B212-SUM($D212:Y212),$B212/$C212) -> 0 | AA212: =IF((SUM($D212:Z212)+$B212/$C212)>$B212,$B212-SUM($D212:Z212),$B212/$C212) -> 0 | AG212: =H212*AG$16 -> 0 | AH212: 0 | AI212: 0 | AJ212: 0 | AK212: 0 | AL212: 0 | AM212: 0 | AN212: 0
A213: 2014 | B213: =I$181 -> 0 | C213: 1 | I213: =IF($C213=1,$B213,$B213/2/$C213) -> 0 | J213: =IF((SUM($D213:I213)+$B213/$C213)>$B213,$B213-SUM($D213:I213),$B213/$C213) -> 0 | K213: =IF((SUM($D213:J213)+$B213/$C213)>$B213,$B213-SUM($D213:J213),$B213/$C213) -> 0 | L213: =IF((SUM($D213:K213)+$B213/$C213)>$B213,$B213-SUM($D213:K213),$B213/$C213) -> 0 | M213: =IF((SUM($D213:L213)+$B213/$C213)>$B213,$B213-SUM($D213:L213),$B213/$C213) -> 0 | N213: =IF((SUM($D213:M213)+$B213/$C213)>$B213,$B213-SUM($D213:M213),$B213/$C213) -> 0 | O213: =IF((SUM($D213:N213)+$B213/$C213)>$B213,$B213-SUM($D213:N213),$B213/$C213) -> 0 | P213: =IF((SUM($D213:O213)+$B213/$C213)>$B213,$B213-SUM($D213:O213),$B213/$C213) -> 0 | Q213: =IF((SUM($D213:P213)+$B213/$C213)>$B213,$B213-SUM($D213:P213),$B213/$C213) -> 0 | R213: =IF((SUM($D213:Q213)+$B213/$C213)>$B213,$B213-SUM($D213:Q213),$B213/$C213) -> 0 | S213: =IF((SUM($D213:R213)+$B213/$C213)>$B213,$B213-SUM($D213:R213),$B213/$C213) -> 0 | T213: =IF((SUM($D213:S213)+$B213/$C213)>$B213,$B213-SUM($D213:S213),$B213/$C213) -> 0 | U213: =IF((SUM($D213:T213)+$B213/$C213)>$B213,$B213-SUM($D213:T213),$B213/$C213) -> 0 | V213: =IF((SUM($D213:U213)+$B213/$C213)>$B213,$B213-SUM($D213:U213),$B213/$C213) -> 0 | W213: =IF((SUM($D213:V213)+$B213/$C213)>$B213,$B213-SUM($D213:V213),$B213/$C213) -> 0 | X213: =IF((SUM($D213:W213)+$B213/$C213)>$B213,$B213-SUM($D213:W213),$B213/$C213) -> 0 | Y213: =IF((SUM($D213:X213)+$B213/$C213)>$B213,$B213-SUM($D213:X213),$B213/$C213) -> 0 | Z213: =IF((SUM($D213:Y213)+$B213/$C213)>$B213,$B213-SUM($D213:Y213),$B213/$C213) -> 0 | AA213: =IF((SUM($D213:Z213)+$B213/$C213)>$B213,$B213-SUM($D213:Z213),$B213/$C213) -> 0 | AH213: =I213*AH$16 -> 0 | AI213: 0 | AJ213: 0 | AK213: 0 | AL213: 0 | AM213: 0 | AN213: 0
A214: 2015 | B214: =J$181 -> 0 | C214: 1 | J214: =IF($C214=1,$B214,$B214/2/$C214) -> 0 | K214: =IF((SUM($D214:J214)+$B214/$C214)>$B214,$B214-SUM($D214:J214),$B214/$C214) -> 0 | L214: =IF((SUM($D214:K214)+$B214/$C214)>$B214,$B214-SUM($D214:K214),$B214/$C214) -> 0 | M214: =IF((SUM($D214:L214)+$B214/$C214)>$B214,$B214-SUM($D214:L214),$B214/$C214) -> 0 | N214: =IF((SUM($D214:M214)+$B214/$C214)>$B214,$B214-SUM($D214:M214),$B214/$C214) -> 0 | O214: =IF((SUM($D214:N214)+$B214/$C214)>$B214,$B214-SUM($D214:N214),$B214/$C214) -> 0 | P214: =IF((SUM($D214:O214)+$B214/$C214)>$B214,$B214-SUM($D214:O214),$B214/$C214) -> 0 | Q214: =IF((SUM($D214:P214)+$B214/$C214)>$B214,$B214-SUM($D214:P214),$B214/$C214) -> 0 | R214: =IF((SUM($D214:Q214)+$B214/$C214)>$B214,$B214-SUM($D214:Q214),$B214/$C214) -> 0 | S214: =IF((SUM($D214:R214)+$B214/$C214)>$B214,$B214-SUM($D214:R214),$B214/$C214) -> 0 | T214: =IF((SUM($D214:S214)+$B214/$C214)>$B214,$B214-SUM($D214:S214),$B214/$C214) -> 0 | U214: =IF((SUM($D214:T214)+$B214/$C214)>$B214,$B214-SUM($D214:T214),$B214/$C214) -> 0 | V214: =IF((SUM($D214:U214)+$B214/$C214)>$B214,$B214-SUM($D214:U214),$B214/$C214) -> 0 | W214: =IF((SUM($D214:V214)+$B214/$C214)>$B214,$B214-SUM($D214:V214),$B214/$C214) -> 0 | X214: =IF((SUM($D214:W214)+$B214/$C214)>$B214,$B214-SUM($D214:W214),$B214/$C214) -> 0 | Y214: =IF((SUM($D214:X214)+$B214/$C214)>$B214,$B214-SUM($D214:X214),$B214/$C214) -> 0 | Z214: =IF((SUM($D214:Y214)+$B214/$C214)>$B214,$B214-SUM($D214:Y214),$B214/$C214) -> 0 | AA214: =IF((SUM($D214:Z214)+$B214/$C214)>$B214,$B214-SUM($D214:Z214),$B214/$C214) -> 0 | AH214: 0 | AI214: 0 | AJ214: 0 | AK214: 0 | AL214: 0 | AM214: 0 | AN214: 0
A215: =A214+1 -> 2016 | B215: =K$181 -> 0 | C215: =C214 -> 1 | K215: =IF($C215=1,$B215,$B215/2/$C215) -> 0 | L215: =IF((SUM($D215:K215)+$B215/$C215)>$B215,$B215-SUM($D215:K215),$B215/$C215) -> 0 | M215: =IF((SUM($D215:L215)+$B215/$C215)>$B215,$B215-SUM($D215:L215),$B215/$C215) -> 0 | N215: =IF((SUM($D215:M215)+$B215/$C215)>$B215,$B215-SUM($D215:M215),$B215/$C215) -> 0 | O215: =IF((SUM($D215:N215)+$B215/$C215)>$B215,$B215-SUM($D215:N215),$B215/$C215) -> 0 | P215: =IF((SUM($D215:O215)+$B215/$C215)>$B215,$B215-SUM($D215:O215),$B215/$C215) -> 0 | Q215: =IF((SUM($D215:P215)+$B215/$C215)>$B215,$B215-SUM($D215:P215),$B215/$C215) -> 0 | R215: =IF((SUM($D215:Q215)+$B215/$C215)>$B215,$B215-SUM($D215:Q215),$B215/$C215) -> 0 | S215: =IF((SUM($D215:R215)+$B215/$C215)>$B215,$B215-SUM($D215:R215),$B215/$C215) -> 0 | T215: =IF((SUM($D215:S215)+$B215/$C215)>$B215,$B215-SUM($D215:S215),$B215/$C215) -> 0 | U215: =IF((SUM($D215:T215)+$B215/$C215)>$B215,$B215-SUM($D215:T215),$B215/$C215) -> 0 | V215: =IF((SUM($D215:U215)+$B215/$C215)>$B215,$B215-SUM($D215:U215),$B215/$C215) -> 0 | W215: =IF((SUM($D215:V215)+$B215/$C215)>$B215,$B215-SUM($D215:V215),$B215/$C215) -> 0 | X215: =IF((SUM($D215:W215)+$B215/$C215)>$B215,$B215-SUM($D215:W215),$B215/$C215) -> 0 | Y215: =IF((SUM($D215:X215)+$B215/$C215)>$B215,$B215-SUM($D215:X215),$B215/$C215) -> 0 | Z215: =IF((SUM($D215:Y215)+$B215/$C215)>$B215,$B215-SUM($D215:Y215),$B215/$C215) -> 0 | AA215: =IF((SUM($D215:Z215)+$B215/$C215)>$B215,$B215-SUM($D215:Z215),$B215/$C215) -> 0 | AH215: 0 | AI215: 0 | AJ215: 0 | AK215: 0 | AL215: 0 | AM215: 0 | AN215: 0
A216: =A215+1 -> 2017 | B216: =L$181 -> 0 | C216: =C215 -> 1 | L216: =IF($C216=1,$B216,$B216/2/$C216) -> 0 | M216: =IF((SUM($D216:L216)+$B216/$C216)>$B216,$B216-SUM($D216:L216),$B216/$C216) -> 0 | N216: =IF((SUM($D216:M216)+$B216/$C216)>$B216,$B216-SUM($D216:M216),$B216/$C216) -> 0 | O216: =IF((SUM($D216:N216)+$B216/$C216)>$B216,$B216-SUM($D216:N216),$B216/$C216) -> 0 | P216: =IF((SUM($D216:O216)+$B216/$C216)>$B216,$B216-SUM($D216:O216),$B216/$C216) -> 0 | Q216: =IF((SUM($D216:P216)+$B216/$C216)>$B216,$B216-SUM($D216:P216),$B216/$C216) -> 0 | R216: =IF((SUM($D216:Q216)+$B216/$C216)>$B216,$B216-SUM($D216:Q216),$B216/$C216) -> 0 | S216: =IF((SUM($D216:R216)+$B216/$C216)>$B216,$B216-SUM($D216:R216),$B216/$C216) -> 0 | T216: =IF((SUM($D216:S216)+$B216/$C216)>$B216,$B216-SUM($D216:S216),$B216/$C216) -> 0 | U216: =IF((SUM($D216:T216)+$B216/$C216)>$B216,$B216-SUM($D216:T216),$B216/$C216) -> 0 | V216: =IF((SUM($D216:U216)+$B216/$C216)>$B216,$B216-SUM($D216:U216),$B216/$C216) -> 0 | W216: =IF((SUM($D216:V216)+$B216/$C216)>$B216,$B216-SUM($D216:V216),$B216/$C216) -> 0 | X216: =IF((SUM($D216:W216)+$B216/$C216)>$B216,$B216-SUM($D216:W216),$B216/$C216) -> 0 | Y216: =IF((SUM($D216:X216)+$B216/$C216)>$B216,$B216-SUM($D216:X216),$B216/$C216) -> 0 | Z216: =IF((SUM($D216:Y216)+$B216/$C216)>$B216,$B216-SUM($D216:Y216),$B216/$C216) -> 0 | AA216: =IF((SUM($D216:Z216)+$B216/$C216)>$B216,$B216-SUM($D216:Z216),$B216/$C216) -> 0 | AH216: 0 | AI216: 0 | AJ216: 0 | AK216: 0 | AL216: 0 | AM216: 0 | AN216: 0
A217: 2018 | B217: =M$181 -> 0 | C217: 1 | M217: =IF($C217=1,$B217,$B217/2/$C217) -> 0 | N217: =IF((SUM($D217:M217)+$B217/$C217)>$B217,$B217-SUM($D217:M217),$B217/$C217) -> 0 | O217: =IF((SUM($D217:N217)+$B217/$C217)>$B217,$B217-SUM($D217:N217),$B217/$C217) -> 0 | P217: =IF((SUM($D217:O217)+$B217/$C217)>$B217,$B217-SUM($D217:O217),$B217/$C217) -> 0 | Q217: =IF((SUM($D217:P217)+$B217/$C217)>$B217,$B217-SUM($D217:P217),$B217/$C217) -> 0 | R217: =IF((SUM($D217:Q217)+$B217/$C217)>$B217,$B217-SUM($D217:Q217),$B217/$C217) -> 0 | S217: =IF((SUM($D217:R217)+$B217/$C217)>$B217,$B217-SUM($D217:R217),$B217/$C217) -> 0 | T217: =IF((SUM($D217:S217)+$B217/$C217)>$B217,$B217-SUM($D217:S217),$B217/$C217) -> 0 | U217: =IF((SUM($D217:T217)+$B217/$C217)>$B217,$B217-SUM($D217:T217),$B217/$C217) -> 0 | V217: =IF((SUM($D217:U217)+$B217/$C217)>$B217,$B217-SUM($D217:U217),$B217/$C217) -> 0 | W217: =IF((SUM($D217:V217)+$B217/$C217)>$B217,$B217-SUM($D217:V217),$B217/$C217) -> 0 | X217: =IF((SUM($D217:W217)+$B217/$C217)>$B217,$B217-SUM($D217:W217),$B217/$C217) -> 0 | Y217: =IF((SUM($D217:X217)+$B217/$C217)>$B217,$B217-SUM($D217:X217),$B217/$C217) -> 0 | Z217: =IF((SUM($D217:Y217)+$B217/$C217)>$B217,$B217-SUM($D217:Y217),$B217/$C217) -> 0 | AA217: =IF((SUM($D217:Z217)+$B217/$C217)>$B217,$B217-SUM($D217:Z217),$B217/$C217) -> 0 | AH217: 0 | AI217: 0 | AJ217: 0 | AK217: 0 | AL217: 0 | AM217: 0 | AN217: 0
A218: 2019 | B218: =N$181 -> 0 | C218: 1 | N218: =IF($C218=1,$B218,$B218/2/$C218) -> 0 | O218: =IF((SUM($D218:N218)+$B218/$C218)>$B218,$B218-SUM($D218:N218),$B218/$C218) -> 0 | P218: =IF((SUM($D218:O218)+$B218/$C218)>$B218,$B218-SUM($D218:O218),$B218/$C218) -> 0 | Q218: =IF((SUM($D218:P218)+$B218/$C218)>$B218,$B218-SUM($D218:P218),$B218/$C218) -> 0 | R218: =IF((SUM($D218:Q218)+$B218/$C218)>$B218,$B218-SUM($D218:Q218),$B218/$C218) -> 0 | S218: =IF((SUM($D218:R218)+$B218/$C218)>$B218,$B218-SUM($D218:R218),$B218/$C218) -> 0 | T218: =IF((SUM($D218:S218)+$B218/$C218)>$B218,$B218-SUM($D218:S218),$B218/$C218) -> 0 | U218: =IF((SUM($D218:T218)+$B218/$C218)>$B218,$B218-SUM($D218:T218),$B218/$C218) -> 0 | V218: =IF((SUM($D218:U218)+$B218/$C218)>$B218,$B218-SUM($D218:U218),$B218/$C218) -> 0 | W218: =IF((SUM($D218:V218)+$B218/$C218)>$B218,$B218-SUM($D218:V218),$B218/$C218) -> 0 | X218: =IF((SUM($D218:W218)+$B218/$C218)>$B218,$B218-SUM($D218:W218),$B218/$C218) -> 0 | Y218: =IF((SUM($D218:X218)+$B218/$C218)>$B218,$B218-SUM($D218:X218),$B218/$C218) -> 0 | Z218: =IF((SUM($D218:Y218)+$B218/$C218)>$B218,$B218-SUM($D218:Y218),$B218/$C218) -> 0 | AA218: =IF((SUM($D218:Z218)+$B218/$C218)>$B218,$B218-SUM($D218:Z218),$B218/$C218) -> 0 | AH218: 0 | AI218: 0 | AJ218: 0 | AK218: 0 | AL218: 0 | AM218: 0 | AN218: 0
A219: =A218+1 -> 2020 | B219: =O$181 -> 0 | C219: 1 | O219: =IF($C219=1,$B219,$B219/2/$C219) -> 0 | P219: =IF((SUM($D219:O219)+$B219/$C219)>$B219,$B219-SUM($D219:O219),$B219/$C219) -> 0 | Q219: =IF((SUM($D219:P219)+$B219/$C219)>$B219,$B219-SUM($D219:P219),$B219/$C219) -> 0 | R219: =IF((SUM($D219:Q219)+$B219/$C219)>$B219,$B219-SUM($D219:Q219),$B219/$C219) -> 0 | S219: =IF((SUM($D219:R219)+$B219/$C219)>$B219,$B219-SUM($D219:R219),$B219/$C219) -> 0 | T219: =IF((SUM($D219:S219)+$B219/$C219)>$B219,$B219-SUM($D219:S219),$B219/$C219) -> 0 | U219: =IF((SUM($D219:T219)+$B219/$C219)>$B219,$B219-SUM($D219:T219),$B219/$C219) -> 0 | V219: =IF((SUM($D219:U219)+$B219/$C219)>$B219,$B219-SUM($D219:U219),$B219/$C219) -> 0 | W219: =IF((SUM($D219:V219)+$B219/$C219)>$B219,$B219-SUM($D219:V219),$B219/$C219) -> 0 | X219: =IF((SUM($D219:W219)+$B219/$C219)>$B219,$B219-SUM($D219:W219),$B219/$C219) -> 0 | Y219: =IF((SUM($D219:X219)+$B219/$C219)>$B219,$B219-SUM($D219:X219),$B219/$C219) -> 0 | Z219: =IF((SUM($D219:Y219)+$B219/$C219)>$B219,$B219-SUM($D219:Y219),$B219/$C219) -> 0 | AA219: =IF((SUM($D219:Z219)+$B219/$C219)>$B219,$B219-SUM($D219:Z219),$B219/$C219) -> 0 | AH219: 0 | AI219: 0 | AJ219: 0 | AK219: 0 | AL219: 0 | AM219: 0 | AN219: 0
B220: =SUM(B208:B219) -> 2761.172832 | D220: =SUM(D208:D214) -> 0 | E220: 0 | F220: 323.5282407 | G220: 1028.233691 | H220: 1409.410901 | I220: 0 | J220: 0 | K220: 0 | L220: 0 | M220: 0 | N220: 0 | O220: 0 | P220: 0 | Q220: 0 | R220: 0 | S220: 0 | T220: 0 | U220: 0 | V220: 0 | W220: 0 | X220: 0 | Y220: 0 | Z220: 0 | AA220: 0 | AD220: =E220*AD$16 -> 0 | AE220: =F220*AE$16 -> 353.51478 | AF220: =G220*AF$16 -> 1163.084011 | AG220: =H220*AG$16 -> 1626.200478 | AH220: 0 | AI220: 0 | AJ220: 0 | AK220: 0 | AL220: 0 | AM220: 0 | AN220: 0
A223: Remotely read interval meters & transformers | B223: Net | C223: Regulatory | D223: =D$4 -> 2009 | E223: =E$4 -> 2010 | F223: 2011 | G223: 2012 | H223: 2013 | I223: 2014 | J223: 2015 | K223: 2016 | L223: 2017 | M223: 2018 | N223: 2019 | O223: 2020 | P223: 2021 | Q223: 2022 | R223: 2023 | S223: 2024 | T223: 2025 | U223: 2026 | V223: 2027 | W223: 2028 | X223: 2029 | Y223: 2030 | Z223: 2031 | AA223: 2032 | AD223: 2010 | AE223: 2011 | AF223: 2012 | AG223: 2013 | AH223: 2014 | AI223: 2015 | AJ223: 2016 | AK223: 2017 | AL223: 2018 | AM223: 2019 | AN223: 2020
A224: =$A$4 -> ($000 Real 2008) | B224: Capex | C224: Life (years) | AD224: =E224*AD$16 -> 0 | AE224: 0 | AF224: 0 | AG224: 0 | AH224: 0 | AI224: 0 | AJ224: 0 | AK224: 0 | AL224: 0 | AM224: 0 | AN224: 0
A225: 2009 | B225: =D$182 -> 6108.104037 | C225: 15 | D225: =IF($C225=1,$B225,$B225/2/$C225) -> 203.6034679 | E225: =IF((SUM($D225:D225)+$B225/$C225)>$B225,$B225-SUM($D225:D225),$B225/$C225) -> 407.2069358 | F225: =IF((SUM($D225:E225)+$B225/$C225)>$B225,$B225-SUM($D225:E225),$B225/$C225) -> 407.2069358 | G225: =IF((SUM($D225:F225)+$B225/$C225)>$B225,$B225-SUM($D225:F225),$B225/$C225) -> 407.2069358 | H225: =IF((SUM($D225:G225)+$B225/$C225)>$B225,$B225-SUM($D225:G225),$B225/$C225) -> 407.2069358 | I225: =IF((SUM($D225:H225)+$B225/$C225)>$B225,$B225-SUM($D225:H225),$B225/$C225) -> 407.2069358 | J225: =IF((SUM($D225:I225)+$B225/$C225)>$B225,$B225-SUM($D225:I225),$B225/$C225) -> 407.2069358 | K225: =IF((SUM($D225:J225)+$B225/$C225)>$B225,$B225-SUM($D225:J225),$B225/$C225) -> 407.2069358 | L225: =IF((SUM($D225:K225)+$B225/$C225)>$B225,$B225-SUM($D225:K225),$B225/$C225) -> 407.2069358 | M225: =IF((SUM($D225:L225)+$B225/$C225)>$B225,$B225-SUM($D225:L225),$B225/$C225) -> 407.2069358 | N225: =IF((SUM($D225:M225)+$B225/$C225)>$B225,$B225-SUM($D225:M225),$B225/$C225) -> 407.2069358 | O225: =IF((SUM($D225:N225)+$B225/$C225)>$B225,$B225-SUM($D225:N225),$B225/$C225) -> 407.2069358 | P225: =IF((SUM($D225:O225)+$B225/$C225)>$B225,$B225-SUM($D225:O225),$B225/$C225) -> 407.2069358 | Q225: =IF((SUM($D225:P225)+$B225/$C225)>$B225,$B225-SUM($D225:P225),$B225/$C225) -> 407.2069358 | R225: =IF((SUM($D225:Q225)+$B225/$C225)>$B225,$B225-SUM($D225:Q225),$B225/$C225) -> 407.2069358 | S225: =IF((SUM($D225:R225)+$B225/$C225)>$B225,$B225-SUM($D225:R225),$B225/$C225) -> 203.6034679 | T225: =IF((SUM($D225:S225)+$B225/$C225)>$B225,$B225-SUM($D225:S225),$B225/$C225) -> 0 | U225: =IF((SUM($D225:T225)+$B225/$C225)>$B225,$B225-SUM($D225:T225),$B225/$C225) -> 0 | V225: =IF((SUM($D225:U225)+$B225/$C225)>$B225,$B225-SUM($D225:U225),$B225/$C225) -> 0 | W225: =IF((SUM($D225:V225)+$B225/$C225)>$B225,$B225-SUM($D225:V225),$B225/$C225) -> 0 | X225: =IF((SUM($D225:W225)+$B225/$C225)>$B225,$B225-SUM($D225:W225),$B225/$C225) -> 0 | Y225: =IF((SUM($D225:X225)+$B225/$C225)>$B225,$B225-SUM($D225:X225),$B225/$C225) -> 0 | Z225: =IF((SUM($D225:Y225)+$B225/$C225)>$B225,$B225-SUM($D225:Y225),$B225/$C225) -> 0 | AA225: =IF((SUM($D225:Z225)+$B225/$C225)>$B225,$B225-SUM($D225:Z225),$B225/$C225) -> 0 | AD225: 432.8820263 | AE225: 444.9493189 | AF225: 460.6111241 | AG225: 469.841771 | AH225: 479.9955225 | AI225: 491.0723422 | AJ225: 503.7168429 | AK225: 516.6869236 | AL225: 529.9909678 | AM225: 543.6375746 | AN225: 557.6355644
A226: 2010 | B226: =E$182 -> 19429.72195 | C226: 15 | E226: =IF($C226=1,$B226,$B226/2/$C226) -> 647.6573985 | F226: =IF((SUM($D226:E226)+$B226/$C226)>$B226,$B226-SUM($D226:E226),$B226/$C226) -> 1295.314797 | G226: =IF((SUM($D226:F226)+$B226/$C226)>$B226,$B226-SUM($D226:F226),$B226/$C226) -> 1295.314797 | H226: =IF((SUM($D226:G226)+$B226/$C226)>$B226,$B226-SUM($D226:G226),$B226/$C226) -> 1295.314797 | I226: =IF((SUM($D226:H226)+$B226/$C226)>$B226,$B226-SUM($D226:H226),$B226/$C226) -> 1295.314797 | J226: =IF((SUM($D226:I226)+$B226/$C226)>$B226,$B226-SUM($D226:I226),$B226/$C226) -> 1295.314797 | K226: =IF((SUM($D226:J226)+$B226/$C226)>$B226,$B226-SUM($D226:J226),$B226/$C226) -> 1295.314797 | L226: =IF((SUM($D226:K226)+$B226/$C226)>$B226,$B226-SUM($D226:K226),$B226/$C226) -> 1295.314797 | M226: =IF((SUM($D226:L226)+$B226/$C226)>$B226,$B226-SUM($D226:L226),$B226/$C226) -> 1295.314797 | N226: =IF((SUM($D226:M226)+$B226/$C226)>$B226,$B226-SUM($D226:M226),$B226/$C226) -> 1295.314797 | O226: =IF((SUM($D226:N226)+$B226/$C226)>$B226,$B226-SUM($D226:N226),$B226/$C226) -> 1295.314797 | P226: =IF((SUM($D226:O226)+$B226/$C226)>$B226,$B226-SUM($D226:O226),$B226/$C226) -> 1295.314797 | Q226: =IF((SUM($D226:P226)+$B226/$C226)>$B226,$B226-SUM($D226:P226),$B226/$C226) -> 1295.314797 | R226: =IF((SUM($D226:Q226)+$B226/$C226)>$B226,$B226-SUM($D226:Q226),$B226/$C226) -> 1295.314797 | S226: =IF((SUM($D226:R226)+$B226/$C226)>$B226,$B226-SUM($D226:R226),$B226/$C226) -> 1295.314797 | T226: =IF((SUM($D226:S226)+$B226/$C226)>$B226,$B226-SUM($D226:S226),$B226/$C226) -> 647.6573985 | U226: =IF((SUM($D226:T226)+$B226/$C226)>$B226,$B226-SUM($D226:T226),$B226/$C226) -> 0 | V226: =IF((SUM($D226:U226)+$B226/$C226)>$B226,$B226-SUM($D226:U226),$B226/$C226) -> 0 | W226: =IF((SUM($D226:V226)+$B226/$C226)>$B226,$B226-SUM($D226:V226),$B226/$C226) -> 0 | X226: =IF((SUM($D226:W226)+$B226/$C226)>$B226,$B226-SUM($D226:W226),$B226/$C226) -> 0 | Y226: =IF((SUM($D226:X226)+$B226/$C226)>$B226,$B226-SUM($D226:X226),$B226/$C226) -> 0 | Z226: =IF((SUM($D226:Y226)+$B226/$C226)>$B226,$B226-SUM($D226:Y226),$B226/$C226) -> 0 | AA226: =IF((SUM($D226:Z226)+$B226/$C226)>$B226,$B226-SUM($D226:Z226),$B226/$C226) -> 0 | AD226: 688.4933 | AE226: 1415.372347 | AF226: 1465.192147 | AG226: 1494.554598 | AH226: 1526.85342 | AI226: 1562.088499 | AJ226: 1602.310331 | AK226: 1643.567824 | AL226: 1685.887647 | AM226: 1729.297152 | AN226: 1773.824398
A227: 2011 | B227: =F$182 -> 38962.61394 | C227: 15 | F227: =IF($C227=1,$B227,$B227/2/$C227) -> 1298.753798 | G227: =IF((SUM($D227:F227)+$B227/$C227)>$B227,$B227-SUM($D227:F227),$B227/$C227) -> 2597.507596 | H227: =IF((SUM($D227:G227)+$B227/$C227)>$B227,$B227-SUM($D227:G227),$B227/$C227) -> 2597.507596 | I227: =IF((SUM($D227:H227)+$B227/$C227)>$B227,$B227-SUM($D227:H227),$B227/$C227) -> 2597.507596 | J227: =IF((SUM($D227:I227)+$B227/$C227)>$B227,$B227-SUM($D227:I227),$B227/$C227) -> 2597.507596 | K227: =IF((SUM($D227:J227)+$B227/$C227)>$B227,$B227-SUM($D227:J227),$B227/$C227) -> 2597.507596 | L227: =IF((SUM($D227:K227)+$B227/$C227)>$B227,$B227-SUM($D227:K227),$B227/$C227) -> 2597.507596 | M227: =IF((SUM($D227:L227)+$B227/$C227)>$B227,$B227-SUM($D227:L227),$B227/$C227) -> 2597.507596 | N227: =IF((SUM($D227:M227)+$B227/$C227)>$B227,$B227-SUM($D227:M227),$B227/$C227) -> 2597.507596 | O227: =IF((SUM($D227:N227)+$B227/$C227)>$B227,$B227-SUM($D227:N227),$B227/$C227) -> 2597.507596 | P227: =IF((SUM($D227:O227)+$B227/$C227)>$B227,$B227-SUM($D227:O227),$B227/$C227) -> 2597.507596 | Q227: =IF((SUM($D227:P227)+$B227/$C227)>$B227,$B227-SUM($D227:P227),$B227/$C227) -> 2597.507596 | R227: =IF((SUM($D227:Q227)+$B227/$C227)>$B227,$B227-SUM($D227:Q227),$B227/$C227) -> 2597.507596 | S227: =IF((SUM($D227:R227)+$B227/$C227)>$B227,$B227-SUM($D227:R227),$B227/$C227) -> 2597.507596 | T227: =IF((SUM($D227:S227)+$B227/$C227)>$B227,$B227-SUM($D227:S227),$B227/$C227) -> 2597.507596 | U227: =IF((SUM($D227:T227)+$B227/$C227)>$B227,$B227-SUM($D227:T227),$B227/$C227) -> 1298.753798 | V227: =IF((SUM($D227:U227)+$B227/$C227)>$B227,$B227-SUM($D227:U227),$B227/$C227) -> 0 | W227: =IF((SUM($D227:V227)+$B227/$C227)>$B227,$B227-SUM($D227:V227),$B227/$C227) -> 0 | X227: =IF((SUM($D227:W227)+$B227/$C227)>$B227,$B227-SUM($D227:W227),$B227/$C227) -> 0 | Y227: =IF((SUM($D227:X227)+$B227/$C227)>$B227,$B227-SUM($D227:X227),$B227/$C227) -> 0 | Z227: =IF((SUM($D227:Y227)+$B227/$C227)>$B227,$B227-SUM($D227:Y227),$B227/$C227) -> 0 | AA227: =IF((SUM($D227:Z227)+$B227/$C227)>$B227,$B227-SUM($D227:Z227),$B227/$C227) -> 0 | AE227: =F227*AE$16 -> 1419.130096 | AF227: 2938.16433 | AG227: 2997.045143 | AH227: 3061.814291 | AI227: 3132.471544 | AJ227: 3213.128781 | AK227: 3295.862842 | AL227: 3380.727202 | AM227: 3467.776713 | AN227: 3557.06764
A228: 2012 | B228: =G$182 -> 43962.52285 | C228: 15 | G228: =IF($C228=1,$B228,$B228/2/$C228) -> 1465.417428 | H228: =IF((SUM($D228:G228)+$B228/$C228)>$B228,$B228-SUM($D228:G228),$B228/$C228) -> 2930.834857 | I228: =IF((SUM($D228:H228)+$B228/$C228)>$B228,$B228-SUM($D228:H228),$B228/$C228) -> 2930.834857 | J228: =IF((SUM($D228:I228)+$B228/$C228)>$B228,$B228-SUM($D228:I228),$B228/$C228) -> 2930.834857 | K228: =IF((SUM($D228:J228)+$B228/$C228)>$B228,$B228-SUM($D228:J228),$B228/$C228) -> 2930.834857 | L228: =IF((SUM($D228:K228)+$B228/$C228)>$B228,$B228-SUM($D228:K228),$B228/$C228) -> 2930.834857 | M228: =IF((SUM($D228:L228)+$B228/$C228)>$B228,$B228-SUM($D228:L228),$B228/$C228) -> 2930.834857 | N228: =IF((SUM($D228:M228)+$B228/$C228)>$B228,$B228-SUM($D228:M228),$B228/$C228) -> 2930.834857 | O228: =IF((SUM($D228:N228)+$B228/$C228)>$B228,$B228-SUM($D228:N228),$B228/$C228) -> 2930.834857 | P228: =IF((SUM($D228:O228)+$B228/$C228)>$B228,$B228-SUM($D228:O228),$B228/$C228) -> 2930.834857 | Q228: =IF((SUM($D228:P228)+$B228/$C228)>$B228,$B228-SUM($D228:P228),$B228/$C228) -> 2930.834857 | R228: =IF((SUM($D228:Q228)+$B228/$C228)>$B228,$B228-SUM($D228:Q228),$B228/$C228) -> 2930.834857 | S228: =IF((SUM($D228:R228)+$B228/$C228)>$B228,$B228-SUM($D228:R228),$B228/$C228) -> 2930.834857 | T228: =IF((SUM($D228:S228)+$B228/$C228)>$B228,$B228-SUM($D228:S228),$B228/$C228) -> 2930.834857 | U228: =IF((SUM($D228:T228)+$B228/$C228)>$B228,$B228-SUM($D228:T228),$B228/$C228) -> 2930.834857 | V228: =IF((SUM($D228:U228)+$B228/$C228)>$B228,$B228-SUM($D228:U228),$B228/$C228) -> 1465.417428 | W228: =IF((SUM($D228:V228)+$B228/$C228)>$B228,$B228-SUM($D228:V228),$B228/$C228) -> 0 | X228: =IF((SUM($D228:W228)+$B228/$C228)>$B228,$B228-SUM($D228:W228),$B228/$C228) -> 0 | Y228: =IF((SUM($D228:X228)+$B228/$C228)>$B228,$B228-SUM($D228:X228),$B228/$C228) -> 0 | Z228: =IF((SUM($D228:Y228)+$B228/$C228)>$B228,$B228-SUM($D228:Y228),$B228/$C228) -> 0 | AA228: =IF((SUM($D228:Z228)+$B228/$C228)>$B228,$B228-SUM($D228:Z228),$B228/$C228) -> 0 | AF228: =G228*AF$16 -> 1657.603321 | AG228: 3381.643382 | AH228: 3454.724084 | AI228: 3534.448486 | AJ228: 3625.456129 | AK228: 3718.807104 | AL228: 3814.561752 | AM228: 3912.781961 | AN228: 4013.531219
A229: 2013 | B229: =H$182 -> 48323.48493 | C229: 15 | H229: =IF($C229=1,$B229,$B229/2/$C229) -> 1610.782831 | I229: =IF((SUM($D229:H229)+$B229/$C229)>$B229,$B229-SUM($D229:H229),$B229/$C229) -> 3221.565662 | J229: =IF((SUM($D229:I229)+$B229/$C229)>$B229,$B229-SUM($D229:I229),$B229/$C229) -> 3221.565662 | K229: =IF((SUM($D229:J229)+$B229/$C229)>$B229,$B229-SUM($D229:J229),$B229/$C229) -> 3221.565662 | L229: =IF((SUM($D229:K229)+$B229/$C229)>$B229,$B229-SUM($D229:K229),$B229/$C229) -> 3221.565662 | M229: =IF((SUM($D229:L229)+$B229/$C229)>$B229,$B229-SUM($D229:L229),$B229/$C229) -> 3221.565662 | N229: =IF((SUM($D229:M229)+$B229/$C229)>$B229,$B229-SUM($D229:M229),$B229/$C229) -> 3221.565662 | O229: =IF((SUM($D229:N229)+$B229/$C229)>$B229,$B229-SUM($D229:N229),$B229/$C229) -> 3221.565662 | P229: =IF((SUM($D229:O229)+$B229/$C229)>$B229,$B229-SUM($D229:O229),$B229/$C229) -> 3221.565662 | Q229: =IF((SUM($D229:P229)+$B229/$C229)>$B229,$B229-SUM($D229:P229),$B229/$C229) -> 3221.565662 | R229: =IF((SUM($D229:Q229)+$B229/$C229)>$B229,$B229-SUM($D229:Q229),$B229/$C229) -> 3221.565662 | S229: =IF((SUM($D229:R229)+$B229/$C229)>$B229,$B229-SUM($D229:R229),$B229/$C229) -> 3221.565662 | T229: =IF((SUM($D229:S229)+$B229/$C229)>$B229,$B229-SUM($D229:S229),$B229/$C229) -> 3221.565662 | U229: =IF((SUM($D229:T229)+$B229/$C229)>$B229,$B229-SUM($D229:T229),$B229/$C229) -> 3221.565662 | V229: =IF((SUM($D229:U229)+$B229/$C229)>$B229,$B229-SUM($D229:U229),$B229/$C229) -> 3221.565662 | W229: =IF((SUM($D229:V229)+$B229/$C229)>$B229,$B229-SUM($D229:V229),$B229/$C229) -> 1610.782831 | X229: =IF((SUM($D229:W229)+$B229/$C229)>$B229,$B229-SUM($D229:W229),$B229/$C229) -> 0 | Y229: =IF((SUM($D229:X229)+$B229/$C229)>$B229,$B229-SUM($D229:X229),$B229/$C229) -> 0 | Z229: =IF((SUM($D229:Y229)+$B229/$C229)>$B229,$B229-SUM($D229:Y229),$B229/$C229) -> 0 | AA229: =IF((SUM($D229:Z229)+$B229/$C229)>$B229,$B229-SUM($D229:Z229),$B229/$C229) -> 0 | AG229: =H229*AG$16 -> 1858.54658 | AH229: 3797.423268 | AI229: 3885.056113 | AJ229: 3985.091465 | AK229: 4087.702602 | AL229: 4192.955848 | AM229: 4300.919234 | AN229: 4411.662543
A230: 2014 | B230: =I$182 -> 20826.86094 | C230: 15 | I230: =IF($C230=1,$B230,$B230/2/$C230) -> 694.2286979 | J230: =IF((SUM($D230:I230)+$B230/$C230)>$B230,$B230-SUM($D230:I230),$B230/$C230) -> 1388.457396 | K230: =IF((SUM($D230:J230)+$B230/$C230)>$B230,$B230-SUM($D230:J230),$B230/$C230) -> 1388.457396 | L230: =IF((SUM($D230:K230)+$B230/$C230)>$B230,$B230-SUM($D230:K230),$B230/$C230) -> 1388.457396 | M230: =IF((SUM($D230:L230)+$B230/$C230)>$B230,$B230-SUM($D230:L230),$B230/$C230) -> 1388.457396 | N230: =IF((SUM($D230:M230)+$B230/$C230)>$B230,$B230-SUM($D230:M230),$B230/$C230) -> 1388.457396 | O230: =IF((SUM($D230:N230)+$B230/$C230)>$B230,$B230-SUM($D230:N230),$B230/$C230) -> 1388.457396 | P230: =IF((SUM($D230:O230)+$B230/$C230)>$B230,$B230-SUM($D230:O230),$B230/$C230) -> 1388.457396 | Q230: =IF((SUM($D230:P230)+$B230/$C230)>$B230,$B230-SUM($D230:P230),$B230/$C230) -> 1388.457396 | R230: =IF((SUM($D230:Q230)+$B230/$C230)>$B230,$B230-SUM($D230:Q230),$B230/$C230) -> 1388.457396 | S230: =IF((SUM($D230:R230)+$B230/$C230)>$B230,$B230-SUM($D230:R230),$B230/$C230) -> 1388.457396 | T230: =IF((SUM($D230:S230)+$B230/$C230)>$B230,$B230-SUM($D230:S230),$B230/$C230) -> 1388.457396 | U230: =IF((SUM($D230:T230)+$B230/$C230)>$B230,$B230-SUM($D230:T230),$B230/$C230) -> 1388.457396 | V230: =IF((SUM($D230:U230)+$B230/$C230)>$B230,$B230-SUM($D230:U230),$B230/$C230) -> 1388.457396 | W230: =IF((SUM($D230:V230)+$B230/$C230)>$B230,$B230-SUM($D230:V230),$B230/$C230) -> 1388.457396 | X230: =IF((SUM($D230:W230)+$B230/$C230)>$B230,$B230-SUM($D230:W230),$B230/$C230) -> 694.2286979 | Y230: =IF((SUM($D230:X230)+$B230/$C230)>$B230,$B230-SUM($D230:X230),$B230/$C230) -> 0 | Z230: =IF((SUM($D230:Y230)+$B230/$C230)>$B230,$B230-SUM($D230:Y230),$B230/$C230) -> 0 | AA230: =IF((SUM($D230:Z230)+$B230/$C230)>$B230,$B230-SUM($D230:Z230),$B230/$C230) -> 0 | AH230: =I230*AH$16 -> 818.322669 | AI230: 1674.414077 | AJ230: 1717.528152 | AK230: 1761.752361 | AL230: 1807.115288 | AM230: 1853.646254 | AN230: 1901.375334
A231: 2015 | B231: =J$182 -> 1947.894791 | C231: 15 | J231: =IF($C231=1,$B231,$B231/2/$C231) -> 64.92982635 | K231: =IF((SUM($D231:J231)+$B231/$C231)>$B231,$B231-SUM($D231:J231),$B231/$C231) -> 129.8596527 | L231: =IF((SUM($D231:K231)+$B231/$C231)>$B231,$B231-SUM($D231:K231),$B231/$C231) -> 129.8596527 | M231: =IF((SUM($D231:L231)+$B231/$C231)>$B231,$B231-SUM($D231:L231),$B231/$C231) -> 129.8596527 | N231: =IF((SUM($D231:M231)+$B231/$C231)>$B231,$B231-SUM($D231:M231),$B231/$C231) -> 129.8596527 | O231: =IF((SUM($D231:N231)+$B231/$C231)>$B231,$B231-SUM($D231:N231),$B231/$C231) -> 129.8596527 | P231: =IF((SUM($D231:O231)+$B231/$C231)>$B231,$B231-SUM($D231:O231),$B231/$C231) -> 129.8596527 | Q231: =IF((SUM($D231:P231)+$B231/$C231)>$B231,$B231-SUM($D231:P231),$B231/$C231) -> 129.8596527 | R231: =IF((SUM($D231:Q231)+$B231/$C231)>$B231,$B231-SUM($D231:Q231),$B231/$C231) -> 129.8596527 | S231: =IF((SUM($D231:R231)+$B231/$C231)>$B231,$B231-SUM($D231:R231),$B231/$C231) -> 129.8596527 | T231: =IF((SUM($D231:S231)+$B231/$C231)>$B231,$B231-SUM($D231:S231),$B231/$C231) -> 129.8596527 | U231: =IF((SUM($D231:T231)+$B231/$C231)>$B231,$B231-SUM($D231:T231),$B231/$C231) -> 129.8596527 | V231: =IF((SUM($D231:U231)+$B231/$C231)>$B231,$B231-SUM($D231:U231),$B231/$C231) -> 129.8596527 | W231: =IF((SUM($D231:V231)+$B231/$C231)>$B231,$B231-SUM($D231:V231),$B231/$C231) -> 129.8596527 | X231: =IF((SUM($D231:W231)+$B231/$C231)>$B231,$B231-SUM($D231:W231),$B231/$C231) -> 129.8596527 | Y231: =IF((SUM($D231:X231)+$B231/$C231)>$B231,$B231-SUM($D231:X231),$B231/$C231) -> 64.92982635 | Z231: =IF((SUM($D231:Y231)+$B231/$C231)>$B231,$B231-SUM($D231:Y231),$B231/$C231) -> 0 | AA231: =IF((SUM($D231:Z231)+$B231/$C231)>$B231,$B231-SUM($D231:Z231),$B231/$C231) -> 0 | AH231: 0 | AI231: 78.30230554 | AJ231: 160.6369846 | AK231: 164.7731867 | AL231: 169.0158909 | AM231: 173.3678393 | AN231: 177.8318451
A232: =A231+1 -> 2016 | B232: =K$182 -> 2397.469627 | C232: =C231 -> 15 | K232: =IF($C232=1,$B232,$B232/2/$C232) -> 79.91565422 | L232: =IF((SUM($D232:K232)+$B232/$C232)>$B232,$B232-SUM($D232:K232),$B232/$C232) -> 159.8313084 | M232: =IF((SUM($D232:L232)+$B232/$C232)>$B232,$B232-SUM($D232:L232),$B232/$C232) -> 159.8313084 | N232: =IF((SUM($D232:M232)+$B232/$C232)>$B232,$B232-SUM($D232:M232),$B232/$C232) -> 159.8313084 | O232: =IF((SUM($D232:N232)+$B232/$C232)>$B232,$B232-SUM($D232:N232),$B232/$C232) -> 159.8313084 | P232: =IF((SUM($D232:O232)+$B232/$C232)>$B232,$B232-SUM($D232:O232),$B232/$C232) -> 159.8313084 | Q232: =IF((SUM($D232:P232)+$B232/$C232)>$B232,$B232-SUM($D232:P232),$B232/$C232) -> 159.8313084 | R232: =IF((SUM($D232:Q232)+$B232/$C232)>$B232,$B232-SUM($D232:Q232),$B232/$C232) -> 159.8313084 | S232: =IF((SUM($D232:R232)+$B232/$C232)>$B232,$B232-SUM($D232:R232),$B232/$C232) -> 159.8313084 | T232: =IF((SUM($D232:S232)+$B232/$C232)>$B232,$B232-SUM($D232:S232),$B232/$C232) -> 159.8313084 | U232: =IF((SUM($D232:T232)+$B232/$C232)>$B232,$B232-SUM($D232:T232),$B232/$C232) -> 159.8313084 | V232: =IF((SUM($D232:U232)+$B232/$C232)>$B232,$B232-SUM($D232:U232),$B232/$C232) -> 159.8313084 | W232: =IF((SUM($D232:V232)+$B232/$C232)>$B232,$B232-SUM($D232:V232),$B232/$C232) -> 159.8313084 | X232: =IF((SUM($D232:W232)+$B232/$C232)>$B232,$B232-SUM($D232:W232),$B232/$C232) -> 159.8313084 | Y232: =IF((SUM($D232:X232)+$B232/$C232)>$B232,$B232-SUM($D232:X232),$B232/$C232) -> 159.8313084 | Z232: =IF((SUM($D232:Y232)+$B232/$C232)>$B232,$B232-SUM($D232:Y232),$B232/$C232) -> 79.91565422 | AA232: =IF((SUM($D232:Z232)+$B232/$C232)>$B232,$B232-SUM($D232:Z232),$B232/$C232) -> 0 | AH232: 0 | AI232: 0 | AJ232: 98.85602995 | AK232: 202.802899 | AL232: 208.0248208 | AM232: 213.3812006 | AN232: 218.8755005
A233: =A232+1 -> 2017 | B233: =L$182 -> 841.4006029 | C233: =C232 -> 15 | L233: =IF($C233=1,$B233,$B233/2/$C233) -> 28.04668676 | M233: =IF((SUM($D233:L233)+$B233/$C233)>$B233,$B233-SUM($D233:L233),$B233/$C233) -> 56.09337352 | N233: =IF((SUM($D233:M233)+$B233/$C233)>$B233,$B233-SUM($D233:M233),$B233/$C233) -> 56.09337352 | O233: =IF((SUM($D233:N233)+$B233/$C233)>$B233,$B233-SUM($D233:N233),$B233/$C233) -> 56.09337352 | P233: =IF((SUM($D233:O233)+$B233/$C233)>$B233,$B233-SUM($D233:O233),$B233/$C233) -> 56.09337352 | Q233: =IF((SUM($D233:P233)+$B233/$C233)>$B233,$B233-SUM($D233:P233),$B233/$C233) -> 56.09337352 | R233: =IF((SUM($D233:Q233)+$B233/$C233)>$B233,$B233-SUM($D233:Q233),$B233/$C233) -> 56.09337352 | S233: =IF((SUM($D233:R233)+$B233/$C233)>$B233,$B233-SUM($D233:R233),$B233/$C233) -> 56.09337352 | T233: =IF((SUM($D233:S233)+$B233/$C233)>$B233,$B233-SUM($D233:S233),$B233/$C233) -> 56.09337352 | U233: =IF((SUM($D233:T233)+$B233/$C233)>$B233,$B233-SUM($D233:T233),$B233/$C233) -> 56.09337352 | V233: =IF((SUM($D233:U233)+$B233/$C233)>$B233,$B233-SUM($D233:U233),$B233/$C233) -> 56.09337352 | W233: =IF((SUM($D233:V233)+$B233/$C233)>$B233,$B233-SUM($D233:V233),$B233/$C233) -> 56.09337352 | X233: =IF((SUM($D233:W233)+$B233/$C233)>$B233,$B233-SUM($D233:W233),$B233/$C233) -> 56.09337352 | Y233: =IF((SUM($D233:X233)+$B233/$C233)>$B233,$B233-SUM($D233:X233),$B233/$C233) -> 56.09337352 | Z233: =IF((SUM($D233:Y233)+$B233/$C233)>$B233,$B233-SUM($D233:Y233),$B233/$C233) -> 56.09337352 | AA233: =IF((SUM($D233:Z233)+$B233/$C233)>$B233,$B233-SUM($D233:Z233),$B233/$C233) -> 28.04668676 | AH233: 0 | AI233: 0 | AJ233: 0 | AK233: 35.58720402 | AL233: 73.00706031 | AM233: 74.88690111 | AN233: 76.81514546
A234: 2018 | B234: =M$182 -> 484.8789815 | C234: 15 | M234: =IF($C234=1,$B234,$B234/2/$C234) -> 16.16263272 | N234: =IF((SUM($D234:M234)+$B234/$C234)>$B234,$B234-SUM($D234:M234),$B234/$C234) -> 32.32526543 | O234: =IF((SUM($D234:N234)+$B234/$C234)>$B234,$B234-SUM($D234:N234),$B234/$C234) -> 32.32526543 | P234: =IF((SUM($D234:O234)+$B234/$C234)>$B234,$B234-SUM($D234:O234),$B234/$C234) -> 32.32526543 | Q234: =IF((SUM($D234:P234)+$B234/$C234)>$B234,$B234-SUM($D234:P234),$B234/$C234) -> 32.32526543 | R234: =IF((SUM($D234:Q234)+$B234/$C234)>$B234,$B234-SUM($D234:Q234),$B234/$C234) -> 32.32526543 | S234: =IF((SUM($D234:R234)+$B234/$C234)>$B234,$B234-SUM($D234:R234),$B234/$C234) -> 32.32526543 | T234: =IF((SUM($D234:S234)+$B234/$C234)>$B234,$B234-SUM($D234:S234),$B234/$C234) -> 32.32526543 | U234: =IF((SUM($D234:T234)+$B234/$C234)>$B234,$B234-SUM($D234:T234),$B234/$C234) -> 32.32526543 | V234: =IF((SUM($D234:U234)+$B234/$C234)>$B234,$B234-SUM($D234:U234),$B234/$C234) -> 32.32526543 | W234: =IF((SUM($D234:V234)+$B234/$C234)>$B234,$B234-SUM($D234:V234),$B234/$C234) -> 32.32526543 | X234: =IF((SUM($D234:W234)+$B234/$C234)>$B234,$B234-SUM($D234:W234),$B234/$C234) -> 32.32526543 | Y234: =IF((SUM($D234:X234)+$B234/$C234)>$B234,$B234-SUM($D234:X234),$B234/$C234) -> 32.32526543 | Z234: =IF((SUM($D234:Y234)+$B234/$C234)>$B234,$B234-SUM($D234:Y234),$B234/$C234) -> 32.32526543 | AA234: =IF((SUM($D234:Z234)+$B234/$C234)>$B234,$B234-SUM($D234:Z234),$B234/$C234) -> 32.32526543 | AH234: 0 | AI234: 0 | AJ234: 0 | AK234: 0 | AL234: 21.03610868 | AM234: 43.1555245 | AN234: 44.26672546
A235: 2019 | B235: =N$182 -> 493.834176 | C235: 15 | N235: =IF($C235=1,$B235,$B235/2/$C235) -> 16.4611392 | O235: =IF((SUM($D235:N235)+$B235/$C235)>$B235,$B235-SUM($D235:N235),$B235/$C235) -> 32.9222784 | P235: =IF((SUM($D235:O235)+$B235/$C235)>$B235,$B235-SUM($D235:O235),$B235/$C235) -> 32.9222784 | Q235: =IF((SUM($D235:P235)+$B235/$C235)>$B235,$B235-SUM($D235:P235),$B235/$C235) -> 32.9222784 | R235: =IF((SUM($D235:Q235)+$B235/$C235)>$B235,$B235-SUM($D235:Q235),$B235/$C235) -> 32.9222784 | S235: =IF((SUM($D235:R235)+$B235/$C235)>$B235,$B235-SUM($D235:R235),$B235/$C235) -> 32.9222784 | T235: =IF((SUM($D235:S235)+$B235/$C235)>$B235,$B235-SUM($D235:S235),$B235/$C235) -> 32.9222784 | U235: =IF((SUM($D235:T235)+$B235/$C235)>$B235,$B235-SUM($D235:T235),$B235/$C235) -> 32.9222784 | V235: =IF((SUM($D235:U235)+$B235/$C235)>$B235,$B235-SUM($D235:U235),$B235/$C235) -> 32.9222784 | W235: =IF((SUM($D235:V235)+$B235/$C235)>$B235,$B235-SUM($D235:V235),$B235/$C235) -> 32.9222784 | X235: =IF((SUM($D235:W235)+$B235/$C235)>$B235,$B235-SUM($D235:W235),$B235/$C235) -> 32.9222784 | Y235: =IF((SUM($D235:X235)+$B235/$C235)>$B235,$B235-SUM($D235:X235),$B235/$C235) -> 32.9222784 | Z235: =IF((SUM($D235:Y235)+$B235/$C235)>$B235,$B235-SUM($D235:Y235),$B235/$C235) -> 32.9222784 | AA235: =IF((SUM($D235:Z235)+$B235/$C235)>$B235,$B235-SUM($D235:Z235),$B235/$C235) -> 32.9222784 | AH235: 0 | AI235: 0 | AJ235: 0 | AK235: 0 | AL235: 0 | AM235: 21.97628037 | AN235: 45.08428438
A236: =A235+1 -> 2020 | B236: =O$182 -> 494.3877684 | C236: 15 | O236: =IF($C236=1,$B236,$B236/2/$C236) -> 16.47959228 | P236: =IF((SUM($D236:O236)+$B236/$C236)>$B236,$B236-SUM($D236:O236),$B236/$C236) -> 32.95918456 | Q236: =IF((SUM($D236:P236)+$B236/$C236)>$B236,$B236-SUM($D236:P236),$B236/$C236) -> 32.95918456 | R236: =IF((SUM($D236:Q236)+$B236/$C236)>$B236,$B236-SUM($D236:Q236),$B236/$C236) -> 32.95918456 | S236: =IF((SUM($D236:R236)+$B236/$C236)>$B236,$B236-SUM($D236:R236),$B236/$C236) -> 32.95918456 | T236: =IF((SUM($D236:S236)+$B236/$C236)>$B236,$B236-SUM($D236:S236),$B236/$C236) -> 32.95918456 | U236: =IF((SUM($D236:T236)+$B236/$C236)>$B236,$B236-SUM($D236:T236),$B236/$C236) -> 32.95918456 | V236: =IF((SUM($D236:U236)+$B236/$C236)>$B236,$B236-SUM($D236:U236),$B236/$C236) -> 32.95918456 | W236: =IF((SUM($D236:V236)+$B236/$C236)>$B236,$B236-SUM($D236:V236),$B236/$C236) -> 32.95918456 | X236: =IF((SUM($D236:W236)+$B236/$C236)>$B236,$B236-SUM($D236:W236),$B236/$C236) -> 32.95918456 | Y236: =IF((SUM($D236:X236)+$B236/$C236)>$B236,$B236-SUM($D236:X236),$B236/$C236) -> 32.95918456 | Z236: =IF((SUM($D236:Y236)+$B236/$C236)>$B236,$B236-SUM($D236:Y236),$B236/$C236) -> 32.95918456 | AA236: =IF((SUM($D236:Z236)+$B236/$C236)>$B236,$B236-SUM($D236:Z236),$B236/$C236) -> 32.95918456 | AH236: 0 | AI236: 0 | AJ236: 0 | AK236: 0 | AL236: 0 | AM236: 0 | AN236: 22.56741213
B237: =SUM(B225:B236) -> 184273.1746 | D237: =SUM(D225:D231) -> 203.6034679 | E237: 1054.864334 | F237: 3001.275531 | G237: 5765.446757 | H237: 8841.647016 | I237: 11146.65854 | J237: 11905.81707 | K237: 11970.7469 | L237: 11970.7469 | M237: 11970.7469 | N237: 11970.7469 | O237: 11970.7469 | P237: 11970.7469 | Q237: 11970.7469 | R237: 11970.7469 | S237: 11767.14343 | T237: 10915.88256 | U237: 8969.471365 | V237: 6205.300139 | W237: 3129.099879 | X237: 824.0883506 | Y237: 64.92982635 | Z237: 0 | AA237: 0 | AD237: =E237*AD$16 -> 1121.375326 | AE237: =F237*AE$16 -> 3279.451762 | AF237: =G237*AF$16 -> 6521.570922 | AG237: =H237*AG$16 -> 10201.63147 | AH237: 13139.13326 | AI237: 14357.85337 | AJ237: 14807.86868 | AK237: 15189.15284 | AL237: 15580.25459 | AM237: 15981.42673 | AN237: 16392.92854
A240: IT | B240: Net | C240: Regulatory | D240: =D$4 -> 2009 | E240: =E$4 -> 2010 | F240: 2011 | G240: 2012 | H240: 2013 | I240: 2014 | J240: 2015 | K240: 2016 | L240: 2017 | M240: 2018 | N240: 2019 | O240: 2020 | P240: 2021 | Q240: 2022 | R240: 2023 | S240: 2024 | T240: 2025 | U240: 2026 | V240: 2027 | W240: 2028 | X240: 2029 | Y240: 2030 | Z240: 2031 | AA240: 2032 | AD240: 2010 | AE240: 2011 | AF240: 2012 | AG240: 2013 | AH240: 2014 | AI240: 2015 | AJ240: 2016 | AK240: 2017 | AL240: 2018 | AM240: 2019 | AN240: 2020
... 45 more rows

Sheet Intro
F1: Electricity Distribution Network Service Providers
K2: Roll Forward Model
K3: Version: 01
K4: Date: 26 June 2008
B7: Introduction
C13: This Roll Forward Model (RFM) is used by the Australian Energy Regulator to determine the value of the opening
C14: regulatory asset base for distribution network service providers.
D19: AMENDMENT RECORD
D21: version no. | E21: date of issue | G21: details of amendments
D22: version 01 | E22: 2008-06-26

Sheet Input
F2: Input Variables | G2: Input cells are in blue
F5: ="Opening Regulated Asset Base for "&CONCATENATE(LEFT(V7, 4)-1 &"-" &IF(V7>"2009-10",,"0") &RIGHT(V7,2)-1) &" ($m Nominal)" -> Opening Regulated Asset Base for 2010-010 ($m Nominal)
G6: Asset Class Name | J6: Opening Asset Value | K6: Remaining Life | L6: Standard Life | M6: Forecast Net Capex | N6: Forecast Regulatory Depreciation | O6: Prudent Additional Capex Allowance | P6: Foregone Return on Additional Capex | Q6: Forecast Assets Under Construction | R6: Actual Assets Under Construction | S6: Opening Tax Value | T6: Tax Remaining Life | U6: Tax Standard Life | V6: Base Calender Year
F7: Asset Class 1 | G7: Accumulation meters | J7: ='AMI RAB'!AD20/1000 -> 12.96749107 | K7: 2 | L7: 15 | M7: =G41 -> 3.588444 | N7: =('AMI RAB'!AD24/1000) -> 3.754507626 | O7: 0 | P7: 0 | Q7: 0 | R7: 0 | S7: 0 | T7: 0 | U7: 0 | V7: 2011
F8: Asset Class 2 | G8: Manually read interval meters | J8: ='AMI RAB'!AD30/1000 -> 2.438599929 | K8: 2 | L8: 15 | M8: 0 | N8: =('AMI RAB'!AD34/1000) -> 0.6096499823 | O8: 0 | P8: 0 | Q8: 0 | R8: 0 | S8: 0 | T8: 0 | U8: 0
F9: Asset Class 3 | G9: remotely read interval meters | J9: ='AMI RAB'!AD40/1000 -> 6.276789382 | K9: 15 | L9: 15 | M9: 20.654799 | N9: =('AMI RAB'!AD44/1000) -> 1.121375326 | O9: 0 | P9: 0 | Q9: 0 | R9: 0 | S9: 0 | T9: 0 | U9: =A3taxremlife -> 0
F10: Asset Class 4 | G10: IT | J10: =('AMI RAB'!AD50/1000) -> 69.03153484 | K10: 7 | L10: 7 | M10: 34.423246 | N10: =('AMI RAB'!AD54/1000) -> 13.43693601 | O10: 0 | P10: 0 | Q10: 0 | R10: 0 | S10: 0 | T10: 0 | U10: =A4taxremlife -> 0
F11: Asset Class 5 | G11: Communications | J11: =('AMI RAB'!AD60/1000) -> 0 | K11: 7 | L11: 7 | M11: 0 | N11: =('AMI RAB'!AD64/1000) -> 0 | O11: 0 | P11: 0 | Q11: 0 | R11: 0 | S11: 0 | T11: 0 | U11: =A5taxremlife -> 0
F12: Asset Class 6 | G12: Other | J12: =('AMI RAB'!AD70/1000) -> 22.05403573 | K12: 7 | L12: 7 | M12: 0.367167 | N12: =('AMI RAB'!AD74/1000) -> 4.268905153 | O12: 0 | P12: 0 | Q12: 0 | R12: 0 | S12: 0 | T12: 0 | U12: =A6taxremlife -> 0
F13: Asset Class 7
F14: Asset Class 8
F15: Asset Class 9
F16: Asset Class 10
F17: Asset Class 11
F18: Asset Class 12
F19: Asset Class 13
F20: Asset Class 14
F21: Asset Class 15
F22: Asset Class 16
F23: Asset Class 17
F24: Asset Class 18
F25: Asset Class 19
F26: Asset Class 20
F27: Asset Class 21
F28: Asset Class 22
F29: Asset Class 23
F30: Asset Class 24
F31: Asset Class 25
F32: Asset Class 26
F33: Asset Class 27
F34: Asset Class 28
F35: Asset Class 29
F36: Asset Class 30
F37: Total | J37: =SUM(J7:J36) -> 112.768451 | M37: =SUM(M7:M36) -> 59.033656 | N37: 23.19137409 | O37: 0 | P37: 0 | Q37: 0 | R37: 0
F39: Actual Capital Expenditure – As Incurred ($m Nominal)
F40: Year | G40: =CONCATENATE(LEFT(H40, 4)-1 &"-" &IF(H40>"2009-10",,"0") &RIGHT(H40,2)-1) -> 2010-010 | H40: =V7 -> 2011 | I40: =CONCATENATE(LEFT(H40, 4)+1 &"-" &IF(H40>"2007-08",,"0") &RIGHT(H40,2)+1) -> 2012-012 | J40: =CONCATENATE(LEFT(I40, 4)+1 &"-" &IF(I40>"2007-08",,"0") &RIGHT(I40,2)+1) -> 2013-13 | K40: 2014-14 | L40: 2015-15 | M40: 2016-16 | N40: 2017-17 | O40: 2018-18 | P40: 2019-19 | Q40: =CONCATENATE(LEFT(P40, 4)+1 &"-" &IF(P40>"2007-08",,"0") &RIGHT(P40,2)+1) -> 2020-20
F41: =Asset1 -> Accumulation meters | G41: 3.588444 | H41: 4.01584247 | I41: 0.82989999 | J41: 0 | K41: 0 | L41: 0
F42: =Asset2 -> Manually read interval meters | G42: 0 | H42: 1.7675739 | I42: 1.29350299 | J42: 0 | K42: 0 | L42: 0
F43: =Asset3 -> remotely read interval meters | G43: 20.654799 | H43: 42.57390287 | I43: 49.72809962 | J43: 55.75640179 | K43: 24.549682 | L43: 2.349069351
F44: =Asset4 -> IT | G44: 34.423246 | H44: 8.38203572 | I44: 7.97407495 | J44: 1.74857127 | K44: 4.041916 | L44: 4.28662144
F45: =Asset5 -> Communications | G45: 0 | H45: 2.27604569 | I45: 0.41883868 | J45: 1.0553722 | K45: 1.078313 | L45: 0.234
F46: =Asset6 -> Other | G46: 0.367167 | H46: 10.55023079 | I46: 2.70693779 | J46: 2.42552955 | K46: 0 | L46: 0
F47: =Asset7 -> 0
F48: =Asset8 -> 0
F49: =Asset9 -> 0
F50: =Asset10 -> 0
F51: =Asset11 -> 0
F52: =Asset12 -> 0
F53: =Asset13 -> 0
F54: =Asset14 -> 0
F55: =Asset15 -> 0
F56: =Asset16 -> 0
F57: =Asset17 -> 0
F58: =Asset18 -> 0
F59: =Asset19 -> 0
F60: =Asset20 -> 0
F61: =Asset21 -> 0
F62: =Asset22 -> 0
F63: =Asset23 -> 0
F64: =Asset24 -> 0
F65: =Asset25 -> 0
F66: =Asset26 -> 0
F67: =Asset27 -> 0
F68: =Asset28 -> 0
F69: =Asset29 -> 0
F70: =Asset30 -> 0
F71: Total | G71: =SUM(G41:G70) -> 59.033656 | H71: 69.56563144 | I71: 62.95135402 | J71: 60.98587481 | K71: 29.669911 | L71: 6.869690791 | M71: 0 | N71: 0 | O71: 0 | P71: 0 | Q71: 0
R72: =SUM(G71:Q71) -> 289.0761181
F73: Actual Asset Disposal – As Incurred ($m Nominal)
F74: Year | G74: =G40 -> 2010-010 | H74: =H40 -> 2011 | I74: 2012-012 | J74: 2013-13 | K74: 2014-14 | L74: 2015-15 | M74: 2016-16 | N74: 2017-17 | O74: 2018-18 | P74: 2019-19 | Q74: 2020-20
F75: =Asset1 -> Accumulation meters | G75: 0 | H75: 0 | I75: 0 | J75: 0 | K75: 0 | L75: 0
F76: =Asset2 -> Manually read interval meters | G76: 0 | H76: 0 | I76: 0 | J76: 0 | K76: 0 | L76: 0
F77: =Asset3 -> remotely read interval meters | G77: 0 | H77: 0 | I77: 0 | J77: 0 | K77: 0 | L77: 0
F78: =Asset4 -> IT | G78: 0 | H78: 0 | I78: 0 | J78: 0 | K78: 0 | L78: 0
F79: =Asset5 -> Communications | G79: 0 | H79: 0 | I79: 0 | J79: 0 | K79: 0 | L79: 0
F80: =Asset6 -> Other | G80: 0 | H80: 0 | I80: 0 | J80: 0 | K80: 0 | L80: 0
F81: =Asset7 -> 0
F82: =Asset8 -> 0
F83: =Asset9 -> 0
F84: =Asset10 -> 0
F85: =Asset11 -> 0
F86: =Asset12 -> 0
F87: =Asset13 -> 0
F88: =Asset14 -> 0
F89: =Asset15 -> 0
F90: =Asset16 -> 0
F91: =Asset17 -> 0
F92: =Asset18 -> 0
F93: =Asset19 -> 0
F94: =Asset20 -> 0
F95: =Asset21 -> 0
F96: =Asset22 -> 0
F97: =Asset23 -> 0
F98: =Asset24 -> 0
F99: =Asset25 -> 0
F100: =Asset26 -> 0
F101: =Asset27 -> 0
F102: =Asset28 -> 0
F103: =Asset29 -> 0
F104: =Asset30 -> 0
F105: Total | G105: =SUM(G75:G104) -> 0 | H105: 0 | I105: 0 | J105: 0 | K105: 0 | L105: 0 | M105: 0 | N105: 0 | O105: 0 | P105: 0 | Q105: 0
R106: =SUM(G105:Q105) -> 0
F107: Actual Customer Contributions – As Incurred ($m Nominal)
F108: Year | G108: =G74 -> 2010-010 | H108: =H74 -> 2011 | I108: 2012-012 | J108: 2013-13 | K108: 2014-14 | L108: 2015-15 | M108: 2016-16 | N108: 2017-17 | O108: 2018-18 | P108: 2019-19 | Q108: 2020-20
F109: =Asset1 -> Accumulation meters | G109: 0 | H109: 0 | I109: 0 | J109: 0 | K109: 0 | L109: 0
F110: =Asset2 -> Manually read interval meters | G110: 0 | H110: 0 | I110: 0 | J110: 0 | K110: 0 | L110: 0
F111: =Asset3 -> remotely read interval meters | G111: 0 | H111: 0 | I111: 0 | J111: 0 | K111: 0 | L111: 0
F112: =Asset4 -> IT | G112: 0 | H112: 0 | I112: 0 | J112: 0 | K112: 0 | L112: 0
F113: =Asset5 -> Communications | G113: 0 | H113: 0 | I113: 0 | J113: 0 | K113: 0 | L113: 0
F114: =Asset6 -> Other | G114: 0 | H114: 0 | I114: 0 | J114: 0 | K114: 0 | L114: 0
F115: =Asset7 -> 0
F116: =Asset8 -> 0
F117: =Asset9 -> 0
F118: =Asset10 -> 0
F119: =Asset11 -> 0
F120: =Asset12 -> 0
F121: =Asset13 -> 0
F122: =Asset14 -> 0
F123: =Asset15 -> 0
F124: =Asset16 -> 0
F125: =Asset17 -> 0
F126: =Asset18 -> 0
F127: =Asset19 -> 0
F128: =Asset20 -> 0
F129: =Asset21 -> 0
F130: =Asset22 -> 0
F131: =Asset23 -> 0
F132: =Asset24 -> 0
F133: =Asset25 -> 0
F134: =Asset26 -> 0
F135: =Asset27 -> 0
F136: =Asset28 -> 0
F137: =Asset29 -> 0
F138: =Asset30 -> 0
F139: Total | G139: =SUM(G109:G138) -> 0 | H139: 0 | I139: 0 | J139: 0 | K139: 0 | L139: 0 | M139: 0 | N139: 0 | O139: 0 | P139: 0 | Q139: 0
R140: =SUM(G139:Q139) -> 0
F141: ="Actual Net Capital Expenditure – As Incurred ($m Real "&CONCATENATE(LEFT(V7, 4)-1 &"-" &IF(V7>"2009-10",,"0") &RIGHT(V7,2)-1)&")" -> Actual Net Capital Expenditure – As Incurred ($m Real 2010-010)
F142: Year | G142: =G40 -> 2010-010 | H142: =H40 -> 2011 | I142: 2012-012 | J142: 2013-13 | K142: 2014-14 | L142: 2015-15 | M142: 2016-16 | N142: 2017-17 | O142: 2018-18 | P142: 2019-19 | Q142: 2020-20
F143: =Asset1 -> Accumulation meters | G143: =(G41-G75-G109)/G$178 -> 3.588444 | H143: =(H41-H75-H109)/H$178 -> 3.906930412 | I143: 0.7799394555 | J143: 0 | K143: 0 | L143: =(L41-L75-L109)/L$178 -> 0 | M143: 0 | N143: 0 | O143: 0 | P143: 0 | Q143: 0
F144: =Asset2 -> Manually read interval meters | G144: =(G42-G76-G110)/G$178 -> 0 | H144: =(H42-H76-H110)/H$178 -> 1.719636235 | I144: 1.215633245 | J144: 0 | K144: 0 | L144: =(L42-L76-L110)/L$178 -> 0 | M144: 0 | N144: 0 | O144: 0 | P144: 0 | Q144: 0
F145: =Asset3 -> remotely read interval meters | G145: =(G43-G77-G111)/G$178 -> 20.654799 | H145: 41.41927307 | I145: =(I43-I77-I111)/I$178 -> 46.73443476 | J145: 51.37036695 | K145: 22.14003171 | L145: 2.070713036 | M145: 0 | N145: 0 | O145: 0 | P145: 0 | Q145: 0
F146: =Asset4 -> IT | G146: =(G44-G78-G112)/G$178 -> 34.423246 | H146: 8.154709881 | I146: 7.494030304 | J146: 1.611021244 | K146: 3.645185645 | L146: 3.778672133 | M146: 0 | N146: 0 | O146: 0 | P146: 0 | Q146: 0
F147: =Asset5 -> Communications | G147: =(G45-G79-G113)/G$178 -> 0 | H147: 2.214317965 | I147: 0.3936243113 | J147: 0.9723521505 | K147: 0.9724722307 | L147: 0.2062718371 | M147: 0 | N147: 0 | O147: 0 | P147: 0 | Q147: 0
F148: =Asset6 -> Other | G148: =(G46-G80-G114)/G$178 -> 0.367167 | H148: 10.2641022 | I148: 2.543978324 | J148: 2.234727117 | K148: 0 | L148: 0 | M148: 0 | N148: 0 | O148: 0 | P148: 0 | Q148: 0
F149: =Asset7 -> 0 | G149: =(G47-G81-G115)/G$178 -> 0 | H149: 0 | I149: 0 | J149: 0 | K149: 0 | L149: 0 | M149: 0 | N149: 0 | O149: 0 | P149: 0 | Q149: 0
F150: =Asset8 -> 0 | G150: =(G48-G82-G116)/G$178 -> 0 | H150: 0 | I150: 0 | J150: 0 | K150: 0 | L150: 0 | M150: 0 | N150: 0 | O150: 0 | P150: 0 | Q150: 0
F151: =Asset9 -> 0 | G151: =(G49-G83-G117)/G$178 -> 0 | H151: 0 | I151: 0 | J151: 0 | K151: 0 | L151: 0 | M151: 0 | N151: 0 | O151: 0 | P151: 0 | Q151: 0
F152: =Asset10 -> 0 | G152: =(G50-G84-G118)/G$178 -> 0 | H152: =(H50-H84-H118)/H$178 -> 0 | I152: 0 | J152: 0 | K152: 0 | L152: 0 | M152: 0 | N152: 0 | O152: 0 | P152: 0 | Q152: 0
F153: =Asset11 -> 0 | G153: =(G51-G85-G119)/G$178 -> 0 | H153: =(H51-H85-H119)/H$178 -> 0 | I153: 0 | J153: 0 | K153: 0 | L153: 0 | M153: 0 | N153: 0 | O153: 0 | P153: 0 | Q153: 0
F154: =Asset12 -> 0 | G154: =(G52-G86-G120)/G$178 -> 0 | H154: 0 | I154: 0 | J154: 0 | K154: 0 | L154: 0 | M154: 0 | N154: 0 | O154: 0 | P154: 0 | Q154: 0
F155: =Asset13 -> 0 | G155: =(G53-G87-G121)/G$178 -> 0 | H155: 0 | I155: 0 | J155: 0 | K155: 0 | L155: 0 | M155: 0 | N155: 0 | O155: 0 | P155: 0 | Q155: 0
F156: =Asset14 -> 0 | G156: =(G54-G88-G122)/G$178 -> 0 | H156: 0 | I156: 0 | J156: 0 | K156: 0 | L156: 0 | M156: 0 | N156: 0 | O156: 0 | P156: 0 | Q156: 0
F157: =Asset15 -> 0 | G157: =(G55-G89-G123)/G$178 -> 0 | H157: 0 | I157: 0 | J157: 0 | K157: 0 | L157: 0 | M157: 0 | N157: 0 | O157: 0 | P157: 0 | Q157: 0
F158: =Asset16 -> 0 | G158: =(G56-G90-G124)/G$178 -> 0 | H158: 0 | I158: 0 | J158: 0 | K158: 0 | L158: 0 | M158: 0 | N158: 0 | O158: 0 | P158: 0 | Q158: 0
F159: =Asset17 -> 0 | G159: =(G57-G91-G125)/G$178 -> 0 | H159: 0 | I159: 0 | J159: 0 | K159: 0 | L159: 0 | M159: 0 | N159: 0 | O159: 0 | P159: 0 | Q159: 0
F160: =Asset18 -> 0 | G160: =(G58-G92-G126)/G$178 -> 0 | H160: 0 | I160: 0 | J160: 0 | K160: 0 | L160: 0 | M160: 0 | N160: 0 | O160: 0 | P160: 0 | Q160: 0
F161: =Asset19 -> 0 | G161: =(G59-G93-G127)/G$178 -> 0 | H161: 0 | I161: 0 | J161: 0 | K161: 0 | L161: 0 | M161: 0 | N161: 0 | O161: 0 | P161: 0 | Q161: 0
F162: =Asset20 -> 0 | G162: =(G60-G94-G128)/G$178 -> 0 | H162: 0 | I162: 0 | J162: 0 | K162: 0 | L162: 0 | M162: 0 | N162: 0 | O162: 0 | P162: 0 | Q162: 0
F163: =Asset21 -> 0 | G163: =(G61-G95-G129)/G$178 -> 0 | H163: 0 | I163: 0 | J163: 0 | K163: 0 | L163: 0 | M163: 0 | N163: 0 | O163: 0 | P163: 0 | Q163: 0
F164: =Asset22 -> 0 | G164: =(G62-G96-G130)/G$178 -> 0 | H164: 0 | I164: 0 | J164: 0 | K164: 0 | L164: 0 | M164: 0 | N164: 0 | O164: 0 | P164: 0 | Q164: 0
F165: =Asset23 -> 0 | G165: =(G63-G97-G131)/G$178 -> 0 | H165: 0 | I165: 0 | J165: 0 | K165: 0 | L165: 0 | M165: 0 | N165: 0 | O165: 0 | P165: 0 | Q165: 0
F166: =Asset24 -> 0 | G166: =(G64-G98-G132)/G$178 -> 0 | H166: 0 | I166: 0 | J166: 0 | K166: 0 | L166: 0 | M166: 0 | N166: 0 | O166: 0 | P166: 0 | Q166: 0
F167: =Asset25 -> 0 | G167: =(G65-G99-G133)/G$178 -> 0 | H167: 0 | I167: 0 | J167: 0 | K167: 0 | L167: 0 | M167: 0 | N167: 0 | O167: 0 | P167: 0 | Q167: 0
F168: =Asset26 -> 0 | G168: =(G66-G100-G134)/G$178 -> 0 | H168: 0 | I168: 0 | J168: 0 | K168: 0 | L168: 0 | M168: 0 | N168: 0 | O168: 0 | P168: 0 | Q168: 0
F169: =Asset27 -> 0 | G169: =(G67-G101-G135)/G$178 -> 0 | H169: 0 | I169: 0 | J169: 0 | K169: 0 | L169: 0 | M169: 0 | N169: 0 | O169: 0 | P169: 0 | Q169: 0
F170: =Asset28 -> 0 | G170: =(G68-G102-G136)/G$178 -> 0 | H170: 0 | I170: 0 | J170: 0 | K170: 0 | L170: 0 | M170: 0 | N170: 0 | O170: 0 | P170: 0 | Q170: 0
F171: =Asset29 -> 0 | G171: =(G69-G103-G137)/G$178 -> 0 | H171: 0 | I171: 0 | J171: 0 | K171: 0 | L171: 0 | M171: 0 | N171: 0 | O171: 0 | P171: 0 | Q171: 0
F172: =Asset30 -> 0 | G172: =(G70-G104-G138)/G$178 -> 0 | H172: 0 | I172: 0 | J172: 0 | K172: 0 | L172: 0 | M172: 0 | N172: 0 | O172: 0 | P172: 0 | Q172: 0
F173: Total | G173: =SUM(G143:G172) -> 59.033656 | H173: =SUM(H143:H172) -> 67.67896977 | I173: 59.1616404 | J173: 56.18846747 | K173: =SUM(K143:K172) -> 26.75768959 | L173: =SUM(L143:L172) -> 6.055657006 | M173: 0 | N173: 0 | O173: 0 | P173: 0 | Q173: 0
R174: =SUM(G173:Q173) -> 274.8760802
F175: Inflation and Rate of Return
G176: =G40 -> 2010-010 | H176: =H40 -> 2011 | I176: 2012-012 | J176: 2013-13 | K176: 2014-14 | L176: 2015-15 | M176: 2016-16 | N176: 2017-17 | O176: 2018-18 | P176: 2019-19 | Q176: 2020-20
F177: Actual CPI Inflation Rate | G177: 0.01261261261 | H177: 0.02787663108 | I177: 0.03519907675 | J177: 0.02004 | K177: 0.02161100196 | L177: 0.02307692308 | M177: 0.025 | N177: 0.025 | O177: 0.025 | P177: 0.025 | Q177: 0.025
F178: Actual CPI (one year lagged) | G178: 1 | H178: =IF('AMI RAB'!$AQ$3=1,Input!G178*(1+Input!H177),G178*(1+G177)) -> 1.027876631 | I178: =IF('AMI RAB'!$AQ$3=1,Input!H178*(1+Input!I177),H178*(1+H177)) -> 1.06405694 | J178: =IF('AMI RAB'!$AQ$3=1,Input!I178*(1+Input!J177),I178*(1+I177)) -> 1.085380641 | K178: =IF('AMI RAB'!$AQ$3=1,Input!J178*(1+Input!K177),J178*(1+J177)) -> 1.108836804 | L178: =IF('AMI RAB'!$AQ$3=1,Input!K178*(1+Input!L177),K178*(1+K177)) -> 1.134425345 | M178: =IF('AMI RAB'!$AQ$3=1,Input!L178*(1+Input!M177),L178*(1+L177)) -> 1.162785979 | N178: =IF('AMI RAB'!$AQ$3=1,Input!M178*(1+Input!N177),M178*(1+M177)) -> 1.191855628 | O178: =IF('AMI RAB'!$AQ$3=1,Input!N178*(1+Input!O177),N178*(1+N177)) -> 1.221652019 | P178: =IF('AMI RAB'!$AQ$3=1,Input!O178*(1+Input!P177),O178*(1+O177)) -> 1.25219332 | Q178: =IF('AMI RAB'!$AQ$3=1,Input!P178*(1+Input!Q177),P178*(1+P177)) -> 1.283498153
F179: Forecast Inflation Rate | G179: 0.0256 | H179: 0.0257487534 | I179: =H179 -> 0.0257487534 | J179: =I179 -> 0.0257487534 | K179: 0.0257487534 | L179: 0.0257487534 | M179: 0.0257487534 | N179: 0.0257487534 | O179: 0.0257487534 | P179: 0.0257487534 | Q179: 0.0257487534
F180: Forecast Inflation Cumulative Index | G180: 1 | H180: =G180*(1+H179) -> 1.025748753 | I180: =H180*(1+I179) -> 1.052160505 | J180: 1.079252326 | K180: 1.107041729 | L180: 1.135546673 | M180: 1.164785584 | N180: 1.194777361 | O180: 1.225541389 | P180: 1.257097552 | Q180: 1.289466247
F182: Nominal WACC | G182: 0.0886 | H182: 0.09489772882 | I182: =H182 -> 0.09489772882 | J182: =I182 -> 0.09489772882 | K182: =J182 -> 0.09489772882 | L182: 0.09489772882 | M182: 0.09489772882 | N182: 0.09489772882 | O182: 0.09489772882 | P182: 0.09489772882 | Q182: 0.09489772882
F183: Real WACC | G183: =(1+G182)/(1+G179)-1 -> 0.0614274571 | H183: =(1+H182)/(1+H179)-1 -> 0.06741317032 | I183: =H183 -> 0.06741317032 | J183: =I183 -> 0.06741317032 | K183: 0.06741317032 | L183: 0.06741317032 | M183: =L183 -> 0.06741317032 | N183: 0.06741317032 | O183: 0.06741317032 | P183: 0.06741317032 | Q183: 0.06741317032
F184: Nominal WACC (fixed real time varying) | G184: 0 | H184: 0 | I184: 0 | J184: 0 | K184: 0 | L184: 0 | M184: =IF(M177=0, 0, (1+M183)*(1+M177)-1) -> 0.09409849958 | N184: =IF(N177=0, 0, (1+N183)*(1+N177)-1) -> 0.09409849958 | O184: =IF(O177=0, 0, (1+O183)*(1+O177)-1) -> 0.09409849958 | P184: =IF(P177=0, 0, (1+P183)*(1+P177)-1) -> 0.09409849958 | Q184: =IF(Q177=0, 0, (1+Q183)*(1+Q177)-1) -> 0.09409849958

Sheet Adjustment for previous period
B2: Adjustments for Previous Regulatory Control Period
B4: Year | F4: =CONCATENATE(LEFT(G4, 4)-1 &"-" &IF(G4>"2009-10",,"0") &RIGHT(G4,2)-1) -> 2009-9 | G4: =Input!G40 -> 2010-010 | H4: =Input!H40 -> 2011 | I4: =Input!I40 -> 2012-012 | J4: =Input!J40 -> 2013-13 | K4: =Input!K40 -> 2014-14 | L4: =Input!L40 -> 2015-15 | M4: =Input!M40 -> 2016-16 | N4: =Input!N40 -> 2017-17 | O4: =Input!O40 -> 2018-18 | P4: =Input!P40 -> 2019-19 | Q4: =Input!Q40 -> 2020-20
B6: Actual CPI Inflation Rate | F6: =G6 -> 0.01261261261 | G6: =Input!G177 -> 0.01261261261
B7: Nominal Vanilla WACC (fixed real time varying) | H7: =vanilla1 -> 0 | I7: =vanilla2 -> 0 | J7: =vanilla3 -> 0 | K7: =vanilla4 -> 0 | L7: =vanilla5 -> 0 | M7: 0 | N7: 0 | O7: 0 | P7: 0 | Q7: 0
B9: Nominal Adjustments for Difference Between Forecast and Actual Capex
B11: Nominal Forecast Net Capex (previous regulatory control period) | G11: =SUM(G12:G41) -> 59.033656
C12: =Asset1 -> Accumulation meters | G12: =Input!M7 -> 3.588444
C13: =Asset2 -> Manually read interval meters | G13: =Input!M8 -> 0
C14: =Asset3 -> remotely read interval meters | G14: =Input!M9 -> 20.654799
C15: =Asset4 -> IT | G15: =Input!M10 -> 34.423246
C16: =Asset5 -> Communications | G16: =Input!M11 -> 0
C17: =Asset6 -> Other | G17: =Input!M12 -> 0.367167
C18: =Asset7 -> 0 | G18: =Input!M13 -> 0
C19: =Asset8 -> 0 | G19: =Input!M14 -> 0
C20: =Asset9 -> 0 | G20: =Input!M15 -> 0
C21: =Asset10 -> 0 | G21: =Input!M16 -> 0
C22: =Asset11 -> 0 | G22: =Input!M17 -> 0
C23: =Asset12 -> 0 | G23: =Input!M18 -> 0
C24: =Asset13 -> 0 | G24: =Input!M19 -> 0
C25: =Asset14 -> 0 | G25: =Input!M20 -> 0
C26: =Asset15 -> 0 | G26: =Input!M21 -> 0
C27: =Asset16 -> 0 | G27: =Input!M22 -> 0
C28: =Asset17 -> 0 | G28: =Input!M23 -> 0
C29: =Asset18 -> 0 | G29: =Input!M24 -> 0
C30: =Asset19 -> 0 | G30: =Input!M25 -> 0
C31: =Asset20 -> 0 | G31: =Input!M26 -> 0
C32: =Asset21 -> 0 | G32: =Input!M27 -> 0
C33: =Asset22 -> 0 | G33: =Input!M28 -> 0
C34: =Asset23 -> 0 | G34: =Input!M29 -> 0
C35: =Asset24 -> 0 | G35: =Input!M30 -> 0
C36: =Asset25 -> 0 | G36: =Input!M31 -> 0
C37: =Asset26 -> 0 | G37: =Input!M32 -> 0
C38: =Asset27 -> 0 | G38: =Input!M33 -> 0
C39: =Asset28 -> 0 | G39: =Input!M34 -> 0
C40: =Asset29 -> 0 | G40: =Input!M35 -> 0
C41: =Asset30 -> 0 | G41: =Input!M36 -> 0
B43: Nominal Actual Net Capex | G43: =SUM(G44:G73) -> 59.033656
C44: =Asset1 -> Accumulation meters | G44: =Input!G143*(1+previous_vanilla)^0.5 -> 3.588444
C45: =Asset2 -> Manually read interval meters | G45: =Input!G144*(1+previous_vanilla)^0.5 -> 0
C46: =Asset3 -> remotely read interval meters | G46: =Input!G145*(1+previous_vanilla)^0.5 -> 20.654799
C47: =Asset4 -> IT | G47: =Input!G146*(1+previous_vanilla)^0.5 -> 34.423246
C48: =Asset5 -> Communications | G48: =Input!G147*(1+previous_vanilla)^0.5 -> 0
C49: =Asset6 -> Other | G49: =Input!G148*(1+previous_vanilla)^0.5 -> 0.367167
C50: =Asset7 -> 0 | G50: =Input!G149*(1+previous_vanilla)^0.5 -> 0
C51: =Asset8 -> 0 | G51: =Input!G150*(1+previous_vanilla)^0.5 -> 0
C52: =Asset9 -> 0 | G52: =Input!G151*(1+previous_vanilla)^0.5 -> 0
C53: =Asset10 -> 0 | G53: =Input!G152*(1+previous_vanilla)^0.5 -> 0
C54: =Asset11 -> 0 | G54: =Input!G153*(1+previous_vanilla)^0.5 -> 0
C55: =Asset12 -> 0 | G55: =Input!G154*(1+previous_vanilla)^0.5 -> 0
C56: =Asset13 -> 0 | G56: =Input!G155*(1+previous_vanilla)^0.5 -> 0
C57: =Asset14 -> 0 | G57: =Input!G156*(1+previous_vanilla)^0.5 -> 0
C58: =Asset15 -> 0 | G58: =Input!G157*(1+previous_vanilla)^0.5 -> 0
C59: =Asset16 -> 0 | G59: =Input!G158*(1+previous_vanilla)^0.5 -> 0
C60: =Asset17 -> 0 | G60: =Input!G159*(1+previous_vanilla)^0.5 -> 0
C61: =Asset18 -> 0 | G61: =Input!G160*(1+previous_vanilla)^0.5 -> 0
C62: =Asset19 -> 0 | G62: =Input!G161*(1+previous_vanilla)^0.5 -> 0
C63: =Asset20 -> 0 | G63: =Input!G162*(1+previous_vanilla)^0.5 -> 0
C64: =Asset21 -> 0 | G64: =Input!G163*(1+previous_vanilla)^0.5 -> 0
C65: =Asset22 -> 0 | G65: =Input!G164*(1+previous_vanilla)^0.5 -> 0
C66: =Asset23 -> 0 | G66: =Input!G165*(1+previous_vanilla)^0.5 -> 0
C67: =Asset24 -> 0 | G67: =Input!G166*(1+previous_vanilla)^0.5 -> 0
C68: =Asset25 -> 0 | G68: =Input!G167*(1+previous_vanilla)^0.5 -> 0
C69: =Asset26 -> 0 | G69: =Input!G168*(1+previous_vanilla)^0.5 -> 0
C70: =Asset27 -> 0 | G70: =Input!G169*(1+previous_vanilla)^0.5 -> 0
C71: =Asset28 -> 0 | G71: =Input!G170*(1+previous_vanilla)^0.5 -> 0
C72: =Asset29 -> 0 | G72: =Input!G171*(1+previous_vanilla)^0.5 -> 0
C73: =Asset30 -> 0 | G73: =Input!G172*(1+previous_vanilla)^0.5 -> 0
B75: Nominal Difference Between Actual and Forecast Net Capex | G75: =SUM(G76:G105) -> 0
C76: =Asset1 -> Accumulation meters | G76: =G44*(1+$F$6)/(1+$G$6)-G12 -> 0
C77: =Asset2 -> Manually read interval meters | G77: 0
C78: =Asset3 -> remotely read interval meters | G78: 0
C79: =Asset4 -> IT | G79: 0
C80: =Asset5 -> Communications | G80: 0
C81: =Asset6 -> Other | G81: 0
C82: =Asset7 -> 0 | G82: 0
C83: =Asset8 -> 0 | G83: 0
C84: =Asset9 -> 0 | G84: 0
C85: =Asset10 -> 0 | G85: 0
C86: =Asset11 -> 0 | G86: 0
C87: =Asset12 -> 0 | G87: 0
C88: =Asset13 -> 0 | G88: 0
C89: =Asset14 -> 0 | G89: 0
C90: =Asset15 -> 0 | G90: 0
C91: =Asset16 -> 0 | G91: 0
C92: =Asset17 -> 0 | G92: 0
C93: =Asset18 -> 0 | G93: 0
C94: =Asset19 -> 0 | G94: 0
C95: =Asset20 -> 0 | G95: 0
C96: =Asset21 -> 0 | G96: =G64*(1+$F$6)/(1+$G$6)-G32 -> 0
C97: =Asset22 -> 0 | G97: 0
C98: =Asset23 -> 0 | G98: 0
C99: =Asset24 -> 0 | G99: 0
C100: =Asset25 -> 0 | G100: 0
C101: =Asset26 -> 0 | G101: 0
C102: =Asset27 -> 0 | G102: 0
C103: =Asset28 -> 0 | G103: 0
C104: =Asset29 -> 0 | G104: 0
C105: =Asset30 -> 0 | G105: 0
B107: Compounded Return on Difference - Net Capex | H107: =SUM(H108,H110,H112,H114,H116,H118,H120,H122,H124,H126,H128,H130,H132,H134,H136,H138,H140,H142,H144,H146,H148,H150,H152,H154,H156,H158,H160,H162,H164,H166) -> 0 | I107: =SUM(I108,I110,I112,I114,I116,I118,I120,I122,I124,I126,I128,I130,I132,I134,I136,I138,I140,I142,I144,I146,I148,I150,I152,I154,I156,I158,I160,I162,I164,I166) -> 0 | J107: 0 | K107: 0 | L107: =SUM(L108,L110,L112,L114,L116,L118,L120,L122,L124,L126,L128,L130,L132,L134,L136,L138,L140,L142,L144,L146,L148,L150,L152,L154,L156,L158,L160,L162,L164,L166) -> 0 | M107: =SUM(M108,M110,M112,M114,M116,M118,M120,M122,M124,M126,M128,M130,M132,M134,M136,M138,M140,M142,M144,M146,M148,M150,M152,M154,M156,M158,M160,M162,M164,M166) -> 0 | N107: =SUM(N108,N110,N112,N114,N116,N118,N120,N122,N124,N126,N128,N130,N132,N134,N136,N138,N140,N142,N144,N146,N148,N150,N152,N154,N156,N158,N160,N162,N164,N166) -> 0 | O107: 0 | P107: 0 | Q107: 0
C108: =Asset1 -> Accumulation meters | H108: =($G76+(SUM($G108:G108)))*H$7 -> 0 | I108: =($G76+(SUM($G108:H108)))*I$7 -> 0 | J108: =($G76+(SUM($G108:I108)))*J$7 -> 0 | K108: =($G76+(SUM($G108:J108)))*K$7 -> 0 | L108: =($G76+(SUM($G108:K108)))*L$7 -> 0 | M108: =($G76+(SUM($G108:L108)))*M$7 -> 0 | N108: =($G76+(SUM($G108:M108)))*N$7 -> 0 | O108: =($G76+(SUM($G108:N108)))*O$7 -> 0 | P108: =($G76+(SUM($G108:O108)))*P$7 -> 0 | Q108: =($G76+(SUM($G108:P108)))*Q$7 -> 0
C109: Sub-total | L109: =IF(M108=0, SUM($G108:L108), 0) -> 0 | M109: =IF(N108=0, IF(M108=0, 0, SUM($G108:M108)), 0) -> 0 | N109: =IF(O108=0, IF(N108=0, 0, SUM($G108:N108)), 0) -> 0 | O109: =IF(P108=0, IF(O108=0, 0, SUM($G108:O108)), 0) -> 0 | P109: =IF(Q108=0, IF(P108=0, 0, SUM($G108:P108)), 0) -> 0 | Q109: =IF(R108=0, IF(Q108=0, 0, SUM($G108:Q108)), 0) -> 0
C110: =Asset2 -> Manually read interval meters | H110: =($G77+(SUM($G110:G110)))*H$7 -> 0 | I110: =($G77+(SUM($G110:H110)))*I$7 -> 0 | J110: =($G77+(SUM($G110:I110)))*J$7 -> 0 | K110: =($G77+(SUM($G110:J110)))*K$7 -> 0 | L110: =($G77+(SUM($G110:K110)))*L$7 -> 0 | M110: =($G77+(SUM($G110:L110)))*M$7 -> 0 | N110: =($G77+(SUM($G110:M110)))*N$7 -> 0 | O110: =($G77+(SUM($G110:N110)))*O$7 -> 0 | P110: =($G77+(SUM($G110:O110)))*P$7 -> 0 | Q110: =($G77+(SUM($G110:P110)))*Q$7 -> 0
C111: Sub-total | L111: =IF(M110=0, SUM($G110:L110), 0) -> 0 | M111: =IF(N110=0, IF(M110=0, 0, SUM($G110:M110)), 0) -> 0 | N111: =IF(O110=0, IF(N110=0, 0, SUM($G110:N110)), 0) -> 0 | O111: =IF(P110=0, IF(O110=0, 0, SUM($G110:O110)), 0) -> 0 | P111: =IF(Q110=0, IF(P110=0, 0, SUM($G110:P110)), 0) -> 0 | Q111: =IF(R110=0, IF(Q110=0, 0, SUM($G110:Q110)), 0) -> 0
C112: =Asset3 -> remotely read interval meters | H112: =($G78+(SUM($G112:G112)))*H$7 -> 0 | I112: =($G78+(SUM($G112:H112)))*I$7 -> 0 | J112: =($G78+(SUM($G112:I112)))*J$7 -> 0 | K112: =($G78+(SUM($G112:J112)))*K$7 -> 0 | L112: =($G78+(SUM($G112:K112)))*L$7 -> 0 | M112: =($G78+(SUM($G112:L112)))*M$7 -> 0 | N112: =($G78+(SUM($G112:M112)))*N$7 -> 0 | O112: =($G78+(SUM($G112:N112)))*O$7 -> 0 | P112: =($G78+(SUM($G112:O112)))*P$7 -> 0 | Q112: =($G78+(SUM($G112:P112)))*Q$7 -> 0
C113: Sub-total | L113: =IF(M112=0, SUM($G112:L112), 0) -> 0 | M113: =IF(N112=0, IF(M112=0, 0, SUM($G112:M112)), 0) -> 0 | N113: =IF(O112=0, IF(N112=0, 0, SUM($G112:N112)), 0) -> 0 | O113: =IF(P112=0, IF(O112=0, 0, SUM($G112:O112)), 0) -> 0 | P113: =IF(Q112=0, IF(P112=0, 0, SUM($G112:P112)), 0) -> 0 | Q113: =IF(R112=0, IF(Q112=0, 0, SUM($G112:Q112)), 0) -> 0
C114: =Asset4 -> IT | H114: =($G79+(SUM($G114:G114)))*H$7 -> 0 | I114: =($G79+(SUM($G114:H114)))*I$7 -> 0 | J114: =($G79+(SUM($G114:I114)))*J$7 -> 0 | K114: =($G79+(SUM($G114:J114)))*K$7 -> 0 | L114: =($G79+(SUM($G114:K114)))*L$7 -> 0 | M114: =($G79+(SUM($G114:L114)))*M$7 -> 0 | N114: =($G79+(SUM($G114:M114)))*N$7 -> 0 | O114: =($G79+(SUM($G114:N114)))*O$7 -> 0 | P114: =($G79+(SUM($G114:O114)))*P$7 -> 0 | Q114: =($G79+(SUM($G114:P114)))*Q$7 -> 0
C115: Sub-total | L115: =IF(M114=0, SUM($G114:L114), 0) -> 0 | M115: =IF(N114=0, IF(M114=0, 0, SUM($G114:M114)), 0) -> 0 | N115: =IF(O114=0, IF(N114=0, 0, SUM($G114:N114)), 0) -> 0 | O115: =IF(P114=0, IF(O114=0, 0, SUM($G114:O114)), 0) -> 0 | P115: =IF(Q114=0, IF(P114=0, 0, SUM($G114:P114)), 0) -> 0 | Q115: =IF(R114=0, IF(Q114=0, 0, SUM($G114:Q114)), 0) -> 0
C116: =Asset5 -> Communications | H116: =($G80+(SUM($G116:G116)))*H$7 -> 0 | I116: =($G80+(SUM($G116:H116)))*I$7 -> 0 | J116: =($G80+(SUM($G116:I116)))*J$7 -> 0 | K116: =($G80+(SUM($G116:J116)))*K$7 -> 0 | L116: =($G80+(SUM($G116:K116)))*L$7 -> 0 | M116: =($G80+(SUM($G116:L116)))*M$7 -> 0 | N116: =($G80+(SUM($G116:M116)))*N$7 -> 0 | O116: =($G80+(SUM($G116:N116)))*O$7 -> 0 | P116: =($G80+(SUM($G116:O116)))*P$7 -> 0 | Q116: =($G80+(SUM($G116:P116)))*Q$7 -> 0
C117: Sub-total | L117: =IF(M116=0, SUM($G116:L116), 0) -> 0 | M117: =IF(N116=0, IF(M116=0, 0, SUM($G116:M116)), 0) -> 0 | N117: =IF(O116=0, IF(N116=0, 0, SUM($G116:N116)), 0) -> 0 | O117: =IF(P116=0, IF(O116=0, 0, SUM($G116:O116)), 0) -> 0 | P117: =IF(Q116=0, IF(P116=0, 0, SUM($G116:P116)), 0) -> 0 | Q117: =IF(R116=0, IF(Q116=0, 0, SUM($G116:Q116)), 0) -> 0
C118: =Asset6 -> Other | H118: =($G81+(SUM($G118:G118)))*H$7 -> 0 | I118: =($G81+(SUM($G118:H118)))*I$7 -> 0 | J118: =($G81+(SUM($G118:I118)))*J$7 -> 0 | K118: =($G81+(SUM($G118:J118)))*K$7 -> 0 | L118: =($G81+(SUM($G118:K118)))*L$7 -> 0 | M118: =($G81+(SUM($G118:L118)))*M$7 -> 0 | N118: =($G81+(SUM($G118:M118)))*N$7 -> 0 | O118: =($G81+(SUM($G118:N118)))*O$7 -> 0 | P118: =($G81+(SUM($G118:O118)))*P$7 -> 0 | Q118: =($G81+(SUM($G118:P118)))*Q$7 -> 0
C119: Sub-total | L119: =IF(M118=0, SUM($G118:L118), 0) -> 0 | M119: =IF(N118=0, IF(M118=0, 0, SUM($G118:M118)), 0) -> 0 | N119: =IF(O118=0, IF(N118=0, 0, SUM($G118:N118)), 0) -> 0 | O119: =IF(P118=0, IF(O118=0, 0, SUM($G118:O118)), 0) -> 0 | P119: =IF(Q118=0, IF(P118=0, 0, SUM($G118:P118)), 0) -> 0 | Q119: =IF(R118=0, IF(Q118=0, 0, SUM($G118:Q118)), 0) -> 0
C120: =Asset7 -> 0 | H120: =($G82+(SUM($G120:G120)))*H$7 -> 0 | I120: =($G82+(SUM($G120:H120)))*I$7 -> 0 | J120: =($G82+(SUM($G120:I120)))*J$7 -> 0 | K120: =($G82+(SUM($G120:J120)))*K$7 -> 0 | L120: =($G82+(SUM($G120:K120)))*L$7 -> 0 | M120: =($G82+(SUM($G120:L120)))*M$7 -> 0 | N120: =($G82+(SUM($G120:M120)))*N$7 -> 0 | O120: =($G82+(SUM($G120:N120)))*O$7 -> 0 | P120: =($G82+(SUM($G120:O120)))*P$7 -> 0 | Q120: =($G82+(SUM($G120:P120)))*Q$7 -> 0
C121: Sub-total | L121: =IF(M120=0, SUM($G120:L120), 0) -> 0 | M121: =IF(N120=0, IF(M120=0, 0, SUM($G120:M120)), 0) -> 0 | N121: =IF(O120=0, IF(N120=0, 0, SUM($G120:N120)), 0) -> 0 | O121: =IF(P120=0, IF(O120=0, 0, SUM($G120:O120)), 0) -> 0 | P121: =IF(Q120=0, IF(P120=0, 0, SUM($G120:P120)), 0) -> 0 | Q121: =IF(R120=0, IF(Q120=0, 0, SUM($G120:Q120)), 0) -> 0
C122: =Asset8 -> 0 | H122: =($G83+(SUM($G122:G122)))*H$7 -> 0 | I122: =($G83+(SUM($G122:H122)))*I$7 -> 0 | J122: =($G83+(SUM($G122:I122)))*J$7 -> 0 | K122: =($G83+(SUM($G122:J122)))*K$7 -> 0 | L122: =($G83+(SUM($G122:K122)))*L$7 -> 0 | M122: =($G83+(SUM($G122:L122)))*M$7 -> 0 | N122: =($G83+(SUM($G122:M122)))*N$7 -> 0 | O122: =($G83+(SUM($G122:N122)))*O$7 -> 0 | P122: =($G83+(SUM($G122:O122)))*P$7 -> 0 | Q122: =($G83+(SUM($G122:P122)))*Q$7 -> 0
C123: Sub-total | L123: =IF(M122=0, SUM($G122:L122), 0) -> 0 | M123: =IF(N122=0, IF(M122=0, 0, SUM($G122:M122)), 0) -> 0 | N123: =IF(O122=0, IF(N122=0, 0, SUM($G122:N122)), 0) -> 0 | O123: =IF(P122=0, IF(O122=0, 0, SUM($G122:O122)), 0) -> 0 | P123: =IF(Q122=0, IF(P122=0, 0, SUM($G122:P122)), 0) -> 0 | Q123: =IF(R122=0, IF(Q122=0, 0, SUM($G122:Q122)), 0) -> 0
C124: =Asset9 -> 0 | H124: =($G84+(SUM($G124:G124)))*H$7 -> 0 | I124: =($G84+(SUM($G124:H124)))*I$7 -> 0 | J124: =($G84+(SUM($G124:I124)))*J$7 -> 0 | K124: =($G84+(SUM($G124:J124)))*K$7 -> 0 | L124: =($G84+(SUM($G124:K124)))*L$7 -> 0 | M124: =($G84+(SUM($G124:L124)))*M$7 -> 0 | N124: =($G84+(SUM($G124:M124)))*N$7 -> 0 | O124: =($G84+(SUM($G124:N124)))*O$7 -> 0 | P124: =($G84+(SUM($G124:O124)))*P$7 -> 0 | Q124: =($G84+(SUM($G124:P124)))*Q$7 -> 0
C125: Sub-total | L125: =IF(M124=0, SUM($G124:L124), 0) -> 0 | M125: =IF(N124=0, IF(M124=0, 0, SUM($G124:M124)), 0) -> 0 | N125: =IF(O124=0, IF(N124=0, 0, SUM($G124:N124)), 0) -> 0 | O125: =IF(P124=0, IF(O124=0, 0, SUM($G124:O124)), 0) -> 0 | P125: =IF(Q124=0, IF(P124=0, 0, SUM($G124:P124)), 0) -> 0 | Q125: =IF(R124=0, IF(Q124=0, 0, SUM($G124:Q124)), 0) -> 0
C126: =Asset10 -> 0 | H126: =($G85+(SUM($G126:G126)))*H$7 -> 0 | I126: =($G85+(SUM($G126:H126)))*I$7 -> 0 | J126: =($G85+(SUM($G126:I126)))*J$7 -> 0 | K126: =($G85+(SUM($G126:J126)))*K$7 -> 0 | L126: =($G85+(SUM($G126:K126)))*L$7 -> 0 | M126: =($G85+(SUM($G126:L126)))*M$7 -> 0 | N126: =($G85+(SUM($G126:M126)))*N$7 -> 0 | O126: =($G85+(SUM($G126:N126)))*O$7 -> 0 | P126: =($G85+(SUM($G126:O126)))*P$7 -> 0 | Q126: =($G85+(SUM($G126:P126)))*Q$7 -> 0
C127: Sub-total | L127: =IF(M126=0, SUM($G126:L126), 0) -> 0 | M127: =IF(N126=0, IF(M126=0, 0, SUM($G126:M126)), 0) -> 0 | N127: =IF(O126=0, IF(N126=0, 0, SUM($G126:N126)), 0) -> 0 | O127: =IF(P126=0, IF(O126=0, 0, SUM($G126:O126)), 0) -> 0 | P127: =IF(Q126=0, IF(P126=0, 0, SUM($G126:P126)), 0) -> 0 | Q127: =IF(R126=0, IF(Q126=0, 0, SUM($G126:Q126)), 0) -> 0
C128: =Asset11 -> 0 | H128: =($G86+(SUM($G128:G128)))*H$7 -> 0 | I128: =($G86+(SUM($G128:H128)))*I$7 -> 0 | J128: =($G86+(SUM($G128:I128)))*J$7 -> 0 | K128: =($G86+(SUM($G128:J128)))*K$7 -> 0 | L128: =($G86+(SUM($G128:K128)))*L$7 -> 0 | M128: =($G86+(SUM($G128:L128)))*M$7 -> 0 | N128: =($G86+(SUM($G128:M128)))*N$7 -> 0 | O128: =($G86+(SUM($G128:N128)))*O$7 -> 0 | P128: =($G86+(SUM($G128:O128)))*P$7 -> 0 | Q128: =($G86+(SUM($G128:P128)))*Q$7 -> 0
C129: Sub-total | L129: =IF(M128=0, SUM($G128:L128), 0) -> 0 | M129: =IF(N128=0, IF(M128=0, 0, SUM($G128:M128)), 0) -> 0 | N129: =IF(O128=0, IF(N128=0, 0, SUM($G128:N128)), 0) -> 0 | O129: =IF(P128=0, IF(O128=0, 0, SUM($G128:O128)), 0) -> 0 | P129: =IF(Q128=0, IF(P128=0, 0, SUM($G128:P128)), 0) -> 0 | Q129: =IF(R128=0, IF(Q128=0, 0, SUM($G128:Q128)), 0) -> 0
C130: =Asset12 -> 0 | H130: =($G87+(SUM($G130:G130)))*H$7 -> 0 | I130: =($G87+(SUM($G130:H130)))*I$7 -> 0 | J130: =($G87+(SUM($G130:I130)))*J$7 -> 0 | K130: =($G87+(SUM($G130:J130)))*K$7 -> 0 | L130: =($G87+(SUM($G130:K130)))*L$7 -> 0 | M130: =($G87+(SUM($G130:L130)))*M$7 -> 0 | N130: =($G87+(SUM($G130:M130)))*N$7 -> 0 | O130: =($G87+(SUM($G130:N130)))*O$7 -> 0 | P130: =($G87+(SUM($G130:O130)))*P$7 -> 0 | Q130: =($G87+(SUM($G130:P130)))*Q$7 -> 0
C131: Sub-total | L131: =IF(M130=0, SUM($G130:L130), 0) -> 0 | M131: =IF(N130=0, IF(M130=0, 0, SUM($G130:M130)), 0) -> 0 | N131: =IF(O130=0, IF(N130=0, 0, SUM($G130:N130)), 0) -> 0 | O131: =IF(P130=0, IF(O130=0, 0, SUM($G130:O130)), 0) -> 0 | P131: =IF(Q130=0, IF(P130=0, 0, SUM($G130:P130)), 0) -> 0 | Q131: =IF(R130=0, IF(Q130=0, 0, SUM($G130:Q130)), 0) -> 0
C132: =Asset13 -> 0 | H132: =($G88+(SUM($G132:G132)))*H$7 -> 0 | I132: =($G88+(SUM($G132:H132)))*I$7 -> 0 | J132: =($G88+(SUM($G132:I132)))*J$7 -> 0 | K132: =($G88+(SUM($G132:J132)))*K$7 -> 0 | L132: =($G88+(SUM($G132:K132)))*L$7 -> 0 | M132: =($G88+(SUM($G132:L132)))*M$7 -> 0 | N132: =($G88+(SUM($G132:M132)))*N$7 -> 0 | O132: =($G88+(SUM($G132:N132)))*O$7 -> 0 | P132: =($G88+(SUM($G132:O132)))*P$7 -> 0 | Q132: =($G88+(SUM($G132:P132)))*Q$7 -> 0
C133: Sub-total | L133: =IF(M132=0, SUM($G132:L132), 0) -> 0 | M133: =IF(N132=0, IF(M132=0, 0, SUM($G132:M132)), 0) -> 0 | N133: =IF(O132=0, IF(N132=0, 0, SUM($G132:N132)), 0) -> 0 | O133: =IF(P132=0, IF(O132=0, 0, SUM($G132:O132)), 0) -> 0 | P133: =IF(Q132=0, IF(P132=0, 0, SUM($G132:P132)), 0) -> 0 | Q133: =IF(R132=0, IF(Q132=0, 0, SUM($G132:Q132)), 0) -> 0
C134: =Asset14 -> 0 | H134: =($G89+(SUM($G134:G134)))*H$7 -> 0 | I134: =($G89+(SUM($G134:H134)))*I$7 -> 0 | J134: =($G89+(SUM($G134:I134)))*J$7 -> 0 | K134: =($G89+(SUM($G134:J134)))*K$7 -> 0 | L134: =($G89+(SUM($G134:K134)))*L$7 -> 0 | M134: =($G89+(SUM($G134:L134)))*M$7 -> 0 | N134: =($G89+(SUM($G134:M134)))*N$7 -> 0 | O134: =($G89+(SUM($G134:N134)))*O$7 -> 0 | P134: =($G89+(SUM($G134:O134)))*P$7 -> 0 | Q134: =($G89+(SUM($G134:P134)))*Q$7 -> 0
C135: Sub-total | L135: =IF(M134=0, SUM($G134:L134), 0) -> 0 | M135: =IF(N134=0, IF(M134=0, 0, SUM($G134:M134)), 0) -> 0 | N135: =IF(O134=0, IF(N134=0, 0, SUM($G134:N134)), 0) -> 0 | O135: =IF(P134=0, IF(O134=0, 0, SUM($G134:O134)), 0) -> 0 | P135: =IF(Q134=0, IF(P134=0, 0, SUM($G134:P134)), 0) -> 0 | Q135: =IF(R134=0, IF(Q134=0, 0, SUM($G134:Q134)), 0) -> 0
C136: =Asset15 -> 0 | H136: =($G90+(SUM($G136:G136)))*H$7 -> 0 | I136: =($G90+(SUM($G136:H136)))*I$7 -> 0 | J136: =($G90+(SUM($G136:I136)))*J$7 -> 0 | K136: =($G90+(SUM($G136:J136)))*K$7 -> 0 | L136: =($G90+(SUM($G136:K136)))*L$7 -> 0 | M136: =($G90+(SUM($G136:L136)))*M$7 -> 0 | N136: =($G90+(SUM($G136:M136)))*N$7 -> 0 | O136: =($G90+(SUM($G136:N136)))*O$7 -> 0 | P136: =($G90+(SUM($G136:O136)))*P$7 -> 0 | Q136: =($G90+(SUM($G136:P136)))*Q$7 -> 0
C137: Sub-total | L137: =IF(M136=0, SUM($G136:L136), 0) -> 0 | M137: =IF(N136=0, IF(M136=0, 0, SUM($G136:M136)), 0) -> 0 | N137: =IF(O136=0, IF(N136=0, 0, SUM($G136:N136)), 0) -> 0 | O137: =IF(P136=0, IF(O136=0, 0, SUM($G136:O136)), 0) -> 0 | P137: =IF(Q136=0, IF(P136=0, 0, SUM($G136:P136)), 0) -> 0 | Q137: =IF(R136=0, IF(Q136=0, 0, SUM($G136:Q136)), 0) -> 0
C138: =Asset16 -> 0 | H138: =($G91+(SUM($G138:G138)))*H$7 -> 0 | I138: =($G91+(SUM($G138:H138)))*I$7 -> 0 | J138: =($G91+(SUM($G138:I138)))*J$7 -> 0 | K138: =($G91+(SUM($G138:J138)))*K$7 -> 0 | L138: =($G91+(SUM($G138:K138)))*L$7 -> 0 | M138: =($G91+(SUM($G138:L138)))*M$7 -> 0 | N138: =($G91+(SUM($G138:M138)))*N$7 -> 0 | O138: =($G91+(SUM($G138:N138)))*O$7 -> 0 | P138: =($G91+(SUM($G138:O138)))*P$7 -> 0 | Q138: =($G91+(SUM($G138:P138)))*Q$7 -> 0
C139: Sub-total | L139: =IF(M138=0, SUM($G138:L138), 0) -> 0 | M139: =IF(N138=0, IF(M138=0, 0, SUM($G138:M138)), 0) -> 0 | N139: =IF(O138=0, IF(N138=0, 0, SUM($G138:N138)), 0) -> 0 | O139: =IF(P138=0, IF(O138=0, 0, SUM($G138:O138)), 0) -> 0 | P139: =IF(Q138=0, IF(P138=0, 0, SUM($G138:P138)), 0) -> 0 | Q139: =IF(R138=0, IF(Q138=0, 0, SUM($G138:Q138)), 0) -> 0
C140: =Asset17 -> 0 | H140: =($G92+(SUM($G140:G140)))*H$7 -> 0 | I140: =($G92+(SUM($G140:H140)))*I$7 -> 0 | J140: =($G92+(SUM($G140:I140)))*J$7 -> 0 | K140: =($G92+(SUM($G140:J140)))*K$7 -> 0 | L140: =($G92+(SUM($G140:K140)))*L$7 -> 0 | M140: =($G92+(SUM($G140:L140)))*M$7 -> 0 | N140: =($G92+(SUM($G140:M140)))*N$7 -> 0 | O140: =($G92+(SUM($G140:N140)))*O$7 -> 0 | P140: =($G92+(SUM($G140:O140)))*P$7 -> 0 | Q140: =($G92+(SUM($G140:P140)))*Q$7 -> 0
C141: Sub-total | L141: =IF(M140=0, SUM($G140:L140), 0) -> 0 | M141: =IF(N140=0, IF(M140=0, 0, SUM($G140:M140)), 0) -> 0 | N141: =IF(O140=0, IF(N140=0, 0, SUM($G140:N140)), 0) -> 0 | O141: =IF(P140=0, IF(O140=0, 0, SUM($G140:O140)), 0) -> 0 | P141: =IF(Q140=0, IF(P140=0, 0, SUM($G140:P140)), 0) -> 0 | Q141: =IF(R140=0, IF(Q140=0, 0, SUM($G140:Q140)), 0) -> 0
C142: =Asset18 -> 0 | H142: =($G93+(SUM($G142:G142)))*H$7 -> 0 | I142: =($G93+(SUM($G142:H142)))*I$7 -> 0 | J142: =($G93+(SUM($G142:I142)))*J$7 -> 0 | K142: =($G93+(SUM($G142:J142)))*K$7 -> 0 | L142: =($G93+(SUM($G142:K142)))*L$7 -> 0 | M142: =($G93+(SUM($G142:L142)))*M$7 -> 0 | N142: =($G93+(SUM($G142:M142)))*N$7 -> 0 | O142: =($G93+(SUM($G142:N142)))*O$7 -> 0 | P142: =($G93+(SUM($G142:O142)))*P$7 -> 0 | Q142: =($G93+(SUM($G142:P142)))*Q$7 -> 0
C143: Sub-total | L143: =IF(M142=0, SUM($G142:L142), 0) -> 0 | M143: =IF(N142=0, IF(M142=0, 0, SUM($G142:M142)), 0) -> 0 | N143: =IF(O142=0, IF(N142=0, 0, SUM($G142:N142)), 0) -> 0 | O143: =IF(P142=0, IF(O142=0, 0, SUM($G142:O142)), 0) -> 0 | P143: =IF(Q142=0, IF(P142=0, 0, SUM($G142:P142)), 0) -> 0 | Q143: =IF(R142=0, IF(Q142=0, 0, SUM($G142:Q142)), 0) -> 0
C144: =Asset19 -> 0 | H144: =($G94+(SUM($G144:G144)))*H$7 -> 0 | I144: =($G94+(SUM($G144:H144)))*I$7 -> 0 | J144: =($G94+(SUM($G144:I144)))*J$7 -> 0 | K144: =($G94+(SUM($G144:J144)))*K$7 -> 0 | L144: =($G94+(SUM($G144:K144)))*L$7 -> 0 | M144: =($G94+(SUM($G144:L144)))*M$7 -> 0 | N144: =($G94+(SUM($G144:M144)))*N$7 -> 0 | O144: =($G94+(SUM($G144:N144)))*O$7 -> 0 | P144: =($G94+(SUM($G144:O144)))*P$7 -> 0 | Q144: =($G94+(SUM($G144:P144)))*Q$7 -> 0
C145: Sub-total | L145: =IF(M144=0, SUM($G144:L144), 0) -> 0 | M145: =IF(N144=0, IF(M144=0, 0, SUM($G144:M144)), 0) -> 0 | N145: =IF(O144=0, IF(N144=0, 0, SUM($G144:N144)), 0) -> 0 | O145: =IF(P144=0, IF(O144=0, 0, SUM($G144:O144)), 0) -> 0 | P145: =IF(Q144=0, IF(P144=0, 0, SUM($G144:P144)), 0) -> 0 | Q145: =IF(R144=0, IF(Q144=0, 0, SUM($G144:Q144)), 0) -> 0
C146: =Asset20 -> 0 | H146: =($G95+(SUM($G146:G146)))*H$7 -> 0 | I146: =($G95+(SUM($G146:H146)))*I$7 -> 0 | J146: =($G95+(SUM($G146:I146)))*J$7 -> 0 | K146: =($G95+(SUM($G146:J146)))*K$7 -> 0 | L146: =($G95+(SUM($G146:K146)))*L$7 -> 0 | M146: =($G95+(SUM($G146:L146)))*M$7 -> 0 | N146: =($G95+(SUM($G146:M146)))*N$7 -> 0 | O146: =($G95+(SUM($G146:N146)))*O$7 -> 0 | P146: =($G95+(SUM($G146:O146)))*P$7 -> 0 | Q146: =($G95+(SUM($G146:P146)))*Q$7 -> 0
C147: Sub-total | L147: =IF(M146=0, SUM($G146:L146), 0) -> 0 | M147: =IF(N146=0, IF(M146=0, 0, SUM($G146:M146)), 0) -> 0 | N147: =IF(O146=0, IF(N146=0, 0, SUM($G146:N146)), 0) -> 0 | O147: =IF(P146=0, IF(O146=0, 0, SUM($G146:O146)), 0) -> 0 | P147: =IF(Q146=0, IF(P146=0, 0, SUM($G146:P146)), 0) -> 0 | Q147: =IF(R146=0, IF(Q146=0, 0, SUM($G146:Q146)), 0) -> 0
C148: =Asset21 -> 0 | H148: =($G96+(SUM($G148:G148)))*H$7 -> 0 | I148: =($G96+(SUM($G148:H148)))*I$7 -> 0 | J148: =($G96+(SUM($G148:I148)))*J$7 -> 0 | K148: =($G96+(SUM($G148:J148)))*K$7 -> 0 | L148: =($G96+(SUM($G148:K148)))*L$7 -> 0 | M148: =($G96+(SUM($G148:L148)))*M$7 -> 0 | N148: =($G96+(SUM($G148:M148)))*N$7 -> 0 | O148: =($G96+(SUM($G148:N148)))*O$7 -> 0 | P148: =($G96+(SUM($G148:O148)))*P$7 -> 0 | Q148: =($G96+(SUM($G148:P148)))*Q$7 -> 0
C149: Sub-total | L149: =IF(M148=0, SUM($G148:L148), 0) -> 0 | M149: =IF(N148=0, IF(M148=0, 0, SUM($G148:M148)), 0) -> 0 | N149: =IF(O148=0, IF(N148=0, 0, SUM($G148:N148)), 0) -> 0 | O149: =IF(P148=0, IF(O148=0, 0, SUM($G148:O148)), 0) -> 0 | P149: =IF(Q148=0, IF(P148=0, 0, SUM($G148:P148)), 0) -> 0 | Q149: =IF(R148=0, IF(Q148=0, 0, SUM($G148:Q148)), 0) -> 0
C150: =Asset22 -> 0 | H150: =($G97+(SUM($G150:G150)))*H$7 -> 0 | I150: =($G97+(SUM($G150:H150)))*I$7 -> 0 | J150: =($G97+(SUM($G150:I150)))*J$7 -> 0 | K150: =($G97+(SUM($G150:J150)))*K$7 -> 0 | L150: =($G97+(SUM($G150:K150)))*L$7 -> 0 | M150: =($G97+(SUM($G150:L150)))*M$7 -> 0 | N150: =($G97+(SUM($G150:M150)))*N$7 -> 0 | O150: =($G97+(SUM($G150:N150)))*O$7 -> 0 | P150: =($G97+(SUM($G150:O150)))*P$7 -> 0 | Q150: =($G97+(SUM($G150:P150)))*Q$7 -> 0
C151: Sub-total | L151: =IF(M150=0, SUM($G150:L150), 0) -> 0 | M151: =IF(N150=0, IF(M150=0, 0, SUM($G150:M150)), 0) -> 0 | N151: =IF(O150=0, IF(N150=0, 0, SUM($G150:N150)), 0) -> 0 | O151: =IF(P150=0, IF(O150=0, 0, SUM($G150:O150)), 0) -> 0 | P151: =IF(Q150=0, IF(P150=0, 0, SUM($G150:P150)), 0) -> 0 | Q151: =IF(R150=0, IF(Q150=0, 0, SUM($G150:Q150)), 0) -> 0
C152: =Asset23 -> 0 | H152: =($G98+(SUM($G152:G152)))*H$7 -> 0 | I152: =($G98+(SUM($G152:H152)))*I$7 -> 0 | J152: =($G98+(SUM($G152:I152)))*J$7 -> 0 | K152: =($G98+(SUM($G152:J152)))*K$7 -> 0 | L152: =($G98+(SUM($G152:K152)))*L$7 -> 0 | M152: =($G98+(SUM($G152:L152)))*M$7 -> 0 | N152: =($G98+(SUM($G152:M152)))*N$7 -> 0 | O152: =($G98+(SUM($G152:N152)))*O$7 -> 0 | P152: =($G98+(SUM($G152:O152)))*P$7 -> 0 | Q152: =($G98+(SUM($G152:P152)))*Q$7 -> 0
C153: Sub-total | L153: =IF(M152=0, SUM($G152:L152), 0) -> 0 | M153: =IF(N152=0, IF(M152=0, 0, SUM($G152:M152)), 0) -> 0 | N153: =IF(O152=0, IF(N152=0, 0, SUM($G152:N152)), 0) -> 0 | O153: =IF(P152=0, IF(O152=0, 0, SUM($G152:O152)), 0) -> 0 | P153: =IF(Q152=0, IF(P152=0, 0, SUM($G152:P152)), 0) -> 0 | Q153: =IF(R152=0, IF(Q152=0, 0, SUM($G152:Q152)), 0) -> 0
C154: =Asset24 -> 0 | H154: =($G99+(SUM($G154:G154)))*H$7 -> 0 | I154: =($G99+(SUM($G154:H154)))*I$7 -> 0 | J154: =($G99+(SUM($G154:I154)))*J$7 -> 0 | K154: =($G99+(SUM($G154:J154)))*K$7 -> 0 | L154: =($G99+(SUM($G154:K154)))*L$7 -> 0 | M154: =($G99+(SUM($G154:L154)))*M$7 -> 0 | N154: =($G99+(SUM($G154:M154)))*N$7 -> 0 | O154: =($G99+(SUM($G154:N154)))*O$7 -> 0 | P154: =($G99+(SUM($G154:O154)))*P$7 -> 0 | Q154: =($G99+(SUM($G154:P154)))*Q$7 -> 0
C155: Sub-total | L155: =IF(M154=0, SUM($G154:L154), 0) -> 0 | M155: =IF(N154=0, IF(M154=0, 0, SUM($G154:M154)), 0) -> 0 | N155: =IF(O154=0, IF(N154=0, 0, SUM($G154:N154)), 0) -> 0 | O155: =IF(P154=0, IF(O154=0, 0, SUM($G154:O154)), 0) -> 0 | P155: =IF(Q154=0, IF(P154=0, 0, SUM($G154:P154)), 0) -> 0 | Q155: =IF(R154=0, IF(Q154=0, 0, SUM($G154:Q154)), 0) -> 0
C156: =Asset25 -> 0 | H156: =($G100+(SUM($G156:G156)))*H$7 -> 0 | I156: =($G100+(SUM($G156:H156)))*I$7 -> 0 | J156: =($G100+(SUM($G156:I156)))*J$7 -> 0 | K156: =($G100+(SUM($G156:J156)))*K$7 -> 0 | L156: =($G100+(SUM($G156:K156)))*L$7 -> 0 | M156: =($G100+(SUM($G156:L156)))*M$7 -> 0 | N156: =($G100+(SUM($G156:M156)))*N$7 -> 0 | O156: =($G100+(SUM($G156:N156)))*O$7 -> 0 | P156: =($G100+(SUM($G156:O156)))*P$7 -> 0 | Q156: =($G100+(SUM($G156:P156)))*Q$7 -> 0
C157: Sub-total | L157: =IF(M156=0, SUM($G156:L156), 0) -> 0 | M157: =IF(N156=0, IF(M156=0, 0, SUM($G156:M156)), 0) -> 0 | N157: =IF(O156=0, IF(N156=0, 0, SUM($G156:N156)), 0) -> 0 | O157: =IF(P156=0, IF(O156=0, 0, SUM($G156:O156)), 0) -> 0 | P157: =IF(Q156=0, IF(P156=0, 0, SUM($G156:P156)), 0) -> 0 | Q157: =IF(R156=0, IF(Q156=0, 0, SUM($G156:Q156)), 0) -> 0
C158: =Asset26 -> 0 | H158: =($G101+(SUM($G158:G158)))*H$7 -> 0 | I158: =($G101+(SUM($G158:H158)))*I$7 -> 0 | J158: =($G101+(SUM($G158:I158)))*J$7 -> 0 | K158: =($G101+(SUM($G158:J158)))*K$7 -> 0 | L158: =($G101+(SUM($G158:K158)))*L$7 -> 0 | M158: =($G101+(SUM($G158:L158)))*M$7 -> 0 | N158: =($G101+(SUM($G158:M158)))*N$7 -> 0 | O158: =($G101+(SUM($G158:N158)))*O$7 -> 0 | P158: =($G101+(SUM($G158:O158)))*P$7 -> 0 | Q158: =($G101+(SUM($G158:P158)))*Q$7 -> 0
C159: Sub-total | L159: =IF(M158=0, SUM($G158:L158), 0) -> 0 | M159: =IF(N158=0, IF(M158=0, 0, SUM($G158:M158)), 0) -> 0 | N159: =IF(O158=0, IF(N158=0, 0, SUM($G158:N158)), 0) -> 0 | O159: =IF(P158=0, IF(O158=0, 0, SUM($G158:O158)), 0) -> 0 | P159: =IF(Q158=0, IF(P158=0, 0, SUM($G158:P158)), 0) -> 0 | Q159: =IF(R158=0, IF(Q158=0, 0, SUM($G158:Q158)), 0) -> 0
C160: =Asset27 -> 0 | H160: =($G102+(SUM($G160:G160)))*H$7 -> 0 | I160: =($G102+(SUM($G160:H160)))*I$7 -> 0 | J160: =($G102+(SUM($G160:I160)))*J$7 -> 0 | K160: =($G102+(SUM($G160:J160)))*K$7 -> 0 | L160: =($G102+(SUM($G160:K160)))*L$7 -> 0 | M160: =($G102+(SUM($G160:L160)))*M$7 -> 0 | N160: =($G102+(SUM($G160:M160)))*N$7 -> 0 | O160: =($G102+(SUM($G160:N160)))*O$7 -> 0 | P160: =($G102+(SUM($G160:O160)))*P$7 -> 0 | Q160: =($G102+(SUM($G160:P160)))*Q$7 -> 0
C161: Sub-total | L161: =IF(M160=0, SUM($G160:L160), 0) -> 0 | M161: =IF(N160=0, IF(M160=0, 0, SUM($G160:M160)), 0) -> 0 | N161: =IF(O160=0, IF(N160=0, 0, SUM($G160:N160)), 0) -> 0 | O161: =IF(P160=0, IF(O160=0, 0, SUM($G160:O160)), 0) -> 0 | P161: =IF(Q160=0, IF(P160=0, 0, SUM($G160:P160)), 0) -> 0 | Q161: =IF(R160=0, IF(Q160=0, 0, SUM($G160:Q160)), 0) -> 0
C162: =Asset28 -> 0 | H162: =($G103+(SUM($G162:G162)))*H$7 -> 0 | I162: =($G103+(SUM($G162:H162)))*I$7 -> 0 | J162: =($G103+(SUM($G162:I162)))*J$7 -> 0 | K162: =($G103+(SUM($G162:J162)))*K$7 -> 0 | L162: =($G103+(SUM($G162:K162)))*L$7 -> 0 | M162: =($G103+(SUM($G162:L162)))*M$7 -> 0 | N162: =($G103+(SUM($G162:M162)))*N$7 -> 0 | O162: =($G103+(SUM($G162:N162)))*O$7 -> 0 | P162: =($G103+(SUM($G162:O162)))*P$7 -> 0 | Q162: =($G103+(SUM($G162:P162)))*Q$7 -> 0
C163: Sub-total | L163: =IF(M162=0, SUM($G162:L162), 0) -> 0 | M163: =IF(N162=0, IF(M162=0, 0, SUM($G162:M162)), 0) -> 0 | N163: =IF(O162=0, IF(N162=0, 0, SUM($G162:N162)), 0) -> 0 | O163: =IF(P162=0, IF(O162=0, 0, SUM($G162:O162)), 0) -> 0 | P163: =IF(Q162=0, IF(P162=0, 0, SUM($G162:P162)), 0) -> 0 | Q163: =IF(R162=0, IF(Q162=0, 0, SUM($G162:Q162)), 0) -> 0
C164: =Asset29 -> 0 | H164: =($G104+(SUM($G164:G164)))*H$7 -> 0 | I164: =($G104+(SUM($G164:H164)))*I$7 -> 0 | J164: =($G104+(SUM($G164:I164)))*J$7 -> 0 | K164: =($G104+(SUM($G164:J164)))*K$7 -> 0 | L164: =($G104+(SUM($G164:K164)))*L$7 -> 0 | M164: =($G104+(SUM($G164:L164)))*M$7 -> 0 | N164: =($G104+(SUM($G164:M164)))*N$7 -> 0 | O164: =($G104+(SUM($G164:N164)))*O$7 -> 0 | P164: =($G104+(SUM($G164:O164)))*P$7 -> 0 | Q164: =($G104+(SUM($G164:P164)))*Q$7 -> 0
C165: Sub-total | L165: =IF(M164=0, SUM($G164:L164), 0) -> 0 | M165: =IF(N164=0, IF(M164=0, 0, SUM($G164:M164)), 0) -> 0 | N165: =IF(O164=0, IF(N164=0, 0, SUM($G164:N164)), 0) -> 0 | O165: =IF(P164=0, IF(O164=0, 0, SUM($G164:O164)), 0) -> 0 | P165: =IF(Q164=0, IF(P164=0, 0, SUM($G164:P164)), 0) -> 0 | Q165: =IF(R164=0, IF(Q164=0, 0, SUM($G164:Q164)), 0) -> 0
C166: =Asset30 -> 0 | H166: =($G105+(SUM($G166:G166)))*H$7 -> 0 | I166: =($G105+(SUM($G166:H166)))*I$7 -> 0 | J166: =($G105+(SUM($G166:I166)))*J$7 -> 0 | K166: =($G105+(SUM($G166:J166)))*K$7 -> 0 | L166: =($G105+(SUM($G166:K166)))*L$7 -> 0 | M166: =($G105+(SUM($G166:L166)))*M$7 -> 0 | N166: =($G105+(SUM($G166:M166)))*N$7 -> 0 | O166: =($G105+(SUM($G166:N166)))*O$7 -> 0 | P166: =($G105+(SUM($G166:O166)))*P$7 -> 0 | Q166: =($G105+(SUM($G166:P166)))*Q$7 -> 0
C167: Sub-total | L167: =IF(M166=0, SUM($G166:L166), 0) -> 0 | M167: =IF(N166=0, IF(M166=0, 0, SUM($G166:M166)), 0) -> 0 | N167: =IF(O166=0, IF(N166=0, 0, SUM($G166:N166)), 0) -> 0 | O167: =IF(P166=0, IF(O166=0, 0, SUM($G166:O166)), 0) -> 0 | P167: =IF(Q166=0, IF(P166=0, 0, SUM($G166:P166)), 0) -> 0 | Q167: =IF(R166=0, IF(Q166=0, 0, SUM($G166:Q166)), 0) -> 0
B168: Total Return at End of Regulatory Period | L168: =IF(M107=0, SUM($G107:L107), 0) -> 0 | M168: =IF(N107=0, IF(M107=0, 0, SUM($G107:M107)), 0) -> 0 | N168: =IF(O107=0, IF(N107=0, 0, SUM($G107:N107)), 0) -> 0 | O168: =IF(P107=0, IF(O107=0, 0, SUM($G107:O107)), 0) -> 0 | P168: =IF(Q107=0, IF(P107=0, 0, SUM($G107:P107)), 0) -> 0 | Q168: =IF(R107=0, IF(Q107=0, 0, SUM($G107:Q107)), 0) -> 0
B170: Nominal Adjustments for Difference Between Forecast and Actual Assets Under Construction
B172: Nominal Forecast Assets Under Construction (previous regulatory period) | G172: =SUM(G173:G202) -> 0
C173: =Asset1 -> Accumulation meters | G173: =Input!Q7 -> 0
C174: =Asset2 -> Manually read interval meters | G174: =Input!Q8 -> 0
C175: =Asset3 -> remotely read interval meters | G175: =Input!Q9 -> 0
C176: =Asset4 -> IT | G176: =Input!Q10 -> 0
C177: =Asset5 -> Communications | G177: =Input!Q11 -> 0
C178: =Asset6 -> Other | G178: =Input!Q12 -> 0
C179: =Asset7 -> 0 | G179: =Input!Q13 -> 0
C180: =Asset8 -> 0 | G180: =Input!Q14 -> 0
C181: =Asset9 -> 0 | G181: =Input!Q15 -> 0
C182: =Asset10 -> 0 | G182: =Input!Q16 -> 0
C183: =Asset11 -> 0 | G183: =Input!Q17 -> 0
C184: =Asset12 -> 0 | G184: =Input!Q18 -> 0
C185: =Asset13 -> 0 | G185: =Input!Q19 -> 0
C186: =Asset14 -> 0 | G186: =Input!Q20 -> 0
C187: =Asset15 -> 0 | G187: =Input!Q21 -> 0
C188: =Asset16 -> 0 | G188: =Input!Q22 -> 0
C189: =Asset17 -> 0 | G189: =Input!Q23 -> 0
C190: =Asset18 -> 0 | G190: =Input!Q24 -> 0
C191: =Asset19 -> 0 | G191: =Input!Q25 -> 0
C192: =Asset20 -> 0 | G192: =Input!Q26 -> 0
C193: =Asset21 -> 0 | G193: =Input!Q27 -> 0
C194: =Asset22 -> 0 | G194: =Input!Q28 -> 0
C195: =Asset23 -> 0 | G195: =Input!Q29 -> 0
C196: =Asset24 -> 0 | G196: =Input!Q30 -> 0
C197: =Asset25 -> 0 | G197: =Input!Q31 -> 0
C198: =Asset26 -> 0 | G198: =Input!Q32 -> 0
C199: =Asset27 -> 0 | G199: =Input!Q33 -> 0
C200: =Asset28 -> 0 | G200: =Input!Q34 -> 0
C201: =Asset29 -> 0 | G201: =Input!Q35 -> 0
C202: =Asset30 -> 0 | G202: =Input!Q36 -> 0
B204: Nominal Actual Assets Under Construction | G204: =SUM(G205:G234) -> 0
C205: =Asset1 -> Accumulation meters | G205: =Input!R7 -> 0
C206: =Asset2 -> Manually read interval meters | G206: =Input!R8 -> 0
C207: =Asset3 -> remotely read interval meters | G207: =Input!R9 -> 0
C208: =Asset4 -> IT | G208: =Input!R10 -> 0
C209: =Asset5 -> Communications | G209: =Input!R11 -> 0
C210: =Asset6 -> Other | G210: =Input!R12 -> 0
C211: =Asset7 -> 0 | G211: =Input!R13 -> 0
... 303 more rows

Sheet Actual RAB roll forward
C2: `
G3: 0 | H3: =G3+1 -> 1 | I3: 2 | J3: 3 | K3: 4 | L3: 5 | M3: 6 | N3: 7 | O3: 8 | P3: 9 | Q3: 10 | R3: 11
C4: Year | F4: ='Adjustment for previous period'!F4 -> 2009-9 | G4: =Input!G40 -> 2010-010 | H4: =Input!H40 -> 2011 | I4: =Input!I40 -> 2012-012 | J4: =Input!J40 -> 2013-13 | K4: =Input!K40 -> 2014-14 | L4: =Input!L40 -> 2015-15 | M4: =Input!M40 -> 2016-16 | N4: =Input!N40 -> 2017-17 | O4: =Input!O40 -> 2018-18 | P4: =Input!P40 -> 2019-19 | Q4: =Input!Q40 -> 2020-20 | R4: =CONCATENATE(LEFT(Q4, 4)+1 &"-" &IF(Q4>"2007-08",,"0") &RIGHT(Q4,2)+1) -> 2021-21
C6: Actual CPI Inflation Rate | G6: =Input!G177 -> 0.01261261261 | H6: =Input!H177 -> 0.02787663108 | I6: =Input!I177 -> 0.03519907675 | J6: =Input!J177 -> 0.02004 | K6: =Input!K177 -> 0.02161100196 | L6: =Input!L177 -> 0.02307692308 | M6: =Input!M177 -> 0.025 | N6: =Input!N177 -> 0.025 | O6: =Input!O177 -> 0.025 | P6: =Input!P177 -> 0.025 | Q6: =Input!Q177 -> 0.025
C7: Actual CPI (one year lagged) | G7: =Input!G178 -> 1 | H7: =Input!H178 -> 1.027876631 | I7: =Input!I178 -> 1.06405694 | J7: =Input!J178 -> 1.085380641 | K7: =Input!K178 -> 1.108836804 | L7: =Input!L178 -> 1.134425345 | M7: =Input!M178 -> 1.162785979 | N7: =Input!N178 -> 1.191855628 | O7: =Input!O178 -> 1.221652019 | P7: =Input!P178 -> 1.25219332 | Q7: =Input!Q178 -> 1.283498153
C9: Real Asset Values
C11: Real Actual Net Capex | H11: =SUM(H12:H41) -> 67.67896977 | I11: 59.1616404 | J11: 56.18846747 | K11: 26.75768959 | L11: 6.055657006 | M11: 0 | N11: 0 | O11: 0 | P11: 0 | Q11: =SUM(Q12:Q41) -> 0
D12: =Asset1 -> Accumulation meters | H12: =Input!H143*(1+vanilla1)^0.5 -> 3.906930412 | I12: =Input!I143*(1+vanilla2)^0.5 -> 0.7799394555 | J12: =Input!J143*(1+vanilla3)^0.5 -> 0 | K12: =Input!K143*(1+vanilla4)^0.5 -> 0 | L12: =Input!L143*(1+vanilla5)^0.5 -> 0 | M12: =Input!M143*(1+vanilla6)^0.5 -> 0 | N12: =Input!N143*(1+vanilla7)^0.5 -> 0 | O12: =Input!O143*(1+vanilla8)^0.5 -> 0 | P12: =Input!P143*(1+vanilla9)^0.5 -> 0 | Q12: =Input!Q143*(1+vanilla10)^0.5 -> 0
D13: =Asset2 -> Manually read interval meters | H13: =Input!H144*(1+vanilla1)^0.5 -> 1.719636235 | I13: =Input!I144*(1+vanilla2)^0.5 -> 1.215633245 | J13: =Input!J144*(1+vanilla3)^0.5 -> 0 | K13: =Input!K144*(1+vanilla4)^0.5 -> 0 | L13: =Input!L144*(1+vanilla5)^0.5 -> 0 | M13: =Input!M144*(1+vanilla6)^0.5 -> 0 | N13: =Input!N144*(1+vanilla7)^0.5 -> 0 | O13: =Input!O144*(1+vanilla8)^0.5 -> 0 | P13: =Input!P144*(1+vanilla9)^0.5 -> 0 | Q13: =Input!Q144*(1+vanilla10)^0.5 -> 0
D14: =Asset3 -> remotely read interval meters | H14: =Input!H145*(1+vanilla1)^0.5 -> 41.41927307 | I14: =Input!I145*(1+vanilla2)^0.5 -> 46.73443476 | J14: =Input!J145*(1+vanilla3)^0.5 -> 51.37036695 | K14: =Input!K145*(1+vanilla4)^0.5 -> 22.14003171 | L14: =Input!L145*(1+vanilla5)^0.5 -> 2.070713036 | M14: =Input!M145*(1+vanilla6)^0.5 -> 0 | N14: =Input!N145*(1+vanilla7)^0.5 -> 0 | O14: =Input!O145*(1+vanilla8)^0.5 -> 0 | P14: =Input!P145*(1+vanilla9)^0.5 -> 0 | Q14: =Input!Q145*(1+vanilla10)^0.5 -> 0
D15: =Asset4 -> IT | H15: =Input!H146*(1+vanilla1)^0.5 -> 8.154709881 | I15: =Input!I146*(1+vanilla2)^0.5 -> 7.494030304 | J15: =Input!J146*(1+vanilla3)^0.5 -> 1.611021244 | K15: =Input!K146*(1+vanilla4)^0.5 -> 3.645185645 | L15: =Input!L146*(1+vanilla5)^0.5 -> 3.778672133 | M15: =Input!M146*(1+vanilla6)^0.5 -> 0 | N15: =Input!N146*(1+vanilla7)^0.5 -> 0 | O15: =Input!O146*(1+vanilla8)^0.5 -> 0 | P15: =Input!P146*(1+vanilla9)^0.5 -> 0 | Q15: =Input!Q146*(1+vanilla10)^0.5 -> 0
D16: =Asset5 -> Communications | H16: =Input!H147*(1+vanilla1)^0.5 -> 2.214317965 | I16: =Input!I147*(1+vanilla2)^0.5 -> 0.3936243113 | J16: =Input!J147*(1+vanilla3)^0.5 -> 0.9723521505 | K16: =Input!K147*(1+vanilla4)^0.5 -> 0.9724722307 | L16: =Input!L147*(1+vanilla5)^0.5 -> 0.2062718371 | M16: =Input!M147*(1+vanilla6)^0.5 -> 0 | N16: =Input!N147*(1+vanilla7)^0.5 -> 0 | O16: =Input!O147*(1+vanilla8)^0.5 -> 0 | P16: =Input!P147*(1+vanilla9)^0.5 -> 0 | Q16: =Input!Q147*(1+vanilla10)^0.5 -> 0
D17: =Asset6 -> Other | H17: =Input!H148*(1+vanilla1)^0.5 -> 10.2641022 | I17: =Input!I148*(1+vanilla2)^0.5 -> 2.543978324 | J17: =Input!J148*(1+vanilla3)^0.5 -> 2.234727117 | K17: =Input!K148*(1+vanilla4)^0.5 -> 0 | L17: =Input!L148*(1+vanilla5)^0.5 -> 0 | M17: =Input!M148*(1+vanilla6)^0.5 -> 0 | N17: =Input!N148*(1+vanilla7)^0.5 -> 0 | O17: =Input!O148*(1+vanilla8)^0.5 -> 0 | P17: =Input!P148*(1+vanilla9)^0.5 -> 0 | Q17: =Input!Q148*(1+vanilla10)^0.5 -> 0
D18: =Asset7 -> 0 | H18: =Input!H149*(1+vanilla1)^0.5 -> 0 | I18: =Input!I149*(1+vanilla2)^0.5 -> 0 | J18: =Input!J149*(1+vanilla3)^0.5 -> 0 | K18: =Input!K149*(1+vanilla4)^0.5 -> 0 | L18: =Input!L149*(1+vanilla5)^0.5 -> 0 | M18: =Input!M149*(1+vanilla6)^0.5 -> 0 | N18: =Input!N149*(1+vanilla7)^0.5 -> 0 | O18: =Input!O149*(1+vanilla8)^0.5 -> 0 | P18: =Input!P149*(1+vanilla9)^0.5 -> 0 | Q18: =Input!Q149*(1+vanilla10)^0.5 -> 0
D19: =Asset8 -> 0 | H19: =Input!H150*(1+vanilla1)^0.5 -> 0 | I19: =Input!I150*(1+vanilla2)^0.5 -> 0 | J19: =Input!J150*(1+vanilla3)^0.5 -> 0 | K19: =Input!K150*(1+vanilla4)^0.5 -> 0 | L19: =Input!L150*(1+vanilla5)^0.5 -> 0 | M19: =Input!M150*(1+vanilla6)^0.5 -> 0 | N19: =Input!N150*(1+vanilla7)^0.5 -> 0 | O19: =Input!O150*(1+vanilla8)^0.5 -> 0 | P19: =Input!P150*(1+vanilla9)^0.5 -> 0 | Q19: =Input!Q150*(1+vanilla10)^0.5 -> 0
D20: =Asset9 -> 0 | H20: =Input!H151*(1+vanilla1)^0.5 -> 0 | I20: =Input!I151*(1+vanilla2)^0.5 -> 0 | J20: =Input!J151*(1+vanilla3)^0.5 -> 0 | K20: =Input!K151*(1+vanilla4)^0.5 -> 0 | L20: =Input!L151*(1+vanilla5)^0.5 -> 0 | M20: =Input!M151*(1+vanilla6)^0.5 -> 0 | N20: =Input!N151*(1+vanilla7)^0.5 -> 0 | O20: =Input!O151*(1+vanilla8)^0.5 -> 0 | P20: =Input!P151*(1+vanilla9)^0.5 -> 0 | Q20: =Input!Q151*(1+vanilla10)^0.5 -> 0
D21: =Asset10 -> 0 | H21: =Input!H152*(1+vanilla1)^0.5 -> 0 | I21: =Input!I152*(1+vanilla2)^0.5 -> 0 | J21: =Input!J152*(1+vanilla3)^0.5 -> 0 | K21: =Input!K152*(1+vanilla4)^0.5 -> 0 | L21: =Input!L152*(1+vanilla5)^0.5 -> 0 | M21: =Input!M152*(1+vanilla6)^0.5 -> 0 | N21: =Input!N152*(1+vanilla7)^0.5 -> 0 | O21: =Input!O152*(1+vanilla8)^0.5 -> 0 | P21: =Input!P152*(1+vanilla9)^0.5 -> 0 | Q21: =Input!Q152*(1+vanilla10)^0.5 -> 0
D22: =Asset11 -> 0 | H22: =Input!H153*(1+vanilla1)^0.5 -> 0 | I22: =Input!I153*(1+vanilla2)^0.5 -> 0 | J22: =Input!J153*(1+vanilla3)^0.5 -> 0 | K22: =Input!K153*(1+vanilla4)^0.5 -> 0 | L22: =Input!L153*(1+vanilla5)^0.5 -> 0 | M22: =Input!M153*(1+vanilla6)^0.5 -> 0 | N22: =Input!N153*(1+vanilla7)^0.5 -> 0 | O22: =Input!O153*(1+vanilla8)^0.5 -> 0 | P22: =Input!P153*(1+vanilla9)^0.5 -> 0 | Q22: =Input!Q153*(1+vanilla10)^0.5 -> 0
D23: =Asset12 -> 0 | H23: =Input!H154*(1+vanilla1)^0.5 -> 0 | I23: =Input!I154*(1+vanilla2)^0.5 -> 0 | J23: =Input!J154*(1+vanilla3)^0.5 -> 0 | K23: =Input!K154*(1+vanilla4)^0.5 -> 0 | L23: =Input!L154*(1+vanilla5)^0.5 -> 0 | M23: =Input!M154*(1+vanilla6)^0.5 -> 0 | N23: =Input!N154*(1+vanilla7)^0.5 -> 0 | O23: =Input!O154*(1+vanilla8)^0.5 -> 0 | P23: =Input!P154*(1+vanilla9)^0.5 -> 0 | Q23: =Input!Q154*(1+vanilla10)^0.5 -> 0
D24: =Asset13 -> 0 | H24: =Input!H155*(1+vanilla1)^0.5 -> 0 | I24: =Input!I155*(1+vanilla2)^0.5 -> 0 | J24: =Input!J155*(1+vanilla3)^0.5 -> 0 | K24: =Input!K155*(1+vanilla4)^0.5 -> 0 | L24: =Input!L155*(1+vanilla5)^0.5 -> 0 | M24: =Input!M155*(1+vanilla6)^0.5 -> 0 | N24: =Input!N155*(1+vanilla7)^0.5 -> 0 | O24: =Input!O155*(1+vanilla8)^0.5 -> 0 | P24: =Input!P155*(1+vanilla9)^0.5 -> 0 | Q24: =Input!Q155*(1+vanilla10)^0.5 -> 0
D25: =Asset14 -> 0 | H25: =Input!H156*(1+vanilla1)^0.5 -> 0 | I25: =Input!I156*(1+vanilla2)^0.5 -> 0 | J25: =Input!J156*(1+vanilla3)^0.5 -> 0 | K25: =Input!K156*(1+vanilla4)^0.5 -> 0 | L25: =Input!L156*(1+vanilla5)^0.5 -> 0 | M25: =Input!M156*(1+vanilla6)^0.5 -> 0 | N25: =Input!N156*(1+vanilla7)^0.5 -> 0 | O25: =Input!O156*(1+vanilla8)^0.5 -> 0 | P25: =Input!P156*(1+vanilla9)^0.5 -> 0 | Q25: =Input!Q156*(1+vanilla10)^0.5 -> 0
D26: =Asset15 -> 0 | H26: =Input!H157*(1+vanilla1)^0.5 -> 0 | I26: =Input!I157*(1+vanilla2)^0.5 -> 0 | J26: =Input!J157*(1+vanilla3)^0.5 -> 0 | K26: =Input!K157*(1+vanilla4)^0.5 -> 0 | L26: =Input!L157*(1+vanilla5)^0.5 -> 0 | M26: =Input!M157*(1+vanilla6)^0.5 -> 0 | N26: =Input!N157*(1+vanilla7)^0.5 -> 0 | O26: =Input!O157*(1+vanilla8)^0.5 -> 0 | P26: =Input!P157*(1+vanilla9)^0.5 -> 0 | Q26: =Input!Q157*(1+vanilla10)^0.5 -> 0
D27: =Asset16 -> 0 | H27: =Input!H158*(1+vanilla1)^0.5 -> 0 | I27: =Input!I158*(1+vanilla2)^0.5 -> 0 | J27: =Input!J158*(1+vanilla3)^0.5 -> 0 | K27: =Input!K158*(1+vanilla4)^0.5 -> 0 | L27: =Input!L158*(1+vanilla5)^0.5 -> 0 | M27: =Input!M158*(1+vanilla6)^0.5 -> 0 | N27: =Input!N158*(1+vanilla7)^0.5 -> 0 | O27: =Input!O158*(1+vanilla8)^0.5 -> 0 | P27: =Input!P158*(1+vanilla9)^0.5 -> 0 | Q27: =Input!Q158*(1+vanilla10)^0.5 -> 0
D28: =Asset17 -> 0 | H28: =Input!H159*(1+vanilla1)^0.5 -> 0 | I28: =Input!I159*(1+vanilla2)^0.5 -> 0 | J28: =Input!J159*(1+vanilla3)^0.5 -> 0 | K28: =Input!K159*(1+vanilla4)^0.5 -> 0 | L28: =Input!L159*(1+vanilla5)^0.5 -> 0 | M28: =Input!M159*(1+vanilla6)^0.5 -> 0 | N28: =Input!N159*(1+vanilla7)^0.5 -> 0 | O28: =Input!O159*(1+vanilla8)^0.5 -> 0 | P28: =Input!P159*(1+vanilla9)^0.5 -> 0 | Q28: =Input!Q159*(1+vanilla10)^0.5 -> 0
D29: =Asset18 -> 0 | H29: =Input!H160*(1+vanilla1)^0.5 -> 0 | I29: =Input!I160*(1+vanilla2)^0.5 -> 0 | J29: =Input!J160*(1+vanilla3)^0.5 -> 0 | K29: =Input!K160*(1+vanilla4)^0.5 -> 0 | L29: =Input!L160*(1+vanilla5)^0.5 -> 0 | M29: =Input!M160*(1+vanilla6)^0.5 -> 0 | N29: =Input!N160*(1+vanilla7)^0.5 -> 0 | O29: =Input!O160*(1+vanilla8)^0.5 -> 0 | P29: =Input!P160*(1+vanilla9)^0.5 -> 0 | Q29: =Input!Q160*(1+vanilla10)^0.5 -> 0
D30: =Asset19 -> 0 | H30: =Input!H161*(1+vanilla1)^0.5 -> 0 | I30: =Input!I161*(1+vanilla2)^0.5 -> 0 | J30: =Input!J161*(1+vanilla3)^0.5 -> 0 | K30: =Input!K161*(1+vanilla4)^0.5 -> 0 | L30: =Input!L161*(1+vanilla5)^0.5 -> 0 | M30: =Input!M161*(1+vanilla6)^0.5 -> 0 | N30: =Input!N161*(1+vanilla7)^0.5 -> 0 | O30: =Input!O161*(1+vanilla8)^0.5 -> 0 | P30: =Input!P161*(1+vanilla9)^0.5 -> 0 | Q30: =Input!Q161*(1+vanilla10)^0.5 -> 0
D31: =Asset20 -> 0 | H31: =Input!H162*(1+vanilla1)^0.5 -> 0 | I31: =Input!I162*(1+vanilla2)^0.5 -> 0 | J31: =Input!J162*(1+vanilla3)^0.5 -> 0 | K31: =Input!K162*(1+vanilla4)^0.5 -> 0 | L31: =Input!L162*(1+vanilla5)^0.5 -> 0 | M31: =Input!M162*(1+vanilla6)^0.5 -> 0 | N31: =Input!N162*(1+vanilla7)^0.5 -> 0 | O31: =Input!O162*(1+vanilla8)^0.5 -> 0 | P31: =Input!P162*(1+vanilla9)^0.5 -> 0 | Q31: =Input!Q162*(1+vanilla10)^0.5 -> 0
D32: =Asset21 -> 0 | H32: =Input!H163*(1+vanilla1)^0.5 -> 0 | I32: =Input!I163*(1+vanilla2)^0.5 -> 0 | J32: =Input!J163*(1+vanilla3)^0.5 -> 0 | K32: =Input!K163*(1+vanilla4)^0.5 -> 0 | L32: =Input!L163*(1+vanilla5)^0.5 -> 0 | M32: =Input!M163*(1+vanilla6)^0.5 -> 0 | N32: =Input!N163*(1+vanilla7)^0.5 -> 0 | O32: =Input!O163*(1+vanilla8)^0.5 -> 0 | P32: =Input!P163*(1+vanilla9)^0.5 -> 0 | Q32: =Input!Q163*(1+vanilla10)^0.5 -> 0
D33: =Asset22 -> 0 | H33: =Input!H164*(1+vanilla1)^0.5 -> 0 | I33: =Input!I164*(1+vanilla2)^0.5 -> 0 | J33: =Input!J164*(1+vanilla3)^0.5 -> 0 | K33: =Input!K164*(1+vanilla4)^0.5 -> 0 | L33: =Input!L164*(1+vanilla5)^0.5 -> 0 | M33: =Input!M164*(1+vanilla6)^0.5 -> 0 | N33: =Input!N164*(1+vanilla7)^0.5 -> 0 | O33: =Input!O164*(1+vanilla8)^0.5 -> 0 | P33: =Input!P164*(1+vanilla9)^0.5 -> 0 | Q33: =Input!Q164*(1+vanilla10)^0.5 -> 0
D34: =Asset23 -> 0 | H34: =Input!H165*(1+vanilla1)^0.5 -> 0 | I34: =Input!I165*(1+vanilla2)^0.5 -> 0 | J34: =Input!J165*(1+vanilla3)^0.5 -> 0 | K34: =Input!K165*(1+vanilla4)^0.5 -> 0 | L34: =Input!L165*(1+vanilla5)^0.5 -> 0 | M34: =Input!M165*(1+vanilla6)^0.5 -> 0 | N34: =Input!N165*(1+vanilla7)^0.5 -> 0 | O34: =Input!O165*(1+vanilla8)^0.5 -> 0 | P34: =Input!P165*(1+vanilla9)^0.5 -> 0 | Q34: =Input!Q165*(1+vanilla10)^0.5 -> 0
D35: =Asset24 -> 0 | H35: =Input!H166*(1+vanilla1)^0.5 -> 0 | I35: =Input!I166*(1+vanilla2)^0.5 -> 0 | J35: =Input!J166*(1+vanilla3)^0.5 -> 0 | K35: =Input!K166*(1+vanilla4)^0.5 -> 0 | L35: =Input!L166*(1+vanilla5)^0.5 -> 0 | M35: =Input!M166*(1+vanilla6)^0.5 -> 0 | N35: =Input!N166*(1+vanilla7)^0.5 -> 0 | O35: =Input!O166*(1+vanilla8)^0.5 -> 0 | P35: =Input!P166*(1+vanilla9)^0.5 -> 0 | Q35: =Input!Q166*(1+vanilla10)^0.5 -> 0
D36: =Asset25 -> 0 | H36: =Input!H167*(1+vanilla1)^0.5 -> 0 | I36: =Input!I167*(1+vanilla2)^0.5 -> 0 | J36: =Input!J167*(1+vanilla3)^0.5 -> 0 | K36: =Input!K167*(1+vanilla4)^0.5 -> 0 | L36: =Input!L167*(1+vanilla5)^0.5 -> 0 | M36: =Input!M167*(1+vanilla6)^0.5 -> 0 | N36: =Input!N167*(1+vanilla7)^0.5 -> 0 | O36: =Input!O167*(1+vanilla8)^0.5 -> 0 | P36: =Input!P167*(1+vanilla9)^0.5 -> 0 | Q36: =Input!Q167*(1+vanilla10)^0.5 -> 0
D37: =Asset26 -> 0 | H37: =Input!H168*(1+vanilla1)^0.5 -> 0 | I37: =Input!I168*(1+vanilla2)^0.5 -> 0 | J37: =Input!J168*(1+vanilla3)^0.5 -> 0 | K37: =Input!K168*(1+vanilla4)^0.5 -> 0 | L37: =Input!L168*(1+vanilla5)^0.5 -> 0 | M37: =Input!M168*(1+vanilla6)^0.5 -> 0 | N37: =Input!N168*(1+vanilla7)^0.5 -> 0 | O37: =Input!O168*(1+vanilla8)^0.5 -> 0 | P37: =Input!P168*(1+vanilla9)^0.5 -> 0 | Q37: =Input!Q168*(1+vanilla10)^0.5 -> 0
D38: =Asset27 -> 0 | H38: =Input!H169*(1+vanilla1)^0.5 -> 0 | I38: =Input!I169*(1+vanilla2)^0.5 -> 0 | J38: =Input!J169*(1+vanilla3)^0.5 -> 0 | K38: =Input!K169*(1+vanilla4)^0.5 -> 0 | L38: =Input!L169*(1+vanilla5)^0.5 -> 0 | M38: =Input!M169*(1+vanilla6)^0.5 -> 0 | N38: =Input!N169*(1+vanilla7)^0.5 -> 0 | O38: =Input!O169*(1+vanilla8)^0.5 -> 0 | P38: =Input!P169*(1+vanilla9)^0.5 -> 0 | Q38: =Input!Q169*(1+vanilla10)^0.5 -> 0
D39: =Asset28 -> 0 | H39: =Input!H170*(1+vanilla1)^0.5 -> 0 | I39: =Input!I170*(1+vanilla2)^0.5 -> 0 | J39: =Input!J170*(1+vanilla3)^0.5 -> 0 | K39: =Input!K170*(1+vanilla4)^0.5 -> 0 | L39: =Input!L170*(1+vanilla5)^0.5 -> 0 | M39: =Input!M170*(1+vanilla6)^0.5 -> 0 | N39: =Input!N170*(1+vanilla7)^0.5 -> 0 | O39: =Input!O170*(1+vanilla8)^0.5 -> 0 | P39: =Input!P170*(1+vanilla9)^0.5 -> 0 | Q39: =Input!Q170*(1+vanilla10)^0.5 -> 0
D40: =Asset29 -> 0 | H40: =Input!H171*(1+vanilla1)^0.5 -> 0 | I40: =Input!I171*(1+vanilla2)^0.5 -> 0 | J40: =Input!J171*(1+vanilla3)^0.5 -> 0 | K40: =Input!K171*(1+vanilla4)^0.5 -> 0 | L40: =Input!L171*(1+vanilla5)^0.5 -> 0 | M40: =Input!M171*(1+vanilla6)^0.5 -> 0 | N40: =Input!N171*(1+vanilla7)^0.5 -> 0 | O40: =Input!O171*(1+vanilla8)^0.5 -> 0 | P40: =Input!P171*(1+vanilla9)^0.5 -> 0 | Q40: =Input!Q171*(1+vanilla10)^0.5 -> 0
D41: =Asset30 -> 0 | H41: =Input!H172*(1+vanilla1)^0.5 -> 0 | I41: =Input!I172*(1+vanilla2)^0.5 -> 0 | J41: =Input!J172*(1+vanilla3)^0.5 -> 0 | K41: =Input!K172*(1+vanilla4)^0.5 -> 0 | L41: =Input!L172*(1+vanilla5)^0.5 -> 0 | M41: =Input!M172*(1+vanilla6)^0.5 -> 0 | N41: =Input!N172*(1+vanilla7)^0.5 -> 0 | O41: =Input!O172*(1+vanilla8)^0.5 -> 0 | P41: =Input!P172*(1+vanilla9)^0.5 -> 0 | Q41: =Input!Q172*(1+vanilla10)^0.5 -> 0
C43: Real Actual Straight-line Depreciation | H43: =H56+H69+H82+H95+H108+H121+H134+H147+H160+H173+H186+H199+H212+H225+H238+H251+H264+H277+H290+H303+H316+H329+H342+H355+H368+H381+H394+H407+H420+H433 -> -30.79526743 | I43: =I56+I69+I82+I95+I108+I121+I134+I147+I160+I173+I186+I199+I212+I225+I238+I251+I264+I277+I290+I303+I316+I329+I342+I355+I368+I381+I394+I407+I420+I433 -> -37.68112514 | J43: -42.70574261 | K43: -36.72461929 | L43: -35.17898991 | M43: 0 | N43: 0 | O43: 0 | P43: 0 | Q43: 0
C44: =Asset1 -> Accumulation meters | E44: Opening RAB | H44: =IF('AMI RAB'!$AQ$2=1,'AMI RAB'!AT40/1000,IF(H$3>A1remlife,A1value-SUM($G44:G44),IF(A1remlife="N/A","n/a",A1value/A1remlife))) -> 4.267142483 | I44: =IF('AMI RAB'!$AQ$2=1,'AMI RAB'!AU40/1000,IF(I$3>A1remlife,A1value-SUM($G44:H44),IF(A1remlife="N/A","n/a",A1value/A1remlife))) -> 4.267142483 | J44: =IF('AMI RAB'!$AQ$2=1,'AMI RAB'!AV40/1000,IF(J$3>A1remlife,A1value-SUM($G44:I44),IF(A1remlife="N/A","n/a",A1value/A1remlife))) -> 4.267142483 | K44: =IF(K$3>A1remlife,A1value-SUM($G44:J44),IF(A1remlife="N/A","n/a",A1value/A1remlife)) -> 1.776356839e-15 | L44: =IF(L$3>A1remlife,A1value-SUM($G44:K44),IF(A1remlife="N/A","n/a",A1value/A1remlife)) -> 0 | M44: =IF(M$3>A1remlife,A1value-SUM($G44:L44),IF(A1remlife="N/A","n/a",A1value/A1remlife)) -> 0 | N44: =IF(N$3>A1remlife,A1value-SUM($G44:M44),IF(A1remlife="N/A","n/a",A1value/A1remlife)) -> 0 | O44: =IF(O$3>A1remlife,A1value-SUM($G44:N44),IF(A1remlife="N/A","n/a",A1value/A1remlife)) -> 0 | P44: =IF(P$3>A1remlife,A1value-SUM($G44:O44),IF(A1remlife="N/A","n/a",A1value/A1remlife)) -> 0 | Q44: =IF(Q$3>A1remlife,A1value-SUM($G44:P44),IF(A1remlife="N/A","n/a",A1value/A1remlife)) -> 0
E45: Capex in year | F45: 0
F46: 1 | I46: =IF(A1stdlife="n/a","n/a",IF(I$3>(A1stdlife+$F46),(Input!$H$143*(1+vanilla1)^0.5)-SUM($H46:H46),(Input!$H$143*(1+vanilla1)^0.5)/A1stdlife)) -> 0.2604620275 | J46: =IF(A1stdlife="n/a","n/a",IF(J$3>(A1stdlife+$F46),(Input!$H$143*(1+vanilla1)^0.5)-SUM($H46:I46),(Input!$H$143*(1+vanilla1)^0.5)/A1stdlife)) -> 0.2604620275 | K46: =IF(A1stdlife="n/a","n/a",IF(K$3>(A1stdlife+$F46),(Input!$H$143*(1+vanilla1)^0.5)-SUM($H46:J46),(Input!$H$143*(1+vanilla1)^0.5)/A1stdlife)) -> 0.2604620275 | L46: =IF(A1stdlife="n/a","n/a",IF(L$3>(A1stdlife+$F46),(Input!$H$143*(1+vanilla1)^0.5)-SUM($H46:K46),(Input!$H$143*(1+vanilla1)^0.5)/A1stdlife)) -> 0.2604620275 | M46: =IF(A1stdlife="n/a","n/a",IF(M$3>(A1stdlife+$F46),(Input!$H$143*(1+vanilla1)^0.5)-SUM($H46:L46),(Input!$H$143*(1+vanilla1)^0.5)/A1stdlife)) -> 0.2604620275 | N46: =IF(A1stdlife="n/a","n/a",IF(N$3>(A1stdlife+$F46),(Input!$H$143*(1+vanilla1)^0.5)-SUM($H46:M46),(Input!$H$143*(1+vanilla1)^0.5)/A1stdlife)) -> 0.2604620275 | O46: =IF(A1stdlife="n/a","n/a",IF(O$3>(A1stdlife+$F46),(Input!$H$143*(1+vanilla1)^0.5)-SUM($H46:N46),(Input!$H$143*(1+vanilla1)^0.5)/A1stdlife)) -> 0.2604620275 | P46: =IF(A1stdlife="n/a","n/a",IF(P$3>(A1stdlife+$F46),(Input!$H$143*(1+vanilla1)^0.5)-SUM($H46:O46),(Input!$H$143*(1+vanilla1)^0.5)/A1stdlife)) -> 0.2604620275 | Q46: =IF(A1stdlife="n/a","n/a",IF(Q$3>(A1stdlife+$F46),(Input!$H$143*(1+vanilla1)^0.5)-SUM($H46:P46),(Input!$H$143*(1+vanilla1)^0.5)/A1stdlife)) -> 0.2604620275
F47: 2 | J47: =IF(A1stdlife="n/a","n/a",IF(J$3>(A1stdlife+$F47),(Input!$I$143*(1+vanilla2)^0.5)-SUM($I47:I47),(Input!$I$143*(1+vanilla2)^0.5)/A1stdlife)) -> 0.0519959637 | K47: =IF(A1stdlife="n/a","n/a",IF(K$3>(A1stdlife+$F47),(Input!$I$143*(1+vanilla2)^0.5)-SUM($I47:J47),(Input!$I$143*(1+vanilla2)^0.5)/A1stdlife)) -> 0.0519959637 | L47: =IF(A1stdlife="n/a","n/a",IF(L$3>(A1stdlife+$F47),(Input!$I$143*(1+vanilla2)^0.5)-SUM($I47:K47),(Input!$I$143*(1+vanilla2)^0.5)/A1stdlife)) -> 0.0519959637 | M47: =IF(A1stdlife="n/a","n/a",IF(M$3>(A1stdlife+$F47),(Input!$I$143*(1+vanilla2)^0.5)-SUM($I47:L47),(Input!$I$143*(1+vanilla2)^0.5)/A1stdlife)) -> 0.0519959637 | N47: =IF(A1stdlife="n/a","n/a",IF(N$3>(A1stdlife+$F47),(Input!$I$143*(1+vanilla2)^0.5)-SUM($I47:M47),(Input!$I$143*(1+vanilla2)^0.5)/A1stdlife)) -> 0.0519959637 | O47: =IF(A1stdlife="n/a","n/a",IF(O$3>(A1stdlife+$F47),(Input!$I$143*(1+vanilla2)^0.5)-SUM($I47:N47),(Input!$I$143*(1+vanilla2)^0.5)/A1stdlife)) -> 0.0519959637 | P47: =IF(A1stdlife="n/a","n/a",IF(P$3>(A1stdlife+$F47),(Input!$I$143*(1+vanilla2)^0.5)-SUM($I47:O47),(Input!$I$143*(1+vanilla2)^0.5)/A1stdlife)) -> 0.0519959637 | Q47: =IF(A1stdlife="n/a","n/a",IF(Q$3>(A1stdlife+$F47),(Input!$I$143*(1+vanilla2)^0.5)-SUM($I47:P47),(Input!$I$143*(1+vanilla2)^0.5)/A1stdlife)) -> 0.0519959637
F48: 3 | K48: =IF(A1stdlife="n/a","n/a",IF(K$3>(A1stdlife+$F48),(Input!$J$143*(1+vanilla3)^0.5)-SUM($J48:J48),(Input!$J$143*(1+vanilla3)^0.5)/A1stdlife)) -> 0 | L48: =IF(A1stdlife="n/a","n/a",IF(L$3>(A1stdlife+$F48),(Input!$J$143*(1+vanilla3)^0.5)-SUM($J48:K48),(Input!$J$143*(1+vanilla3)^0.5)/A1stdlife)) -> 0 | M48: =IF(A1stdlife="n/a","n/a",IF(M$3>(A1stdlife+$F48),(Input!$J$143*(1+vanilla3)^0.5)-SUM($J48:L48),(Input!$J$143*(1+vanilla3)^0.5)/A1stdlife)) -> 0 | N48: =IF(A1stdlife="n/a","n/a",IF(N$3>(A1stdlife+$F48),(Input!$J$143*(1+vanilla3)^0.5)-SUM($J48:M48),(Input!$J$143*(1+vanilla3)^0.5)/A1stdlife)) -> 0 | O48: =IF(A1stdlife="n/a","n/a",IF(O$3>(A1stdlife+$F48),(Input!$J$143*(1+vanilla3)^0.5)-SUM($J48:N48),(Input!$J$143*(1+vanilla3)^0.5)/A1stdlife)) -> 0 | P48: =IF(A1stdlife="n/a","n/a",IF(P$3>(A1stdlife+$F48),(Input!$J$143*(1+vanilla3)^0.5)-SUM($J48:O48),(Input!$J$143*(1+vanilla3)^0.5)/A1stdlife)) -> 0 | Q48: =IF(A1stdlife="n/a","n/a",IF(Q$3>(A1stdlife+$F48),(Input!$J$143*(1+vanilla3)^0.5)-SUM($J48:P48),(Input!$J$143*(1+vanilla3)^0.5)/A1stdlife)) -> 0
F49: 4 | L49: =IF(A1stdlife="n/a","n/a",IF(L$3>(A1stdlife+$F49),(Input!$K$143*(1+vanilla4)^0.5)-SUM($K49:K49),(Input!$K$143*(1+vanilla4)^0.5)/A1stdlife)) -> 0 | M49: =IF(A1stdlife="n/a","n/a",IF(M$3>(A1stdlife+$F49),(Input!$K$143*(1+vanilla4)^0.5)-SUM($K49:L49),(Input!$K$143*(1+vanilla4)^0.5)/A1stdlife)) -> 0 | N49: =IF(A1stdlife="n/a","n/a",IF(N$3>(A1stdlife+$F49),(Input!$K$143*(1+vanilla4)^0.5)-SUM($K49:M49),(Input!$K$143*(1+vanilla4)^0.5)/A1stdlife)) -> 0 | O49: =IF(A1stdlife="n/a","n/a",IF(O$3>(A1stdlife+$F49),(Input!$K$143*(1+vanilla4)^0.5)-SUM($K49:N49),(Input!$K$143*(1+vanilla4)^0.5)/A1stdlife)) -> 0 | P49: =IF(A1stdlife="n/a","n/a",IF(P$3>(A1stdlife+$F49),(Input!$K$143*(1+vanilla4)^0.5)-SUM($K49:O49),(Input!$K$143*(1+vanilla4)^0.5)/A1stdlife)) -> 0 | Q49: =IF(A1stdlife="n/a","n/a",IF(Q$3>(A1stdlife+$F49),(Input!$K$143*(1+vanilla4)^0.5)-SUM($K49:P49),(Input!$K$143*(1+vanilla4)^0.5)/A1stdlife)) -> 0
F50: 5 | M50: =IF(A1stdlife="n/a","n/a",IF(M$3>(A1stdlife+$F50),(Input!$L$143*(1+vanilla5)^0.5)-SUM($L50:L50),(Input!$L$143*(1+vanilla5)^0.5)/A1stdlife)) -> 0 | N50: =IF(A1stdlife="n/a","n/a",IF(N$3>(A1stdlife+$F50),(Input!$L$143*(1+vanilla5)^0.5)-SUM($L50:M50),(Input!$L$143*(1+vanilla5)^0.5)/A1stdlife)) -> 0 | O50: =IF(A1stdlife="n/a","n/a",IF(O$3>(A1stdlife+$F50),(Input!$L$143*(1+vanilla5)^0.5)-SUM($L50:N50),(Input!$L$143*(1+vanilla5)^0.5)/A1stdlife)) -> 0 | P50: =IF(A1stdlife="n/a","n/a",IF(P$3>(A1stdlife+$F50),(Input!$L$143*(1+vanilla5)^0.5)-SUM($L50:O50),(Input!$L$143*(1+vanilla5)^0.5)/A1stdlife)) -> 0 | Q50: =IF(A1stdlife="n/a","n/a",IF(Q$3>(A1stdlife+$F50),(Input!$L$143*(1+vanilla5)^0.5)-SUM($L50:P50),(Input!$L$143*(1+vanilla5)^0.5)/A1stdlife)) -> 0
F51: 6 | N51: =IF(A1stdlife="n/a","n/a",IF(N$3>(A1stdlife+$F51),(Input!$M$143*(1+vanilla6)^0.5)-SUM($M51:M51),(Input!$M$143*(1+vanilla6)^0.5)/A1stdlife)) -> 0 | O51: =IF(A1stdlife="n/a","n/a",IF(O$3>(A1stdlife+$F51),(Input!$M$143*(1+vanilla6)^0.5)-SUM($M51:N51),(Input!$M$143*(1+vanilla6)^0.5)/A1stdlife)) -> 0 | P51: =IF(A1stdlife="n/a","n/a",IF(P$3>(A1stdlife+$F51),(Input!$M$143*(1+vanilla6)^0.5)-SUM($M51:O51),(Input!$M$143*(1+vanilla6)^0.5)/A1stdlife)) -> 0 | Q51: =IF(A1stdlife="n/a","n/a",IF(Q$3>(A1stdlife+$F51),(Input!$M$143*(1+vanilla6)^0.5)-SUM($M51:P51),(Input!$M$143*(1+vanilla6)^0.5)/A1stdlife)) -> 0
F52: 7 | O52: =IF(A1stdlife="n/a","n/a",IF(O$3>(A1stdlife+$F52),(Input!$N$143*(1+vanilla7)^0.5)-SUM($N52:N52),(Input!$N$143*(1+vanilla7)^0.5)/A1stdlife)) -> 0 | P52: =IF(A1stdlife="n/a","n/a",IF(P$3>(A1stdlife+$F52),(Input!$N$143*(1+vanilla7)^0.5)-SUM($N52:O52),(Input!$N$143*(1+vanilla7)^0.5)/A1stdlife)) -> 0 | Q52: =IF(A1stdlife="n/a","n/a",IF(Q$3>(A1stdlife+$F52),(Input!$N$143*(1+vanilla7)^0.5)-SUM($N52:P52),(Input!$N$143*(1+vanilla7)^0.5)/A1stdlife)) -> 0
F53: 8 | P53: =IF(A1stdlife="n/a","n/a",IF(P$3>(A1stdlife+$F53),(Input!$O$143*(1+vanilla8)^0.5)-SUM($O53:O53),(Input!$O$143*(1+vanilla8)^0.5)/A1stdlife)) -> 0 | Q53: =IF(A1stdlife="n/a","n/a",IF(Q$3>(A1stdlife+$F53),(Input!$O$143*(1+vanilla8)^0.5)-SUM($O53:P53),(Input!$O$143*(1+vanilla8)^0.5)/A1stdlife)) -> 0
F54: 9 | Q54: =IF(A1stdlife="n/a","n/a",IF(Q$3>(A1stdlife+$F54),(Input!$P$143*(1+vanilla9)^0.5)-SUM($P54:P54),(Input!$P$143*(1+vanilla9)^0.5)/A1stdlife)) -> 0
F55: 10
D56: =Asset1 -> Accumulation meters | H56: =IF('AMI RAB'!$AQ$2=1,-SUM('AMI RAB'!AT40:AT41)/1000,-SUM(H44:H55)) -> -5.048528565 | I56: =IF('AMI RAB'!$AQ$2=1,-SUM('AMI RAB'!AU40:AU41)/1000,-SUM(I44:I55)) -> -6.089894466 | J56: =IF('AMI RAB'!$AQ$2=1,-SUM('AMI RAB'!AV40:AV41)/1000,-SUM(J44:J55)) -> -6.349874285 | K56: =IF('AMI RAB'!$AQ$2=1,-SUM('AMI RAB'!AW40:AW41)/1000,-SUM(K44:K55)) -> -9.66839891e-16 | L56: =IF('AMI RAB'!$AQ$2=1,-SUM('AMI RAB'!AX40:AX41)/1000,-SUM(L44:L55)) -> 0 | M56: 0 | N56: 0 | O56: 0 | P56: 0 | Q56: 0
C57: =Asset2 -> Manually read interval meters | E57: Opening RAB | H57: =IF('AMI RAB'!$AQ$2=1,'AMI RAB'!AT43/1000,IF(H$3>A2remlife,A2value-SUM($G57:G57),IF(A2remlife="N/A","n/a",A2value/A2remlife))) -> 0.6096499823 | I57: =IF('AMI RAB'!$AQ$2=1,'AMI RAB'!AU43/1000,IF(I$3>A2remlife,A2value-SUM($G57:H57),IF(A2remlife="N/A","n/a",A2value/A2remlife))) -> 0.6096499823 | J57: =IF('AMI RAB'!$AQ$2=1,'AMI RAB'!AV43/1000,IF(J$3>A2remlife,A2value-SUM($G57:I57),IF(A2remlife="N/A","n/a",A2value/A2remlife))) -> 0.6096499823 | K57: =IF('AMI RAB'!$AQ$2=1,'AMI RAB'!AW43/1000,IF(K$3>A2remlife,A2value-SUM($G57:J57),IF(A2remlife="N/A","n/a",A2value/A2remlife))) -> 0 | L57: =IF('AMI RAB'!$AQ$2=1,'AMI RAB'!AX43/1000,IF(L$3>A2remlife,A2value-SUM($G57:K57),IF(A2remlife="N/A","n/a",A2value/A2remlife))) -> 0 | M57: =IF(M$3>A2remlife,A2value-SUM($G57:L57),IF(A2remlife="N/A","n/a",A2value/A2remlife)) -> 0 | N57: =IF(N$3>A2remlife,A2value-SUM($G57:M57),IF(A2remlife="N/A","n/a",A2value/A2remlife)) -> 0 | O57: =IF(O$3>A2remlife,A2value-SUM($G57:N57),IF(A2remlife="N/A","n/a",A2value/A2remlife)) -> 0 | P57: =IF(P$3>A2remlife,A2value-SUM($G57:O57),IF(A2remlife="N/A","n/a",A2value/A2remlife)) -> 0 | Q57: =IF(Q$3>A2remlife,A2value-SUM($G57:P57),IF(A2remlife="N/A","n/a",A2value/A2remlife)) -> 0
E58: Capex in year | F58: 0
F59: 1 | I59: =IF(A2stdlife="n/a","n/a",IF(I$3>(A2stdlife+$F59),(Input!$H$144*(1+vanilla1)^0.5)-SUM($H59:H59),(Input!$H$144*(1+vanilla1)^0.5)/A2stdlife)) -> 0.1146424157 | J59: =IF(A2stdlife="n/a","n/a",IF(J$3>(A2stdlife+$F59),(Input!$H$144*(1+vanilla1)^0.5)-SUM($H59:I59),(Input!$H$144*(1+vanilla1)^0.5)/A2stdlife)) -> 0.1146424157 | K59: =IF(A2stdlife="n/a","n/a",IF(K$3>(A2stdlife+$F59),(Input!$H$144*(1+vanilla1)^0.5)-SUM($H59:J59),(Input!$H$144*(1+vanilla1)^0.5)/A2stdlife)) -> 0.1146424157 | L59: =IF(A2stdlife="n/a","n/a",IF(L$3>(A2stdlife+$F59),(Input!$H$144*(1+vanilla1)^0.5)-SUM($H59:K59),(Input!$H$144*(1+vanilla1)^0.5)/A2stdlife)) -> 0.1146424157 | M59: =IF(A2stdlife="n/a","n/a",IF(M$3>(A2stdlife+$F59),(Input!$H$144*(1+vanilla1)^0.5)-SUM($H59:L59),(Input!$H$144*(1+vanilla1)^0.5)/A2stdlife)) -> 0.1146424157 | N59: =IF(A2stdlife="n/a","n/a",IF(N$3>(A2stdlife+$F59),(Input!$H$144*(1+vanilla1)^0.5)-SUM($H59:M59),(Input!$H$144*(1+vanilla1)^0.5)/A2stdlife)) -> 0.1146424157 | O59: =IF(A2stdlife="n/a","n/a",IF(O$3>(A2stdlife+$F59),(Input!$H$144*(1+vanilla1)^0.5)-SUM($H59:N59),(Input!$H$144*(1+vanilla1)^0.5)/A2stdlife)) -> 0.1146424157 | P59: =IF(A2stdlife="n/a","n/a",IF(P$3>(A2stdlife+$F59),(Input!$H$144*(1+vanilla1)^0.5)-SUM($H59:O59),(Input!$H$144*(1+vanilla1)^0.5)/A2stdlife)) -> 0.1146424157 | Q59: =IF(A2stdlife="n/a","n/a",IF(Q$3>(A2stdlife+$F59),(Input!$H$144*(1+vanilla1)^0.5)-SUM($H59:P59),(Input!$H$144*(1+vanilla1)^0.5)/A2stdlife)) -> 0.1146424157
F60: 2 | J60: =IF(A2stdlife="n/a","n/a",IF(J$3>(A2stdlife+$F60),(Input!$I$144*(1+vanilla2)^0.5)-SUM($I60:I60),(Input!$I$144*(1+vanilla2)^0.5)/A2stdlife)) -> 0.08104221632 | K60: =IF(A2stdlife="n/a","n/a",IF(K$3>(A2stdlife+$F60),(Input!$I$144*(1+vanilla2)^0.5)-SUM($I60:J60),(Input!$I$144*(1+vanilla2)^0.5)/A2stdlife)) -> 0.08104221632 | L60: =IF(A2stdlife="n/a","n/a",IF(L$3>(A2stdlife+$F60),(Input!$I$144*(1+vanilla2)^0.5)-SUM($I60:K60),(Input!$I$144*(1+vanilla2)^0.5)/A2stdlife)) -> 0.08104221632 | M60: =IF(A2stdlife="n/a","n/a",IF(M$3>(A2stdlife+$F60),(Input!$I$144*(1+vanilla2)^0.5)-SUM($I60:L60),(Input!$I$144*(1+vanilla2)^0.5)/A2stdlife)) -> 0.08104221632 | N60: =IF(A2stdlife="n/a","n/a",IF(N$3>(A2stdlife+$F60),(Input!$I$144*(1+vanilla2)^0.5)-SUM($I60:M60),(Input!$I$144*(1+vanilla2)^0.5)/A2stdlife)) -> 0.08104221632 | O60: =IF(A2stdlife="n/a","n/a",IF(O$3>(A2stdlife+$F60),(Input!$I$144*(1+vanilla2)^0.5)-SUM($I60:N60),(Input!$I$144*(1+vanilla2)^0.5)/A2stdlife)) -> 0.08104221632 | P60: =IF(A2stdlife="n/a","n/a",IF(P$3>(A2stdlife+$F60),(Input!$I$144*(1+vanilla2)^0.5)-SUM($I60:O60),(Input!$I$144*(1+vanilla2)^0.5)/A2stdlife)) -> 0.08104221632 | Q60: =IF(A2stdlife="n/a","n/a",IF(Q$3>(A2stdlife+$F60),(Input!$I$144*(1+vanilla2)^0.5)-SUM($I60:P60),(Input!$I$144*(1+vanilla2)^0.5)/A2stdlife)) -> 0.08104221632
F61: 3 | K61: =IF(A2stdlife="n/a","n/a",IF(K$3>(A2stdlife+$F61),(Input!$J$144*(1+vanilla3)^0.5)-SUM($J61:J61),(Input!$J$144*(1+vanilla3)^0.5)/A2stdlife)) -> 0 | L61: =IF(A2stdlife="n/a","n/a",IF(L$3>(A2stdlife+$F61),(Input!$J$144*(1+vanilla3)^0.5)-SUM($J61:K61),(Input!$J$144*(1+vanilla3)^0.5)/A2stdlife)) -> 0 | M61: =IF(A2stdlife="n/a","n/a",IF(M$3>(A2stdlife+$F61),(Input!$J$144*(1+vanilla3)^0.5)-SUM($J61:L61),(Input!$J$144*(1+vanilla3)^0.5)/A2stdlife)) -> 0 | N61: =IF(A2stdlife="n/a","n/a",IF(N$3>(A2stdlife+$F61),(Input!$J$144*(1+vanilla3)^0.5)-SUM($J61:M61),(Input!$J$144*(1+vanilla3)^0.5)/A2stdlife)) -> 0 | O61: =IF(A2stdlife="n/a","n/a",IF(O$3>(A2stdlife+$F61),(Input!$J$144*(1+vanilla3)^0.5)-SUM($J61:N61),(Input!$J$144*(1+vanilla3)^0.5)/A2stdlife)) -> 0 | P61: =IF(A2stdlife="n/a","n/a",IF(P$3>(A2stdlife+$F61),(Input!$J$144*(1+vanilla3)^0.5)-SUM($J61:O61),(Input!$J$144*(1+vanilla3)^0.5)/A2stdlife)) -> 0 | Q61: =IF(A2stdlife="n/a","n/a",IF(Q$3>(A2stdlife+$F61),(Input!$J$144*(1+vanilla3)^0.5)-SUM($J61:P61),(Input!$J$144*(1+vanilla3)^0.5)/A2stdlife)) -> 0
F62: 4 | L62: =IF(A2stdlife="n/a","n/a",IF(L$3>(A2stdlife+$F62),(Input!$K$144*(1+vanilla4)^0.5)-SUM($K62:K62),(Input!$K$144*(1+vanilla4)^0.5)/A2stdlife)) -> 0 | M62: =IF(A2stdlife="n/a","n/a",IF(M$3>(A2stdlife+$F62),(Input!$K$144*(1+vanilla4)^0.5)-SUM($K62:L62),(Input!$K$144*(1+vanilla4)^0.5)/A2stdlife)) -> 0 | N62: =IF(A2stdlife="n/a","n/a",IF(N$3>(A2stdlife+$F62),(Input!$K$144*(1+vanilla4)^0.5)-SUM($K62:M62),(Input!$K$144*(1+vanilla4)^0.5)/A2stdlife)) -> 0 | O62: =IF(A2stdlife="n/a","n/a",IF(O$3>(A2stdlife+$F62),(Input!$K$144*(1+vanilla4)^0.5)-SUM($K62:N62),(Input!$K$144*(1+vanilla4)^0.5)/A2stdlife)) -> 0 | P62: =IF(A2stdlife="n/a","n/a",IF(P$3>(A2stdlife+$F62),(Input!$K$144*(1+vanilla4)^0.5)-SUM($K62:O62),(Input!$K$144*(1+vanilla4)^0.5)/A2stdlife)) -> 0 | Q62: =IF(A2stdlife="n/a","n/a",IF(Q$3>(A2stdlife+$F62),(Input!$K$144*(1+vanilla4)^0.5)-SUM($K62:P62),(Input!$K$144*(1+vanilla4)^0.5)/A2stdlife)) -> 0
F63: 5 | M63: =IF(A2stdlife="n/a","n/a",IF(M$3>(A2stdlife+$F63),(Input!$L$144*(1+vanilla5)^0.5)-SUM($L63:L63),(Input!$L$144*(1+vanilla5)^0.5)/A2stdlife)) -> 0 | N63: =IF(A2stdlife="n/a","n/a",IF(N$3>(A2stdlife+$F63),(Input!$L$144*(1+vanilla5)^0.5)-SUM($L63:M63),(Input!$L$144*(1+vanilla5)^0.5)/A2stdlife)) -> 0 | O63: =IF(A2stdlife="n/a","n/a",IF(O$3>(A2stdlife+$F63),(Input!$L$144*(1+vanilla5)^0.5)-SUM($L63:N63),(Input!$L$144*(1+vanilla5)^0.5)/A2stdlife)) -> 0 | P63: =IF(A2stdlife="n/a","n/a",IF(P$3>(A2stdlife+$F63),(Input!$L$144*(1+vanilla5)^0.5)-SUM($L63:O63),(Input!$L$144*(1+vanilla5)^0.5)/A2stdlife)) -> 0 | Q63: =IF(A2stdlife="n/a","n/a",IF(Q$3>(A2stdlife+$F63),(Input!$L$144*(1+vanilla5)^0.5)-SUM($L63:P63),(Input!$L$144*(1+vanilla5)^0.5)/A2stdlife)) -> 0
F64: 6 | N64: =IF(A2stdlife="n/a","n/a",IF(N$3>(A2stdlife+$F64),(Input!$M$144*(1+vanilla6)^0.5)-SUM($M64:M64),(Input!$M$144*(1+vanilla6)^0.5)/A2stdlife)) -> 0 | O64: =IF(A2stdlife="n/a","n/a",IF(O$3>(A2stdlife+$F64),(Input!$M$144*(1+vanilla6)^0.5)-SUM($M64:N64),(Input!$M$144*(1+vanilla6)^0.5)/A2stdlife)) -> 0 | P64: =IF(A2stdlife="n/a","n/a",IF(P$3>(A2stdlife+$F64),(Input!$M$144*(1+vanilla6)^0.5)-SUM($M64:O64),(Input!$M$144*(1+vanilla6)^0.5)/A2stdlife)) -> 0 | Q64: =IF(A2stdlife="n/a","n/a",IF(Q$3>(A2stdlife+$F64),(Input!$M$144*(1+vanilla6)^0.5)-SUM($M64:P64),(Input!$M$144*(1+vanilla6)^0.5)/A2stdlife)) -> 0
F65: 7 | O65: =IF(A2stdlife="n/a","n/a",IF(O$3>(A2stdlife+$F65),(Input!$N$144*(1+vanilla7)^0.5)-SUM($N65:N65),(Input!$N$144*(1+vanilla7)^0.5)/A2stdlife)) -> 0 | P65: =IF(A2stdlife="n/a","n/a",IF(P$3>(A2stdlife+$F65),(Input!$N$144*(1+vanilla7)^0.5)-SUM($N65:O65),(Input!$N$144*(1+vanilla7)^0.5)/A2stdlife)) -> 0 | Q65: =IF(A2stdlife="n/a","n/a",IF(Q$3>(A2stdlife+$F65),(Input!$N$144*(1+vanilla7)^0.5)-SUM($N65:P65),(Input!$N$144*(1+vanilla7)^0.5)/A2stdlife)) -> 0
F66: 8 | P66: =IF(A2stdlife="n/a","n/a",IF(P$3>(A2stdlife+$F66),(Input!$O$144*(1+vanilla8)^0.5)-SUM($O66:O66),(Input!$O$144*(1+vanilla8)^0.5)/A2stdlife)) -> 0 | Q66: =IF(A2stdlife="n/a","n/a",IF(Q$3>(A2stdlife+$F66),(Input!$O$144*(1+vanilla8)^0.5)-SUM($O66:P66),(Input!$O$144*(1+vanilla8)^0.5)/A2stdlife)) -> 0
F67: 9 | Q67: =IF(A2stdlife="n/a","n/a",IF(Q$3>(A2stdlife+$F67),(Input!$P$144*(1+vanilla9)^0.5)-SUM($P67:P67),(Input!$P$144*(1+vanilla9)^0.5)/A2stdlife)) -> 0
F68: 10
D69: =Asset2 -> Manually read interval meters | H69: =IF('AMI RAB'!$AQ$2=1,-SUM('AMI RAB'!AT43:AT44)/1000,-SUM(H57:H68)) -> -0.9535772293 | I69: =IF('AMI RAB'!$AQ$2=1,-SUM('AMI RAB'!AU43:AU44)/1000,-SUM(I57:I68)) -> -1.702715558 | J69: =IF('AMI RAB'!$AQ$2=1,-SUM('AMI RAB'!AV43:AV44)/1000,-SUM(J57:J68)) -> -2.107926639 | K69: =IF('AMI RAB'!$AQ$2=1,-SUM('AMI RAB'!AW43:AW44)/1000,-SUM(K57:K68)) -> 0 | L69: =IF('AMI RAB'!$AQ$2=1,-SUM('AMI RAB'!AX43:AX44)/1000,-SUM(L57:L68)) -> 0 | M69: =IF('AMI RAB'!$AQ$2=1,-SUM('AMI RAB'!AY43:AY44)/1000,-SUM(M57:M68)) -> 0 | N69: =IF(Input!N173>0, -SUM(N57:N68), 0) -> 0 | O69: =IF(Input!O173>0, -SUM(O57:O68), 0) -> 0 | P69: =IF(Input!P173>0, -SUM(P57:P68), 0) -> 0 | Q69: =IF(Input!Q173>0, -SUM(Q57:Q68), 0) -> 0
C70: =Asset3 -> remotely read interval meters | E70: Opening RAB | H70: =IF('AMI RAB'!$AQ$2=1,'AMI RAB'!AT46/1000,IF(H$3>A3remlife,A3value-SUM($G70:G70),IF(A3remlife="N/A","n/a",A3value/A3remlife))) -> 1.809868626 | I70: =IF('AMI RAB'!$AQ$2=1,'AMI RAB'!AU46/1000,IF(I$3>A3remlife,A3value-SUM($G70:H70),IF(A3remlife="N/A","n/a",A3value/A3remlife))) -> 1.809868626 | J70: =IF('AMI RAB'!$AQ$2=1,'AMI RAB'!AV46/1000,IF(J$3>A3remlife,A3value-SUM($G70:I70),IF(A3remlife="N/A","n/a",A3value/A3remlife))) -> 1.809868626 | K70: =IF('AMI RAB'!$AQ$2=1,'AMI RAB'!AW46/1000,IF(K$3>A3remlife,A3value-SUM($G70:J70),IF(A3remlife="N/A","n/a",A3value/A3remlife))) -> 1.809868626 | L70: =IF('AMI RAB'!$AQ$2=1,'AMI RAB'!AX46/1000,IF(L$3>A3remlife,A3value-SUM($G70:K70),IF(A3remlife="N/A","n/a",A3value/A3remlife))) -> 1.809868626 | M70: =IF(M$3>A3remlife,A3value-SUM($G70:L70),IF(A3remlife="N/A","n/a",A3value/A3remlife)) -> 1.72068087 | N70: =IF(N$3>A3remlife,A3value-SUM($G70:M70),IF(A3remlife="N/A","n/a",A3value/A3remlife)) -> 1.72068087 | O70: =IF(O$3>A3remlife,A3value-SUM($G70:N70),IF(A3remlife="N/A","n/a",A3value/A3remlife)) -> 1.72068087 | P70: =IF(P$3>A3remlife,A3value-SUM($G70:O70),IF(A3remlife="N/A","n/a",A3value/A3remlife)) -> 1.72068087 | Q70: =IF(Q$3>A3remlife,A3value-SUM($G70:P70),IF(A3remlife="N/A","n/a",A3value/A3remlife)) -> 1.72068087
E71: Capex in year | F71: 0
F72: 1 | I72: =IF(A3stdlife="n/a","n/a",IF(I$3>(A3stdlife+$F72),(Input!$H$145*(1+vanilla1)^0.5)-SUM($H72:H72),(Input!$H$145*(1+vanilla1)^0.5)/A3stdlife)) -> 2.761284872 | J72: =IF(A3stdlife="n/a","n/a",IF(J$3>(A3stdlife+$F72),(Input!$H$145*(1+vanilla1)^0.5)-SUM($H72:I72),(Input!$H$145*(1+vanilla1)^0.5)/A3stdlife)) -> 2.761284872 | K72: =IF(A3stdlife="n/a","n/a",IF(K$3>(A3stdlife+$F72),(Input!$H$145*(1+vanilla1)^0.5)-SUM($H72:J72),(Input!$H$145*(1+vanilla1)^0.5)/A3stdlife)) -> 2.761284872 | L72: =IF(A3stdlife="n/a","n/a",IF(L$3>(A3stdlife+$F72),(Input!$H$145*(1+vanilla1)^0.5)-SUM($H72:K72),(Input!$H$145*(1+vanilla1)^0.5)/A3stdlife)) -> 2.761284872 | M72: =IF(A3stdlife="n/a","n/a",IF(M$3>(A3stdlife+$F72),(Input!$H$145*(1+vanilla1)^0.5)-SUM($H72:L72),(Input!$H$145*(1+vanilla1)^0.5)/A3stdlife)) -> 2.761284872 | N72: =IF(A3stdlife="n/a","n/a",IF(N$3>(A3stdlife+$F72),(Input!$H$145*(1+vanilla1)^0.5)-SUM($H72:M72),(Input!$H$145*(1+vanilla1)^0.5)/A3stdlife)) -> 2.761284872 | O72: =IF(A3stdlife="n/a","n/a",IF(O$3>(A3stdlife+$F72),(Input!$H$145*(1+vanilla1)^0.5)-SUM($H72:N72),(Input!$H$145*(1+vanilla1)^0.5)/A3stdlife)) -> 2.761284872 | P72: =IF(A3stdlife="n/a","n/a",IF(P$3>(A3stdlife+$F72),(Input!$H$145*(1+vanilla1)^0.5)-SUM($H72:O72),(Input!$H$145*(1+vanilla1)^0.5)/A3stdlife)) -> 2.761284872 | Q72: =IF(A3stdlife="n/a","n/a",IF(Q$3>(A3stdlife+$F72),(Input!$H$145*(1+vanilla1)^0.5)-SUM($H72:P72),(Input!$H$145*(1+vanilla1)^0.5)/A3stdlife)) -> 2.761284872
F73: 2 | J73: =IF(A3stdlife="n/a","n/a",IF(J$3>(A3stdlife+$F73),(Input!$I$145*(1+vanilla2)^0.5)-SUM($I73:I73),(Input!$I$145*(1+vanilla2)^0.5)/A3stdlife)) -> 3.115628984 | K73: =IF(A3stdlife="n/a","n/a",IF(K$3>(A3stdlife+$F73),(Input!$I$145*(1+vanilla2)^0.5)-SUM($I73:J73),(Input!$I$145*(1+vanilla2)^0.5)/A3stdlife)) -> 3.115628984 | L73: =IF(A3stdlife="n/a","n/a",IF(L$3>(A3stdlife+$F73),(Input!$I$145*(1+vanilla2)^0.5)-SUM($I73:K73),(Input!$I$145*(1+vanilla2)^0.5)/A3stdlife)) -> 3.115628984 | M73: =IF(A3stdlife="n/a","n/a",IF(M$3>(A3stdlife+$F73),(Input!$I$145*(1+vanilla2)^0.5)-SUM($I73:L73),(Input!$I$145*(1+vanilla2)^0.5)/A3stdlife)) -> 3.115628984 | N73: =IF(A3stdlife="n/a","n/a",IF(N$3>(A3stdlife+$F73),(Input!$I$145*(1+vanilla2)^0.5)-SUM($I73:M73),(Input!$I$145*(1+vanilla2)^0.5)/A3stdlife)) -> 3.115628984 | O73: =IF(A3stdlife="n/a","n/a",IF(O$3>(A3stdlife+$F73),(Input!$I$145*(1+vanilla2)^0.5)-SUM($I73:N73),(Input!$I$145*(1+vanilla2)^0.5)/A3stdlife)) -> 3.115628984 | P73: =IF(A3stdlife="n/a","n/a",IF(P$3>(A3stdlife+$F73),(Input!$I$145*(1+vanilla2)^0.5)-SUM($I73:O73),(Input!$I$145*(1+vanilla2)^0.5)/A3stdlife)) -> 3.115628984 | Q73: =IF(A3stdlife="n/a","n/a",IF(Q$3>(A3stdlife+$F73),(Input!$I$145*(1+vanilla2)^0.5)-SUM($I73:P73),(Input!$I$145*(1+vanilla2)^0.5)/A3stdlife)) -> 3.115628984
F74: 3 | K74: =IF(A3stdlife="n/a","n/a",IF(K$3>(A3stdlife+$F74),(Input!$J$145*(1+vanilla3)^0.5)-SUM($J74:J74),(Input!$J$145*(1+vanilla3)^0.5)/A3stdlife)) -> 3.42469113 | L74: =IF(A3stdlife="n/a","n/a",IF(L$3>(A3stdlife+$F74),(Input!$J$145*(1+vanilla3)^0.5)-SUM($J74:K74),(Input!$J$145*(1+vanilla3)^0.5)/A3stdlife)) -> 3.42469113 | M74: =IF(A3stdlife="n/a","n/a",IF(M$3>(A3stdlife+$F74),(Input!$J$145*(1+vanilla3)^0.5)-SUM($J74:L74),(Input!$J$145*(1+vanilla3)^0.5)/A3stdlife)) -> 3.42469113 | N74: =IF(A3stdlife="n/a","n/a",IF(N$3>(A3stdlife+$F74),(Input!$J$145*(1+vanilla3)^0.5)-SUM($J74:M74),(Input!$J$145*(1+vanilla3)^0.5)/A3stdlife)) -> 3.42469113 | O74: =IF(A3stdlife="n/a","n/a",IF(O$3>(A3stdlife+$F74),(Input!$J$145*(1+vanilla3)^0.5)-SUM($J74:N74),(Input!$J$145*(1+vanilla3)^0.5)/A3stdlife)) -> 3.42469113 | P74: =IF(A3stdlife="n/a","n/a",IF(P$3>(A3stdlife+$F74),(Input!$J$145*(1+vanilla3)^0.5)-SUM($J74:O74),(Input!$J$145*(1+vanilla3)^0.5)/A3stdlife)) -> 3.42469113 | Q74: =IF(A3stdlife="n/a","n/a",IF(Q$3>(A3stdlife+$F74),(Input!$J$145*(1+vanilla3)^0.5)-SUM($J74:P74),(Input!$J$145*(1+vanilla3)^0.5)/A3stdlife)) -> 3.42469113
F75: 4 | L75: =IF(A3stdlife="n/a","n/a",IF(L$3>(A3stdlife+$F75),(Input!$K$145*(1+vanilla4)^0.5)-SUM($K75:K75),(Input!$K$145*(1+vanilla4)^0.5)/A3stdlife)) -> 1.476002114 | M75: =IF(A3stdlife="n/a","n/a",IF(M$3>(A3stdlife+$F75),(Input!$K$145*(1+vanilla4)^0.5)-SUM($K75:L75),(Input!$K$145*(1+vanilla4)^0.5)/A3stdlife)) -> 1.476002114 | N75: =IF(A3stdlife="n/a","n/a",IF(N$3>(A3stdlife+$F75),(Input!$K$145*(1+vanilla4)^0.5)-SUM($K75:M75),(Input!$K$145*(1+vanilla4)^0.5)/A3stdlife)) -> 1.476002114 | O75: =IF(A3stdlife="n/a","n/a",IF(O$3>(A3stdlife+$F75),(Input!$K$145*(1+vanilla4)^0.5)-SUM($K75:N75),(Input!$K$145*(1+vanilla4)^0.5)/A3stdlife)) -> 1.476002114 | P75: =IF(A3stdlife="n/a","n/a",IF(P$3>(A3stdlife+$F75),(Input!$K$145*(1+vanilla4)^0.5)-SUM($K75:O75),(Input!$K$145*(1+vanilla4)^0.5)/A3stdlife)) -> 1.476002114 | Q75: =IF(A3stdlife="n/a","n/a",IF(Q$3>(A3stdlife+$F75),(Input!$K$145*(1+vanilla4)^0.5)-SUM($K75:P75),(Input!$K$145*(1+vanilla4)^0.5)/A3stdlife)) -> 1.476002114
F76: 5 | M76: =IF(A3stdlife="n/a","n/a",IF(M$3>(A3stdlife+$F76),(Input!$L$145*(1+vanilla5)^0.5)-SUM($L76:L76),(Input!$L$145*(1+vanilla5)^0.5)/A3stdlife)) -> 0.1380475357 | N76: =IF(A3stdlife="n/a","n/a",IF(N$3>(A3stdlife+$F76),(Input!$L$145*(1+vanilla5)^0.5)-SUM($L76:M76),(Input!$L$145*(1+vanilla5)^0.5)/A3stdlife)) -> 0.1380475357 | O76: =IF(A3stdlife="n/a","n/a",IF(O$3>(A3stdlife+$F76),(Input!$L$145*(1+vanilla5)^0.5)-SUM($L76:N76),(Input!$L$145*(1+vanilla5)^0.5)/A3stdlife)) -> 0.1380475357 | P76: =IF(A3stdlife="n/a","n/a",IF(P$3>(A3stdlife+$F76),(Input!$L$145*(1+vanilla5)^0.5)-SUM($L76:O76),(Input!$L$145*(1+vanilla5)^0.5)/A3stdlife)) -> 0.1380475357 | Q76: =IF(A3stdlife="n/a","n/a",IF(Q$3>(A3stdlife+$F76),(Input!$L$145*(1+vanilla5)^0.5)-SUM($L76:P76),(Input!$L$145*(1+vanilla5)^0.5)/A3stdlife)) -> 0.1380475357
F77: 6 | N77: =IF(A3stdlife="n/a","n/a",IF(N$3>(A3stdlife+$F77),(Input!$M$145*(1+vanilla6)^0.5)-SUM($M77:M77),(Input!$M$145*(1+vanilla6)^0.5)/A3stdlife)) -> 0 | O77: =IF(A3stdlife="n/a","n/a",IF(O$3>(A3stdlife+$F77),(Input!$M$145*(1+vanilla6)^0.5)-SUM($M77:N77),(Input!$M$145*(1+vanilla6)^0.5)/A3stdlife)) -> 0 | P77: =IF(A3stdlife="n/a","n/a",IF(P$3>(A3stdlife+$F77),(Input!$M$145*(1+vanilla6)^0.5)-SUM($M77:O77),(Input!$M$145*(1+vanilla6)^0.5)/A3stdlife)) -> 0 | Q77: =IF(A3stdlife="n/a","n/a",IF(Q$3>(A3stdlife+$F77),(Input!$M$145*(1+vanilla6)^0.5)-SUM($M77:P77),(Input!$M$145*(1+vanilla6)^0.5)/A3stdlife)) -> 0
F78: 7 | O78: =IF(A3stdlife="n/a","n/a",IF(O$3>(A3stdlife+$F78),(Input!$N$145*(1+vanilla7)^0.5)-SUM($N78:N78),(Input!$N$145*(1+vanilla7)^0.5)/A3stdlife)) -> 0 | P78: =IF(A3stdlife="n/a","n/a",IF(P$3>(A3stdlife+$F78),(Input!$N$145*(1+vanilla7)^0.5)-SUM($N78:O78),(Input!$N$145*(1+vanilla7)^0.5)/A3stdlife)) -> 0 | Q78: =IF(A3stdlife="n/a","n/a",IF(Q$3>(A3stdlife+$F78),(Input!$N$145*(1+vanilla7)^0.5)-SUM($N78:P78),(Input!$N$145*(1+vanilla7)^0.5)/A3stdlife)) -> 0
F79: 8 | P79: =IF(A3stdlife="n/a","n/a",IF(P$3>(A3stdlife+$F79),(Input!$O$145*(1+vanilla8)^0.5)-SUM($O79:O79),(Input!$O$145*(1+vanilla8)^0.5)/A3stdlife)) -> 0 | Q79: =IF(A3stdlife="n/a","n/a",IF(Q$3>(A3stdlife+$F79),(Input!$O$145*(1+vanilla8)^0.5)-SUM($O79:P79),(Input!$O$145*(1+vanilla8)^0.5)/A3stdlife)) -> 0
F80: 9 | Q80: =IF(A3stdlife="n/a","n/a",IF(Q$3>(A3stdlife+$F80),(Input!$P$145*(1+vanilla9)^0.5)-SUM($P80:P80),(Input!$P$145*(1+vanilla9)^0.5)/A3stdlife)) -> 0
F81: 10
D82: =Asset3 -> remotely read interval meters | H82: =IF('AMI RAB'!$AQ$2=1,-SUM('AMI RAB'!AT46:AT47)/1000,-SUM(H70:H81)) -> -3.190511062 | I82: =IF('AMI RAB'!$AQ$2=1,-SUM('AMI RAB'!AU46:AU47)/1000,-SUM(I70:I81)) -> -6.12896799 | J82: =IF('AMI RAB'!$AQ$2=1,-SUM('AMI RAB'!AV46:AV47)/1000,-SUM(J70:J81)) -> -9.399127913 | K82: =IF('AMI RAB'!$AQ$2=1,-SUM('AMI RAB'!AW46:AW47)/1000,-SUM(K70:K81)) -> -11.84947434 | L82: =IF('AMI RAB'!$AQ$2=1,-SUM('AMI RAB'!AX46:AX47)/1000,-SUM(L70:L81)) -> -12.6564991 | M82: =IF(Input!M173>0, -SUM(M70:M81), 0) -> 0 | N82: =IF(Input!N173>0, -SUM(N70:N81), 0) -> 0 | O82: =IF(Input!O173>0, -SUM(O70:O81), 0) -> 0 | P82: =IF(Input!P173>0, -SUM(P70:P81), 0) -> 0 | Q82: =IF(Input!Q173>0, -SUM(Q70:Q81), 0) -> 0
C83: =Asset4 -> IT | E83: Opening RAB | H83: =IF('AMI RAB'!$AQ$2=1,'AMI RAB'!AT49/1000,IF(H$3>A4remlife,A4value-SUM($G83:G83),IF(A4remlife="N/A","n/a",A4value/A4remlife))) -> 15.8337242 | I83: =IF(I$3>A4remlife,A4value-SUM($G83:H83),IF(A4remlife="N/A","n/a",A4value/A4remlife)) -> 12.85969212 | J83: =IF(J$3>A4remlife,A4value-SUM($G83:I83),IF(A4remlife="N/A","n/a",A4value/A4remlife)) -> 12.85969212 | K83: =IF(K$3>A4remlife,A4value-SUM($G83:J83),IF(A4remlife="N/A","n/a",A4value/A4remlife)) -> 12.85969212 | L83: =IF(L$3>A4remlife,A4value-SUM($G83:K83),IF(A4remlife="N/A","n/a",A4value/A4remlife)) -> 12.85969212 | M83: =IF(M$3>A4remlife,A4value-SUM($G83:L83),IF(A4remlife="N/A","n/a",A4value/A4remlife)) -> 12.85969212 | N83: =IF(N$3>A4remlife,A4value-SUM($G83:M83),IF(A4remlife="N/A","n/a",A4value/A4remlife)) -> 12.85969212 | O83: =IF(O$3>A4remlife,A4value-SUM($G83:N83),IF(A4remlife="N/A","n/a",A4value/A4remlife)) -> -2.974032086 | P83: =IF(P$3>A4remlife,A4value-SUM($G83:O83),IF(A4remlife="N/A","n/a",A4value/A4remlife)) -> 0 | Q83: =IF(Q$3>A4remlife,A4value-SUM($G83:P83),IF(A4remlife="N/A","n/a",A4value/A4remlife)) -> 0
E84: Capex in year | F84: 0
F85: 1 | I85: =IF(A4stdlife="n/a","n/a",IF(I$3>(A4stdlife+$F85),(Input!$H$146*(1+vanilla1)^0.5)-SUM($H85:H85),(Input!$H$146*(1+vanilla1)^0.5)/A4stdlife)) -> 1.164958554 | J85: =IF(A4stdlife="n/a","n/a",IF(J$3>(A4stdlife+$F85),(Input!$H$146*(1+vanilla1)^0.5)-SUM($H85:I85),(Input!$H$146*(1+vanilla1)^0.5)/A4stdlife)) -> 1.164958554 | K85: =IF(A4stdlife="n/a","n/a",IF(K$3>(A4stdlife+$F85),(Input!$H$146*(1+vanilla1)^0.5)-SUM($H85:J85),(Input!$H$146*(1+vanilla1)^0.5)/A4stdlife)) -> 1.164958554 | L85: =IF(A4stdlife="n/a","n/a",IF(L$3>(A4stdlife+$F85),(Input!$H$146*(1+vanilla1)^0.5)-SUM($H85:K85),(Input!$H$146*(1+vanilla1)^0.5)/A4stdlife)) -> 1.164958554 | M85: =IF(A4stdlife="n/a","n/a",IF(M$3>(A4stdlife+$F85),(Input!$H$146*(1+vanilla1)^0.5)-SUM($H85:L85),(Input!$H$146*(1+vanilla1)^0.5)/A4stdlife)) -> 1.164958554 | N85: =IF(A4stdlife="n/a","n/a",IF(N$3>(A4stdlife+$F85),(Input!$H$146*(1+vanilla1)^0.5)-SUM($H85:M85),(Input!$H$146*(1+vanilla1)^0.5)/A4stdlife)) -> 1.164958554 | O85: =IF(A4stdlife="n/a","n/a",IF(O$3>(A4stdlife+$F85),(Input!$H$146*(1+vanilla1)^0.5)-SUM($H85:N85),(Input!$H$146*(1+vanilla1)^0.5)/A4stdlife)) -> 1.164958554 | P85: =IF(A4stdlife="n/a","n/a",IF(P$3>(A4stdlife+$F85),(Input!$H$146*(1+vanilla1)^0.5)-SUM($H85:O85),(Input!$H$146*(1+vanilla1)^0.5)/A4stdlife)) -> -1.776356839e-15 | Q85: =IF(A4stdlife="n/a","n/a",IF(Q$3>(A4stdlife+$F85),(Input!$H$146*(1+vanilla1)^0.5)-SUM($H85:P85),(Input!$H$146*(1+vanilla1)^0.5)/A4stdlife)) -> 0
F86: 2 | J86: =IF(A4stdlife="n/a","n/a",IF(J$3>(A4stdlife+$F86),(Input!$I$146*(1+vanilla2)^0.5)-SUM($I86:I86),(Input!$I$146*(1+vanilla2)^0.5)/A4stdlife)) -> 1.070575758 | K86: =IF(A4stdlife="n/a","n/a",IF(K$3>(A4stdlife+$F86),(Input!$I$146*(1+vanilla2)^0.5)-SUM($I86:J86),(Input!$I$146*(1+vanilla2)^0.5)/A4stdlife)) -> 1.070575758 | L86: =IF(A4stdlife="n/a","n/a",IF(L$3>(A4stdlife+$F86),(Input!$I$146*(1+vanilla2)^0.5)-SUM($I86:K86),(Input!$I$146*(1+vanilla2)^0.5)/A4stdlife)) -> 1.070575758 | M86: =IF(A4stdlife="n/a","n/a",IF(M$3>(A4stdlife+$F86),(Input!$I$146*(1+vanilla2)^0.5)-SUM($I86:L86),(Input!$I$146*(1+vanilla2)^0.5)/A4stdlife)) -> 1.070575758 | N86: =IF(A4stdlife="n/a","n/a",IF(N$3>(A4stdlife+$F86),(Input!$I$146*(1+vanilla2)^0.5)-SUM($I86:M86),(Input!$I$146*(1+vanilla2)^0.5)/A4stdlife)) -> 1.070575758 | O86: =IF(A4stdlife="n/a","n/a",IF(O$3>(A4stdlife+$F86),(Input!$I$146*(1+vanilla2)^0.5)-SUM($I86:N86),(Input!$I$146*(1+vanilla2)^0.5)/A4stdlife)) -> 1.070575758 | P86: =IF(A4stdlife="n/a","n/a",IF(P$3>(A4stdlife+$F86),(Input!$I$146*(1+vanilla2)^0.5)-SUM($I86:O86),(Input!$I$146*(1+vanilla2)^0.5)/A4stdlife)) -> 1.070575758 | Q86: =IF(A4stdlife="n/a","n/a",IF(Q$3>(A4stdlife+$F86),(Input!$I$146*(1+vanilla2)^0.5)-SUM($I86:P86),(Input!$I$146*(1+vanilla2)^0.5)/A4stdlife)) -> 1.776356839e-15
F87: 3 | K87: =IF(A4stdlife="n/a","n/a",IF(K$3>(A4stdlife+$F87),(Input!$J$146*(1+vanilla3)^0.5)-SUM($J87:J87),(Input!$J$146*(1+vanilla3)^0.5)/A4stdlife)) -> 0.230145892 | L87: =IF(A4stdlife="n/a","n/a",IF(L$3>(A4stdlife+$F87),(Input!$J$146*(1+vanilla3)^0.5)-SUM($J87:K87),(Input!$J$146*(1+vanilla3)^0.5)/A4stdlife)) -> 0.230145892 | M87: =IF(A4stdlife="n/a","n/a",IF(M$3>(A4stdlife+$F87),(Input!$J$146*(1+vanilla3)^0.5)-SUM($J87:L87),(Input!$J$146*(1+vanilla3)^0.5)/A4stdlife)) -> 0.230145892 | N87: =IF(A4stdlife="n/a","n/a",IF(N$3>(A4stdlife+$F87),(Input!$J$146*(1+vanilla3)^0.5)-SUM($J87:M87),(Input!$J$146*(1+vanilla3)^0.5)/A4stdlife)) -> 0.230145892 | O87: =IF(A4stdlife="n/a","n/a",IF(O$3>(A4stdlife+$F87),(Input!$J$146*(1+vanilla3)^0.5)-SUM($J87:N87),(Input!$J$146*(1+vanilla3)^0.5)/A4stdlife)) -> 0.230145892 | P87: =IF(A4stdlife="n/a","n/a",IF(P$3>(A4stdlife+$F87),(Input!$J$146*(1+vanilla3)^0.5)-SUM($J87:O87),(Input!$J$146*(1+vanilla3)^0.5)/A4stdlife)) -> 0.230145892 | Q87: =IF(A4stdlife="n/a","n/a",IF(Q$3>(A4stdlife+$F87),(Input!$J$146*(1+vanilla3)^0.5)-SUM($J87:P87),(Input!$J$146*(1+vanilla3)^0.5)/A4stdlife)) -> 0.230145892
F88: 4 | L88: =IF(A4stdlife="n/a","n/a",IF(L$3>(A4stdlife+$F88),(Input!$K$146*(1+vanilla4)^0.5)-SUM($K88:K88),(Input!$K$146*(1+vanilla4)^0.5)/A4stdlife)) -> 0.5207408065 | M88: =IF(A4stdlife="n/a","n/a",IF(M$3>(A4stdlife+$F88),(Input!$K$146*(1+vanilla4)^0.5)-SUM($K88:L88),(Input!$K$146*(1+vanilla4)^0.5)/A4stdlife)) -> 0.5207408065 | N88: =IF(A4stdlife="n/a","n/a",IF(N$3>(A4stdlife+$F88),(Input!$K$146*(1+vanilla4)^0.5)-SUM($K88:M88),(Input!$K$146*(1+vanilla4)^0.5)/A4stdlife)) -> 0.5207408065 | O88: =IF(A4stdlife="n/a","n/a",IF(O$3>(A4stdlife+$F88),(Input!$K$146*(1+vanilla4)^0.5)-SUM($K88:N88),(Input!$K$146*(1+vanilla4)^0.5)/A4stdlife)) -> 0.5207408065 | P88: =IF(A4stdlife="n/a","n/a",IF(P$3>(A4stdlife+$F88),(Input!$K$146*(1+vanilla4)^0.5)-SUM($K88:O88),(Input!$K$146*(1+vanilla4)^0.5)/A4stdlife)) -> 0.5207408065 | Q88: =IF(A4stdlife="n/a","n/a",IF(Q$3>(A4stdlife+$F88),(Input!$K$146*(1+vanilla4)^0.5)-SUM($K88:P88),(Input!$K$146*(1+vanilla4)^0.5)/A4stdlife)) -> 0.5207408065
F89: 5 | M89: =IF(A4stdlife="n/a","n/a",IF(M$3>(A4stdlife+$F89),(Input!$L$146*(1+vanilla5)^0.5)-SUM($L89:L89),(Input!$L$146*(1+vanilla5)^0.5)/A4stdlife)) -> 0.5398103048 | N89: =IF(A4stdlife="n/a","n/a",IF(N$3>(A4stdlife+$F89),(Input!$L$146*(1+vanilla5)^0.5)-SUM($L89:M89),(Input!$L$146*(1+vanilla5)^0.5)/A4stdlife)) -> 0.5398103048 | O89: =IF(A4stdlife="n/a","n/a",IF(O$3>(A4stdlife+$F89),(Input!$L$146*(1+vanilla5)^0.5)-SUM($L89:N89),(Input!$L$146*(1+vanilla5)^0.5)/A4stdlife)) -> 0.5398103048 | P89: =IF(A4stdlife="n/a","n/a",IF(P$3>(A4stdlife+$F89),(Input!$L$146*(1+vanilla5)^0.5)-SUM($L89:O89),(Input!$L$146*(1+vanilla5)^0.5)/A4stdlife)) -> 0.5398103048 | Q89: =IF(A4stdlife="n/a","n/a",IF(Q$3>(A4stdlife+$F89),(Input!$L$146*(1+vanilla5)^0.5)-SUM($L89:P89),(Input!$L$146*(1+vanilla5)^0.5)/A4stdlife)) -> 0.5398103048
F90: 6 | N90: =IF(A4stdlife="n/a","n/a",IF(N$3>(A4stdlife+$F90),(Input!$M$146*(1+vanilla6)^0.5)-SUM($M90:M90),(Input!$M$146*(1+vanilla6)^0.5)/A4stdlife)) -> 0 | O90: =IF(A4stdlife="n/a","n/a",IF(O$3>(A4stdlife+$F90),(Input!$M$146*(1+vanilla6)^0.5)-SUM($M90:N90),(Input!$M$146*(1+vanilla6)^0.5)/A4stdlife)) -> 0 | P90: =IF(A4stdlife="n/a","n/a",IF(P$3>(A4stdlife+$F90),(Input!$M$146*(1+vanilla6)^0.5)-SUM($M90:O90),(Input!$M$146*(1+vanilla6)^0.5)/A4stdlife)) -> 0 | Q90: =IF(A4stdlife="n/a","n/a",IF(Q$3>(A4stdlife+$F90),(Input!$M$146*(1+vanilla6)^0.5)-SUM($M90:P90),(Input!$M$146*(1+vanilla6)^0.5)/A4stdlife)) -> 0
F91: 7 | O91: =IF(A4stdlife="n/a","n/a",IF(O$3>(A4stdlife+$F91),(Input!$N$146*(1+vanilla7)^0.5)-SUM($N91:N91),(Input!$N$146*(1+vanilla7)^0.5)/A4stdlife)) -> 0 | P91: =IF(A4stdlife="n/a","n/a",IF(P$3>(A4stdlife+$F91),(Input!$N$146*(1+vanilla7)^0.5)-SUM($N91:O91),(Input!$N$146*(1+vanilla7)^0.5)/A4stdlife)) -> 0 | Q91: =IF(A4stdlife="n/a","n/a",IF(Q$3>(A4stdlife+$F91),(Input!$N$146*(1+vanilla7)^0.5)-SUM($N91:P91),(Input!$N$146*(1+vanilla7)^0.5)/A4stdlife)) -> 0
F92: 8 | P92: =IF(A4stdlife="n/a","n/a",IF(P$3>(A4stdlife+$F92),(Input!$O$146*(1+vanilla8)^0.5)-SUM($O92:O92),(Input!$O$146*(1+vanilla8)^0.5)/A4stdlife)) -> 0 | Q92: =IF(A4stdlife="n/a","n/a",IF(Q$3>(A4stdlife+$F92),(Input!$O$146*(1+vanilla8)^0.5)-SUM($O92:P92),(Input!$O$146*(1+vanilla8)^0.5)/A4stdlife)) -> 0
F93: 9 | Q93: =IF(A4stdlife="n/a","n/a",IF(Q$3>(A4stdlife+$F93),(Input!$P$146*(1+vanilla9)^0.5)-SUM($P93:P93),(Input!$P$146*(1+vanilla9)^0.5)/A4stdlife)) -> 0
F94: 10
